Workbook

Sheet 學期 (hidden)
B2: 年級: | C2: 四 | F2: 高雄市左營區福山國小106學年度第二學期__四年級各領域教學進度總表
B3: 上課總天數:82天
D4: 彈性學習課程/節數 | N4: 非領域課程 | P4: 語文 | R4: 本土語言 | T4: 英語 | V4: 數學 | X4: 社會 | Z4: 藝術與人文 | AB4: 自然與科技 | AD4: 健康與體育 | AF4: 綜合活動
B5: 週別 | C5: 週別日期 | D5: 學校年級活動 | E5: 節數 | F5: 三鐵特色課程 | G5: 節數 | H5: 閱讀理解 | I5: 節數 | J5: 生活藝文 | K5: 節數 | L5: 學習診斷與補救 | M5: 節數 | N5: D:非領域課程 | O5: 節數 | P5: 國語 ( 南一版) 第8冊 | Q5: 節數 | R5: 本土語言 (真平臺羅版)第8冊 | S5: 節數 | T5: 英語 ( 翰林版Dino)第3冊 | U5: 節數 | V5: 數學 ( 康軒版)第8冊 | W5: 節數 | X5: 社會 ( 南一版 )第4冊 | Y5: 節數 | Z5: 藝術與人文 （康軒版）第4冊 | AA5: 節數 | AB5: 自然與科技 ( 翰林版 )第4冊 | AC5: 節數 | AD5: 健康與體育翰林 ( 翰林版)第8冊 | AE5: 節數 | AF5: 綜合活動 ( 南一版)第8冊 | AG5: 節數 | AH5: 備 註

Sheet 課程研發小組
B2: 著作權所有: | C2: 課程研發小組 | E2: 策畫指導 | F2: 李紋勝
E3: 課程顧問 | F3: 許惟翔 | G3: 林驛哲
E4: 研發設計 | F4: 侯泰耀
E5: 教育訓練 | F5: 林梅芬
E6: 企劃推廣 | F6: 吳耿良
E7: 研發特助 | F7: 楊靜芳

Sheet 使用說明
A1: 12021 | B1: 先選行政區 再選校名 | C1: 學校: | D1: 屏山國小 | G1: 學年度: | H1: 107 | I1: 年級: | J1: 一年級 | L1: 今天 | M1: =TODAY() -> 2018-07-24 | Q1: 製作行事曆: | AB1: * | AG1: * | BA1: 4321 | CI1: 6 | CJ1: 16 | CK1: 89 | CL1: 1 | CM1: 2 | CN1: 3 | CO1: 4 | CP1: 5 | CQ1: 6
A2: 9876 | C2: 行政區 | D2: 左營區 | M2: 起 | N2: 迄 | O2: 週次 | P2: 上課日數 | AB2: 2
A3: 1 | C3: 縣/市 | D3: 高雄市 | J3: 上 | K3: 學期第一週起迄: | M3: 2018-08-26 | N3: 2018-09-01 | O3: 21 | P3: 99 | Q3: (內定最多22週)
B4: 使用說明: | C4: 1.excel版2007~2010版巨集安全性設定,按__<啟用內容>__即可使用 | J4: 下 | K4: 學期第一週起迄: | M4: 2019-02-10 | N4: 2019-02-16 | O4: 20 | P4: 96 | CK4: 週次 | CL4: 1 | CM4: 2 | CN4: 3 | CO4: 4 | CP4: 5 | CQ4: 6 | CR4: 7 | CS4: 8 | CT4: 9 | CU4: 10 | CV4: 11 | CW4: 12 | CX4: 13 | CY4: 14 | CZ4: 15 | DA4: 16 | DB4: 17 | DC4: 18
C5: 2.請千萬注意__勿任意刪除任何工作表之欄(A,B,C,...)或列(1,2,3,….) | N5: 6年級下學期上課週次: | O5: 18 | P5: 83 | Q5: (6年級依畢業典禮日期_請更改下學期上課天數) | AH5: 34
B6: ※ | C6: 修正1~6在本工作表完成 | H6: ※ | I6: 檢查1~5在本工作表 | P6: J | AF6: 107學年度 | AG6: 108學年度 | CK6: 已設定節數: | CL6: 5 | CM6: 5 | CN6: 5 | CO6: 5 | CP6: 5 | CQ6: 5 | CR6: 5 | CS6: 5 | CT6: 5 | CU6: 5 | CV6: 5 | CW6: 5 | CX6: 5 | CY6: 5 | CZ6: 5 | DA6: 3 | DB6: 5 | DC6: 5
B7: ※ | C7: 修正7~11在[學校行事和國定假日]工作表完成 | H7: ※ | I7: 檢查6_在[上/下學期]工作表AL欄 | P7: * | AE7: 低: | AF7: 20 | AG7: 20 | AM7: 中 | AQ7: 語文領域 | AT7: 其他領域 | AV7: 生活 | CK7: 跨領域已設定節數:
B8: ※ | C8: 修正12/13在[上/下學期]工作表AL欄完成(備註選取) | H8: ※ | I8: 檢查7_在[上/下學期]工作表AU欄和列69交叉處 | AD8: 部規定107年前課程標準領域節數: | AE8: 中 | AF8: 25 | AG8: 25 | AM8: 高 | AO8: 低 | AP8: % | AQ8: 0.2 | AT8: 0.1 | AV8: 0.3 | CJ8: A | CK8: 語文 | CL8: 0 | CM8: 3 | CN8: 0 | CO8: 0 | CP8: 0 | CQ8: 0 | CR8: 0 | CS8: 0 | CT8: 0 | CU8: 0 | CV8: 0 | CW8: 0 | CX8: 0 | CY8: 0 | CZ8: 0 | DA8: 0 | DB8: 0 | DC8: 0 | DI8: =SUM(CL8:DG8) -> 3
H9: ※ | I9: 檢查8_在[作業平台_教..]工作表 | AE9: 高 | AF9: 27 | AG9: 26 | AO9: 高 | AP9: % | AQ9: 0.3 | AT9: 0.15 | AV9: 0.45 | CJ9: B | CK9: 本土語言 | CL9: 0 | CM9: 0 | CN9: 0 | CO9: 0 | CP9: 0 | CQ9: 0 | CR9: 0 | CS9: 0 | CT9: 0 | CU9: 0 | CV9: 0 | CW9: 0 | CX9: 0 | CY9: 0 | CZ9: 0 | DA9: 0 | DB9: 0 | DC9: 0 | DI9: =SUM(CL9:DG9) -> 0
L10: =H1&"學年度各年級_上課總節數統計表" -> 107學年度各年級_上課總節數統計表 | X10: 1* | Z10: 各週節數參考(以學校課發會通過為準),節數要正確 | AO10: 各週節數正確檢核(全校確認無誤) | CJ10: C | CK10: 英語 | CL10: 0 | CM10: 0 | CN10: 0 | CO10: 0 | CP10: 0 | CQ10: 0 | CR10: 0 | CS10: 0 | CT10: 0 | CU10: 0 | CV10: 0 | CW10: 0 | CX10: 0 | CY10: 0 | CZ10: 0 | DA10: 0 | DB10: 0 | DC10: 0 | DI10: 0
B11: 表一:部定_各年彈性節數 | G11: 上學期 | H11: 放假前 | J11: 放假後(扣掉放假日) | M11: =IF(COUNTIF(M13:M26,"=Y")<>6,"※請各年級選取Y確認","正確") -> 正確 | W11: 選取年級版本 | X11: 項目(節) | Z11: 語文 | AD11: 生活 | AK11: =IF(COUNTIF(AK13:AK26,"錯誤")>0,"※請各年級修正節數","正確") -> 正確 | AM11: =COUNTIF(AK13:AK18,"錯誤") -> 0 | AO11: 各領域節數檢核: | AS11: =IF(BC11=0,"正確","錯誤請修正!") -> 正確 | BC11: =COUNTIF(AP13:BC18,"錯誤") -> 0 | CJ11: D | CK11: 數學 | CL11: 0 | CM11: 3 | CN11: 0 | CO11: 0 | CP11: 0 | CQ11: 0 | CR11: 0 | CS11: 0 | CT11: 0 | CU11: 0 | CV11: 0 | CW11: 0 | CX11: 0 | CY11: 0 | CZ11: 0 | DA11: 0 | DB11: 0 | DC11: 0 | DI11: 3
B12: 年級 | C12: 上學期 | D12: 下學期 | E12: =IF(COUNTIF(E13:E18,"Y")=6,"正確","錯誤!") -> 正確 | F12: 流水號 | G12: 年級 | H12: 上學期 | I12: 下學期 | J12: ="上學期" & P3 & "天" -> 上學期99天 | K12: ="下學期" & P4 & "天" -> 下學期96天 | L12: 備註 | M12: 本校中年級週四或週五半天選取(高年級也要選取Y) | N12: 六年級下學期上課天數 | X12: 年級 | Y12: 彈性學習節數 | Z12: 國語文 | AA12: 本土 語言 | AB12: 英語 | AC12: 數學 | AD12: 社會 | AE12: 藝術與人文 | AF12: 自然與科技 | AG12: 健康與體育 | AH12: 綜合活動 | AI12: 學習總節數 | AJ12: 領域節數 | AK12: 領域節數是否正確 | AO12: 語文 (國+本土+英) | AP12: 檢核 | AR12: 數學 | AS12: 檢核 | AT12: 生活/社會 | AU12: 檢核 | AV12: 藝術與人文 | AW12: 檢核 | AX12: 自然與科技 | AY12: 檢核 | AZ12: 健康與體育 | BA12: 檢核 | BB12: 綜合活動 | BC12: 檢核 | BO12: 語文 (國+本土+英) | BP12: 檢核 | BR12: 數學 | BS12: 檢核 | BT12: 生活/社會 | BU12: 檢核 | BV12: 藝術與人文 | BW12: 檢核 | BX12: 自然與科技 | BY12: 檢核 | BZ12: 健康與體育 | CA12: 檢核 | CB12: 綜合活動 | CC12: 檢核 | CJ12: E | CK12: 生活/社會 | CL12: 0 | CM12: 3 | CN12: 0 | CO12: 0 | CP12: 0 | CQ12: 0 | CR12: 0 | CS12: 0 | CT12: 0 | CU12: 0 | CV12: 0 | CW12: 0 | CX12: 0 | CY12: 0 | CZ12: 0 | DA12: 0 | DB12: 0 | DC12: 0 | DI12: 3
B13: 1 | C13: 63 | D13: 60 | E13: =IF(OR(C13<>C21,D13<>D21),"節數不可更改","Y") -> Y | F13: 1 | G13: 一 | H13: =AI13*$O$3 -> 483 | I13: =AI13*$O$4 -> 460 | J13: 453 | K13: 444 | M13: Y | O13: =IF(M13="","尚未選取",IF(M13="Y","OK",)) -> OK | W13: 舊 | X13: 一 | Y13: 3 | Z13: 5 | AA13: 1 | AB13: 0 | AC13: 3 | AD13: 7 | AG13: 2 | AH13: 2 | AI13: =SUM(Y13:AH13) -> 23 | AJ13: =SUM(Z13:AH13) -> 20 | AK13: =IF(AND(W13="新",SUM(Z13:AH13)=20,Y13=3),"正確",IF(AND(W13="舊",SUM(Z13:AH13)=20,Y13=3),"正確","錯誤")) -> 正確 | AO13: =IF(W13="新","*",IF(W13="舊",(Z13+AA13+AB13)/AF7,"")) -> 0.3 | AP13: =IF(AND(W13="新",Z13=6,AA13=1,AB13=0),"Y",IF(AND(AO13>=$AQ$8,AO13<=$AQ$9),"Y","錯誤")) -> Y | AR13: =IF(W13="新","*",IF(W13="舊",(AC13)/AF7,"")) -> 0.15 | AS13: =IF(AND(W13="新",AC13=4),"Y",IF(AND(AR13>=$AT$8,AR13<=$AT$9),"Y","錯誤")) -> Y | AT13: =IF(W13="新","*",IF(W13="舊",(AD13)/AF7,"")) -> 0.35 | AU13: =IF(AND(W13="新",AD13=6),"Y",IF(AND(AT13>=$AV$8,AT13<=$AV$9),"Y","錯誤")) -> Y | AZ13: =IF(W13="新","*",IF(W13="舊",(AG13)/AF7,"")) -> 0.1 | BA13: =IF(AND(W13="新",AG13=3),"Y",IF(AND(AZ13>=$AT$8,AZ13<=$AT$9),"Y","錯誤")) -> Y | BB13: =IF(W13="新","*",IF(W13="舊",(AH13)/AF7,"")) -> 0.1 | BC13: =IF(AND(W13="新",AH13=0),"Y",IF(AND(BB13>=$AT$8,BB13<=$AT$9),"Y","錯誤")) -> Y | BO13: =IF(AW13="新","*",IF(AW13="舊",(AZ13+BA13+BB13)/BF7,"")) ->  | BP13: =IF(AND(AW13="新",AZ13=6,BA13=1,BB13=0),"Y",IF(AND(BO13>=$AQ$8,BO13<=$AQ$9),"Y","錯誤")) -> 錯誤 | BR13: =IF(AW13="新","*",IF(AW13="舊",(BC13)/BF7,"")) ->  | BS13: =IF(AND(AW13="新",BC13=4),"Y",IF(AND(BR13>=$AT$8,BR13<=$AT$9),"Y","錯誤")) -> 錯誤 | BT13: =IF(AW13="新","*",IF(AW13="舊",(BD13)/BF7,"")) ->  | BU13: =IF(AND(AW13="新",BD13=6),"Y",IF(AND(BT13>=$AV$8,BT13<=$AV$9),"Y","錯誤")) -> 錯誤 | BZ13: =IF(AW13="新","*",IF(AW13="舊",(BG13)/BF7,"")) ->  | CA13: =IF(AND(AW13="新",BG13=3),"Y",IF(AND(BZ13>=$AT$8,BZ13<=$AT$9),"Y","錯誤")) -> 錯誤 | CB13: =IF(AW13="新","*",IF(AW13="舊",(BH13)/BF7,"")) ->  | CC13: =IF(AND(AW13="新",BH13=0),"Y",IF(AND(CB13>=$AT$8,CB13<=$AT$9),"Y","錯誤")) -> 錯誤 | CJ13: F | CK13: 藝術與人文 | CL13: 0 | CM13: 2 | CN13: 0 | CO13: 0 | CP13: 0 | CQ13: 0 | CR13: 0 | CS13: 0 | CT13: 0 | CU13: 0 | CV13: 0 | CW13: 0 | CX13: 0 | CY13: 0 | CZ13: 0 | DA13: 0 | DB13: 0 | DC13: 0 | DI13: 2
B14: 2 | C14: 63 | D14: 60 | E14: Y | F14: 2 | G14: 二 | H14: =AI14*$O$3 -> 483 | I14: =AI14*$O$4 -> 460 | J14: 453 | K14: 444 | M14: Y | O14: =IF(M14="","尚未選取",IF(M14="Y","OK",)) -> OK | W14: 舊 | X14: 二 | Y14: 3 | Z14: 5 | AA14: 1 | AB14: 0 | AC14: 3 | AD14: 7 | AG14: 2 | AH14: 2 | AI14: 23 | AJ14: =IF(SUM(Z14:AH14)<>$AF$7,"錯誤",SUM(Z14:AH14)) -> 20 | AK14: =IF(AND(W14="新",SUM(Z14:AH14)=20,Y14=3),"正確",IF(AND(W14="舊",SUM(Z14:AH14)=20,Y14=3),"正確","錯誤")) -> 正確 | AO14: =IF(W14="新","*",IF(W14="舊",(Z14+AA14+AB14)/AF7,"")) -> 0.3 | AP14: =IF(AND(W14="新",Z14=6,AA14=1,AB14=0),"Y",IF(AND(AO14>=$AQ$8,AO14<=$AQ$9),"Y","錯誤")) -> Y | AR14: =IF(W14="新","*",IF(W14="舊",(AC14)/AF7,"")) -> 0.15 | AS14: Y | AT14: =IF(W14="新","*",IF(W14="舊",(AD14)/AF7,"")) -> 0.35 | AU14: =IF(AND(W14="新",AD14=6),"Y",IF(AND(AT14>=$AV$8,AT14<=$AV$9),"Y","錯誤")) -> Y | AZ14: =IF(W14="新","*",IF(W14="舊",(AG14)/AF7,"")) -> 0.1 | BA14: Y | BB14: =IF(W14="新","*",IF(W14="舊",(AH14)/AF7,"")) -> 0.1 | BC14: =IF(AND(W14="新",AH14=0),"Y",IF(AND(BB14>=$AT$8,BB14<=$AT$9),"Y","錯誤")) -> Y | BO14: =IF(AW14="新","*",IF(AW14="舊",(AZ14+BA14+BB14)/BF7,"")) ->  | BP14: =IF(AND(AW14="新",AZ14=6,BA14=1,BB14=0),"Y",IF(AND(BO14>=$AQ$8,BO14<=$AQ$9),"Y","錯誤")) -> 錯誤 | BR14: =IF(AW14="新","*",IF(AW14="舊",(BC14)/BF7,"")) ->  | BS14: 錯誤 | BT14: =IF(AW14="新","*",IF(AW14="舊",(BD14)/BF7,"")) ->  | BU14: =IF(AND(AW14="新",BD14=6),"Y",IF(AND(BT14>=$AV$8,BT14<=$AV$9),"Y","錯誤")) -> 錯誤 | BZ14: =IF(AW14="新","*",IF(AW14="舊",(BG14)/BF7,"")) ->  | CA14: 錯誤 | CB14: =IF(AW14="新","*",IF(AW14="舊",(BH14)/BF7,"")) ->  | CC14: =IF(AND(AW14="新",BH14=0),"Y",IF(AND(CB14>=$AT$8,CB14<=$AT$9),"Y","錯誤")) -> 錯誤 | CJ14: G | CK14: 自然與科技 | CL14: 0 | CM14: 4 | CN14: 0 | CO14: 0 | CP14: 0 | CQ14: 0 | CR14: 0 | CS14: 0 | CT14: 0 | CU14: 0 | CV14: 0 | CW14: 0 | CX14: 1 | CY14: 1 | CZ14: 0 | DA14: 0 | DB14: 0 | DC14: 0 | DI14: 6
B15: 3 | C15: 84 | D15: 80 | E15: Y | F15: 3 | G15: 三 | H15: =AI15*$O$3 -> 609 | I15: =AI15*$O$4 -> 580 | J15: 573 | K15: 558 | L15: 週五半天者 | M15: Y | O15: =IF(M15="","",IF(AND(M15="Y",M16="Y"),"三年級只能選一個","OK")) -> OK | W15: 舊 | X15: 三 | Y15: 4 | Z15: 5 | AA15: 1 | AB15: 1 | AC15: 3 | AD15: 3 | AE15: 3 | AF15: 3 | AG15: 3 | AH15: 3 | AI15: 29 | AJ15: =IF(SUM(Z15:AH15)<>$AF$8,"錯誤",SUM(Z15:AH15)) -> 25 | AK15: =IF(AND(W15="新",SUM(Z15:AH15)=25,Y15=4),"正確",IF(AND(W15="舊",SUM(Z15:AH15)=25,Y15=4),"正確","錯誤")) -> 正確 | AO15: =IF(W15="新","*",IF(W15="舊",(Z15+AA15+AB15)/AF8,"")) -> 0.28 | AP15: =IF(AND(W15="新",Z15=5,AA15=1,AB15=1),"Y",IF(AND(AO15>=$AQ$8,AO15<=$AQ$9),"Y","錯誤")) -> Y | AR15: =IF(W15="新","*",IF(W15="舊",(AC15)/AF8,"")) -> 0.12 | AS15: Y | AT15: =IF(W15="新","*",IF(W15="舊",(AD15)/AF8,"")) -> 0.12 | AU15: =IF(AND(W15="新",(AD15+AE15+AF15)=9),"Y",IF(AND($AT$15>=$AT$8,$AT$15<=$AT$9),"Y","錯誤")) -> Y | AV15: =IF(W15="新","*",IF(W15="舊",(AE15)/AF8,"")) -> 0.12 | AW15: =IF(AND(W15="新",(AE15)=3),"Y",IF(AND(AV15>=$AT$8,AV15<=$AT$9),"Y","錯誤")) -> Y | AX15: =IF(W15="新","*",IF(W15="舊",(AF15)/AF8,"")) -> 0.12 | AY15: =IF(AND(W15="新",(AF15)=3),"Y",IF(AND(AX15>=$AT$8,AX15<=$AT$9),"Y","錯誤")) -> Y | AZ15: =IF(W15="新","*",IF(W15="舊",(AG15)/AF8,"")) -> 0.12 | BA15: Y | BB15: =IF(W15="新","*",IF(W15="舊",(AH15)/AF8,"")) -> 0.12 | BC15: =IF(AND(W15="新"),"Y",IF(AND(BB15>=$AT$8,BB15<=$AT$9),"Y","錯誤")) -> Y | BO15: =IF(AW15="新","*",IF(AW15="舊",(AZ15+BA15+BB15)/BF8,"")) ->  | BP15: =IF(AND(AW15="新",AZ15=5,BA15=1,BB15=1),"Y",IF(AND(BO15>=$AQ$8,BO15<=$AQ$9),"Y","錯誤")) -> 錯誤 | BR15: =IF(AW15="新","*",IF(AW15="舊",(BC15)/BF8,"")) ->  | BS15: 錯誤 | BT15: =IF(AW15="新","*",IF(AW15="舊",(BD15)/BF8,"")) ->  | BU15: =IF(AND(AW15="新",(BD15+BE15+BF15)=9),"Y",IF(AND($AT$15>=$AT$8,$AT$15<=$AT$9),"Y","錯誤")) -> Y | BV15: =IF(AW15="新","*",IF(AW15="舊",(BE15)/BF8,"")) ->  | BW15: =IF(AND(AW15="新",(BE15)=3),"Y",IF(AND(BV15>=$AT$8,BV15<=$AT$9),"Y","錯誤")) -> 錯誤 | BX15: =IF(AW15="新","*",IF(AW15="舊",(BF15)/BF8,"")) ->  | BY15: =IF(AND(AW15="新",(BF15)=3),"Y",IF(AND(BX15>=$AT$8,BX15<=$AT$9),"Y","錯誤")) -> 錯誤 | BZ15: =IF(AW15="新","*",IF(AW15="舊",(BG15)/BF8,"")) ->  | CA15: 錯誤 | CB15: =IF(AW15="新","*",IF(AW15="舊",(BH15)/BF8,"")) ->  | CC15: =IF(AND(AW15="新"),"Y",IF(AND(CB15>=$AT$8,CB15<=$AT$9),"Y","錯誤")) -> 錯誤 | CJ15: H | CK15: 健康與體育 | CL15: 3 | CM15: 3 | CN15: 3 | CO15: 3 | CP15: 1 | CQ15: 2 | CR15: 0 | CS15: 0 | CT15: 0 | CU15: 0 | CV15: 0 | CW15: 0 | CX15: 0 | CY15: 0 | CZ15: 0 | DA15: 0 | DB15: 0 | DC15: 0 | DI15: 15
B16: 4 | C16: 84 | D16: 80 | E16: Y | F16: 4 | G16: 三 | H16: =AI15*$O$3 -> 609 | I16: =AI15*$O$4 -> 580 | J16: 573 | K16: 558 | L16: 週四半天者 | O16: =IF(M16="","",IF(AND(M15="Y",M16="Y"),"三年級只能選一個","OK")) ->  | W16: 舊 | X16: 四 | Y16: 4 | Z16: 5 | AA16: 1 | AB16: 1 | AC16: 3 | AD16: 3 | AE16: 3 | AF16: 3 | AG16: 3 | AH16: 3 | AI16: 29 | AJ16: =IF(SUM(Z16:AH16)<>$AF$8,"錯誤",SUM(Z16:AH16)) -> 25 | AK16: =IF(AND(W16="新",SUM(Z16:AH16)=25,Y16=4),"正確",IF(AND(W16="舊",SUM(Z16:AH16)=25,Y16=4),"正確","錯誤")) -> 正確 | AO16: =IF(W16="新","*",IF(W16="舊",(Z16+AA16+AB16)/AF8,"")) -> 0.28 | AP16: =IF(AND(W16="新",Z16=5,AA16=1,AB16=1),"Y",IF(AND(AO16>=$AQ$8,AO16<=$AQ$9),"Y","錯誤")) -> Y | AR16: =IF(W16="新","*",IF(W16="舊",(AC16)/AF8,"")) -> 0.12 | AS16: Y | AT16: =IF(W16="新","*",IF(W16="舊",(AD16)/AF8,"")) -> 0.12 | AU16: =IF(AND(W16="新",(AD16+AE16+AF16)=9),"Y",IF(AND($AT$16>=$AT$8,$AT$16<=$AT$9),"Y","錯誤")) -> Y | AV16: =IF(W16="新","*",IF(W16="舊",(AE16)/AF8,"")) -> 0.12 | AW16: =IF(AND(W16="新",(AE16)=3),"Y",IF(AND(AV16>=$AT$8,AV16<=$AT$9),"Y","錯誤")) -> Y | AX16: =IF(W16="新","*",IF(W16="舊",(AF16)/AF8,"")) -> 0.12 | AY16: =IF(AND(W16="新",(AF16)=3),"Y",IF(AND(AX16>=$AT$8,AX16<=$AT$9),"Y","錯誤")) -> Y | AZ16: =IF(W16="新","*",IF(W16="舊",(AG16)/AF8,"")) -> 0.12 | BA16: Y | BB16: =IF(W16="新","*",IF(W16="舊",(AH16)/AF8,"")) -> 0.12 | BC16: =IF(AND(W16="新"),"Y",IF(AND(BB16>=$AT$8,BB16<=$AT$9),"Y","錯誤")) -> Y | BO16: =IF(AW16="新","*",IF(AW16="舊",(AZ16+BA16+BB16)/BF8,"")) ->  | BP16: =IF(AND(AW16="新",AZ16=5,BA16=1,BB16=1),"Y",IF(AND(BO16>=$AQ$8,BO16<=$AQ$9),"Y","錯誤")) -> 錯誤 | BR16: =IF(AW16="新","*",IF(AW16="舊",(BC16)/BF8,"")) ->  | BS16: 錯誤 | BT16: =IF(AW16="新","*",IF(AW16="舊",(BD16)/BF8,"")) ->  | BU16: =IF(AND(AW16="新",(BD16+BE16+BF16)=9),"Y",IF(AND($AT$16>=$AT$8,$AT$16<=$AT$9),"Y","錯誤")) -> Y | BV16: =IF(AW16="新","*",IF(AW16="舊",(BE16)/BF8,"")) ->  | BW16: =IF(AND(AW16="新",(BE16)=3),"Y",IF(AND(BV16>=$AT$8,BV16<=$AT$9),"Y","錯誤")) -> 錯誤 | BX16: =IF(AW16="新","*",IF(AW16="舊",(BF16)/BF8,"")) ->  | BY16: =IF(AND(AW16="新",(BF16)=3),"Y",IF(AND(BX16>=$AT$8,BX16<=$AT$9),"Y","錯誤")) -> 錯誤 | BZ16: =IF(AW16="新","*",IF(AW16="舊",(BG16)/BF8,"")) ->  | CA16: 錯誤 | CB16: =IF(AW16="新","*",IF(AW16="舊",(BH16)/BF8,"")) ->  | CC16: =IF(AND(AW16="新"),"Y",IF(AND(CB16>=$AT$8,CB16<=$AT$9),"Y","錯誤")) -> 錯誤 | CJ16: I | CK16: 綜合活動 | CL16: 2 | CM16: 3 | CN16: 0 | CO16: 0 | CP16: 0 | CQ16: 0 | CR16: 0 | CS16: 0 | CT16: 3 | CU16: 3 | CV16: 3 | CW16: 3 | CX16: 0 | CY16: 0 | CZ16: 1 | DA16: 0 | DB16: 0 | DC16: 0 | DI16: 18
B17: 5 | C17: 105 | D17: 100 | E17: Y | F17: 5 | G17: 四 | H17: =AI16*$O$3 -> 609 | I17: =AI16*$O$4 -> 580 | J17: 573 | K17: 558 | L17: 週五半天者 | M17: Y | O17: =IF(M17="","",IF(AND(M17="Y",M18="Y"),"四年級只能選一個","OK")) -> OK | W17: 舊 | X17: 五 | Y17: 5 | Z17: 5 | AA17: 1 | AB17: 1 | AC17: 4 | AD17: 3 | AE17: 3 | AF17: 4 | AG17: 3 | AH17: 3 | AI17: 32 | AJ17: =SUM($Z$17:$AH$17) -> 27 | AK17: =IF(AND(W17="新",SUM(Z17:AH17)=26,Y17=6),"正確",IF(AND(W17="舊",SUM(Z17:AH17)=27,Y17=5),"正確","錯誤")) -> 正確 | AO17: =IF(W17="新","*",IF(W17="舊",(Z17+AA17+AB17)/AF9,"")) -> 0.2592592593 | AP17: =IF(AND(W17="新",Z17=5,AA17=1,AB17=2),"Y",IF(AND(AO17>=$AQ$8,AO17<=$AQ$9),"Y","錯誤")) -> Y | AR17: =IF(W17="新","*",IF(W17="舊",(AC17)/AF9,"")) -> 0.1481481481 | AS17: Y | AT17: =IF(W17="新","*",IF(W17="舊",(AD17)/AF9,"")) -> 0.1111111111 | AU17: =IF(AND(W17="新",(AD17+AE17+AF17)=9),"Y",IF(AND($AT$17>=$AT$8,$AT$17<=$AT$9),"Y","錯誤")) -> Y | AV17: =IF(W17="新","*",IF(W17="舊",(AE17)/AF9,"")) -> 0.1111111111 | AW17: =IF(AND(W17="新",(AE17)=3),"Y",IF(AND(AV17>=$AT$8,AV17<=$AT$9),"Y","錯誤")) -> Y | AX17: =IF(W17="新","*",IF(W17="舊",(AF17)/AF9,"")) -> 0.1481481481 | AY17: =IF(AND(W17="新",(AF17)=3),"Y",IF(AND(AX17>=$AT$8,AX17<=$AT$9),"Y","錯誤")) -> Y | AZ17: =IF(W17="新","*",IF(W17="舊",(AG17)/AF9,"")) -> 0.1111111111 | BA17: Y | BB17: =IF(W17="新","*",IF(W17="舊",(AH17)/AF9,"")) -> 0.1111111111 | BC17: =IF(AND(W17="新"),"Y",IF(AND(BB17>=$AT$8,BB17<=$AT$9),"Y","錯誤")) -> Y | BO17: =IF(AW17="新","*",IF(AW17="舊",(AZ17+BA17+BB17)/BF9,"")) ->  | BP17: =IF(AND(AW17="新",AZ17=5,BA17=1,BB17=2),"Y",IF(AND(BO17>=$AQ$8,BO17<=$AQ$9),"Y","錯誤")) -> 錯誤 | BR17: =IF(AW17="新","*",IF(AW17="舊",(BC17)/BF9,"")) ->  | BS17: 錯誤 | BT17: =IF(AW17="新","*",IF(AW17="舊",(BD17)/BF9,"")) ->  | BU17: =IF(AND(AW17="新",(BD17+BE17+BF17)=9),"Y",IF(AND($AT$17>=$AT$8,$AT$17<=$AT$9),"Y","錯誤")) -> Y | BV17: =IF(AW17="新","*",IF(AW17="舊",(BE17)/BF9,"")) ->  | BW17: =IF(AND(AW17="新",(BE17)=3),"Y",IF(AND(BV17>=$AT$8,BV17<=$AT$9),"Y","錯誤")) -> 錯誤 | BX17: =IF(AW17="新","*",IF(AW17="舊",(BF17)/BF9,"")) ->  | BY17: =IF(AND(AW17="新",(BF17)=3),"Y",IF(AND(BX17>=$AT$8,BX17<=$AT$9),"Y","錯誤")) -> 錯誤 | BZ17: =IF(AW17="新","*",IF(AW17="舊",(BG17)/BF9,"")) ->  | CA17: 錯誤 | CB17: =IF(AW17="新","*",IF(AW17="舊",(BH17)/BF9,"")) ->  | CC17: =IF(AND(AW17="新"),"Y",IF(AND(CB17>=$AT$8,CB17<=$AT$9),"Y","錯誤")) -> 錯誤 | DI17: =SUM(CL17:DG17) -> 0
B18: 6 | C18: 105 | D18: 90 | E18: Y | F18: 6 | G18: 四 | H18: =AI16*$O$3 -> 609 | I18: =AI16*$O$4 -> 580 | J18: 573 | K18: 558 | L18: 週四半天者 | O18: =IF(M18="","",IF(AND(M17="Y",M18="Y"),"四年級只能選一個","OK")) ->  | W18: 舊 | X18: 六 | Y18: 5 | Z18: 5 | AA18: 1 | AB18: 1 | AC18: 4 | AD18: 3 | AE18: 3 | AF18: 4 | AG18: 3 | AH18: 3 | AI18: 32 | AJ18: =SUM($Z$18:$AH$18) -> 27 | AK18: =IF(AND(W18="新",SUM(Z18:AH18)=26,Y18=6),"正確",IF(AND(W18="舊",SUM(Z18:AH18)=27,Y18=5),"正確","錯誤")) -> 正確 | AO18: =IF(W18="新","*",IF(W18="舊",(Z18+AA18+AB18)/AF9,"")) -> 0.2592592593 | AP18: =IF(AND(W18="新",Z18=5,AA18=1,AB18=2),"Y",IF(AND(AO18>=$AQ$8,AO18<=$AQ$9),"Y","錯誤")) -> Y | AR18: =IF(W18="新","*",IF(W18="舊",(AC18)/AF9,"")) -> 0.1481481481 | AS18: Y | AT18: =IF(W18="新","*",IF(W18="舊",(AD18)/AF9,"")) -> 0.1111111111 | AU18: =IF(AND(W18="新",(AD18+AE18+AF18)=9),"Y",IF(AND($AT$18>=$AT$8,$AT$18<=$AT$9),"Y","錯誤")) -> Y | AV18: =IF(W18="新","*",IF(W18="舊",(AE18)/AF9,"")) -> 0.1111111111 | AW18: =IF(AND(W18="新",(AE18)=3),"Y",IF(AND(AV18>=$AT$8,AV18<=$AT$9),"Y","錯誤")) -> Y | AX18: =IF(W18="新","*",IF(W18="舊",(AF18)/AF9,"")) -> 0.1481481481 | AY18: =IF(AND(W18="新",(AF18)=3),"Y",IF(AND(AX18>=$AT$8,AX18<=$AT$9),"Y","錯誤")) -> Y | AZ18: =IF(W18="新","*",IF(W18="舊",(AG18)/AF9,"")) -> 0.1111111111 | BA18: Y | BB18: =IF(W18="新","*",IF(W18="舊",(AH18)/AF9,"")) -> 0.1111111111 | BC18: =IF(AND(W18="新"),"Y",IF(AND(BB18>=$AT$8,BB18<=$AT$9),"Y","錯誤")) -> Y | BO18: =IF(AW18="新","*",IF(AW18="舊",(AZ18+BA18+BB18)/BF9,"")) ->  | BP18: =IF(AND(AW18="新",AZ18=5,BA18=1,BB18=2),"Y",IF(AND(BO18>=$AQ$8,BO18<=$AQ$9),"Y","錯誤")) -> 錯誤 | BR18: =IF(AW18="新","*",IF(AW18="舊",(BC18)/BF9,"")) ->  | BS18: 錯誤 | BT18: =IF(AW18="新","*",IF(AW18="舊",(BD18)/BF9,"")) ->  | BU18: =IF(AND(AW18="新",(BD18+BE18+BF18)=9),"Y",IF(AND($AT$18>=$AT$8,$AT$18<=$AT$9),"Y","錯誤")) -> Y | BV18: =IF(AW18="新","*",IF(AW18="舊",(BE18)/BF9,"")) ->  | BW18: =IF(AND(AW18="新",(BE18)=3),"Y",IF(AND(BV18>=$AT$8,BV18<=$AT$9),"Y","錯誤")) -> 錯誤 | BX18: =IF(AW18="新","*",IF(AW18="舊",(BF18)/BF9,"")) ->  | BY18: =IF(AND(AW18="新",(BF18)=3),"Y",IF(AND(BX18>=$AT$8,BX18<=$AT$9),"Y","錯誤")) -> 錯誤 | BZ18: =IF(AW18="新","*",IF(AW18="舊",(BG18)/BF9,"")) ->  | CA18: 錯誤 | CB18: =IF(AW18="新","*",IF(AW18="舊",(BH18)/BF9,"")) ->  | CC18: =IF(AND(AW18="新"),"Y",IF(AND(CB18>=$AT$8,CB18<=$AT$9),"Y","錯誤")) -> 錯誤 | CK18: 50 | DI18: 0
F19: 7 | G19: 五 | H19: =AI17*$O$3 -> 672 | I19: =AI17*$O$4 -> 640 | J19: 636 | K19: 612 | M19: Y | O19: =IF(M19="","尚未選取",IF(M19="Y","OK",)) -> OK | W19: =COUNTA(W13:W18) -> 6 | DI19: 0
E20: =COUNTIF(E21:E26,"Y") -> 6 | F20: 8 | G20: 六 | H20: =$AI$18*$O$3 -> 672 | I20: =$AI$18*$O$5 -> 576 | J20: 636 | K20: 523 | L20: =$O$5& "週,第1天(日)" -> 18週,第1天(日) | N20: 82 | O20: =IF(M20="","",IF(COUNTIF($M$20:$M$26,"Y")>1,"六年級只能選一個","OK")) ->  | CJ20: J | CK20: 三鐵特色課程 | CL20: 0 | CM20: 0 | CN20: 0 | CO20: 0 | CP20: 0 | CQ20: 0 | CR20: 0 | CS20: 0 | CT20: 0 | CU20: 0 | CV20: 0 | CW20: 0 | CX20: 0 | CY20: 0 | CZ20: 0 | DA20: 0 | DB20: 0 | DC20: 0 | DI20: 0
A21: 17 | B21: 1 | C21: 63 | D21: 60 | E21: =IF(OR($C$13<>$C$21,$D$13<>$D$21),"節數不可更改","Y") -> Y | F21: 9 | G21: 六 | H21: =$AI$18*$O$3 -> 672 | I21: =$AI$18*$O$5 -> 576 | J21: 636 | K21: 523 | L21: =$O$5& "週,第2天(一)" -> 18週,第2天(一) | N21: 82 | X21: 106年舊版本 | CJ21: K | CK21: 閱讀理解 | CL21: 0 | CM21: 0 | CN21: 0 | CO21: 0 | CP21: 0 | CQ21: 0 | CR21: 0 | CS21: 0 | CT21: 0 | CU21: 0 | CV21: 0 | CW21: 0 | CX21: 0 | CY21: 0 | CZ21: 0 | DA21: 0 | DB21: 0 | DC21: 0 | DI21: 0
A22: 18 | B22: 2 | C22: 63 | D22: 60 | E22: =IF(OR($C$14<>$C$22,$D$14<>$D$22),"節數不可更改","Y") -> Y | F22: 10 | G22: 六 | H22: 672 | I22: 576 | J22: 636 | K22: 530 | L22: =$O$5& "週,第3天(二)" -> 18週,第3天(二) | M22: Y | N22: 83 | O22: OK | Y22: 請注意:各週節數參考(以學校課發會通過為準)(在此修正節數,再選新舊版本) | CJ22: L | CK22: 生活藝文 | CL22: 0 | CM22: 0 | CN22: 0 | CO22: 0 | CP22: 0 | CQ22: 0 | CR22: 0 | CS22: 0 | CT22: 0 | CU22: 0 | CV22: 0 | CW22: 0 | CX22: 0 | CY22: 0 | CZ22: 0 | DA22: 0 | DB22: 0 | DC22: 0 | DI22: 0
A23: 19 | B23: 3 | C23: 84 | D23: 80 | E23: =IF(OR($C$15<>$C$23,$D$15<>$D$23),"節數不可更改","Y") -> Y | F23: 11 | G23: 六 | H23: 672 | I23: 576 | J23: 636 | K23: 534 | L23: =$O$5& "週,第4天(三)" -> 18週,第4天(三) | N23: 84 | X23: 項目(節) | Z23: 語文 | AD23: 生活 | CJ23: M | CK23: 資訊素養 | CL23: 0 | CM23: 0 | CN23: 0 | CO23: 0 | CP23: 0 | CQ23: 0 | CR23: 0 | CS23: 0 | CT23: 0 | CU23: 0 | CV23: 0 | CW23: 0 | CX23: 0 | CY23: 0 | CZ23: 0 | DA23: 0 | DB23: 0 | DC23: 0 | DI23: 0
A24: 20 | B24: 4 | C24: 84 | D24: 80 | E24: =IF(OR($C$16<>$C$24,$D$16<>$D$24),"節數不可更改","Y") -> Y | F24: 12 | G24: 六 | H24: 672 | I24: 576 | J24: 636 | K24: 541 | L24: =$O$5& "週,第5天(四)" -> 18週,第5天(四) | N24: 85 | X24: 年級 | Y24: 彈性學習節數 | Z24: 國語文 | AA24: 本土 語言 | AB24: 英語 | AC24: 數學 | AD24: 社會 | AE24: 藝術與人文 | AF24: 自然與科技 | AG24: 健康與體育 | AH24: 綜合活動 | AI24: 學習總節數 | CJ24: N | CK24: 國際文化 | CL24: 0 | CM24: 0 | CN24: 0 | CO24: 0 | CP24: 0 | CQ24: 0 | CR24: 0 | CS24: 0 | CT24: 0 | CU24: 0 | CV24: 0 | CW24: 0 | CX24: 0 | CY24: 0 | CZ24: 0 | DA24: 0 | DB24: 0 | DC24: 0 | DI24: 0
A25: 21 | B25: 5 | C25: 105 | D25: 100 | E25: =IF(OR($C$17<>$C$25,$D$17<>$D$25),"節數不可更改","Y") -> Y | F25: 13 | G25: 六 | H25: 672 | I25: 576 | J25: 636 | K25: 548 | L25: =$O$5& "週,第6天(五)" -> 18週,第6天(五) | N25: 86 | X25: 一 | Y25: 3 | Z25: 5 | AA25: 1 | AB25: 0 | AC25: 3 | AD25: 7 | AG25: 2 | AH25: 2 | AI25: =SUM(Y25:AH25) -> 23 | CJ25: O | CK25: 學習診斷與補救 | CL25: 0 | CM25: 0 | CN25: 0 | CO25: 0 | CP25: 0 | CQ25: 0 | CR25: 0 | CS25: 0 | CT25: 0 | CU25: 0 | CV25: 0 | CW25: 0 | CX25: 0 | CY25: 0 | CZ25: 0 | DA25: 0 | DB25: 0 | DC25: 0 | DI25: 0
B26: 6 | C26: 105 | D26: 90 | E26: =IF(OR($C$18<>$C$26,$D$18<>$D$26),"節數不可更改","Y") -> Y | F26: 14 | G26: 六 | H26: 672 | I26: 576 | J26: 636 | K26: 555 | L26: =$O$5& "週,第7天(六)" -> 18週,第7天(六) | N26: 87 | X26: 二 | Y26: 3 | Z26: 5 | AA26: 1 | AB26: 0 | AC26: 3 | AD26: 7 | AG26: 2 | AH26: 2 | AI26: 23 | DI26: =SUM(DI8:DI25) -> 50
X27: 三 | Y27: 4 | Z27: 5 | AA27: 1 | AB27: 1 | AC27: 3 | AD27: 3 | AE27: 3 | AF27: 3 | AG27: 3 | AH27: 3 | AI27: 29 | CK27: 108
X28: 四 | Y28: 4 | Z28: 5 | AA28: 1 | AB28: 1 | AC28: 3 | AD28: 3 | AE28: 3 | AF28: 3 | AG28: 3 | AH28: 3 | AI28: 29
X29: 五 | Y29: 5 | Z29: 6 | AA29: 1 | AB29: 1 | AC29: 4 | AD29: 3 | AE29: 3 | AF29: 3 | AG29: 3 | AH29: 3 | AI29: 32 | CH29: 最多節數 | CJ29: 學校設定節數
X30: 六 | Y30: 5 | Z30: 6 | AA30: 1 | AB30: 1 | AC30: 4 | AD30: 3 | AE30: 3 | AF30: 3 | AG30: 3 | AH30: 3 | AI30: 32 | CH30: 4 | CI30: 21 | CJ30: J | CK30: 三鐵特色課程 | CL30: 0 | CM30: 0 | CN30: 0 | CO30: 0 | CP30: 0 | CQ30: 0 | CR30: 0 | CS30: 0 | CT30: 0 | CU30: 0 | CV30: 0 | CW30: 0 | CX30: 0 | CY30: 0 | CZ30: 0 | DA30: 0 | DB30: 0 | DC30: 0
CH31: 4 | CI31: 21 | CJ31: K | CK31: 閱讀理解 | CL31: 0 | CM31: 0 | CN31: 0 | CO31: 0 | CP31: 0 | CQ31: 0 | CR31: 0 | CS31: 0 | CT31: 0 | CU31: 0 | CV31: 0 | CW31: 0 | CX31: 0 | CY31: 0 | CZ31: 0 | DA31: 0 | DB31: 0 | DC31: 0
C32: 簡易操作步驟流程 | X32: 108年以後新版本 | CH32: 3 | CI32: 17 | CJ32: L | CK32: 生活藝文 | CL32: 0 | CM32: 0 | CN32: 0 | CO32: 0 | CP32: 0 | CQ32: 0 | CR32: 0 | CS32: 0 | CT32: 0 | CU32: 0 | CV32: 0 | CW32: 0 | CX32: 0 | CY32: 0 | CZ32: 0 | DA32: 0 | DB32: 0 | DC32: 0
B33: 3項重點 | C33: 主任_作業順序:(1)修正1~13 (2)檢查1~8 (3)最後完成跨節數分析 | Z33: 各週節數參考(以學校課發會通過為準) | CH33: 4 | CI33: 21 | CJ33: M | CK33: 資訊素養 | CL33: 0 | CM33: 0 | CN33: 0 | CO33: 0 | CP33: 0 | CQ33: 0 | CR33: 0 | CS33: 0 | CT33: 0 | CU33: 0 | CV33: 0 | CW33: 0 | CX33: 0 | CY33: 0 | CZ33: 0 | DA33: 0 | DB33: 0 | DC33: 0
B34: 說明如右: | C34: 1 | D34: 在電腦任何磁碟,開一個新資料夾(命名)_放檔案軟體,打開檔案 | X34: 項目(節) | Z34: 語文 | AD34: 生活課程 | CH34: 4 | CI34: 21 | CJ34: N | CK34: 國際文化 | CL34: 0 | CM34: 0 | CN34: 0 | CO34: 0 | CP34: 0 | CQ34: 0 | CR34: 0 | CS34: 0 | CT34: 0 | CU34: 0 | CV34: 0 | CW34: 0 | CX34: 0 | CY34: 0 | CZ34: 0 | DA34: 0 | DB34: 0 | DC34: 0
C35: 2 | D35: 選取<使用說明>工作表:更改校名,同時修正__本年度各年級__正確彈性節數 | X35: 年級 | Y35: 彈性學習課程 | Z35: 國語文 | AA35: 本土 語文 | AB35: 英語文 | AC35: 數學 | AD35: 社會 | AE35: 藝術 | AF35: 自然科學 | AG35: 健康與體育 | AH35: 綜合活動 | AI35: 學習總節數 | CH35: 0 | CJ35: O | CK35: 學習診斷與補救 | CL35: 0 | CM35: 0 | CN35: 0 | CO35: 0 | CP35: 0 | CQ35: 0 | CR35: 0 | CS35: 0 | CT35: 0 | CU35: 0 | CV35: 0 | CW35: 0 | CX35: 0 | CY35: 0 | CZ35: 0 | DA35: 0 | DB35: 0 | DC35: 0
C36: 3 | D36: 選取<活動週次和國定假日>工作表:在D欄__輸入建立本年度__重要行事曆__全校性或各年級各項活動(可供各年級使用) | X36: 一 | Y36: 3 | Z36: 6 | AA36: 1 | AB36: 0 | AC36: 4 | AD36: 6 | AG36: 3 | AH36: 0 | AI36: =SUM(Y36:AH36) -> 23 | CH36: =INT(CI36*0.2) -> 0 | CI36: =SUM(CL36:DG36) -> 0
C37: 4 | D37: 選取< 上/下學期>工作表:在AF欄__輸入本年度__重要行事曆__全校性各項活動(各年級性質留給各年級自己輸入) | X37: 二 | Y37: 3 | Z37: 6 | AA37: 1 | AB37: 0 | AC37: 4 | AD37: 6 | AG37: 3 | AH37: 0 | AI37: 23 | CH37: 最多節數 | CI37: 0 | CJ37: 跨領域專用
C38: 5 | D38: 選取<作業平台__教育部局年度規定節數>工作表: 除了教育部教育局規定最低節數不能變更外,學校可依_校本課程_自行新增項目(只要符合法定節數即可) | X38: 三 | Y38: 4 | Z38: 5 | AA38: 1 | AB38: 1 | AC38: 4 | AD38: 3 | AE38: 3 | AF38: 3 | AG38: 3 | AH38: 2 | AI38: 29 | CH38: 25 | CI38: 0 | CJ38: A | CK38: 語文 | CL38: 0 | CM38: 0 | CN38: 0 | CO38: 0 | CP38: 0 | CQ38: 0 | CR38: 0 | CS38: 0 | CT38: 0 | CU38: 0 | CV38: 0 | CW38: 0 | CX38: 0 | CY38: 0 | CZ38: 0 | DA38: 0 | DB38: 0 | DC38: 0
D39: Leader:操作方法_全校性活動 | X39: 四 | Y39: 4 | Z39: 5 | AA39: 1 | AB39: 1 | AC39: 4 | AD39: 3 | AE39: 3 | AF39: 3 | AG39: 3 | AH39: 2 | AI39: 29 | CH39: 4 | CI39: 0 | CJ39: B | CK39: 本土語言 | CL39: 0 | CM39: 0 | CN39: 0 | CO39: 0 | CP39: 0 | CQ39: 0 | CR39: 0 | CS39: 0 | CT39: 0 | CU39: 0 | CV39: 0 | CW39: 0 | CX39: 0 | CY39: 0 | CZ39: 0 | DA39: 0 | DB39: 0 | DC39: 0
E40: (1):在F欄輸入項目名稱 | X40: 五 | Y40: 6 | Z40: 5 | AA40: 1 | AB40: 2 | AC40: 4 | AD40: 3 | AE40: 3 | AF40: 3 | AG40: 3 | AH40: 2 | AI40: 32 | CH40: 4 | CI40: 0 | CJ40: C | CK40: 英語 | CL40: 0 | CM40: 0 | CN40: 0 | CO40: 0 | CP40: 0 | CQ40: 0 | CR40: 0 | CS40: 0 | CT40: 0 | CU40: 0 | CV40: 0 | CW40: 0 | CX40: 0 | CY40: 0 | CZ40: 0 | DA40: 0 | DB40: 0 | DC40: 0
E41: (2):在H欄輸入課程類別代號A,B,C…. | X41: 六 | Y41: 6 | Z41: 5 | AA41: 1 | AB41: 2 | AC41: 4 | AD41: 3 | AE41: 3 | AF41: 3 | AG41: 3 | AH41: 2 | AI41: 32 | CH41: 16 | CI41: 0 | CJ41: D | CK41: 數學 | CL41: 0 | CM41: 0 | CN41: 0 | CO41: 0 | CP41: 0 | CQ41: 0 | CR41: 0 | CS41: 0 | CT41: 0 | CU41: 0 | CV41: 0 | CW41: 0 | CX41: 0 | CY41: 0 | CZ41: 0 | DA41: 0 | DB41: 0 | DC41: 0
E42: (3):在I欄選取年級(請用下拉式選取,避免手動輸入錯誤格式) | CH42: 12 | CI42: 0 | CJ42: E | CK42: 生活/社會 | CL42: 0 | CM42: 0 | CN42: 0 | CO42: 0 | CP42: 0 | CQ42: 0 | CR42: 0 | CS42: 0 | CT42: 0 | CU42: 0 | CV42: 0 | CW42: 0 | CX42: 0 | CY42: 0 | CZ42: 0 | DA42: 0 | DB42: 0 | DC42: 0
E43: (4):輸入節數 | CH43: 12 | CI43: 0 | CJ43: F | CK43: 藝術與人文 | CL43: 0 | CM43: 0 | CN43: 0 | CO43: 0 | CP43: 0 | CQ43: 0 | CR43: 0 | CS43: 0 | CT43: 0 | CU43: 0 | CV43: 0 | CW43: 0 | CX43: 0 | CY43: 0 | CZ43: 0 | DA43: 0 | DB43: 0 | DC43: 0
E44: 依序完成所有課程各類基本節數設定 | CH44: 12 | CI44: 0 | CJ44: G | CK44: 自然與科技 | CL44: 0 | CM44: 0 | CN44: 0 | CO44: 0 | CP44: 0 | CQ44: 0 | CR44: 0 | CS44: 0 | CT44: 0 | CU44: 0 | CV44: 0 | CW44: 0 | CX44: 0 | CY44: 0 | CZ44: 0 | DA44: 0 | DB44: 0 | DC44: 0
C45: 6 | D45: 說明:如果彈性節數不足,尚未符合上方:(表一)規定,主任可協助新增項目在此工作表完成不足的節數，或產生各年級檔案後由各學年討論,再輸入亦可(依各校規定) | CH45: 12 | CI45: 0 | CJ45: H | CK45: 健康與體育 | CL45: 0 | CM45: 0 | CN45: 0 | CO45: 0 | CP45: 0 | CQ45: 0 | CR45: 0 | CS45: 0 | CT45: 0 | CU45: 0 | CV45: 0 | CW45: 0 | CX45: 0 | CY45: 0 | CZ45: 0 | DA45: 0 | DB45: 0 | DC45: 0
C46: 7 | D46: 最後_按<Leader:各年級輸入檔案產出>執行紐即可產生各年級檔案 | CH46: 12 | CI46: 0 | CJ46: I | CK46: 綜合活動 | CL46: 0 | CM46: 0 | CN46: 0 | CO46: 0 | CP46: 0 | CQ46: 0 | CR46: 0 | CS46: 0 | CT46: 0 | CU46: 0 | CV46: 0 | CW46: 0 | CX46: 0 | CY46: 0 | CZ46: 0 | DA46: 0 | DB46: 0 | DC46: 0
B47: 2項重點 | C47: 教師_作業步驟(1).輸入(或copy貼上)個單元學習領域(2)完成步驟1~步驟13 | CH47: =INT(CI47*0.2) -> 0 | CI47: 0
C48: 1 | D48: 開新資料夾_放各年級檔案軟體,打開檔案 | CH48: =INT(CI48*0.2) -> 0 | CI48: 0
C49: (操作方法1):2 | D49: 點選<作業平台__教育部局年度規定節數>工作表上之__按步驟1:<顯示上/下/全部/學期作業平台>執行紐即可產生_(循環式)上/下/全部學期作業平台簡化輸入介面 | CH49: =INT(CI49*0.2) -> 0 | CI49: 0
C50: 3 | D50: 如有新增項目:同__(主任_開始作業之5__Leader:操作方法)_輸入年級性活動,設定符合部&局規定彈性節數 | CH50: 4 | CI50: 0 | CJ50: J | CK50: 三鐵特色課程 | CL50: 0 | CM50: 0 | CN50: 0 | CO50: 0 | CP50: 0 | CQ50: 0 | CR50: 0 | CS50: 0 | CT50: 0 | CU50: 0 | CV50: 0 | CW50: 0 | CX50: 0 | CY50: 0 | CZ50: 0 | DA50: 0 | DB50: 0 | DC50: 0
CH51: 4 | CI51: 0 | CJ51: K | CK51: 閱讀理解 | CL51: 0 | CM51: 0 | CN51: 0 | CO51: 0 | CP51: 0 | CQ51: 0 | CR51: 0 | CS51: 0 | CT51: 0 | CU51: 0 | CV51: 0 | CW51: 0 | CX51: 0 | CY51: 0 | CZ51: 0 | DA51: 0 | DB51: 0 | DC51: 0
C52: ※(操作方法2):4 | D52: 步驟2:依各年級設定節數是屬於哪一類別(含全校性&各班&特色校本&或融入&非課程,分別在(上學期)X~AF欄//(下學期)AR~AZ欄之間),正確選定欄與項目之儲存格,滑鼠左鍵快按2次選取_週次和節數 | CH52: 3 | CI52: 0 | CJ52: L | CK52: 生活藝文 | CL52: 0 | CM52: 0 | CN52: 0 | CO52: 0 | CP52: 0 | CQ52: 0 | CR52: 0 | CS52: 0 | CT52: 0 | CU52: 0 | CV52: 0 | CW52: 0 | CX52: 0 | CY52: 0 | CZ52: 0 | DA52: 0 | DB52: 0 | DC52: 0
D53: 說明:(週次和節數輸入錯誤,可以隨時取消內容__重新輸入) | CH53: 4 | CI53: 0 | CJ53: M | CK53: 資訊素養 | CL53: 0 | CM53: 0 | CN53: 0 | CO53: 0 | CP53: 0 | CQ53: 0 | CR53: 0 | CS53: 0 | CT53: 0 | CU53: 0 | CV53: 0 | CW53: 0 | CX53: 0 | CY53: 0 | CZ53: 0 | DA53: 0 | DB53: 0 | DC53: 0
C54: 5 | D54: 依序完成所設新增項目 | CH54: 4 | CI54: 0 | CJ54: N | CK54: 國際文化 | CL54: 0 | CM54: 0 | CN54: 0 | CO54: 0 | CP54: 0 | CQ54: 0 | CR54: 0 | CS54: 0 | CT54: 0 | CU54: 0 | CV54: 0 | CW54: 0 | CX54: 0 | CY54: 0 | CZ54: 0 | DA54: 0 | DB54: 0 | DC54: 0
C55: (操作方法3):6 | D55: 按步驟3_檢核節數是否完全正確__在Y3儲存格出現_<你很棒,輸入全部正確>!"代表作業完成" | CH55: 0 | CI55: 0 | CJ55: O | CK55: 學習診斷與補救 | CL55: 0 | CM55: 0 | CN55: 0 | CO55: 0 | CP55: 0 | CQ55: 0 | CR55: 0 | CS55: 0 | CT55: 0 | CU55: 0 | CV55: 0 | CW55: 0 | CX55: 0 | CY55: 0 | CZ55: 0 | DA55: 0 | DB55: 0 | DC55: 0
C56: (操作方法4):7 | D56: 可以按步驟4 // 完成上學期課程節數設定 | CH56: =INT(CI56*0.2) -> 0
D57: ※學習領域(個單元名稱)自動匯入-作法 | CH57: =INT(CI57*0.2) -> 0
C58: 8 | D58: 點選_(學習領域個單元)工作表,在E~U欄,輸入各學習領域單元名稱同時,在第2列輸入各年級各領域每週上課節數,第4列_輸入正確書局版本 | CH58: =INT(CI58*0.2) -> 0 | CK58: 0
D59: ( 下學期輸入方法同8) | CH59: 週次: | CJ59: 部定領域
C60: (操作方法5):9 | D60: 點選<上學期>工作表上之__按<步驟5...>執行紐即可匯入所有學習領域個單元名稱 | CH60: =INT(CI60*0.2) -> 25 | CI60: 126 | CJ60: A | CK60: 語文
C61: 10 | D61: 下學期同2~9步驟 | CH61: 4 | CI61: 21 | CJ61: B | CK61: 本土語言
D62: ※上/下_相關議題撰寫統整表自動匯入-作法 | CH62: 4 | CI62: 21 | CJ62: C | CK62: 英語
C63: (操作方法6)11 | D63: 只要選取<上/下_相關議題撰寫統整表>工作表,按步驟7即可 | AO63: =IF(W63="新","*",IF(W63="舊",(Z63+AA63+AB63)/AF57,"")) ->  | CH63: 16 | CI63: 84 | CJ63: D | CK63: 數學
AO64: =IF(W64="新","*",IF(W64="舊",(Z64+AA64+AB64)/AF57,"")) ->  | CH64: 12 | CI64: 63 | CJ64: E | CK64: 生活/社會
D65: ※匯出上/下學期進度總表-作法 | AO65: =IF(W65="新","*",IF(W65="舊",(Z65+AA65+AB65)/AF58,"")) ->  | CH65: 12 | CI65: 63 | CJ65: F | CK65: 藝術與人文
C66: (操作方法7)12 | D66: 按(步驟12)__即可完成 | AO66: =IF(W66="新","*",IF(W66="舊",(Z66+AA66+AB66)/AF58,"")) ->  | CH66: 12 | CI66: 63 | CJ66: G | CK66: 自然與科技
AO67: =IF(W67="新","*",IF(W67="舊",(Z67+AA67+AB67)/AF59,"")) ->  | CH67: 12 | CI67: 63 | CJ67: H | CK67: 健康與體育
AO68: =IF(W68="新","*",IF(W68="舊",(Z68+AA68+AB68)/AF59,"")) ->  | CH68: 12 | CI68: 63 | CJ68: I | CK68: 綜合活動
C69: 匯出: | D69: ※ 匯出各學習領域課程計畫-作法
C70: (操作方法8)13 | D70: 步驟9:將所有資料轉成資料庫格式
C71: (操作方法9)14 | D71: 步驟10(舊課程):依表單說明選取你想輸出之 領域課程
D72: 步驟11_A(新課程__校訂):依表單說明選取你想輸出之 領域課程
D73: 步驟11_B(新課程__部定):依表單說明選取你想輸出之 領域課程 | AO73: =IF(W73="新","*",IF(W73="舊",(Z73+AA73+AB73)/AF67,"")) ->  | AP73: =IF(AND(W73="新",Z73=6,AA73=1,AB73=0),"Y",IF(OR($AO$13>$AQ$9,$AO$13<$AQ$8),"錯誤","Y")) -> Y | AR73: =IF(W73="新","*",IF(W73="舊",(AC73)/AF67,"")) ->  | AS73: =IF(AND(W73="新",AC73=4),"Y",IF(OR($AR$13>$AT$9,$AR$13<$AT$8),"錯誤","Y")) -> Y | AT73: =IF(W73="新","*",IF(W73="舊",(AD73)/AF67,"")) ->  | AU73: =IF(AND(W73="新",AD73=6),"Y",IF(OR($AT$13>$AV$9,$AT$13<$AV$8),"錯誤","Y")) -> Y | AZ73: =IF(W73="新","*",IF(AE73="舊",(AG73)/AF67,"")) ->  | BA73: =IF(AND(W73="新",AG73=3),"Y",IF(OR($AZ$13>$AT$9,$AZ$13<$AT$8),"錯誤","Y")) -> Y | BB73: =IF(W73="新","*",IF(W73="舊",(AH73)/AF67,"")) ->  | BC73: =IF(AND(W73="新",AH73=0),"Y",IF(OR(BB73>$AT$9,BB73<$AT$8),"錯誤","Y")) -> 錯誤
AO74: =IF(W74="新","*",IF(W74="舊",(Z74+AA74+AB74)/AF67,"")) ->  | AP74: =IF(AND(W74="新",Z74=6,AA74=1,AB74=0),"Y",IF(OR($AO$14>$AQ$9,$AO$13<$AQ$8),"錯誤","Y")) -> Y | AR74: =IF(W74="新","*",IF(W74="舊",(AC74)/AF67,"")) ->  | AS74: =IF(AND(W74="新",AC74=4),"Y",IF(OR($AR$14>$AT$9,$AR$14<$AT$8),"錯誤","Y")) -> Y | AT74: =IF(W74="新","*",IF(W74="舊",(AD74)/AF67,"")) ->  | AU74: =IF(AND(W74="新",AD74=6),"Y",IF(OR($AT$14>$AV$9,$AT$14<$AV$8),"錯誤","Y")) -> Y | AZ74: =IF(W74="新","*",IF(AE74="舊",(AG74)/AF67,"")) ->  | BA74: =IF(AND(W74="新",AG74=3),"Y",IF(OR($AZ$14>$AT$9,$AZ$14<$AT$8),"錯誤","Y")) -> Y | BB74: =IF(W74="新","*",IF(W74="舊",(AH74)/AF67,"")) ->  | BC74: =IF(AND(W74="新",AH74=0),"Y",IF(OR(BB74>$AT$9,BB74<$AT$8),"錯誤","Y")) -> 錯誤
AO75: =IF(W75="新","*",IF(W75="舊",(Z75+AA75+AB75)/AF68,"")) ->  | AP75: =IF(AND(W75="新",Z75=5,AA75=1,AB75=1),"Y",IF(OR($AO$15>$AQ$9,$AO$13<$AQ$8),"錯誤","Y")) -> Y | AR75: =IF(W75="新","*",IF(W75="舊",(AC75)/AF68,"")) ->  | AS75: =IF(AND(W75="新",AC75=4),"Y",IF(OR($AR$15>$AT$9,$AR$15<$AT$8),"錯誤","Y")) -> Y | AT75: =IF(W75="新","*",IF(W75="舊",(AD75)/AF68,"")) ->  | AU75: =IF(AND(W75="新",(AD75+AE75+AF75)=9),"Y",IF(OR($AT$15>$AT$9,$AT$15<$AT$8),"錯誤","Y")) -> Y | AV75: =IF(W73="新","*",IF(W73="舊",(AE75)/AF68,"")) ->  | AW75: =IF(AND(W75="新",(AE75)=3),"Y",IF(OR($AT$15>$AT$9,$AT$15<$AT$8),"錯誤","Y")) -> Y | AX75: =IF(W73="新","*",IF(W73="舊",(AF75)/AF68,"")) ->  | AY75: =IF(AND(W75="新",(AF75)=3),"Y",IF(OR($AT$15>$AT$9,$AT$15<$AT$8),"錯誤","Y")) -> Y | AZ75: =IF(W75="新","*",IF(AE75="舊",(AG75)/AF68,"")) ->  | BA75: =IF(AND(W75="新",AG75=3),"Y",IF(OR($AZ$15>$AT$9,$AZ$15<$AT$8),"錯誤","Y")) -> Y | BB75: =IF(W75="新","*",IF(W75="舊",(AH75)/AF68,"")) ->  | BC75: =IF(AND(W75="新",AH75=2),"Y",IF(OR(BB75>$AT$9,BB75<$AT$8),"錯誤","Y")) -> 錯誤
AO76: =IF(W76="新","*",IF(W76="舊",(Z76+AA76+AB76)/AF68,"")) ->  | AP76: =IF(AND(W76="新",Z76=5,AA76=1,AB76=1),"Y",IF(OR($AO$16>$AQ$9,$AO$13<$AQ$8),"錯誤","Y")) -> Y | AR76: =IF(W76="新","*",IF(W76="舊",(AC76)/AF68,"")) ->  | AS76: =IF(AND(W76="新",AC76=4),"Y",IF(OR($AR$16>$AT$9,$AR$16<$AT$8),"錯誤","Y")) -> Y | AT76: =IF(W76="新","*",IF(W76="舊",(AD76)/AF68,"")) ->  | AU76: =IF(AND(W76="新",(AD76+AE76+AF76)=9),"Y",IF(OR($AT$16>$AT$9,$AT$16<$AT$8),"錯誤","Y")) -> Y | AV76: =IF(W74="新","*",IF(W74="舊",(AE76)/AF68,"")) ->  | AW76: =IF(AND(W76="新",(AE76)=3),"Y",IF(OR($AT$16>$AT$9,$AT$16<$AT$8),"錯誤","Y")) -> Y | AX76: =IF(W74="新","*",IF(W74="舊",(AF76)/AF68,"")) ->  | AY76: =IF(AND(W76="新",(AF76)=3),"Y",IF(OR($AT$16>$AT$9,$AT$16<$AT$8),"錯誤","Y")) -> Y | AZ76: =IF(W76="新","*",IF(AE76="舊",(AG76)/AF68,"")) ->  | BA76: =IF(AND(W76="新",AG76=3),"Y",IF(OR($AZ$16>$AT$9,$AZ$16<$AT$8),"錯誤","Y")) -> Y | BB76: =IF(W76="新","*",IF(W76="舊",(AH76)/AF68,"")) ->  | BC76: =IF(AND(W76="新",AH76=2),"Y",IF(OR(BB76>$AT$9,BB76<$AT$8),"錯誤","Y")) -> 錯誤
AO77: =IF(W77="新","*",IF(W77="舊",(Z77+AA77+AB77)/AF69,"")) ->  | AP77: =IF(AND(W77="新",Z77=5,AA77=1,AB77=2),"Y",IF(OR($AO$17>$AQ$9,$AO$13<$AQ$8),"錯誤","Y")) -> Y | AR77: =IF(W77="新","*",IF(W77="舊",(AC77)/AF69,"")) ->  | AS77: =IF(AND(W77="新",AC77=4),"Y",IF(OR($AR$17>$AT$9,$AR$17<$AT$8),"錯誤","Y")) -> Y | AT77: =IF(W77="新","*",IF(W77="舊",(AD77)/AF69,"")) ->  | AU77: =IF(AND(W77="新",(AD77+AE77+AF77)=9),"Y",IF(OR($AT$17>$AT$17,$AT$16<$AT$8),"錯誤","Y")) -> Y | AV77: =IF(W75="新","*",IF(W75="舊",(AE77)/AF69,"")) ->  | AW77: =IF(AND(W77="新",(AE77)=3),"Y",IF(OR($AT$17>$AT$9,$AT$17<$AT$8),"錯誤","Y")) -> Y | AX77: =IF(W75="新","*",IF(W75="舊",(AF77)/AF69,"")) ->  | AY77: =IF(AND(W77="新",(AF77)=3),"Y",IF(OR($AT$17>$AT$9,$AT$17<$AT$8),"錯誤","Y")) -> Y | AZ77: =IF(W77="新","*",IF(AE77="舊",(AG77)/AF69,"")) ->  | BA77: =IF(AND(W77="新",AG77=3),"Y",IF(OR($AZ$17>$AT$9,$AZ$17<$AT$8),"錯誤","Y")) -> Y | BB77: =IF(W77="新","*",IF(W77="舊",(AH77)/AF69,"")) ->  | BC77: =IF(AND(W77="新",AH77=2),"Y",IF(OR(BB77>$AT$9,BB77<$AT$8),"錯誤","Y")) -> 錯誤
AO78: =IF(W78="新","*",IF(W78="舊",(Z78+AA78+AB78)/AF69,"")) ->  | AP78: =IF(AND(W78="新",Z78=5,AA78=1,AB78=2),"Y",IF(OR($AO$18>$AQ$9,$AO$13<$AQ$8),"錯誤","Y")) -> Y | AR78: =IF(W78="新","*",IF(W78="舊",(AC78)/AF69,"")) ->  | AS78: =IF(AND(W78="新",AC78=4),"Y",IF(OR($AR$18>$AT$9,$AR$18<$AT$8),"錯誤","Y")) -> Y | AT78: =IF(W78="新","*",IF(W78="舊",(AD78)/AF69,"")) ->  | AU78: =IF(AND(W78="新",(AD78+AE78+AF78)=9),"Y",IF(OR($AT$18>$AT$9,$AT$18<$AT$8),"錯誤","Y")) -> Y | AV78: =IF(W76="新","*",IF(W76="舊",(AE78)/AF69,"")) ->  | AW78: =IF(AND(W78="新",(AE78)=3),"Y",IF(OR($AT$15>$AT$9,$AT$15<$AT$8),"錯誤","Y")) -> Y | AX78: =IF(W76="新","*",IF(W76="舊",(AF78)/AF69,"")) ->  | AY78: =IF(AND(W78="新",(AF78)=3),"Y",IF(OR($AT$18>$AT$9,$AT$18<$AT$8),"錯誤","Y")) -> Y | AZ78: =IF(W78="新","*",IF(AE78="舊",(AG78)/AF69,"")) ->  | BA78: =IF(AND(W78="新",AG78=3),"Y",IF(OR($AZ$18>$AT$9,$AZ$18<$AT$8),"錯誤","Y")) -> Y | BB78: =IF(W78="新","*",IF(W78="舊",(AH78)/AF69,"")) ->  | BC78: =IF(AND(W78="新",AH78=2),"Y",IF(OR(BB78>$AT$9,BB78<$AT$8),"錯誤","Y")) -> 錯誤
C80: 學校自評方法:2種情況
B81: 情況1: | C81: 一、 | D81: 如果上下學期各週沒有彈性節數或學習領域節數新增或減少:
C82: (步驟8_1)1 | D82: 點選<檢核自評表>工作表上之__按<檢核自評8_1..>執行紐即可__出現"讚"__表示正確完成
B83: 情況2: | C83: 二、 | D83: 如果上下學期各週有彈性節數或學習領域節數新增或減少:直接在該週更改節數即可,完成後:
C84: (步驟8_1)1 | D84: 按(步驟8_1)__
C85: 2 | D85: 如<各項目>有減少或增加節數,請在(一定要) AD欄(儲存格有顏色)說明原因
C86: (步驟8_2)3 | D86: 再按(步驟8_2)__出現"讚"__表示正確完成
C89: Q1:如各週彈性節數數有增減如何處理?
D90: A1: 直接在上下學期該週新增或刪除(項目和節數)即可。(在甚麼地方如何論述原因:執行學校自評後,會告訴你在 AD欄有顏色儲存格說明原因)
B93: Q2:有<受保護的檢視>出現如何解除?(2010特有功能)
D101: A2:檔案/選項/信任中心/信任中心設定/信任位置/新增位置/瀏覽(選取到軟體存放資料夾)/確定/確定
A129: 1
A130: 2
A131: 3
A132: 4
A133: 5
A134: 6
A135: 7
A228: 不可刪除
A229: AA | B229: AA
A230: AB | B230: AB
A231: AC | B231: AC
A232: AD | B232: AD
A233: AE | B233: AE
A234: AF | B234: AF
A235: AG | B235: AG
A236: AH | B236: AH
A237: AI | B237: AI
A238: AJ | B238: AJ
A239: AK | B239: AK
A240: AL | B240: AL
A241: AM | B241: AM
A242: AN | B242: AN
A243: AO | B243: AO
A244: AP | B244: AP
A245: AQ | B245: AQ
A246: AR | B246: AR
A247: AS | B247: AS
A248: AT | B248: AT
A249: AU | B249: AU
A250: AV | B250: AV
A251: AW | B251: AW
A252: AX | B252: AX
A253: AY | B253: AY
A254: AZ | B254: AZ
A255: BA | B255: BA
A256: BB | B256: BB
A257: BC | B257: BC
A258: BD | B258: BD
A259: BE | B259: BE
A260: BF | B260: BF
A261: BG | B261: BG
A262: BH | B262: BH
A263: BI | B263: BI
A264: BJ | B264: BJ
A265: BK | B265: BK
A266: BL | B266: BL
A267: BM | B267: BM
A268: BN | B268: BN
A269: BO | B269: BO
A270: BP | B270: BP
A271: BQ | B271: BQ
A272: BR | B272: BR
A273: BS | B273: BS
A274: BT | B274: BT
A275: BU | B275: BU
A276: BV | B276: BV
A277: BW | B277: BW
A278: BX | B278: BX
A279: BY | B279: BY
A280: BZ | B280: BZ
A281: CA | B281: CA
A282: CB | B282: CB
A283: CC | B283: CC
A284: CD | B284: CD
A285: CE | B285: CE
A286: CF | B286: CF
A287: CG | B287: CG
A288: CH | B288: CH
A289: CI | B289: CI
A290: CJ | B290: CJ
A291: CK | B291: CK
A292: CL | B292: CL
A293: CM | B293: CM
A294: CN | B294: CN
A295: CO | B295: CO
A296: CP | B296: CP
A297: CQ | B297: CQ
A298: CR | B298: CR
A299: CS | B299: CS
A300: CT | B300: CT
A301: CU | B301: CU
A302: CV | B302: CV
A303: CW | B303: CW
A304: CX | B304: CX
A305: CY | B305: CY
A306: CZ | B306: CZ
A307: DA | B307: DA
A308: DB | B308: DB
A309: DC | B309: DC
A310: DD | B310: DD
A311: DE | B311: DE
A312: DF | B312: DF
A313: DG | B313: DG
A314: DH | B314: DH
A315: DI | B315: DI
A316: DJ | B316: DJ
A317: DK | B317: DK
A318: DL | B318: DL
A319: DM | B319: DM
A320: DN | B320: DN
A321: DO | B321: DO
A322: DP | B322: DP
A323: DQ | B323: DQ
A324: DR | B324: DR
A325: DS | B325: DS
A326: DT | B326: DT
A327: DU | B327: DU
A328: DV | B328: DV
A329: DW | B329: DW
A330: DX | B330: DX
A331: DY | B331: DY
... 7 more rows

Sheet 學校行事和國定假日
A3: 領域&彈性課程開課名稱 | D3: 教育局規定全市活動週次和國定假日
A4: 代號(內定) | B4: 開課輸入限制儲存格位置(名稱可更改): | D4: (依各校需求可在綠色框內輸入全校性或各年級各項活動) | E4: 備註:說明 | H4: 課程計畫(上學期)備註專用說明:
A5: A | B5: 國語文 | C5: =A5&B5 -> A國語文 | D5: 107年8月30日(四)開學日正式上課 | H5: 一、本(上)學期上課總日數:99天。 | V5: 19
A6: B | B6: 本土語文 | C6: =A6&B6 -> B本土語文 | D6: 107年9月24日(一)中秋節放假1天 | H6: 二、107年9月24日(一)中秋節、107年10月10日(三)國慶日、108年1月1日(二)元旦，共放假3天。 | V6: 19
A7: C | B7: 英語文 | C7: C英語文 | D7: 107年10月10日(三)國慶日放假1天 | V7: 19
A8: D | B8: 數學 | C8: D數學 | D8: 107年12月22日(六)補上課12/31(一) | V8: 19
A9: E | B9: 社會 | C9: E社會 | D9: 107年12月31日(一)彈性調整元旦放假1天 | V9: 19
A10: F | B10: 藝術與人文 | C10: F藝術與人文 | D10: 108年1月1日(二)元旦放假1天
A11: G | B11: 自然與科技 | C11: G自然與科技 | D11: 108年1月18日(五)上學期課程結束
A12: H | B12: 健康與體育 | C12: H健康與體育 | D12: 108年2月11日(一)開學日正式上課
A13: I | B13: 綜合活動 | C13: I綜合活動 | D13: 108年2月23日(六)補上課3/1(五)
A14: R | C14: R | D14: 108年2月28日(四)和平紀念日放假1天
A15: S | B15: 全校_各年級_活動 | C15: S全校_各年級_活動 | D15: 108年3月1日(五)彈性調整放假1天
A16: J | B16: 校本課程 | C16: J校本課程 | D16: 108年4月4日(四)兒童節放假1天
A17: K | B17: 資訊教育 | C17: K資訊教育 | D17: 108年4月5日(五)清明節放假1天
A18: L | B18: 英語 | C18: L英語 | D18: 108年6月7日(五)端午節放假1天
A19: M | B19: 國語學習診斷與補救 | C19: M國語學習診斷與補救 | D19: 畢業典禮6/11(二) | H19: 課程計畫(下學期)備註專用說明:
A20: N | B20: 數學學習診斷與補救 | C20: N數學學習診斷與補救 | D20: 108年6月28日(五)課程結束 | H20: 一、本(下)學期上課總日數:83天。 | V20: 19
H21: 二、108年2月28日(四)和平紀念日、108年4月4日(四)兒童節、108年4月5日(五)清明節、108年6月7日(五)端午節，共放假4天。 | V21: 19
D22: A校慶運動會11/17(六) | E22: ※(利用週六.日舉辦_ 活動名稱最前面一定要加上"A"英文代號) | V22: 19
D23: B校慶運動會補假11/19(一) | E23: ※(週一補假_名稱最前面一定要加上"B"英文代號) | V23: 19
B24: 依低中高彈性節數3/4/6內定 | V24: 19
B25: 1/2年級使用J/K/L (B16~B18儲存格) | D25: 期中評量
B26: 3/4年級使用J/K/L/M(B16~B19儲存格) | D26: 期末評量
B27: 5/6年級使用J~O(B16~B21儲存格) | D27: 畢業班評量(5/23-5/29)
B28: 例外:舊課綱5/6年級使用J~N | D28: 疾病防治週 | F28: ※ | G28: ※ | H28: 學習領域/彈性領域在上下學期標示說明(重要觀念): | N28: ※※
D29: 107年8月26日(日)「祖父母節」 | H29: 部定學習領域 | I29: AC:家政教育 | K29: 正常項目/融入9大學習領域
D30: 107年9月12日(三)班親會 | H30: 局定教育項目彈性領域 | I30: AS:游泳教學P | K30: AS項目代號<游泳教學>,後面的P是代表彈性課程
D31: 108年2月20日(三)班親會 | H31: 校訂彈性領域 | I31: SB:T閱讀理解 | K31: SB項目代號<閱讀理解>/跨領域(T語文代號)
D32: 107年8月30日(四)新生始業活動
D33: 107年9月4日(二)口腔檢查 | K33: (英文代號_領域參考)
B34: 課程類別 | D34: 107年9月11日(二)身高體重視力檢查 | K34: 代號類別固定 | L34: 代號領域
A35: a | B35: a(主題/專題/議題探究) | D35: 107年9月18日(二)斜弱視辨色力檢查 | K35: T | L35: =IF(B5="","",B5) -> 國語文
A36: b | B36: b(社團活動與技藝類) | D36: 107年10月26日(五)預防注射(流感) | K36: V | L36: =IF(B6="","",B6) -> 本土語文
A37: c | B37: c(特殊需求領域) | D37: 107年11月16日(五)校慶運動會預演 | K37: X | L37: 英語文
A38: d | B38: d(其他類) | D38: 107年12月21日(五)聖誕節活動 | K38: Z | L38: 數學
D39: 108年2月18日(一)身高體重視力檢查 | K39: AB | L39: 社會
D40: 108年3月29日(五)兒童節闖關活動 | K40: AD | L40: 藝術與人文
D41: 108年4月26日(五)自治小市長選舉 | K41: AF | L41: 自然與科技
B42: Leader或主任設定 | D42: 108年5月1日(四)母親節才藝表演 | K42: AH | L42: 健康與體育
B43: 本校1~6年級彈性課程開課名稱 | D43: 108年5月24日(五)班際體育競賽 | K43: AJ | L43: 綜合活動
B44: 校本課程 | D44: 108年5月31日(五)歡送畢業生園遊會 | K44: 代號校訂領域依學校自訂不同
B45: 資訊教育 | D45: 108年6月6日(四)畢業典禮預演 | K45: F | L45: =IF(B16="","",B16) -> 校本課程
B46: 英語 | K46: H | L46: 資訊教育
B47: 國語學習診斷與補救 | K47: J | L47: 英語
B48: 數學學習診斷與補救 | K48: L | L48: 國語學習診斷與補救
K49: N | L49: 數學學習診斷與補救
K50: P
B71: 評量方式(可自行橙色空白儲存格)
B72: 1.筆試
B73: 2.口試
B74: 3.表演
B75: 4.實作
B76: 5.作業
B77: 6.報告
B78: 7.資料搜集整理
B79: 8.鑑賞
B80: 9.實踐
B81: 10.晤談
B82: 11.學生自評
B83: 12.同儕互評
B84: 13.研究
B85: 14.設計製作
B86: 15.問卷調查
B87: 16.學習札記
B88: 17.團隊研究報告 | E88: 39
E89: 44
B98: 上
B99: 下
B100: 一年級
B101: 二級
B102: 三年級
B103: 四年級
B104: 五年級
B105: 六年級
B107: 跨領域項目
B108: 英文一定保留/名稱可自行更新
B109: A國語文
B110: B本土語文
B111: C英語文
B112: D數學
B113: E社會
B114: F藝術與人文
B115: G自然與科技
B116: H健康與體育
B117: I綜合活動
B118: R
B120: J校本課程
B121: K資訊教育
B122: L英語
B123: M國語學習診斷與補救
B124: N數學學習診斷與補救
B128: 評量方式(可自行橙色空白儲存格)
B129: 1.筆試
B130: 2.口試
B131: 3.表演
B132: 4.實作
B133: 5.作業
B134: 6.報告
B135: 7.資料搜集整理
B136: 8.鑑賞
B137: 9.實踐
B138: 10.晤談
B139: 11.學生自評
B140: 12.同儕互評
B141: 13.研究
B142: 14.設計製作
B143: 15.問卷調查
B144: 16.學習札記

Sheet 行事曆格式 (hidden)
BM1: =IF(BI1="","",IF((BJ1+BK1+BL1)<BT1,"錯,最低節數:"&BT1,BJ1+BK1+BL1)) ->  | BQ1: =IF(BI1="","",IF((BN1+BO1+BP1)<BU1,"錯,最低節數:"&BU1,BN1+BO1+BP1)) ->  | BR1: =IF(BI1="","",IF(ISERROR(BM1+BQ1),"錯誤",IF((BM1+BQ1)<BV1,"錯誤,最低節數:"&BV1,BM1+BQ1))) ->  | BS1: =IF(BH1="","",IF(AND(BH1="A",OR(BK1>0,BL1>0,BO1>0,BP1>0)),"錯誤",IF(AND(BH1="B",OR(BJ1>0,BL1>0,BN1>0,BP1>0)),"錯誤",IF(AND(BH1="C",OR(BL1>0,BP1>0)),"錯誤",IF(AND(BH1="D",OR(BJ1>0,BK1>0,BN1>0,BO1>0)),"錯誤",""))))) ->  | BT1: 公式儲存 | BU1: 公式恢復 | BW1: =IF(OR(RIGHT(BX1,1)=",",RIGHT(BY1,1)=",",RIGHT(BZ1,1)=",",RIGHT(CA1,1)=",",RIGHT(CB1,1)=",",RIGHT(CC1,1)=",",RIGHT(CD1,1)=",",RIGHT(CE1,1)=",",RIGHT(CF1,1)=","),"錯多，",IF(OR(LEFT(BX1,1)=",",LEFT(BY1,1)=",",LEFT(BZ1,1)=",",LEFT(CA1,1)=",",LEFT(CB1,1)=",",LEFT(CC1,1)=",",LEFT(CD1,1)=",",LEFT(CE1,1)=",",LEFT(CF1,1)=","),"錯多，","")) ->  | CG1: =IF(BX1="",0,LEN(BX1)-LEN(SUBSTITUTE(BX1,",",""))+1)+IF(BY1="",0,LEN(BY1)-LEN(SUBSTITUTE(BY1,",",""))+1)+IF(BZ1="",0,LEN(BZ1)-LEN(SUBSTITUTE(BZ1,",",""))+1)+IF(CA1="",0,LEN(CA1)-LEN(SUBSTITUTE(CA1,",",""))+1)+IF(CB1="",0,LEN(CB1)-LEN(SUBSTITUTE(CB1,",",""))+1)+IF(CC1="",0,LEN(CC1)-LEN(SUBSTITUTE(CC1,",",""))+1)+IF(CD1="",0,LEN(CD1)-LEN(SUBSTITUTE(CD1,",",""))+1) -> 0 | CH1: =IF(CE1="",0,LEN(CE1)-LEN(SUBSTITUTE(CE1,",",""))+1) -> 0 | CI1: =IF(CF1="",0,LEN(CF1)-LEN(SUBSTITUTE(CF1,",",""))+1) -> 0 | CJ1: =IF(AND(BM1=0,(CG1+CH1+CI1)>0),"錯誤輸入",IF(AND(BJ1="",BK1="",BL1=""),"",IF(AND(CG1=BJ1,CH1=BK1,CI1=BL1),"正確","No"))) ->  | CM1: =COUNTIF(CM6:CM120,">3") -> 0 | CQ1: =IF(OR(RIGHT(CR1,1)=",",RIGHT(CS1,1)=",",RIGHT(CT1,1)=",",RIGHT(CU1,1)=",",RIGHT(CV1,1)=",",RIGHT(CW1,1)=",",RIGHT(CX1,1)=",",RIGHT(CY1,1)=",",RIGHT(CZ1,1)=","),"錯多，",IF(OR(LEFT(CR1,1)=",",LEFT(CS1,1)=",",LEFT(CT1,1)=",",LEFT(CU1,1)=",",LEFT(CV1,1)=",",LEFT(CW1,1)=",",LEFT(CX1,1)=",",LEFT(CY1,1)=",",LEFT(CZ1,1)=","),"錯多，","")) ->  | CZ1: =IF(AND(CR3="",CU3="",CV3="",CY3="",CZ3=""),"",IF(AND(BQ3=DD3,DD3=DH3),"你很棒,輸入全部正確!可以按步驟4"," 尚未完成,加油!")) ->  | DA1: =IF(CR1="",0,LEN(CR1)-LEN(SUBSTITUTE(CR1,",",""))+1)+IF(CS1="",0,LEN(CS1)-LEN(SUBSTITUTE(CS1,",",""))+1)+IF(CT1="",0,LEN(CT1)-LEN(SUBSTITUTE(CT1,",",""))+1)+IF(CU1="",0,LEN(CU1)-LEN(SUBSTITUTE(CU1,",",""))+1)+IF(CV1="",0,LEN(CV1)-LEN(SUBSTITUTE(CV1,",",""))+1)+IF(CW1="",0,LEN(CW1)-LEN(SUBSTITUTE(CW1,",",""))+1)+IF(CX1="",0,LEN(CX1)-LEN(SUBSTITUTE(CX1,",",""))+1) -> 0 | DB1: =IF(CY1="",0,LEN(CY1)-LEN(SUBSTITUTE(CY1,",",""))+1) -> 0 | DC1: =IF(CZ1="",0,LEN(CZ1)-LEN(SUBSTITUTE(CZ1,",",""))+1) -> 0 | DD1: =IF(AND(BQ1=0,(DA1+DB1+DC1)>0),"錯誤輸入",IF(AND(BN1="",BO1="",BP1=""),"",IF(AND(DA1=BN1,DB1=BO1,DC1=BP1),"正確","No"))) ->  | DG1: =COUNTIF(DG6:DG120,">3") -> 0
BM2: =IF(AND(BL4="",BM4="",BN4="",BO4="",BP4="",BQ4="",BR4=""),"",IF(BU4=0,"",IF(BX1>0,"尚未完成或輸入錯誤請修正!",IF(AND(BA4=BX4,BX4=CB4,#REF!>0),"你很棒,輸入全部正確，但是有週次彈性節數太多須修正(補課例外)!","你很棒,輸入全部正確!!可以按步驟4")))) -> 
BM3: =COUNTIF(BM7:BM117,"No")+COUNTIF(BM7:BM117,"錯誤輸入") -> 0
D4: 彈性學習課程/節數 | R4: 非課程領域 | T4: 國語文 | V4: 本土語文 | X4: 英語文 | Z4: 數學 | AB4: 社會 | AD4: 藝術與人文 | AF4: 自然與科技 | AH4: 健康與體育 | AJ4: 綜合活動 | AM4: (每週節數設定參考用) | BM4: =IF(AND(BL6="",BM6="",BN6="",BO6="",BP6="",BQ6="",BR6=""),"",IF(BU6=0,"",IF(BX3>0,"尚未完成或輸入錯誤請修正!",IF(AND(AK6=BX6,BX6=CB6,CA2>0),"你很棒,輸入全部正確，但是有週次彈性節數太多須修正(補課例外)","你很棒,輸入全部正確!!可以按步驟4")))) -> 
B5: 週別 | C5: 週別日期 | D5: 全校_各年級_活動 | E5: 節數 | F5: 校本課程 | G5: 節數 | H5: 資訊教育 | I5: 節數 | J5: 英語 | K5: 節數 | L5: 國語學習診斷與補救 | M5: 節數 | N5: 數學學習診斷與補救 | O5: 節數 | Q5: 節數 | R5: =作業平台__教育部局年度規定節數!AF4 -> D:非領域 | S5: 節數 | U5: 節數 | W5: 節數 | Y5: 節數 | AA5: 節數 | AC5: 節數 | AE5: 節數 | AG5: 節數 | AI5: 節數 | AK5: 節數 | AL5: 備 註 | AM5: 每週彈性節數 | AN5: 每週融入領域節數 | AO5: 每週領域節數 | AP5: 每週非課程節數 | AQ5: 每週法定節數小計 | AR5: 跨領域總節數 | BM5: =COUNTIF(BM9:BM123,"No")+COUNTIF(BM9:BM123,"錯誤輸入") -> 0
BM6: =IF(AND(BL8="",BM8="",BN8="",BO8="",BP8="",BQ8="",BR8=""),"",IF(BU8=0,"",IF(BX5>0,"尚未完成或輸入錯誤請修正!",IF(AND(BA8=BX8,BX8=CB8,CA4>0),"你很棒,輸入全部正確，但是有週次彈性節數太多須修正(補課例外)!","你很棒,輸入全部正確!!可以按步驟4")))) -> 
C78: 上學期節數合計
C79: 跨領域
C80: 融入節數:
C81: 總節數:
A100: 1
A101: 2
A102: 3
A103: 4
A104: 5
A105: 6
A106: 1~2
A107: 1~3
A108: 1~4
A109: 1~5
A110: 1~6
A111: 2~3
A112: 2~4
A113: 2~5
A114: 2~6
A115: 3~4
A116: 3~5
A117: 3~6
A118: 4~5
A119: 4~6
A120: 5~6
A200: 第1週
A201: 第2週
A202: 第3週
A203: 第4週
A204: 第5週
A205: 第6週
A206: 第7週
A207: 第8週
A208: 第9週
A209: 第10週
A210: 第11週
A211: 第12週
A212: 第13週
A213: 第14週
A214: 第15週
A215: 第16週
A216: 第17週
A217: 第18週
A218: 第19週
A219: 第20週
A220: 第21週
A221: 第22週
A222: 第23週
A223: 第24週
A250: SA
A251: SB
A252: SC
A253: SD
A254: SE
A255: SF
A256: SG
A257: SH
A258: SI
A259: SJ
A260: SK
A261: SL
A262: SM
A263: SN
A264: SO
A265: SP
A266: SQ
A267: SR
A268: SS
A269: ST
A270: SU
A271: SV
A272: SW
A273: SX
A274: SY
A275: SZ
A276: AA
A277: AB
A278: AC
A279: AD
A280: AE
A281: AF
A282: AG
A283: AH
A284: AI
A285: AJ
A286: AK
A287: AL
A288: AM
A289: AN
A290: AO
A291: AP
A292: AQ
A293: AR
A294: AS
A295: AT
A296: AU
A297: AV
A298: AW
A299: AX
A300: AY
A301: AZ
A302: BA
A303: BB
A304: BC
A305: BD
A306: BE
A307: BF
A308: BG
A309: BH
A310: BI
A311: BJ
A312: BK
A313: BL
A314: BM
A315: BN
A316: BO
A317: BP
A318: BQ
A319: BR
A320: BS
A321: BT
A322: BU
A323: BV
A324: BW
A325: BX
A326: BY
A327: BZ
A328: CA
A329: CB
A330: CC
A331: CD
A332: CE
A333: CF
A334: CG
A335: CH
A336: CI
A337: CJ
A338: CK
A339: CL
A340: CM
A341: CN
A342: CO
A343: CP
A344: CQ
A345: CR
A346: CS
A347: CT
A348: CU
A349: CV
A350: CW
A351: CX
A352: CY
A353: CZ
A354: DA
A355: DB
A356: DC
A357: DD
A358: DE
A359: DF
A360: DG
A361: DH
A362: DI
A363: DJ
A364: DK
A365: DL
A366: DM
A367: DN
A368: DO
A369: DP
A370: DQ
A371: DR
A372: DS
A373: DT
A374: DU
A375: DV
A376: DW
A377: DX
A378: DY
A379: DZ
A380: EA
A381: EB
A382: EC
A383: ED
A384: EE
A385: EF
A386: EG
A387: EH
A388: EI
A389: EJ
A390: EK
A391: EL
A392: EM
A393: EN
A394: EO
... 11 more rows

Sheet 上學期
B1: 上學期總週數: | C1: 21 | D1: 請輸入搜尋代號或字串: | E1: * | F1: 共:0節 | P1: * | AZ1: 高雄市左營區屏山國小107年度第一學期__ | BA1: 3 | BB1: 3 | BC1: 14 | BD1: 36 | BE1: 第二單元我是生活大師 活動一當時間的主人 | BF1: 綜合活動
A2: 6 | B2: 年級: | C2: 六 | F2: =AZ1 & C2 & "年級各領域教學進度總表" -> 高雄市左營區屏山國小107年度第一學期__六年級各領域教學進度總表 | AM2: 正確
B3: 上課總天數:99天
D4: 彈性學習課程/節數 | R4: 非課程領域 | T4: 國語文 | V4: 本土語文 | X4: 英語文 | Z4: 數學 | AB4: 社會 | AD4: 藝術與人文 | AF4: 自然與科技 | AH4: 健康與體育 | AJ4: 綜合活動 | AM4: (每週節數設定參考用)
B5: 週別 | C5: 週別日期 | D5: 全校_各年級_活動 | E5: 節數 | F5: 校本課程 | G5: 節數 | H5: 資訊教育 | I5: 節數 | J5: 英語 | K5: 節數 | L5: 國語學習診斷與補救 | M5: 節數 | N5: 數學學習診斷與補救 | O5: 節數 | Q5: 節數 | R5: =作業平台__教育部局年度規定節數!AF4 -> D:非領域 | S5: 節數 | T5: 國語 ( 康軒版) 第11冊 | U5: 節數 | V5: 本土語言 ( 康軒版)第11冊 | W5: 節數 | X5: 英語 (何嘉仁 Story.com)第7冊 | Y5: 節數 | Z5: 數學 ( 康軒版)第11冊 | AA5: 節數 | AB5: 社會 (康軒版)第7冊 | AC5: 節數 | AD5: 藝術與人文 ( 康軒版)第7冊 | AE5: 節數 | AF5: 自然與科技 ( 康軒版)第7冊 | AG5: 節數 | AH5: 健康與體育翰林 (南一版)第11冊 | AI5: 節數 | AJ5: 綜合活動 (康軒版)第11冊+自編 | AK5: 節數 | AL5: 備 註 | AM5: 每週彈性節數 | AN5: 每週融入領域節數 | AO5: 每週領域節數 | AP5: 每週非課程節數 | AQ5: 每週法定節數小計 | AR5: 跨領域總節數 | DA5: 1 | DB5: 2 | DC5: 3 | DD5: 4 | DE5: 5 | DF5: 6 | DG5: 7 | DH5: 8 | DI5: 9 | DJ5: 10 | DK5: 11 | DL5: 12 | DM5: 13 | DN5: 14 | DO5: 15 | DP5: 16 | DQ5: 17 | DR5: 18 | DS5: 19 | DT5: 20 | DU5: 21 | DV5: 22 | EA5: 22
B6: 1 | C6: 第一週 2018/8/26~2018/9/1 | F6: SA:一、半屏山初探 | G6: 1 | H6: SB:一、進入Scratch的世界: Scratch可以做什麼 | I6: 1 | J6: SC:英語入學輔導週 角色介紹、圖示介紹 | K6: 1 | L6: SD:一、神奇的藍絲帶 | M6: 1 | N6: SE:一、最大公因數與最小公倍數 | O6: 1 | T6: 品格修養 一、神奇的藍絲帶 | U6: 2 | V6: 臺灣的好食物 一、紙箱仔揣朋友 | W6: 1 | X6: 英語入學輔導週 角色介紹、圖示介紹 | Y6: 1 | AA6: 0 | AB6: 一、東瀛來的統治者 1.日治時代的殖民統治 | AC6: 1 | AE6: 0 | AG6: 0 | AH6: 壹、成長與蛻變一.青春好樣 | AI6: 3 | AJ6: 第一單元發現不同的自己 活動一探索課程 | AK6: 1 | AL6: 107年8月26日(日)「祖父母節」 107年8月30日(四)開學日正式上課 | AM6: =SUM(E6:E9)+SUM(G6:Q6)+SUMIF(F6:F9,"*P",G6:G9)+SUMIF(H6:H9,"*P",I6:I9)+SUMIF(J6:J9,"*P",K6:K9)+SUMIF(L6:L9,"*P",M6:M9)+SUMIF(N6:N9,"*P",O6:O9)+SUMIF(P6:P9,"*P",Q6:Q9) -> 5 | AN6: =SUM(F7:Q9)+SUM(T7:AK9)-SUMIF(F7:F9,"*P",G7:G9)-SUMIF(H7:H9,"*P",I7:I9)-SUMIF(J7:J9,"*P",K7:K9)-SUMIF(L7:L9,"*P",M7:M9)-SUMIF(N7:N9,"*P",O7:O9)-SUMIF(P7:P9,"*P",Q7:Q9)-SUMIF(R7:R9,"*P",S7:S9)-SUMIF(T7:T9,"*P",U7:U9)-SUMIF(V7:V9,"*P",W7:W9)-SUMIF(X7:X9,"*P",Y7:Y9)-SUMIF(Z7:Z9,"*P",AA7:AA9)-SUMIF(AB7:AB9,"*P",AC7:AC9)-SUMIF(AD7:AD9,"*P",AE7:AE9)-SUMIF(AF7:AF9,"*P",AG7:AG9)-SUMIF(AH7:AH9,"*P",AI7:AI9)-SUMIF(AJ7:AJ9,"*P",AK7:AK9)-AR6 -> 4 | AO6: =SUM(U6:AK6) -> 9 | AP6: =SUM(S6:S9) -> 4 | AQ6: =AM6+AO6 -> 14 | AR6: 0 | AT6: =IF(COUNTA(C6:AQ6)>0,"Y","N") -> Y | BZ6: 1 | DA6: 107年8月26日(日)「祖父母節」 107年8月30日(四)開學日正式上課 | DB6: 疾病防治週 107年9月7日(五)班親會 | DE6: 107年9月24日(一)中秋節放假1天 | DG6: 107年10月10日(三)國慶日放假1天 | DK6: 期中評量 | DL6: A校慶運動會11/17(六) | DM6: B校慶運動會補假11/19(一) | DQ6: 107年12月22日(六)補上課12/31(一) | DS6: 107年12月31日(一)彈性調整元旦放假1天 108年1月1日(二)元旦放假1天 | DU6: 期末評量 108年1月18日(五)上學期課程結束
B7: 1 | R7: AD:家庭教育 | S7: 3 | AH7: AG:性侵害防治教育 | AI7: 1 | AJ7: BF:職業試探 | AK7: 1 | AT7: Y | BZ7: 2
B8: 1 | AH8: BA:飲食教育 | AI8: 1 | AT8: Y | BZ8: 3
B9: 1 | R9: AF:友善校園 | S9: 1 | AH9: AH:性別平等教育 | AI9: 1 | AT9: Y | BZ9: 4
B10: 2 | C10: 第二週 2018/9/2~2018/9/8 | F10: SA:一、半屏山初探 | G10: 1 | H10: SB:一、進入Scratch的世界: 角色與舞台 | I10: 1 | J10: SC:圖示介紹 發音複習表 | K10: 1 | N10: SE:一、最大公因數與最小公倍數 | O10: 1 | T10: 品格修養 二、跑道 | U10: 5 | V10: 臺灣的好食物 一、紙箱仔揣朋友 | W10: 1 | X10: 圖示介紹 發音複習表 | Y10: 1 | Z10: 一、最大公因數與最小公倍數 | AA10: 4 | AB10: 一、東瀛來的統治者 1.日治時代的殖民統治 | AC10: 3 | AD10: 一、歌劇狂想曲 1.歌劇中的喜怒哀樂 2.音樂劇在臺灣 | AE10: 3 | AF10: 一、天氣的變化 活動一 大氣中的水 | AG10: 4 | AH10: 壹、成長與蛻變一.青春好樣 | AI10: 3 | AJ10: 第一單元發現不同的自己 活動二努力學習 | AK10: 3 | AL10: 疾病防治週 | AM10: =SUM(E10:E13)+SUM(G10:Q10)+SUMIF(F10:F13,"*P",G10:G13)+SUMIF(H10:H13,"*P",I10:I13)+SUMIF(J10:J13,"*P",K10:K13)+SUMIF(L10:L13,"*P",M10:M13)+SUMIF(N10:N13,"*P",O10:O13)+SUMIF(P10:P13,"*P",Q10:Q13) -> 5 | AN10: =SUM(F11:Q13)+SUM(T11:AK13)-SUMIF(F11:F13,"*P",G11:G13)-SUMIF(H11:H13,"*P",I11:I13)-SUMIF(J11:J13,"*P",K11:K13)-SUMIF(L11:L13,"*P",M11:M13)-SUMIF(N11:N13,"*P",O11:O13)-SUMIF(P11:P13,"*P",Q11:Q13)-SUMIF(R11:R13,"*P",S11:S13)-SUMIF(T11:T13,"*P",U11:U13)-SUMIF(V11:V13,"*P",W11:W13)-SUMIF(X11:X13,"*P",Y11:Y13)-SUMIF(Z11:Z13,"*P",AA11:AA13)-SUMIF(AB11:AB13,"*P",AC11:AC13)-SUMIF(AD11:AD13,"*P",AE11:AE13)-SUMIF(AF11:AF13,"*P",AG11:AG13)-SUMIF(AH11:AH13,"*P",AI11:AI13)-SUMIF(AJ11:AJ13,"*P",AK11:AK13)-AR10 -> 3 | AO10: =SUM(U10:AK10) -> 27 | AP10: =SUM(S10:S13) -> 0 | AQ10: =AM10+AO10 -> 32 | AR10: 0 | AT10: Y | BZ10: 5
B11: 2 | D11: CH:口腔檢查P | E11: 1 | AH11: AG:性侵害防治教育 | AI11: 1 | AT11: Y | BZ11: 6
B12: 2 | AH12: BA:飲食教育 | AI12: 1 | AT12: Y | BZ12: 7
B13: 2 | AH13: AH:性別平等教育 | AI13: 1 | AT13: Y | BZ13: 8
B14: 3 | C14: 第三週 2018/9/9~2018/9/15 | F14: SA:一、半屏山初探 | G14: 1 | H14: SB:二、漫步未來城: Scratch 動起來 | I14: 1 | J14: SC:Unit 1 Where Are You From? | K14: 1 | N14: SE:二、分數除法 | O14: 1 | T14: 品格修養 三、說話也要停看聽 | U14: 5 | V14: 臺灣的好食物 一、紙箱仔揣朋友 | W14: 1 | X14: Unit 1 Where Are You From? | Y14: 1 | Z14: 二、分數除法 | AA14: 4 | AB14: 一、東瀛來的統治者 2.日治時代的社會變遷 | AC14: 3 | AD14: 一、歌劇狂想曲 2.音樂劇在臺灣 3.笛聲飛揚 | AE14: 3 | AF14: 一、天氣的變化 活動二 認識天氣的變化 | AG14: 4 | AH14: 壹、成長與蛻變二.飲食萬花筒 | AI14: 3 | AJ14: 第二單元我的畢業旅行(自編) | AK14: 3 | AL14: 107年9月12日(三)班親會 | AM14: =SUM(E14:E16)+SUM(G14:Q14)+SUMIF(F14:F16,"*P",G14:G16)+SUMIF(H14:H16,"*P",I14:I16)+SUMIF(J14:J16,"*P",K14:K16)+SUMIF(L14:L16,"*P",M14:M16)+SUMIF(N14:N16,"*P",O14:O16)+SUMIF(P14:P16,"*P",Q14:Q16) -> 5 | AN14: =SUM(F15:Q16)+SUM(T15:AK16)-SUMIF(F15:F16,"*P",G15:G16)-SUMIF(H15:H16,"*P",I15:I16)-SUMIF(J15:J16,"*P",K15:K16)-SUMIF(L15:L16,"*P",M15:M16)-SUMIF(N15:N16,"*P",O15:O16)-SUMIF(P15:P16,"*P",Q15:Q16)-SUMIF(R15:R16,"*P",S15:S16)-SUMIF(T15:T16,"*P",U15:U16)-SUMIF(V15:V16,"*P",W15:W16)-SUMIF(X15:X16,"*P",Y15:Y16)-SUMIF(Z15:Z16,"*P",AA15:AA16)-SUMIF(AB15:AB16,"*P",AC15:AC16)-SUMIF(AD15:AD16,"*P",AE15:AE16)-SUMIF(AF15:AF16,"*P",AG15:AG16)-SUMIF(AH15:AH16,"*P",AI15:AI16)-SUMIF(AJ15:AJ16,"*P",AK15:AK16)-AR14 -> 1 | AO14: =SUM(U14:AK14) -> 27 | AP14: =SUM(S14:S16) -> 3 | AQ14: =AM14+AO14 -> 32 | AR14: 0 | AT14: Y | BZ14: 9
B15: 3 | D15: CB:身高.體重.視力檢查P | E15: 1 | R15: AE:家暴_家庭暴力防治教育 | S15: 3 | AH15: BA:飲食教育 | AI15: 1 | AT15: Y | BZ15: 10
B16: 3 | AT16: N | BZ16: 11
B17: 4 | C17: 第四週 2018/9/16~2018/9/22 | F17: SA:二、非常接觸- 擁抱半屏山 1.半屏山尋寶記 | G17: 1 | H17: SB:二、漫步未來城: Scratch小試身手 | I17: 1 | J17: SC:Unit 1 Where Are You From? | K17: 1 | N17: SE:二、分數除法 | O17: 1 | T17: 品格修養 四、朱子治家格言選 | U17: 5 | V17: 臺灣的好食物 二、踅夜市 | W17: 1 | X17: Unit 1 Where Are You From? | Y17: 1 | Z17: 二、分數除法 | AA17: 4 | AB17: 一、東瀛來的統治者 3.日治時代的社會變遷 | AC17: 3 | AD17: 二、雋永之歌 1.與音樂對話 | AE17: 3 | AF17: 一、天氣的變化 活動二 認識天氣的變化 活動三 颱風 | AG17: 4 | AH17: 壹、成長與蛻變三.人我之間 | AI17: 3 | AJ17: 第二單元我的畢業旅行(自編) | AK17: 3 | AM17: =SUM(E17:E19)+SUM(G17:Q17)+SUMIF(F17:F19,"*P",G17:G19)+SUMIF(H17:H19,"*P",I17:I19)+SUMIF(J17:J19,"*P",K17:K19)+SUMIF(L17:L19,"*P",M17:M19)+SUMIF(N17:N19,"*P",O17:O19)+SUMIF(P17:P19,"*P",Q17:Q19) -> 5 | AN17: =SUM(F18:Q19)+SUM(T18:AK19)-SUMIF(F18:F19,"*P",G18:G19)-SUMIF(H18:H19,"*P",I18:I19)-SUMIF(J18:J19,"*P",K18:K19)-SUMIF(L18:L19,"*P",M18:M19)-SUMIF(N18:N19,"*P",O18:O19)-SUMIF(P18:P19,"*P",Q18:Q19)-SUMIF(R18:R19,"*P",S18:S19)-SUMIF(T18:T19,"*P",U18:U19)-SUMIF(V18:V19,"*P",W18:W19)-SUMIF(X18:X19,"*P",Y18:Y19)-SUMIF(Z18:Z19,"*P",AA18:AA19)-SUMIF(AB18:AB19,"*P",AC18:AC19)-SUMIF(AD18:AD19,"*P",AE18:AE19)-SUMIF(AF18:AF19,"*P",AG18:AG19)-SUMIF(AH18:AH19,"*P",AI18:AI19)-SUMIF(AJ18:AJ19,"*P",AK18:AK19)-AR17 -> 1 | AO17: =SUM(U17:AK17) -> 27 | AP17: =SUM(S17:S19) -> 1 | AQ17: =AM17+AO17 -> 32 | AR17: 0 | AT17: Y | BZ17: 12
B18: 4 | D18: CI:斜弱視.辨色力檢查P | E18: 1 | R18: AJ:防災教育 | S18: 1 | AH18: AH:性別平等教育 | AI18: 1 | AT18: Y | BZ18: 13
B19: 4 | AT19: N | BZ19: 14
B20: 5 | C20: 第五週 2018/9/23~2018/9/29 | F20: SA:二、非常接觸- 擁抱半屏山 1.半屏山尋寶記 | G20: 1 | H20: SB:三、街頭秀才藝: 變更角色大小、角色大變身 | I20: 1 | J20: SC:Unit 1 Where Are You From? | K20: 1 | T20: 品格修養 統整活動一 | U20: 3 | V20: 臺灣的好食物 二、踅夜市 | W20: 1 | X20: Unit 1 Where Are You From? | Y20: 1 | Z20: 三、數量關係 | AA20: 2 | AB20: 二、戰後臺灣的政治演變 1.政治發展 | AC20: 3 | AD20: 二、雋永之歌 2.清新的旋律 | AE20: 3 | AF20: 一、天氣的變化 活動三 颱風 | AG20: 2 | AH20: 壹、成長與蛻變三.人我之間 | AI20: 2 | AJ20: 第三單元我是生活大師 | AK20: 3 | AL20: 107年9月24日(一)中秋節放假1天 | AM20: =SUM(E20:E22)+SUM(G20:Q20)+SUMIF(F20:F22,"*P",G20:G22)+SUMIF(H20:H22,"*P",I20:I22)+SUMIF(J20:J22,"*P",K20:K22)+SUMIF(L20:L22,"*P",M20:M22)+SUMIF(N20:N22,"*P",O20:O22)+SUMIF(P20:P22,"*P",Q20:Q22) -> 5 | AN20: =SUM(F21:Q22)+SUM(T21:AK22)-SUMIF(F21:F22,"*P",G21:G22)-SUMIF(H21:H22,"*P",I21:I22)-SUMIF(J21:J22,"*P",K21:K22)-SUMIF(L21:L22,"*P",M21:M22)-SUMIF(N21:N22,"*P",O21:O22)-SUMIF(P21:P22,"*P",Q21:Q22)-SUMIF(R21:R22,"*P",S21:S22)-SUMIF(T21:T22,"*P",U21:U22)-SUMIF(V21:V22,"*P",W21:W22)-SUMIF(X21:X22,"*P",Y21:Y22)-SUMIF(Z21:Z22,"*P",AA21:AA22)-SUMIF(AB21:AB22,"*P",AC21:AC22)-SUMIF(AD21:AD22,"*P",AE21:AE22)-SUMIF(AF21:AF22,"*P",AG21:AG22)-SUMIF(AH21:AH22,"*P",AI21:AI22)-SUMIF(AJ21:AJ22,"*P",AK21:AK22)-AR20 -> 1 | AO20: =SUM(U20:AK20) -> 20 | AP20: =SUM(S20:S22) -> 0 | AQ20: =AM20+AO20 -> 25 | AR20: 0 | AT20: Y | BZ20: 15
B21: 5 | D21: AN:作文教學P | E21: 2 | AH21: AH:性別平等教育 | AI21: 1 | AT21: Y | BZ21: 16
B22: 5 | AT22: N | BZ22: 17
B23: 6 | C23: 第六週 2018/9/30~2018/10/6 | F23: SA:二、非常接觸- 擁抱半屏山 1.半屏山尋寶記 | G23: 1 | H23: SB:三、街頭秀才藝: 角色的分身與特效 | I23: 1 | J23: SC:Unit 2 We Have Science Class on Monday | K23: 1 | L23: SD:五、山的巡禮 | M23: 1 | N23: SE:三、數量關係 | O23: 1 | T23: 臺灣印象 五、山的巡禮 | U23: 5 | V23: 臺灣的好食物 二、踅夜市 | W23: 1 | X23: Unit 2 We Have Science Class on Monday | Y23: 1 | Z23: 三、數量關係 | AA23: 4 | AB23: 二、戰後臺灣的政治演變 2.政府組織 | AC23: 3 | AD23: 二、雋永之歌 3.笛聲飛揚 | AE23: 3 | AF23: 二、熱對物質的影響 活動一 物質受熱後的變化 | AG23: 4 | AH23: 壹、成長與蛻變四.青春進行曲 | AI23: 3 | AJ23: 第三單元我是生活大師 | AK23: 3 | AM23: =SUM(E23:E25)+SUM(G23:Q23)+SUMIF(F23:F25,"*P",G23:G25)+SUMIF(H23:H25,"*P",I23:I25)+SUMIF(J23:J25,"*P",K23:K25)+SUMIF(L23:L25,"*P",M23:M25)+SUMIF(N23:N25,"*P",O23:O25)+SUMIF(P23:P25,"*P",Q23:Q25) -> 5 | AN23: =SUM(F24:Q25)+SUM(T24:AK25)-SUMIF(F24:F25,"*P",G24:G25)-SUMIF(H24:H25,"*P",I24:I25)-SUMIF(J24:J25,"*P",K24:K25)-SUMIF(L24:L25,"*P",M24:M25)-SUMIF(N24:N25,"*P",O24:O25)-SUMIF(P24:P25,"*P",Q24:Q25)-SUMIF(R24:R25,"*P",S24:S25)-SUMIF(T24:T25,"*P",U24:U25)-SUMIF(V24:V25,"*P",W24:W25)-SUMIF(X24:X25,"*P",Y24:Y25)-SUMIF(Z24:Z25,"*P",AA24:AA25)-SUMIF(AB24:AB25,"*P",AC24:AC25)-SUMIF(AD24:AD25,"*P",AE24:AE25)-SUMIF(AF24:AF25,"*P",AG24:AG25)-SUMIF(AH24:AH25,"*P",AI24:AI25)-SUMIF(AJ24:AJ25,"*P",AK24:AK25)-AR23 -> 1 | AO23: =SUM(U23:AK23) -> 27 | AP23: =SUM(S23:S25) -> 1 | AQ23: =AM23+AO23 -> 32 | AR23: 0 | AT23: Y | BZ23: 18
B24: 6 | R24: AG:性侵害防治教育 | S24: 1 | AH24: AH:性別平等教育 | AI24: 1 | AT24: Y | BZ24: 19
B25: 6 | AT25: N | BZ25: 20
B26: 7 | C26: 第七週 2018/10/7~2018/10/13 | F26: SA:二、非常接觸- 擁抱半屏山 1.半屏山尋寶記 | G26: 1 | H26: SB:四、小小畢卡索: 走過要留下痕跡、多功能畫筆 | I26: 1 | J26: SC:Unit 2 We Have Science Class on Monday | K26: 1 | L26: SD:六、東海岸鐵路 | M26: 1 | N26: SE:四、小數除法 | O26: 1 | T26: 臺灣印象 六、東海岸鐵路 | U26: 4 | V26: 臺灣的好食物 單元活動一 | W26: 1 | X26: Unit 2 We Have Science Class on Monday | Y26: 1 | Z26: 四、小數除法 | AA26: 3 | AB26: 三、戰後臺灣的經濟發展 1.經濟重整與復甦 | AC26: 2 | AD26: 三、傳藝之美 1.傳統藝術之美 2.刻劃之美 | AE26: 2 | AF26: 二、熱對物質的影響 活動一 物質受熱後的變化 活動二 熱的傳播 | AG26: 4 | AH26: 壹、成長與蛻變五.健康生活深呼吸 | AI26: 3 | AJ26: 第一單元發現不同的自己 活動三持續發展 | AK26: 3 | AL26: 107年10月10日(三)國慶日放假1天 | AM26: =SUM(E26:E29)+SUM(G26:Q26)+SUMIF(F26:F29,"*P",G26:G29)+SUMIF(H26:H29,"*P",I26:I29)+SUMIF(J26:J29,"*P",K26:K29)+SUMIF(L26:L29,"*P",M26:M29)+SUMIF(N26:N29,"*P",O26:O29)+SUMIF(P26:P29,"*P",Q26:Q29) -> 5 | AN26: =SUM(F27:Q29)+SUM(T27:AK29)-SUMIF(F27:F29,"*P",G27:G29)-SUMIF(H27:H29,"*P",I27:I29)-SUMIF(J27:J29,"*P",K27:K29)-SUMIF(L27:L29,"*P",M27:M29)-SUMIF(N27:N29,"*P",O27:O29)-SUMIF(P27:P29,"*P",Q27:Q29)-SUMIF(R27:R29,"*P",S27:S29)-SUMIF(T27:T29,"*P",U27:U29)-SUMIF(V27:V29,"*P",W27:W29)-SUMIF(X27:X29,"*P",Y27:Y29)-SUMIF(Z27:Z29,"*P",AA27:AA29)-SUMIF(AB27:AB29,"*P",AC27:AC29)-SUMIF(AD27:AD29,"*P",AE27:AE29)-SUMIF(AF27:AF29,"*P",AG27:AG29)-SUMIF(AH27:AH29,"*P",AI27:AI29)-SUMIF(AJ27:AJ29,"*P",AK27:AK29)-AR26 -> 3 | AO26: =SUM(U26:AK26) -> 23 | AP26: =SUM(S26:S29) -> 0 | AQ26: =AM26+AO26 -> 28 | AR26: 0 | AT26: Y | BZ26: 21
B27: 7 | AH27: AL:登革熱防治 | AI27: 1 | AT27: Y
B28: 7 | AH28: BI:交通安全教育 | AI28: 1 | AT28: Y
B29: 7 | AH29: BA:飲食教育 | AI29: 1 | AT29: Y
B30: 8 | C30: 第八週 2018/10/14~2018/10/20 | F30: SA:二、非常接觸- 擁抱半屏山 2.站在高崗上 | G30: 1 | H30: SB:四、小小畢卡索: 變色投影燈、神奇畫筆 | I30: 1 | J30: SC:Unit 2 We Have Science Class on Monday | K30: 1 | L30: SD:七、沉城之謎 | M30: 1 | N30: SE:四、小數除法 | O30: 1 | T30: 臺灣印象 七、沉城之謎 | U30: 5 | V30: 天災地變 三、地動 | W30: 1 | X30: Unit 2 We Have Science Class on Monday | Y30: 1 | Z30: 四、小數除法 | AA30: 4 | AB30: 三、戰後臺灣的經濟發展 1.經濟重整與復甦 | AC30: 3 | AD30: 三、傳藝之美 3.版畫好好玩 | AE30: 3 | AF30: 二、熱對物質的影響 活動二 熱的傳播 | AG30: 4 | AH30: 壹、成長與蛻變五.健康生活深呼吸 | AI30: 3 | AJ30: 第四單元服務收穫多 活動一服務的真諦 | AK30: 3 | AM30: =SUM(E30:E32)+SUM(G30:Q30)+SUMIF(F30:F32,"*P",G30:G32)+SUMIF(H30:H32,"*P",I30:I32)+SUMIF(J30:J32,"*P",K30:K32)+SUMIF(L30:L32,"*P",M30:M32)+SUMIF(N30:N32,"*P",O30:O32)+SUMIF(P30:P32,"*P",Q30:Q32) -> 5 | AN30: =SUM(F31:Q32)+SUM(T31:AK32)-SUMIF(F31:F32,"*P",G31:G32)-SUMIF(H31:H32,"*P",I31:I32)-SUMIF(J31:J32,"*P",K31:K32)-SUMIF(L31:L32,"*P",M31:M32)-SUMIF(N31:N32,"*P",O31:O32)-SUMIF(P31:P32,"*P",Q31:Q32)-SUMIF(R31:R32,"*P",S31:S32)-SUMIF(T31:T32,"*P",U31:U32)-SUMIF(V31:V32,"*P",W31:W32)-SUMIF(X31:X32,"*P",Y31:Y32)-SUMIF(Z31:Z32,"*P",AA31:AA32)-SUMIF(AB31:AB32,"*P",AC31:AC32)-SUMIF(AD31:AD32,"*P",AE31:AE32)-SUMIF(AF31:AF32,"*P",AG31:AG32)-SUMIF(AH31:AH32,"*P",AI31:AI32)-SUMIF(AJ31:AJ32,"*P",AK31:AK32)-AR30 -> 2 | AO30: =SUM(U30:AK30) -> 27 | AP30: =SUM(S30:S32) -> 0 | AQ30: =AM30+AO30 -> 32 | AR30: 0 | AT30: Y
B31: 8 | AH31: BA:飲食教育 | AI31: 1 | AT31: Y
B32: 8 | AH32: BI:交通安全教育 | AI32: 1 | AT32: Y
B33: 9 | C33: 第九週 2018/10/21~2018/10/27 | F33: SA:二、非常接觸- 擁抱半屏山 2.站在高崗上 | G33: 1 | H33: SB:五、小小導演: 腳本設計、布置故事場景 | I33: 1 | J33: SC:*Review 1 複習 Unit1~Unit 2 | K33: 1 | N33: SE:五、長條圖與折線圖 | O33: 1 | T33: 臺灣印象 統整活動二 | U33: 5 | V33: 天災地變 三、地動 | W33: 1 | X33: *Review 1 複習 Unit1~Unit 2 | Y33: 1 | Z33: 五、長條圖與折線圖 | AA33: 4 | AB33: 三、戰後臺灣的經濟發展 2.經濟發展與轉型 | AC33: 3 | AD33: 三、傳藝之美 3.版畫好好玩 | AE33: 3 | AF33: 二、熱對物質的影響 活動二 熱的傳播 活動三 保溫與散熱 | AG33: 4 | AH33: 貳、身體力與美六.青春奔跑 | AI33: 3 | AJ33: 第四單元服務收穫多 活動一服務的真諦 | AK33: 3 | AM33: =SUM(E33:E35)+SUM(G33:Q33)+SUMIF(F33:F35,"*P",G33:G35)+SUMIF(H33:H35,"*P",I33:I35)+SUMIF(J33:J35,"*P",K33:K35)+SUMIF(L33:L35,"*P",M33:M35)+SUMIF(N33:N35,"*P",O33:O35)+SUMIF(P33:P35,"*P",Q33:Q35) -> 5 | AN33: =SUM(F34:Q35)+SUM(T34:AK35)-SUMIF(F34:F35,"*P",G34:G35)-SUMIF(H34:H35,"*P",I34:I35)-SUMIF(J34:J35,"*P",K34:K35)-SUMIF(L34:L35,"*P",M34:M35)-SUMIF(N34:N35,"*P",O34:O35)-SUMIF(P34:P35,"*P",Q34:Q35)-SUMIF(R34:R35,"*P",S34:S35)-SUMIF(T34:T35,"*P",U34:U35)-SUMIF(V34:V35,"*P",W34:W35)-SUMIF(X34:X35,"*P",Y34:Y35)-SUMIF(Z34:Z35,"*P",AA34:AA35)-SUMIF(AB34:AB35,"*P",AC34:AC35)-SUMIF(AD34:AD35,"*P",AE34:AE35)-SUMIF(AF34:AF35,"*P",AG34:AG35)-SUMIF(AH34:AH35,"*P",AI34:AI35)-SUMIF(AJ34:AJ35,"*P",AK34:AK35)-AR33 -> 4 | AO33: =SUM(U33:AK33) -> 27 | AP33: =SUM(S33:S35) -> 0 | AQ33: =AM33+AO33 -> 32 | AR33: 0 | AT33: Y
B34: 9 | D34: CP:預防注射(流感)P | E34: 1 | AH34: AH:性別平等教育 | AI34: 1 | AJ34: AC:家政教育 | AK34: 3 | AT34: Y
B35: 9 | AT35: N
B36: 10 | C36: 第十週 2018/10/28~2018/11/3 | F36: SA:二、非常接觸- 擁抱半屏山 2.站在高崗上 | G36: 1 | H36: SB:五、小小導演: 角色登場、製作角色對話 | I36: 1 | J36: SC:*Review 1 複習 Unit1~Unit 2 | K36: 1 | T36: 閱讀階梯一 進入雨林 | U36: 5 | V36: 天災地變 三、地動 | W36: 1 | X36: *Review 1 複習 Unit1~Unit 2 | Y36: 1 | Z36: 六、圓周率與圓周長 | AA36: 4 | AB36: 三、戰後臺灣的經濟發展 2.經濟發展與轉型 | AC36: 3 | AD36: 四、美哉人生 1.人生百態 | AE36: 3 | AF36: 二、熱對物質的影響 活動三 保溫與散熱 三、大地的奧祕 活動一 多變的大地景觀 | AG36: 4 | AH36: 貳、身體力與美七.健康有氧 | AI36: 3 | AJ36: 第四單元服務收穫多 活動二服務中學習 | AK36: 3 | AM36: =SUM(E36:E38)+SUM(G36:Q36)+SUMIF(F36:F38,"*P",G36:G38)+SUMIF(H36:H38,"*P",I36:I38)+SUMIF(J36:J38,"*P",K36:K38)+SUMIF(L36:L38,"*P",M36:M38)+SUMIF(N36:N38,"*P",O36:O38)+SUMIF(P36:P38,"*P",Q36:Q38) -> 5 | AN36: =SUM(F37:Q38)+SUM(T37:AK38)-SUMIF(F37:F38,"*P",G37:G38)-SUMIF(H37:H38,"*P",I37:I38)-SUMIF(J37:J38,"*P",K37:K38)-SUMIF(L37:L38,"*P",M37:M38)-SUMIF(N37:N38,"*P",O37:O38)-SUMIF(P37:P38,"*P",Q37:Q38)-SUMIF(R37:R38,"*P",S37:S38)-SUMIF(T37:T38,"*P",U37:U38)-SUMIF(V37:V38,"*P",W37:W38)-SUMIF(X37:X38,"*P",Y37:Y38)-SUMIF(Z37:Z38,"*P",AA37:AA38)-SUMIF(AB37:AB38,"*P",AC37:AC38)-SUMIF(AD37:AD38,"*P",AE37:AE38)-SUMIF(AF37:AF38,"*P",AG37:AG38)-SUMIF(AH37:AH38,"*P",AI37:AI38)-SUMIF(AJ37:AJ38,"*P",AK37:AK38)-AR36 -> 4 | AO36: =SUM(U36:AK36) -> 27 | AP36: =SUM(S36:S38) -> 0 | AQ36: =AM36+AO36 -> 32 | AR36: 0 | AT36: Y
B37: 10 | D37: AN:作文教學P | E37: 2 | AH37: BH:低碳教育 | AI37: 1 | AJ37: AC:家政教育 | AK37: 3 | AT37: Y
B38: 10 | AT38: =IF(COUNTA(C38:AQ38)>0,"Y","N") -> N
B39: 11 | C39: 第十一週 2018/11/4~2018/11/10 | F39: SA:二、非常接觸- 擁抱半屏山 2.站在高崗上 | G39: 1 | H39: SB:六、小小音樂家: scratch的音階與節奏 | I39: 1 | J39: SC:Unit 3 How Many Tigers Are There? | K39: 1 | L39: SD:八、大小剛好的鞋子 | M39: 1 | N39: SE:六、圓周率與圓周長 | O39: 1 | T39: 思考的藝術 八、大小剛好的鞋子 | U39: 5 | V39: 天災地變 單元活動二 | W39: 1 | X39: Unit 3 How Many Tigers Are There? | Y39: 1 | Z39: 六、圓周率與圓周長 | AA39: 4 | AB39: 四、戰後臺灣的社會與文化 1.社會的變遷 | AC39: 3 | AD39: 四、美哉人生 2.塑造精采人生 | AE39: 3 | AF39: 三、大地的奧祕 活動一 多變的大地景觀 | AG39: 4 | AH39: 貳、身體力與美七.健康有氧 | AI39: 3 | AJ39: 第四單元服務收穫多 活動三服務中成長 | AK39: 3 | AL39: 期中評量 | AM39: =SUM(E39:E41)+SUM(G39:Q39)+SUMIF(F39:F41,"*P",G39:G41)+SUMIF(H39:H41,"*P",I39:I41)+SUMIF(J39:J41,"*P",K39:K41)+SUMIF(L39:L41,"*P",M39:M41)+SUMIF(N39:N41,"*P",O39:O41)+SUMIF(P39:P41,"*P",Q39:Q41) -> 5 | AN39: =SUM(F40:Q41)+SUM(T40:AK41)-SUMIF(F40:F41,"*P",G40:G41)-SUMIF(H40:H41,"*P",I40:I41)-SUMIF(J40:J41,"*P",K40:K41)-SUMIF(L40:L41,"*P",M40:M41)-SUMIF(N40:N41,"*P",O40:O41)-SUMIF(P40:P41,"*P",Q40:Q41)-SUMIF(R40:R41,"*P",S40:S41)-SUMIF(T40:T41,"*P",U40:U41)-SUMIF(V40:V41,"*P",W40:W41)-SUMIF(X40:X41,"*P",Y40:Y41)-SUMIF(Z40:Z41,"*P",AA40:AA41)-SUMIF(AB40:AB41,"*P",AC40:AC41)-SUMIF(AD40:AD41,"*P",AE40:AE41)-SUMIF(AF40:AF41,"*P",AG40:AG41)-SUMIF(AH40:AH41,"*P",AI40:AI41)-SUMIF(AJ40:AJ41,"*P",AK40:AK41)-AR39 -> 3 | AO39: =SUM(U39:AK39) -> 27 | AP39: =SUM(S39:S41) -> 0 | AQ39: =AM39+AO39 -> 32 | AR39: 0 | AT39: Y
B40: 11 | AJ40: AC:家政教育 | AK40: 3 | AT40: Y
B41: 11 | AT41: N
B42: 12 | C42: 第十二週 2018/11/11~2018/11/17 | H42: SB:六、小小音樂家: 電子琴按鍵、 聲音特效 | I42: 1 | J42: SC:Unit 3 How Many Tigers Are There? | K42: 1 | T42: 思考的藝術 九、沉思三帖 | U42: 5 | V42: 生活真趣味 四、圓仔圓圓圓 | W42: 1 | X42: Unit 3 How Many Tigers Are There? | Y42: 1 | Z42: 七、圓面積 | AA42: 4 | AB42: 四、戰後臺灣的社會與文化 1.社會的變遷 | AC42: 3 | AD42: 四、美哉人生 2.塑造精采人生 | AE42: 3 | AF42: 三、大地的奧祕 活動一 多變的大地景觀 | AG42: 4 | AH42: 貳、身體力與美八.足球小子(一) | AI42: 3 | AJ42: 第四單元服務收穫多 活動三服務中成長 | AK42: 3 | AL42: A校慶運動會11/17(六) | AM42: =SUM(E42:E44)+SUM(G42:Q42)+SUMIF(F42:F44,"*P",G42:G44)+SUMIF(H42:H44,"*P",I42:I44)+SUMIF(J42:J44,"*P",K42:K44)+SUMIF(L42:L44,"*P",M42:M44)+SUMIF(N42:N44,"*P",O42:O44)+SUMIF(P42:P44,"*P",Q42:Q44) -> 5 | AN42: =SUM(F43:Q44)+SUM(T43:AK44)-SUMIF(F43:F44,"*P",G43:G44)-SUMIF(H43:H44,"*P",I43:I44)-SUMIF(J43:J44,"*P",K43:K44)-SUMIF(L43:L44,"*P",M43:M44)-SUMIF(N43:N44,"*P",O43:O44)-SUMIF(P43:P44,"*P",Q43:Q44)-SUMIF(R43:R44,"*P",S43:S44)-SUMIF(T43:T44,"*P",U43:U44)-SUMIF(V43:V44,"*P",W43:W44)-SUMIF(X43:X44,"*P",Y43:Y44)-SUMIF(Z43:Z44,"*P",AA43:AA44)-SUMIF(AB43:AB44,"*P",AC43:AC44)-SUMIF(AD43:AD44,"*P",AE43:AE44)-SUMIF(AF43:AF44,"*P",AG43:AG44)-SUMIF(AH43:AH44,"*P",AI43:AI44)-SUMIF(AJ43:AJ44,"*P",AK43:AK44)-AR42 -> 7 | AO42: =SUM(U42:AK42) -> 27 | AP42: =SUM(S42:S44) -> 0 | AQ42: =AM42+AO42 -> 32 | AR42: 0 | AT42: Y
B43: 12 | D43: CE:校慶運動會預演P | E43: 1 | AF43: AI:環境教育 | AG43: 2 | AH43: CF:校慶運動會(中高年級) | AI43: 3 | AJ43: CF:校慶運動會(中高年級) | AK43: 2 | AT43: Y
B44: 12 | D44: CF:校慶運動會(中高年級)P | E44: 2 | AT44: Y
B45: 13 | C45: 第十三週 2018/11/18~2018/11/24 | F45: SA:二、非常接觸- 擁抱半屏山 3.屏山頌 | G45: 1 | H45: SB:六、小小音樂家: 創意作曲家 | I45: 1 | J45: SC:Unit 3 How Many Tigers Are There? | K45: 1 | T45: 思考的藝術 十、狐假虎威 | U45: 5 | V45: 生活真趣味 四、圓仔圓圓圓 | W45: 1 | X45: Unit 3 How Many Tigers Are There? | Y45: 1 | Z45: 七、圓面積 | AA45: 4 | AB45: 四、戰後臺灣的社會與文化 2.文化的傳承與發展 | AC45: 3 | AD45: 五、打開戲劇百寶箱 1.聚光燈下的戲劇 2.認識演出的場地—劇場 | AE45: 3 | AF45: 三、大地的奧祕 活動一 多變的大地景觀 活動二 岩石與礦物 | AG45: 4 | AH45: 貳、身體力與美八.足球小子(一) | AI45: 3 | AJ45: 第五單元寶貝我的家 活動一我們這一家 | AK45: 3 | AL45: B校慶運動會補假11/19(一) | AM45: =SUM(E45:E47)+SUM(G45:Q45)+SUMIF(F45:F47,"*P",G45:G47)+SUMIF(H45:H47,"*P",I45:I47)+SUMIF(J45:J47,"*P",K45:K47)+SUMIF(L45:L47,"*P",M45:M47)+SUMIF(N45:N47,"*P",O45:O47)+SUMIF(P45:P47,"*P",Q45:Q47) -> 5 | AN45: =SUM(F46:Q47)+SUM(T46:AK47)-SUMIF(F46:F47,"*P",G46:G47)-SUMIF(H46:H47,"*P",I46:I47)-SUMIF(J46:J47,"*P",K46:K47)-SUMIF(L46:L47,"*P",M46:M47)-SUMIF(N46:N47,"*P",O46:O47)-SUMIF(P46:P47,"*P",Q46:Q47)-SUMIF(R46:R47,"*P",S46:S47)-SUMIF(T46:T47,"*P",U46:U47)-SUMIF(V46:V47,"*P",W46:W47)-SUMIF(X46:X47,"*P",Y46:Y47)-SUMIF(Z46:Z47,"*P",AA46:AA47)-SUMIF(AB46:AB47,"*P",AC46:AC47)-SUMIF(AD46:AD47,"*P",AE46:AE47)-SUMIF(AF46:AF47,"*P",AG46:AG47)-SUMIF(AH46:AH47,"*P",AI46:AI47)-SUMIF(AJ46:AJ47,"*P",AK46:AK47)-AR45 -> 3 | AO45: =SUM(U45:AK45) -> 27 | AP45: =SUM(S45:S47) -> 0 | AQ45: =AM45+AO45 -> 32 | AR45: 0 | AT45: Y
B46: 13 | D46: AN:作文教學P | E46: 2 | AJ46: AC:家政教育 | AK46: 3 | AT46: Y
B47: 13 | AT47: N
B48: 14 | C48: 第十四週 2018/11/25~2018/12/1 | F48: SA:二、非常接觸- 擁抱半屏山 3.屏山頌 | G48: 1 | H48: SB:六、小小音樂家: 我的電子琴 | I48: 1 | J48: SC:Unit 4 Are There Any Windows in the Dining Room? | K48: 1 | L48: SD:十、狐假虎威 | M48: 1 | N48: SE:七、圓面積 | O48: 1 | T48: 思考的藝術 統整活動三 | U48: 5 | V48: 生活真趣味 四、圓仔圓圓圓 | W48: 1 | X48: Unit 4 Are There Any Windows in the Dining Room? | Y48: 1 | Z48: 八、等量公理與應用 | AA48: 4 | AB48: 四、戰後臺灣的社會與文化 2.文化的傳承與發展 | AC48: 3 | AD48: 五、打開戲劇百寶箱 3.表演欣賞停看聽 4.跨國界的表演藝術 | AE48: 3 | AF48: 三、大地的奧祕 活動二 岩石與礦物 | AG48: 4 | AH48: 貳、身體力與美九.體操精靈 | AI48: 3 | AJ48: 第五單元寶貝我的家 活動二親情交流站 | AK48: 3 | AM48: =SUM(E48:E50)+SUM(G48:Q48)+SUMIF(F48:F50,"*P",G48:G50)+SUMIF(H48:H50,"*P",I48:I50)+SUMIF(J48:J50,"*P",K48:K50)+SUMIF(L48:L50,"*P",M48:M50)+SUMIF(N48:N50,"*P",O48:O50)+SUMIF(P48:P50,"*P",Q48:Q50) -> 5 | AN48: =SUM(F49:Q50)+SUM(T49:AK50)-SUMIF(F49:F50,"*P",G49:G50)-SUMIF(H49:H50,"*P",I49:I50)-SUMIF(J49:J50,"*P",K49:K50)-SUMIF(L49:L50,"*P",M49:M50)-SUMIF(N49:N50,"*P",O49:O50)-SUMIF(P49:P50,"*P",Q49:Q50)-SUMIF(R49:R50,"*P",S49:S50)-SUMIF(T49:T50,"*P",U49:U50)-SUMIF(V49:V50,"*P",W49:W50)-SUMIF(X49:X50,"*P",Y49:Y50)-SUMIF(Z49:Z50,"*P",AA49:AA50)-SUMIF(AB49:AB50,"*P",AC49:AC50)-SUMIF(AD49:AD50,"*P",AE49:AE50)-SUMIF(AF49:AF50,"*P",AG49:AG50)-SUMIF(AH49:AH50,"*P",AI49:AI50)-SUMIF(AJ49:AJ50,"*P",AK49:AK50)-AR48 -> 0 | AO48: =SUM(U48:AK48) -> 27 | AP48: =SUM(S48:S50) -> 0 | AQ48: =AM48+AO48 -> 32 | AR48: 0 | AT48: Y
B49: 14 | AT49: N
B50: 14 | AT50: N
B51: 15 | C51: 第十五週 2018/12/2~2018/12/8 | F51: SA:二、非常接觸- 擁抱半屏山 3.屏山頌 | G51: 1 | H51: SB:七、迷城尋寶: 迷宮圖軟體與製作 | I51: 1 | J51: SC:Unit 4 Are There Any Windows in the Dining Room? | K51: 1 | L51: SD:十一、我願 | M51: 1 | N51: SE:八、等量公理與應用 | O51: 1 | T51: 文學長廊 十一、我願 | U51: 5 | V51: 生活真趣味 五、搬戲 | W51: 1 | X51: Unit 4 Are There Any Windows in the Dining Room? | Y51: 1 | Z51: 八、等量公理與應用 | AA51: 4 | AB51: 五、臺灣的人口 1.人口分布與遷移 | AC51: 3 | AD51: 五、打開戲劇百寶箱 4.跨國界的表演藝術 5.說學逗唱樣樣精 | AE51: 3 | AF51: 三、大地的奧祕 活動二 岩石與礦物 活動三 風化與土壤 | AG51: 4 | AH51: 貳、身體力與美九.體操精靈 | AI51: 3 | AJ51: 第五單元寶貝我的家 活動二親情交流站 | AK51: 3 | AM51: =SUM(E51:E53)+SUM(G51:Q51)+SUMIF(F51:F53,"*P",G51:G53)+SUMIF(H51:H53,"*P",I51:I53)+SUMIF(J51:J53,"*P",K51:K53)+SUMIF(L51:L53,"*P",M51:M53)+SUMIF(N51:N53,"*P",O51:O53)+SUMIF(P51:P53,"*P",Q51:Q53) -> 5 | AN51: =SUM(F52:Q53)+SUM(T52:AK53)-SUMIF(F52:F53,"*P",G52:G53)-SUMIF(H52:H53,"*P",I52:I53)-SUMIF(J52:J53,"*P",K52:K53)-SUMIF(L52:L53,"*P",M52:M53)-SUMIF(N52:N53,"*P",O52:O53)-SUMIF(P52:P53,"*P",Q52:Q53)-SUMIF(R52:R53,"*P",S52:S53)-SUMIF(T52:T53,"*P",U52:U53)-SUMIF(V52:V53,"*P",W52:W53)-SUMIF(X52:X53,"*P",Y52:Y53)-SUMIF(Z52:Z53,"*P",AA52:AA53)-SUMIF(AB52:AB53,"*P",AC52:AC53)-SUMIF(AD52:AD53,"*P",AE52:AE53)-SUMIF(AF52:AF53,"*P",AG52:AG53)-SUMIF(AH52:AH53,"*P",AI52:AI53)-SUMIF(AJ52:AJ53,"*P",AK52:AK53)-AR51 -> 0 | AO51: =SUM(U51:AK51) -> 27 | AP51: =SUM(S51:S53) -> 0 | AQ51: =AM51+AO51 -> 32 | AR51: 0 | AT51: Y
B52: 15 | AT52: N
B53: 15 | AT53: N
B54: 16 | C54: 第十六週 2018/12/9~2018/12/15 | F54: SA:三、疼惜半屏山 | G54: 1 | H54: SB:七、迷城尋寶: 遊戲規則及角色設計、寶物現身 | I54: 1 | J54: SC:Unit 4 Are There Any Windows in the Dining Room? | K54: 1 | L54: SD:十二、最好的味覺禮物 | M54: 1 | N54: SE:九、比、比值與成正比 | O54: 1 | T54: 文學長廊 十二、最好的味覺禮物 | U54: 5 | V54: 生活真趣味 五、搬戲 | W54: 1 | X54: Unit 4 Are There Any Windows in the Dining Room? | Y54: 1 | Z54: 九、比、比值與成正比 | AA54: 4 | AB54: 五、臺灣的人口 1.人口分布與遷移 | AC54: 3 | AD54: 五、打開戲劇百寶箱 5.說學逗唱樣樣精 6.藝術新視野 | AE54: 3 | AF54: 四、電磁作用 活動一 指北針和地磁 活動二 電磁鐵 | AG54: 4 | AH54: 貳、身體力與美九.體操精靈 | AI54: 3 | AJ54: 第五單元寶貝我的家 活動三互動一家親 | AK54: 3 | AM54: =SUM(E54:E56)+SUM(G54:Q54)+SUMIF(F54:F56,"*P",G54:G56)+SUMIF(H54:H56,"*P",I54:I56)+SUMIF(J54:J56,"*P",K54:K56)+SUMIF(L54:L56,"*P",M54:M56)+SUMIF(N54:N56,"*P",O54:O56)+SUMIF(P54:P56,"*P",Q54:Q56) -> 5 | AN54: =SUM(F55:Q56)+SUM(T55:AK56)-SUMIF(F55:F56,"*P",G55:G56)-SUMIF(H55:H56,"*P",I55:I56)-SUMIF(J55:J56,"*P",K55:K56)-SUMIF(L55:L56,"*P",M55:M56)-SUMIF(N55:N56,"*P",O55:O56)-SUMIF(P55:P56,"*P",Q55:Q56)-SUMIF(R55:R56,"*P",S55:S56)-SUMIF(T55:T56,"*P",U55:U56)-SUMIF(V55:V56,"*P",W55:W56)-SUMIF(X55:X56,"*P",Y55:Y56)-SUMIF(Z55:Z56,"*P",AA55:AA56)-SUMIF(AB55:AB56,"*P",AC55:AC56)-SUMIF(AD55:AD56,"*P",AE55:AE56)-SUMIF(AF55:AF56,"*P",AG55:AG56)-SUMIF(AH55:AH56,"*P",AI55:AI56)-SUMIF(AJ55:AJ56,"*P",AK55:AK56)-AR54 -> 0 | AO54: =SUM(U54:AK54) -> 27 | AP54: =SUM(S54:S56) -> 0 | AQ54: =AM54+AO54 -> 32 | AR54: 0 | AT54: Y
B55: 16 | AT55: N
B56: 16 | AT56: N
B57: 17 | C57: 第十七週 2018/12/16~2018/12/22 | F57: SA:三、疼惜半屏山 | G57: 1 | H57: SB:七、迷城尋寶: 製作陷阱、生命數及過關 | I57: 1 | J57: SC:Unit 5 What Do You Want to Drink? | K57: 1 | T57: 文學長廊 十三、空城計 | U57: 5 | V57: 生活真趣味 五、搬戲 | W57: 1 | X57: Unit 5 What Do You Want to Drink? | Y57: 1 | Z57: 九、比、比值與成正比 | AA57: 4 | AB57: 五、臺灣的人口 2.人口現象與政策 | AC57: 3 | AD57: 六、海洋家園 1.大海的歌唱 | AE57: 3 | AF57: 四、電磁作用 活動二 電磁鐵 | AG57: 4 | AH57: 參、運動競技場十.現代輕功 | AI57: 3 | AJ57: 第六單元反制危機大作戰 活動一危機要提防 | AK57: 3 | AL57: 107年12月22日(六)補上課12/31(一) | AM57: =SUM(E57:E59)+SUM(G57:Q57)+SUMIF(F57:F59,"*P",G57:G59)+SUMIF(H57:H59,"*P",I57:I59)+SUMIF(J57:J59,"*P",K57:K59)+SUMIF(L57:L59,"*P",M57:M59)+SUMIF(N57:N59,"*P",O57:O59)+SUMIF(P57:P59,"*P",Q57:Q59) -> 5 | AN57: =SUM(F58:Q59)+SUM(T58:AK59)-SUMIF(F58:F59,"*P",G58:G59)-SUMIF(H58:H59,"*P",I58:I59)-SUMIF(J58:J59,"*P",K58:K59)-SUMIF(L58:L59,"*P",M58:M59)-SUMIF(N58:N59,"*P",O58:O59)-SUMIF(P58:P59,"*P",Q58:Q59)-SUMIF(R58:R59,"*P",S58:S59)-SUMIF(T58:T59,"*P",U58:U59)-SUMIF(V58:V59,"*P",W58:W59)-SUMIF(X58:X59,"*P",Y58:Y59)-SUMIF(Z58:Z59,"*P",AA58:AA59)-SUMIF(AB58:AB59,"*P",AC58:AC59)-SUMIF(AD58:AD59,"*P",AE58:AE59)-SUMIF(AF58:AF59,"*P",AG58:AG59)-SUMIF(AH58:AH59,"*P",AI58:AI59)-SUMIF(AJ58:AJ59,"*P",AK58:AK59)-AR57 -> 8 | AO57: =SUM(U57:AK57) -> 27 | AP57: =SUM(S57:S59) -> 0 | AQ57: =AM57+AO57 -> 32 | AR57: 0 | AT57: Y
B58: 17 | D58: CJ:聖誕節活動P | E58: 2 | T58: AQ:戶外教育 | U58: 2 | AD58: BG:海洋教育 | AE58: 1 | AF58: AQ:戶外教育 | AG58: 2 | AJ58: AQ:戶外教育 | AK58: 3 | AT58: Y
B59: 17 | AT59: N
B60: 18 | C60: 第十八週 2018/12/23~2018/12/29 | F60: SA:三、疼惜半屏山 | G60: 1 | H60: SB:八、生存保衛戰: 遊戲規劃、武器的設計 | I60: 1 | J60: SC:Unit 5 What Do You Want to Drink? | K60: 1 | T60: 文學長廊 十四、桂花雨 | U60: 5 | V60: 生活真趣味 單元活動三 | W60: 1 | X60: Unit 5 What Do You Want to Drink? | Y60: 1 | Z60: 九、比、比值與成正比 | AA60: 4 | AB60: 五、臺灣的人口 2.人口現象與政策 | AC60: 3 | AD60: 六、海洋家園 1.大海的歌唱 | AE60: 3 | AF60: 四、電磁作用 活動二 電磁鐵 | AG60: 4 | AH60: 參、運動競技場十一.力拔山河 | AI60: 3 | AJ60: 第六單元反制危機大作戰 活動二危機急轉彎 | AK60: 3 | AM60: =SUM(E60:E62)+SUM(G60:Q60)+SUMIF(F60:F62,"*P",G60:G62)+SUMIF(H60:H62,"*P",I60:I62)+SUMIF(J60:J62,"*P",K60:K62)+SUMIF(L60:L62,"*P",M60:M62)+SUMIF(N60:N62,"*P",O60:O62)+SUMIF(P60:P62,"*P",Q60:Q62) -> 5 | AN60: =SUM(F61:Q62)+SUM(T61:AK62)-SUMIF(F61:F62,"*P",G61:G62)-SUMIF(H61:H62,"*P",I61:I62)-SUMIF(J61:J62,"*P",K61:K62)-SUMIF(L61:L62,"*P",M61:M62)-SUMIF(N61:N62,"*P",O61:O62)-SUMIF(P61:P62,"*P",Q61:Q62)-SUMIF(R61:R62,"*P",S61:S62)-SUMIF(T61:T62,"*P",U61:U62)-SUMIF(V61:V62,"*P",W61:W62)-SUMIF(X61:X62,"*P",Y61:Y62)-SUMIF(Z61:Z62,"*P",AA61:AA62)-SUMIF(AB61:AB62,"*P",AC61:AC62)-SUMIF(AD61:AD62,"*P",AE61:AE62)-SUMIF(AF61:AF62,"*P",AG61:AG62)-SUMIF(AH61:AH62,"*P",AI61:AI62)-SUMIF(AJ61:AJ62,"*P",AK61:AK62)-AR60 -> 0 | AO60: =SUM(U60:AK60) -> 27 | AP60: =SUM(S60:S62) -> 0 | AQ60: =AM60+AO60 -> 32 | AR60: 0 | AT60: Y
B61: 18 | D61: AN:作文教學P | E61: 2 | AT61: Y
B62: 18 | AT62: N
B63: 19 | C63: 第十九週 2018/12/30~2019/1/5 | F63: SA:四、創造美好生活 | G63: 1 | H63: SB:八、生存保衛戰: 敵人來襲、大魔王報到 | I63: 1 | J63: SC:Unit 5 What Do You Want to Drink? | K63: 1 | L63: SD:十四、桂花雨 | M63: 1 | N63: SE:九、比、比值與成正比 | O63: 1 | T63: 文學長廊 十四、桂花雨 | U63: 4 | V63: 唸謠 臆臺灣的地名 | W63: 1 | X63: Unit 5 What Do You Want to Drink? | Y63: 1 | Z63: 十、縮圖、放大圖與比例尺 | AA63: 3 | AB63: 六、臺灣的城鄉與區域 1.鄉村與都市 | AC63: 2 | AD63: 六、海洋家園 2.海洋之舞 | AE63: 2 | AF63: 四、電磁作用 活動二 電磁鐵 活動三 電磁鐵的應用 | AG63: 2 | AH63: 參、運動競技場十一.力拔山河 | AI63: 3 | AJ63: 第六單元反制危機大作戰 活動三化險為夷 | AK63: 2 | AL63: 107年12月31日(一)彈性調整元旦放假1天 108年1月1日(二)元旦放假1天 | AM63: =SUM(E63:E65)+SUM(G63:Q63)+SUMIF(F63:F65,"*P",G63:G65)+SUMIF(H63:H65,"*P",I63:I65)+SUMIF(J63:J65,"*P",K63:K65)+SUMIF(L63:L65,"*P",M63:M65)+SUMIF(N63:N65,"*P",O63:O65)+SUMIF(P63:P65,"*P",Q63:Q65) -> 5 | AN63: =SUM(F64:Q65)+SUM(T64:AK65)-SUMIF(F64:F65,"*P",G64:G65)-SUMIF(H64:H65,"*P",I64:I65)-SUMIF(J64:J65,"*P",K64:K65)-SUMIF(L64:L65,"*P",M64:M65)-SUMIF(N64:N65,"*P",O64:O65)-SUMIF(P64:P65,"*P",Q64:Q65)-SUMIF(R64:R65,"*P",S64:S65)-SUMIF(T64:T65,"*P",U64:U65)-SUMIF(V64:V65,"*P",W64:W65)-SUMIF(X64:X65,"*P",Y64:Y65)-SUMIF(Z64:Z65,"*P",AA64:AA65)-SUMIF(AB64:AB65,"*P",AC64:AC65)-SUMIF(AD64:AD65,"*P",AE64:AE65)-SUMIF(AF64:AF65,"*P",AG64:AG65)-SUMIF(AH64:AH65,"*P",AI64:AI65)-SUMIF(AJ64:AJ65,"*P",AK64:AK65)-AR63 -> 0 | AO63: =SUM(U63:AK63) -> 20 | AP63: =SUM(S63:S65) -> 0 | AQ63: =AM63+AO63 -> 25 | AR63: 0 | AT63: Y
B64: 19 | AT64: N
B65: 19 | AT65: N
B66: 20 | C66: 第二十週 2019/1/6~2019/1/12 | F66: SA:四、創造美好生活 | G66: 1 | H66: SB:八、生存保衛戰: 生命值設計 | I66: 1 | J66: SC:*Review 2 複習 Unit3~Unit 5 | K66: 1 | L66: SD:統整活動四 | M66: 1 | N66: SE:十、縮圖、放大圖與比例尺 | O66: 1 | T66: 文學長廊 統整活動四 | U66: 5 | V66: 來唱節日的歌 一年四季 | W66: 1 | X66: *Review 2 複習 Unit3~Unit 5 | Y66: 1 | Z66: 十、縮圖、放大圖與比例尺 | AA66: 4 | AB66: 六、臺灣的城鄉與區域 2.區域特色與發展 | AC66: 3 | AD66: 六、海洋家園 2.海洋之舞 3.海洋風情畫 | AE66: 3 | AF66: 四、電磁作用 活動三 電磁鐵的應用 | AG66: 4 | AH66: 參、運動競技場十二.樂趣手球 | AI66: 3 | AJ66: 第六單元反制危機大作戰 活動三化險為夷 | AK66: 3 | AM66: =SUM(E66:E68)+SUM(G66:Q66)+SUMIF(F66:F68,"*P",G66:G68)+SUMIF(H66:H68,"*P",I66:I68)+SUMIF(J66:J68,"*P",K66:K68)+SUMIF(L66:L68,"*P",M66:M68)+SUMIF(N66:N68,"*P",O66:O68)+SUMIF(P66:P68,"*P",Q66:Q68) -> 5 | AN66: =SUM(F67:Q68)+SUM(T67:AK68)-SUMIF(F67:F68,"*P",G67:G68)-SUMIF(H67:H68,"*P",I67:I68)-SUMIF(J67:J68,"*P",K67:K68)-SUMIF(L67:L68,"*P",M67:M68)-SUMIF(N67:N68,"*P",O67:O68)-SUMIF(P67:P68,"*P",Q67:Q68)-SUMIF(R67:R68,"*P",S67:S68)-SUMIF(T67:T68,"*P",U67:U68)-SUMIF(V67:V68,"*P",W67:W68)-SUMIF(X67:X68,"*P",Y67:Y68)-SUMIF(Z67:Z68,"*P",AA67:AA68)-SUMIF(AB67:AB68,"*P",AC67:AC68)-SUMIF(AD67:AD68,"*P",AE67:AE68)-SUMIF(AF67:AF68,"*P",AG67:AG68)-SUMIF(AH67:AH68,"*P",AI67:AI68)-SUMIF(AJ67:AJ68,"*P",AK67:AK68)-AR66 -> 1 | AO66: =SUM(U66:AK66) -> 27 | AP66: =SUM(S66:S68) -> 0 | AQ66: =AM66+AO66 -> 32 | AR66: 0 | AT66: Y
B67: 20 | AJ67: AJ:防災教育 | AK67: 1 | AT67: Y
B68: 20 | AT68: N
B69: 21 | C69: 第二十一週 2019/1/13~2019/1/19 | F69: SA:四、創造美好生活 | G69: 1 | H69: SB:九、我的獨創遊戲－尊重智慧財產權【資訊倫理教育】 | I69: 1 | J69: SC:*Review 2 複習 Unit3~Unit5 | K69: 1 | L69: SD:閱讀階梯二 進入雨林 | M69: 1 | N69: SE:十、縮圖、放大圖與比例尺 | O69: 1 | T69: 閱讀階梯二 進入雨林 | U69: 5 | V69: 趣味的話語 | W69: 1 | X69: *Review 2 複習 Unit3~Unit5 | Y69: 1 | Z69: 十、縮圖、放大圖與比例尺 | AA69: 4 | AB69: 六、臺灣的城鄉與區域 2.區域特色與發展 | AC69: 3 | AD69: 六、海洋家園 3.海洋風情畫 | AE69: 3 | AF69: 四、電磁作用 科學閱讀 | AG69: 4 | AH69: 總復習 | AI69: 3 | AJ69: 第一單元發現不同的自己 活動三持續發展 | AK69: 3 | AL69: 期末評量 108年1月18日(五)上學期課程結束 | AM69: =SUM(E69:E71)+SUM(G69:Q69)+SUMIF(F69:F71,"*P",G69:G71)+SUMIF(H69:H71,"*P",I69:I71)+SUMIF(J69:J71,"*P",K69:K71)+SUMIF(L69:L71,"*P",M69:M71)+SUMIF(N69:N71,"*P",O69:O71)+SUMIF(P69:P71,"*P",Q69:Q71) -> 5 | AN69: =SUM(F70:Q71)+SUM(T70:AK71)-SUMIF(F70:F71,"*P",G70:G71)-SUMIF(H70:H71,"*P",I70:I71)-SUMIF(J70:J71,"*P",K70:K71)-SUMIF(L70:L71,"*P",M70:M71)-SUMIF(N70:N71,"*P",O70:O71)-SUMIF(P70:P71,"*P",Q70:Q71)-SUMIF(R70:R71,"*P",S70:S71)-SUMIF(T70:T71,"*P",U70:U71)-SUMIF(V70:V71,"*P",W70:W71)-SUMIF(X70:X71,"*P",Y70:Y71)-SUMIF(Z70:Z71,"*P",AA70:AA71)-SUMIF(AB70:AB71,"*P",AC70:AC71)-SUMIF(AD70:AD71,"*P",AE70:AE71)-SUMIF(AF70:AF71,"*P",AG70:AG71)-SUMIF(AH70:AH71,"*P",AI70:AI71)-SUMIF(AJ70:AJ71,"*P",AK70:AK71)-AR69 -> 0 | AO69: =SUM(U69:AK69) -> 27 | AP69: =SUM(S69:S71) -> 0 | AQ69: =AM69+AO69 -> 32 | AR69: 0 | AT69: Y
B70: 21 | AT70: N
B71: 21 | AT71: N
C72: 上學期節數合計 | E72: =SUM(E6:E71) -> 17 | G72: =G6+G10+G14+G17+G20+G23+G26+G30+G33+G36+G39+G42+G45+G48+G51+G54+G57+G60+G63+G66+G69+SUMIF(F6:F71,"*P",G6:G71) -> 20 | I72: =I6+I10+I14+I17+I20+I23+I26+I30+I33+I36+I39+I42+I45+I48+I51+I54+I57+I60+I63+I66+I69+SUMIF(H6:H71,"*P",I6:I71) -> 21 | K72: =K6+K10+K14+K17+K20+K23+K26+K30+K33+K36+K39+K42+K45+K48+K51+K54+K57+K60+K63+K66+K69+SUMIF(J6:J71,"*P",K6:K71) -> 21 | M72: =M6+M10+M14+M17+M20+M23+M26+M30+M33+M36+M39+M42+M45+M48+M51+M54+M57+M60+M63+M66+M69+SUMIF(L6:L71,"*P",M6:M71) -> 11 | O72: =O6+O10+O14+O17+O20+O23+O26+O30+O33+O36+O39+O42+O45+O48+O51+O54+O57+O60+O63+O66+O69+SUMIF(N6:N71,"*P",O6:O71) -> 15 | Q72: =Q6+Q10+Q14+Q17+Q20+Q23+Q26+Q30+Q33+Q36+Q39+Q42+Q45+Q48+Q51+Q54+Q57+Q60+Q63+Q66+Q69+SUMIF(P6:P71,"*P",Q6:Q71) -> 0 | S72: =SUM(S6:S71) -> 9 | U72: =U6+U10+U14+U17+U20+U23+U26+U30+U33+U36+U39+U42+U45+U48+U51+U54+U57+U60+U63+U66+U69 -> 98 | W72: =W6+W10+W14+W17+W20+W23+W26+W30+W33+W36+W39+W42+W45+W48+W51+W54+W57+W60+W63+W66+W69 -> 21 | Y72: =Y6+Y10+Y14+Y17+Y20+Y23+Y26+Y30+Y33+Y36+Y39+Y42+Y45+Y48+Y51+Y54+Y57+Y60+Y63+Y66+Y69 -> 21 | AA72: =AA6+AA10+AA14+AA17+AA20+AA23+AA26+AA30+AA33+AA36+AA39+AA42+AA45+AA48+AA51+AA54+AA57+AA60+AA63+AA66+AA69 -> 76 | AC72: =AC6+AC10+AC14+AC17+AC20+AC23+AC26+AC30+AC33+AC36+AC39+AC42+AC45+AC48+AC51+AC54+AC57+AC60+AC63+AC66+AC69 -> 59 | AE72: =AE6+AE10+AE14+AE17+AE20+AE23+AE26+AE30+AE33+AE36+AE39+AE42+AE45+AE48+AE51+AE54+AE57+AE60+AE63+AE66+AE69 -> 58 | AG72: =AG6+AG10+AG14+AG17+AG20+AG23+AG26+AG30+AG33+AG36+AG39+AG42+AG45+AG48+AG51+AG54+AG57+AG60+AG63+AG66+AG69 -> 76 | AI72: =AI6+AI10+AI14+AI17+AI20+AI23+AI26+AI30+AI33+AI36+AI39+AI42+AI45+AI48+AI51+AI54+AI57+AI60+AI63+AI66+AI69 -> 62 | AK72: =AK6+AK10+AK14+AK17+AK20+AK23+AK26+AK30+AK33+AK36+AK39+AK42+AK45+AK48+AK51+AK54+AK57+AK60+AK63+AK66+AK69 -> 60 | AL72: 跨領域總節數 | AM72: =SUM(AM6:AM71) -> 105 | AN72: =SUM(AN6:AN71) -> 46 | AO72: =SUM(AO6:AO71) -> 531 | AP72: =SUM(AP6:AP71) -> 9 | AQ72: =SUM(AQ6:AQ71) -> 636 | AR72: 0 | AS72: =VLOOKUP(AS74,上課節數,5,FALSE) -> 636 | AT72: =IF(AQ72="","",IF(AQ72=AS72,"正確",IF(AQ72>AS72,"節數多:"&AQ72-AS72&"節",IF(AQ72<AS72,"節數少:"&AS72-AQ72&"節")))) -> 正確
C73: 跨領域 | G73: =SUMIF(F6:F71,"*:F*",G6:G71)+SUMIF(F6:F71,"*:H*",G6:G71)+SUMIF(F6:F71,"*:J*",G6:G71)+SUMIF(F6:F71,"*:L*",G6:G71)+SUMIF(F6:F71,"*:N*",G6:G71)+SUMIF(F6:F71,"*:P*",G6:G71)+SUMIF(F6:F71,"*:R*",G6:G71)+SUMIF(F6:F71,"*:T*",G6:G71)+SUMIF(F6:F71,"*:V*",G6:G71)+SUMIF(F6:F71,"*:X*",G6:G71)+SUMIF(F6:F71,"*:Z*",G6:G71)+SUMIF(F6:F71,"*:AB*",G6:G71)+SUMIF(F6:F71,"*:AD*",G6:G71)+SUMIF(F6:F71,"*:AF*",G6:G71)+SUMIF(F6:F71,"*:AH*",G6:G71)+SUMIF(F6:F71,"*:AJ*",G6:G71) -> 0 | I73: =SUMIF(H6:H71,"*:F*",I6:I71)+SUMIF(H6:H71,"*:H*",I6:I71)+SUMIF(H6:H71,"*:J*",I6:I71)+SUMIF(H6:H71,"*:L*",I6:I71)+SUMIF(H6:H71,"*:N*",I6:I71)+SUMIF(H6:H71,"*:P*",I6:I71)+SUMIF(H6:H71,"*:R*",I6:I71)+SUMIF(H6:H71,"*:T*",I6:I71)+SUMIF(H6:H71,"*:V*",I6:I71)+SUMIF(H6:H71,"*:X*",I6:I71)+SUMIF(H6:H71,"*:Z*",I6:I71)+SUMIF(H6:H71,"*:AB*",I6:I71)+SUMIF(H6:H71,"*:AD*",I6:I71)+SUMIF(H6:H71,"*:AF*",I6:I71)+SUMIF(H6:H71,"*:AH*",I6:I71)+SUMIF(H6:H71,"*:AJ*",I6:I71) -> 0 | K73: =SUMIF(J6:J71,"*:F*",K6:K71)+SUMIF(J6:J71,"*:H*",K6:K71)+SUMIF(J6:J71,"*:J*",K6:K71)+SUMIF(J6:J71,"*:L*",K6:K71)+SUMIF(J6:J71,"*:N*",K6:K71)+SUMIF(J6:J71,"*:P*",K6:K71)+SUMIF(J6:J71,"*:R*",K6:K71)+SUMIF(J6:J71,"*:T*",K6:K71)+SUMIF(J6:J71,"*:V*",K6:K71)+SUMIF(J6:J71,"*:X*",K6:K71)+SUMIF(J6:J71,"*:Z*",K6:K71)+SUMIF(J6:J71,"*:AB*",K6:K71)+SUMIF(J6:J71,"*:AD*",K6:K71)+SUMIF(J6:J71,"*:AF*",K6:K71)+SUMIF(J6:J71,"*:AH*",K6:K71)+SUMIF(J6:J71,"*:AJ*",K6:K71) -> 0 | M73: =SUMIF(L6:L71,"*:F*",M6:M71)+SUMIF(L6:L71,"*:H*",M6:M71)+SUMIF(L6:L71,"*:J*",M6:M71)+SUMIF(L6:L71,"*:L*",M6:M71)+SUMIF(L6:L71,"*:N*",M6:M71)+SUMIF(L6:L71,"*:P*",M6:M71)+SUMIF(L6:L71,"*:R*",M6:M71)+SUMIF(L6:L71,"*:T*",M6:M71)+SUMIF(L6:L71,"*:V*",M6:M71)+SUMIF(L6:L71,"*:X*",M6:M71)+SUMIF(L6:L71,"*:Z*",M6:M71)+SUMIF(L6:L71,"*:AB*",M6:M71)+SUMIF(L6:L71,"*:AD*",M6:M71)+SUMIF(L6:L71,"*:AF*",M6:M71)+SUMIF(L6:L71,"*:AH*",M6:M71)+SUMIF(L6:L71,"*:AJ*",M6:M71) -> 0 | O73: =SUMIF(N6:N71,"*:F*",O6:O71)+SUMIF(N6:N71,"*:H*",O6:O71)+SUMIF(N6:N71,"*:J*",O6:O71)+SUMIF(N6:N71,"*:L*",O6:O71)+SUMIF(N6:N71,"*:N*",O6:O71)+SUMIF(N6:N71,"*:P*",O6:O71)+SUMIF(N6:N71,"*:R*",O6:O71)+SUMIF(N6:N71,"*:T*",O6:O71)+SUMIF(N6:N71,"*:V*",O6:O71)+SUMIF(N6:N71,"*:X*",O6:O71)+SUMIF(N6:N71,"*:Z*",O6:O71)+SUMIF(N6:N71,"*:AB*",O6:O71)+SUMIF(N6:N71,"*:AD*",O6:O71)+SUMIF(N6:N71,"*:AF*",O6:O71)+SUMIF(N6:N71,"*:AH*",O6:O71)+SUMIF(N6:N71,"*:AJ*",O6:O71) -> 0 | Q73: =SUMIF(P6:P71,"*:F*",Q6:Q71)+SUMIF(P6:P71,"*:H*",Q6:Q71)+SUMIF(P6:P71,"*:J*",Q6:Q71)+SUMIF(P6:P71,"*:L*",Q6:Q71)+SUMIF(P6:P71,"*:N*",Q6:Q71)+SUMIF(P6:P71,"*:P*",Q6:Q71)+SUMIF(P6:P71,"*:R*",Q6:Q71)+SUMIF(P6:P71,"*:T*",Q6:Q71)+SUMIF(P6:P71,"*:V*",Q6:Q71)+SUMIF(P6:P71,"*:X*",Q6:Q71)+SUMIF(P6:P71,"*:Z*",Q6:Q71)+SUMIF(P6:P71,"*:AB*",Q6:Q71)+SUMIF(P6:P71,"*:AD*",Q6:Q71)+SUMIF(P6:P71,"*:AF*",Q6:Q71)+SUMIF(P6:P71,"*:AH*",Q6:Q71)+SUMIF(P6:P71,"*:AJ*",Q6:Q71) -> 0 | S73: =SUMIF(R6:R71,"*:F*",S6:S71)+SUMIF(R6:R71,"*:H*",S6:S71)+SUMIF(R6:R71,"*:J*",S6:S71)+SUMIF(R6:R71,"*:L*",S6:S71)+SUMIF(R6:R71,"*:N*",S6:S71)+SUMIF(R6:R71,"*:P*",S6:S71)+SUMIF(R6:R71,"*:R*",S6:S71)+SUMIF(R6:R71,"*:T*",S6:S71)+SUMIF(R6:R71,"*:V*",S6:S71)+SUMIF(R6:R71,"*:X*",S6:S71)+SUMIF(R6:R71,"*:Z*",S6:S71)+SUMIF(R6:R71,"*:AB*",S6:S71)+SUMIF(R6:R71,"*:AD*",S6:S71)+SUMIF(R6:R71,"*:AF*",S6:S71)+SUMIF(R6:R71,"*:AH*",S6:S71)+SUMIF(R6:R71,"*:AJ*",S6:S71) -> 0 | U73: =SUMIF(T6:T71,"*:F*",U6:U71)+SUMIF(T6:T71,"*:H*",U6:U71)+SUMIF(T6:T71,"*:J*",U6:U71)+SUMIF(T6:T71,"*:L*",U6:U71)+SUMIF(T6:T71,"*:N*",U6:U71)+SUMIF(T6:T71,"*:P*",U6:U71)+SUMIF(T6:T71,"*:R*",U6:U71)+SUMIF(T6:T71,"*:T*",U6:U71)+SUMIF(T6:T71,"*:V*",U6:U71)+SUMIF(T6:T71,"*:X*",U6:U71)+SUMIF(T6:T71,"*:Z*",U6:U71)+SUMIF(T6:T71,"*:AB*",U6:U71)+SUMIF(T6:T71,"*:AD*",U6:U71)+SUMIF(T6:T71,"*:AF*",U6:U71)+SUMIF(T6:T71,"*:AH*",U6:U71)+SUMIF(T6:T71,"*:AJ*",U6:U71) -> 0 | W73: =SUMIF(V6:V71,"*:F*",W6:W71)+SUMIF(V6:V71,"*:H*",W6:W71)+SUMIF(V6:V71,"*:J*",W6:W71)+SUMIF(V6:V71,"*:L*",W6:W71)+SUMIF(V6:V71,"*:N*",W6:W71)+SUMIF(V6:V71,"*:P*",W6:W71)+SUMIF(V6:V71,"*:R*",W6:W71)+SUMIF(V6:V71,"*:T*",W6:W71)+SUMIF(V6:V71,"*:V*",W6:W71)+SUMIF(V6:V71,"*:X*",W6:W71)+SUMIF(V6:V71,"*:Z*",W6:W71)+SUMIF(V6:V71,"*:AB*",W6:W71)+SUMIF(V6:V71,"*:AD*",W6:W71)+SUMIF(V6:V71,"*:AF*",W6:W71)+SUMIF(V6:V71,"*:AH*",W6:W71)+SUMIF(V6:V71,"*:AJ*",W6:W71) -> 0 | Y73: =SUMIF(X6:X71,"*:F*",Y6:Y71)+SUMIF(X6:X71,"*:H*",Y6:Y71)+SUMIF(X6:X71,"*:J*",Y6:Y71)+SUMIF(X6:X71,"*:L*",Y6:Y71)+SUMIF(X6:X71,"*:N*",Y6:Y71)+SUMIF(X6:X71,"*:P*",Y6:Y71)+SUMIF(X6:X71,"*:R*",Y6:Y71)+SUMIF(X6:X71,"*:T*",Y6:Y71)+SUMIF(X6:X71,"*:V*",Y6:Y71)+SUMIF(X6:X71,"*:X*",Y6:Y71)+SUMIF(X6:X71,"*:Z*",Y6:Y71)+SUMIF(X6:X71,"*:AB*",Y6:Y71)+SUMIF(X6:X71,"*:AD*",Y6:Y71)+SUMIF(X6:X71,"*:AF*",Y6:Y71)+SUMIF(X6:X71,"*:AH*",Y6:Y71)+SUMIF(X6:X71,"*:AJ*",Y6:Y71) -> 0 | AA73: =SUMIF(Z6:Z71,"*:F*",AA6:AA71)+SUMIF(Z6:Z71,"*:H*",AA6:AA71)+SUMIF(Z6:Z71,"*:J*",AA6:AA71)+SUMIF(Z6:Z71,"*:L*",AA6:AA71)+SUMIF(Z6:Z71,"*:N*",AA6:AA71)+SUMIF(Z6:Z71,"*:P*",AA6:AA71)+SUMIF(Z6:Z71,"*:R*",AA6:AA71)+SUMIF(Z6:Z71,"*:T*",AA6:AA71)+SUMIF(Z6:Z71,"*:V*",AA6:AA71)+SUMIF(Z6:Z71,"*:X*",AA6:AA71)+SUMIF(Z6:Z71,"*:Z*",AA6:AA71)+SUMIF(Z6:Z71,"*:AB*",AA6:AA71)+SUMIF(Z6:Z71,"*:AD*",AA6:AA71)+SUMIF(Z6:Z71,"*:AF*",AA6:AA71)+SUMIF(Z6:Z71,"*:AH*",AA6:AA71)+SUMIF(Z6:Z71,"*:AJ*",AA6:AA71) -> 0 | AC73: =SUMIF(AB6:AB71,"*:F*",AC6:AC71)+SUMIF(AB6:AB71,"*:H*",AC6:AC71)+SUMIF(AB6:AB71,"*:J*",AC6:AC71)+SUMIF(AB6:AB71,"*:L*",AC6:AC71)+SUMIF(AB6:AB71,"*:N*",AC6:AC71)+SUMIF(AB6:AB71,"*:P*",AC6:AC71)+SUMIF(AB6:AB71,"*:R*",AC6:AC71)+SUMIF(AB6:AB71,"*:T*",AC6:AC71)+SUMIF(AB6:AB71,"*:V*",AC6:AC71)+SUMIF(AB6:AB71,"*:X*",AC6:AC71)+SUMIF(AB6:AB71,"*:Z*",AC6:AC71)+SUMIF(AB6:AB71,"*:AB*",AC6:AC71)+SUMIF(AB6:AB71,"*:AD*",AC6:AC71)+SUMIF(AB6:AB71,"*:AF*",AC6:AC71)+SUMIF(AB6:AB71,"*:AH*",AC6:AC71)+SUMIF(AB6:AB71,"*:AJ*",AC6:AC71) -> 0 | AE73: =SUMIF(AD6:AD71,"*:F*",AE6:AE71)+SUMIF(AD6:AD71,"*:H*",AE6:AE71)+SUMIF(AD6:AD71,"*:J*",AE6:AE71)+SUMIF(AD6:AD71,"*:L*",AE6:AE71)+SUMIF(AD6:AD71,"*:N*",AE6:AE71)+SUMIF(AD6:AD71,"*:P*",AE6:AE71)+SUMIF(AD6:AD71,"*:R*",AE6:AE71)+SUMIF(AD6:AD71,"*:T*",AE6:AE71)+SUMIF(AD6:AD71,"*:V*",AE6:AE71)+SUMIF(AD6:AD71,"*:X*",AE6:AE71)+SUMIF(AD6:AD71,"*:Z*",AE6:AE71)+SUMIF(AD6:AD71,"*:AB*",AE6:AE71)+SUMIF(AD6:AD71,"*:AD*",AE6:AE71)+SUMIF(AD6:AD71,"*:AF*",AE6:AE71)+SUMIF(AD6:AD71,"*:AH*",AE6:AE71)+SUMIF(AD6:AD71,"*:AJ*",AE6:AE71) -> 0 | AG73: =SUMIF(AF6:AF71,"*:F*",AG6:AG71)+SUMIF(AF6:AF71,"*:H*",AG6:AG71)+SUMIF(AF6:AF71,"*:J*",AG6:AG71)+SUMIF(AF6:AF71,"*:L*",AG6:AG71)+SUMIF(AF6:AF71,"*:N*",AG6:AG71)+SUMIF(AF6:AF71,"*:P*",AG6:AG71)+SUMIF(AF6:AF71,"*:R*",AG6:AG71)+SUMIF(AF6:AF71,"*:T*",AG6:AG71)+SUMIF(AF6:AF71,"*:V*",AG6:AG71)+SUMIF(AF6:AF71,"*:X*",AG6:AG71)+SUMIF(AF6:AF71,"*:Z*",AG6:AG71)+SUMIF(AF6:AF71,"*:AB*",AG6:AG71)+SUMIF(AF6:AF71,"*:AD*",AG6:AG71)+SUMIF(AF6:AF71,"*:AF*",AG6:AG71)+SUMIF(AF6:AF71,"*:AH*",AG6:AG71)+SUMIF(AF6:AF71,"*:AJ*",AG6:AG71) -> 0 | AI73: =SUMIF(AH6:AH71,"*:F*",AI6:AI71)+SUMIF(AH6:AH71,"*:H*",AI6:AI71)+SUMIF(AH6:AH71,"*:J*",AI6:AI71)+SUMIF(AH6:AH71,"*:L*",AI6:AI71)+SUMIF(AH6:AH71,"*:N*",AI6:AI71)+SUMIF(AH6:AH71,"*:P*",AI6:AI71)+SUMIF(AH6:AH71,"*:R*",AI6:AI71)+SUMIF(AH6:AH71,"*:T*",AI6:AI71)+SUMIF(AH6:AH71,"*:V*",AI6:AI71)+SUMIF(AH6:AH71,"*:X*",AI6:AI71)+SUMIF(AH6:AH71,"*:Z*",AI6:AI71)+SUMIF(AH6:AH71,"*:AB*",AI6:AI71)+SUMIF(AH6:AH71,"*:AD*",AI6:AI71)+SUMIF(AH6:AH71,"*:AF*",AI6:AI71)+SUMIF(AH6:AH71,"*:AH*",AI6:AI71)+SUMIF(AH6:AH71,"*:AJ*",AI6:AI71) -> 0 | AK73: =SUMIF(AJ6:AJ71,"*:F*",AK6:AK71)+SUMIF(AJ6:AJ71,"*:H*",AK6:AK71)+SUMIF(AJ6:AJ71,"*:J*",AK6:AK71)+SUMIF(AJ6:AJ71,"*:L*",AK6:AK71)+SUMIF(AJ6:AJ71,"*:N*",AK6:AK71)+SUMIF(AJ6:AJ71,"*:P*",AK6:AK71)+SUMIF(AJ6:AJ71,"*:R*",AK6:AK71)+SUMIF(AJ6:AJ71,"*:T*",AK6:AK71)+SUMIF(AJ6:AJ71,"*:V*",AK6:AK71)+SUMIF(AJ6:AJ71,"*:X*",AK6:AK71)+SUMIF(AJ6:AJ71,"*:Z*",AK6:AK71)+SUMIF(AJ6:AJ71,"*:AB*",AK6:AK71)+SUMIF(AJ6:AJ71,"*:AD*",AK6:AK71)+SUMIF(AJ6:AJ71,"*:AF*",AK6:AK71)+SUMIF(AJ6:AJ71,"*:AH*",AK6:AK71)+SUMIF(AJ6:AJ71,"*:AJ*",AK6:AK71) -> 0 | AL73: =SUM(G73:AK73) -> 0 | AS73: 放假後上課總節數
C74: 融入節數: | E74: =SUM(E6:E71) -> 17 | G74: =SUM(G75-G72-G73) -> 0 | I74: =SUM(I75-I72-I73) -> 0 | K74: =SUM(K75-K72-K73) -> 0 | M74: =SUM(M75-M72-M73) -> 0 | O74: =SUM(O75-O72-O73) -> 0 | Q74: =SUM(Q75-Q72-Q73) -> 0 | S74: =SUM(S75-S72-S73) -> 0 | U74: =SUM(U75-U72-U73) -> 2 | W74: =SUM(W75-W72-W73) -> 0 | Y74: =SUM(Y75-Y72-Y73) -> 0 | AA74: =SUM(AA75-AA72-AA73) -> 0 | AC74: =SUM(AC75-AC72-AC73) -> 0 | AE74: =SUM(AE75-AE72-AE73) -> 1 | AG74: =SUM(AG75-AG72-AG73) -> 4 | AI74: =SUM(AI75-AI72-AI73) -> 20 | AK74: =SUM(AK75-AK72-AK73) -> 19 | AL74: =SUM(G74:AK74) -> 46 | AS74: 10
C75: 總節數: | E75: =SUM(E6:E71) -> 17 | G75: =SUM(G6:G71) -> 20 | I75: =SUM(I6:I71) -> 21 | K75: =SUM(K6:K71) -> 21 | M75: =SUM(M6:M71) -> 11 | O75: =SUM(O6:O71) -> 15 | Q75: =SUM(Q6:Q71) -> 0 | S75: =SUM(S6:S71) -> 9 | U75: =SUM(U6:U71) -> 100 | W75: =SUM(W6:W71) -> 21 | Y75: =SUM(Y6:Y71) -> 21 | AA75: =SUM(AA6:AA71) -> 76 | AC75: =SUM(AC6:AC71) -> 59 | AE75: =SUM(AE6:AE71) -> 59 | AG75: =SUM(AG6:AG71) -> 80 | AI75: =SUM(AI6:AI71) -> 82 | AK75: =SUM(AK6:AK71) -> 79 | AL75: =SUM(E75:AK75) -> 691 | AQ75: =SUM(AL75-AL73-AL74-AP72) -> 636

Sheet 下學期
B1: 下學期總週數: | C1: 18 | D1: 請輸入搜尋代號或字串: | F1: 共:0節 | I1: 是 | P1: * | AZ1: 高雄市左營區屏山國小107年度第二學期__
A2: 6 | B2: 年級: | C2: 六 | F2: =AZ1& C2 & "年級各領域教學進度總表" -> 高雄市左營區屏山國小107年度第二學期__六年級各領域教學進度總表 | AM2: 正確
B3: 上課總天數:83天
D4: 彈性學習課程/節數 | R4: 非課程領域 | T4: 國語文 | V4: 本土語文 | X4: 英語文 | Z4: 數學 | AB4: 社會 | AD4: 藝術與人文 | AF4: 自然與科技 | AH4: 健康與體育 | AJ4: 綜合活動 | AM4: (每週節數設定參考用)
B5: 週別 | C5: 週別日期 | D5: 全校_各年級_活動 | E5: 節數 | F5: 校本課程 | G5: 節數 | H5: 資訊教育 | I5: 節數 | J5: 英語 | K5: 節數 | L5: 國語學習診斷與補救 | M5: 節數 | N5: 數學學習診斷與補救 | O5: 節數 | Q5: 節數 | R5: =作業平台__教育部局年度規定節數!AF4 -> D:非領域 | S5: 節數 | T5: 國語 ( 康軒版) 第12冊 | U5: 節數 | V5: 本土語言 ( 康軒版)第12冊 | W5: 節數 | X5: 英語 (何嘉仁 Story.com )第8冊 | Y5: 節數 | Z5: 數學 ( 康軒版)第12冊 | AA5: 節數 | AB5: 社會 (康軒版)第8冊 | AC5: 節數 | AD5: 藝術與人文 (康軒版)第8冊 | AE5: 節數 | AF5: 自然與科技 (康軒版)第8冊 | AG5: 節數 | AH5: 健康與體育翰林 (南一版)第12冊 | AI5: 節數 | AJ5: 綜合活動 (康軒版)第12冊 | AK5: 節數 | AL5: 備 註 | AM5: 每週彈性節數 | AN5: 每週融入領域節數 | AO5: 每週領域節數 | AP5: 每週非課程節數 | AQ5: 每週法定節數小計 | AR5: 跨領域總節數 | DA5: 1 | DB5: 2 | DC5: 3 | DD5: 4 | DE5: 5 | DF5: 6 | DG5: 7 | DH5: 8 | DI5: 9 | DJ5: 10 | DK5: 11 | DL5: 12 | DM5: 13 | DN5: 14 | DO5: 15 | DP5: 16 | DQ5: 17 | DR5: 18 | DS5: 19 | DT5: 20 | DU5: 21 | DV5: 22
B6: 1 | C6: 第一週 2019/2/10~2019/2/16 | F6: SA:生活大考驗 一、衣-會縫鈕釦 | G6: 1 | H6: SB:一、媒體素材的取得：數位資源智慧分享【資訊倫理教育】 | I6: 1 | J6: SC:角色介紹、 圖示介紹 | K6: 1 | L6: SD:一、過故人莊 | M6: 1 | N6: SE:一、分數與小數的計算 | O6: 1 | T6: 人間有情 一、過故人莊 | U6: 5 | V6: 多元文化 一、地球人 | W6: 1 | X6: 角色介紹、 圖示介紹 | Y6: 1 | Z6: 一、分數與小數的計算 | AA6: 4 | AB6: 一、文明與科技生活 1.古代的文明與科技 | AC6: 3 | AD6: 一、音樂聯合國 唱歌謠看世界 | AE6: 3 | AF6: 一、簡單機械 活動一 認識槓桿 | AG6: 4 | AH6: 壹、青春生活實踐家一.飲食新主張 | AI6: 3 | AJ6: 第一單元生命的故事 活動一我的成長 | AK6: 3 | AL6: 108年2月11日(一)開學日正式上課 | AM6: =SUM(E6:E8)+SUM(G6:Q6)+SUMIF(F6:F8,"*P",G6:G8)+SUMIF(H6:H8,"*P",I6:I8)+SUMIF(J6:J8,"*P",K6:K8)+SUMIF(L6:L8,"*P",M6:M8)+SUMIF(N6:N8,"*P",O6:O8)+SUMIF(P6:P8,"*P",Q6:Q8) -> 5 | AN6: =SUM(F7:Q8)+SUM(T7:AK8)-SUMIF(F7:F8,"*P",G7:G8)-SUMIF(H7:H8,"*P",I7:I8)-SUMIF(J7:J8,"*P",K7:K8)-SUMIF(L7:L8,"*P",M7:M8)-SUMIF(N7:N8,"*P",O7:O8)-SUMIF(P7:P8,"*P",Q7:Q8)-SUMIF(R7:R8,"*P",S7:S8)-SUMIF(T7:T8,"*P",U7:U8)-SUMIF(V7:V8,"*P",W7:W8)-SUMIF(X7:X8,"*P",Y7:Y8)-SUMIF(Z7:Z8,"*P",AA7:AA8)-SUMIF(AB7:AB8,"*P",AC7:AC8)-SUMIF(AD7:AD8,"*P",AE7:AE8)-SUMIF(AF7:AF8,"*P",AG7:AG8)-SUMIF(AH7:AH8,"*P",AI7:AI8)-SUMIF(AJ7:AJ8,"*P",AK7:AK8)-AR6 -> 5 | AO6: =SUM(U6:AK6) -> 27 | AP6: =SUM(S6:S8) -> 1 | AQ6: =AM6+AO6 -> 32 | AR6: 0 | AT6: =IF(COUNTA(C6:AQ6)>0,"Y","N") -> Y | BZ6: 1 | DA6: 108年2月11日(一)開學日正式上課 | DB6: 疾病防治週 108年2月22日(五)班親會 108年2月23日(六)補上課3/1(五) | DC6: 108年2月28日(四)和平紀念日放假1天 108年3月1日(五)彈性調整放假1天 | DH6: 108年4月4日(四)兒童節放假1天 108年4月5日(五)清明節放假1天 | DJ6: 期中評量 | DQ6: 108年6月7日(五)端午節放假1天 | DR6: 畢業典禮6/10(一) | DT6: 期末評量 108年6月28日(五)課程結束
B7: 1 | R7: AF:友善校園 | S7: 1 | AH7: AH:性別平等教育 | AI7: 2 | AJ7: AI:環境教育 | AK7: 2 | AT7: Y | BZ7: 2
B8: 1 | AH8: BA:飲食教育 | AI8: 1 | AT8: Y | BZ8: 3
B9: 2 | C9: 第二週 2019/2/17~2019/2/23 | F9: SA:生活大考驗 一、衣-會縫鈕釦 | G9: 1 | H9: SB:二、魅力四射初體驗：簡報製作流程 | I9: 1 | J9: SC:圖示介紹 發音複習表 | K9: 1 | N9: SE:一、分數與小數的計算 | O9: 1 | T9: 人間有情 二、把愛傳下去 | U9: 5 | V9: 多元文化 一、地球人 | W9: 1 | X9: 圖示介紹 發音複習表 | Y9: 1 | Z9: 一、分數與小數的計算 | AA9: 4 | AB9: 一、文明與科技生活 1.古代的文明與科技 | AC9: 3 | AD9: 一、音樂聯合國 唱歌謠看世界 樂器嘉年華 | AE9: 3 | AF9: 一、簡單機械 活動一 認識槓桿 活動二 滑輪與輪軸 | AG9: 4 | AH9: 壹、青春生活實踐家二.關鍵時刻 | AI9: 3 | AJ9: 第一單元生命的故事 活動二生命中的變化 | AK9: 3 | AL9: 疾病防治週 108年2月20日(三)班親會108年2月23日(六)補上課3/1(五) | AM9: =SUM(E9:E11)+SUM(G9:Q9)+SUMIF(F9:F11,"*P",G9:G11)+SUMIF(H9:H11,"*P",I9:I11)+SUMIF(J9:J11,"*P",K9:K11)+SUMIF(L9:L11,"*P",M9:M11)+SUMIF(N9:N11,"*P",O9:O11)+SUMIF(P9:P11,"*P",Q9:Q11) -> 5 | AN9: =SUM(F10:Q11)+SUM(T10:AK11)-SUMIF(F10:F11,"*P",G10:G11)-SUMIF(H10:H11,"*P",I10:I11)-SUMIF(J10:J11,"*P",K10:K11)-SUMIF(L10:L11,"*P",M10:M11)-SUMIF(N10:N11,"*P",O10:O11)-SUMIF(P10:P11,"*P",Q10:Q11)-SUMIF(R10:R11,"*P",S10:S11)-SUMIF(T10:T11,"*P",U10:U11)-SUMIF(V10:V11,"*P",W10:W11)-SUMIF(X10:X11,"*P",Y10:Y11)-SUMIF(Z10:Z11,"*P",AA10:AA11)-SUMIF(AB10:AB11,"*P",AC10:AC11)-SUMIF(AD10:AD11,"*P",AE10:AE11)-SUMIF(AF10:AF11,"*P",AG10:AG11)-SUMIF(AH10:AH11,"*P",AI10:AI11)-SUMIF(AJ10:AJ11,"*P",AK10:AK11)-AR9 -> 21 | AO9: =SUM(U9:AK9) -> 27 | AP9: =SUM(S9:S11) -> 3 | AQ9: =AM9+AO9 -> 32 | AR9: 0 | AT9: Y | BZ9: 4
B10: 2 | D10: CB:身高.體重.視力檢查P | E10: 1 | R10: AD:家庭教育 | S10: 3 | T10: AQ:戶外教育 | U10: 3 | Z10: AQ:戶外教育 | AA10: 3 | AB10: AQ:戶外教育 | AC10: 3 | AD10: AQ:戶外教育 | AE10: 2 | AF10: AQ:戶外教育 | AG10: 4 | AH10: AH:性別平等教育 | AI10: 2 | AJ10: AQ:戶外教育 | AK10: 3 | AT10: Y | BZ10: 5
B11: 2 | AH11: BA:飲食教育 | AI11: 1 | AT11: Y | BZ11: 6
B12: 3 | C12: 第三週 2019/2/24~2019/3/2 | F12: SA:生活大考驗 二、食-會煎蛋或做一道菜 | G12: 1 | H12: SB:二、我的螢幕保護程式：文字與轉場特效 | I12: 1 | J12: SC:Unit 1 What Do You Want to Wear? | K12: 1 | T12: 人間有情 三、山村車輄寮 | U12: 2 | V12: 多元文化 一、地球人 | W12: 1 | X12: Unit 1 What Do You Want to Wear? | Y12: 1 | Z12: 二、速率 | AA12: 2 | AB12: 一、文明與科技生活 2.科學的突破 | AC12: 3 | AD12: 一、音樂聯合國 樂器嘉年華 笛聲飛揚 | AE12: 3 | AF12: 一、簡單機械 活動二 滑輪與輪軸 | AG12: 2 | AH12: 壹、青春生活實踐家三.青春防衛站 | AI12: 3 | AJ12: 第二單元保護地球行動 活動一生態環境改變 | AK12: 3 | AL12: 108年2月28日(四)和平紀念日放假1天 108年3月1日(五)彈性調整放假1天 | AM12: =SUM(E12:E14)+SUM(G12:Q12)+SUMIF(F12:F14,"*P",G12:G14)+SUMIF(H12:H14,"*P",I12:I14)+SUMIF(J12:J14,"*P",K12:K14)+SUMIF(L12:L14,"*P",M12:M14)+SUMIF(N12:N14,"*P",O12:O14)+SUMIF(P12:P14,"*P",Q12:Q14) -> 5 | AN12: =SUM(F13:Q14)+SUM(T13:AK14)-SUMIF(F13:F14,"*P",G13:G14)-SUMIF(H13:H14,"*P",I13:I14)-SUMIF(J13:J14,"*P",K13:K14)-SUMIF(L13:L14,"*P",M13:M14)-SUMIF(N13:N14,"*P",O13:O14)-SUMIF(P13:P14,"*P",Q13:Q14)-SUMIF(R13:R14,"*P",S13:S14)-SUMIF(T13:T14,"*P",U13:U14)-SUMIF(V13:V14,"*P",W13:W14)-SUMIF(X13:X14,"*P",Y13:Y14)-SUMIF(Z13:Z14,"*P",AA13:AA14)-SUMIF(AB13:AB14,"*P",AC13:AC14)-SUMIF(AD13:AD14,"*P",AE13:AE14)-SUMIF(AF13:AF14,"*P",AG13:AG14)-SUMIF(AH13:AH14,"*P",AI13:AI14)-SUMIF(AJ13:AJ14,"*P",AK13:AK14)-AR12 -> 3 | AO12: =SUM(U12:AK12) -> 20 | AP12: =SUM(S12:S14) -> 1 | AQ12: =AM12+AO12 -> 25 | AR12: 0 | AT12: Y | BZ12: 7
B13: 3 | D13: AN:作文教學P | E13: 2 | R13: AJ:防災教育 | S13: 1 | AH13: AG:性侵害防治教育 | AI13: 2 | AT13: Y | BZ13: 8
B14: 3 | AH14: BA:飲食教育 | AI14: 1 | AT14: Y | BZ14: 9
B15: 4 | C15: 第四週 2019/3/3~2019/3/9 | F15: SA:生活大考驗 二、食-會煎蛋或做一道菜 | G15: 1 | H15: SB:三、有聲祝福傳千里：音訊特效 | I15: 1 | J15: SC:Unit 1 What Do You Want to Wear? | K15: 1 | L15: SD:三、山村車輄寮 | M15: 1 | N15: SE:二、速率 | O15: 1 | T15: 海天遊蹤 統整活動一 | U15: 5 | V15: 多元文化 二、中和潑水節 | W15: 1 | X15: Unit 1 What Do You Want to Wear? | Y15: 1 | Z15: 二、速率 | AA15: 4 | AB15: 一、文明與科技生活 2.科學的突破 | AC15: 3 | AD15: 二、美好的時光 夏日輕歌 | AE15: 3 | AF15: 一、簡單機械 活動二 滑輪與輪軸 活動三 動力的傳送 | AG15: 4 | AH15: 壹、青春生活實踐家三.青春防衛站 | AI15: 3 | AJ15: 第二單元保護地球行動 活動二珍惜生態環境 | AK15: 3 | AM15: =SUM(E15:E17)+SUM(G15:Q15)+SUMIF(F15:F17,"*P",G15:G17)+SUMIF(H15:H17,"*P",I15:I17)+SUMIF(J15:J17,"*P",K15:K17)+SUMIF(L15:L17,"*P",M15:M17)+SUMIF(N15:N17,"*P",O15:O17)+SUMIF(P15:P17,"*P",Q15:Q17) -> 5 | AN15: =SUM(F16:Q17)+SUM(T16:AK17)-SUMIF(F16:F17,"*P",G16:G17)-SUMIF(H16:H17,"*P",I16:I17)-SUMIF(J16:J17,"*P",K16:K17)-SUMIF(L16:L17,"*P",M16:M17)-SUMIF(N16:N17,"*P",O16:O17)-SUMIF(P16:P17,"*P",Q16:Q17)-SUMIF(R16:R17,"*P",S16:S17)-SUMIF(T16:T17,"*P",U16:U17)-SUMIF(V16:V17,"*P",W16:W17)-SUMIF(X16:X17,"*P",Y16:Y17)-SUMIF(Z16:Z17,"*P",AA16:AA17)-SUMIF(AB16:AB17,"*P",AC16:AC17)-SUMIF(AD16:AD17,"*P",AE16:AE17)-SUMIF(AF16:AF17,"*P",AG16:AG17)-SUMIF(AH16:AH17,"*P",AI16:AI17)-SUMIF(AJ16:AJ17,"*P",AK16:AK17)-AR15 -> 3 | AO15: =SUM(U15:AK15) -> 27 | AP15: =SUM(S15:S17) -> 0 | AQ15: =AM15+AO15 -> 32 | AR15: 0 | AT15: Y | BZ15: 10
B16: 4 | AH16: AH:性別平等教育 | AI16: 2 | AT16: Y | BZ16: 11
B17: 4 | AH17: BA:飲食教育 | AI17: 1 | AT17: Y | BZ17: 12
B18: 5 | C18: 第五週 2019/3/10~2019/3/16 | F18: SA:生活大考驗 三、住-會打掃廁所 | G18: 1 | H18: SB:四、校外教學全記錄：遮罩特效 | I18: 1 | J18: SC:Unit 1 What Do You Want to Wear? | K18: 1 | L18: SD:四、迷途 | M18: 1 | N18: SE:二、速率 | O18: 1 | T18: 海天遊蹤 四、迷途 | U18: 5 | V18: 多元文化 二、中和潑水節 | W18: 1 | X18: Unit 1 What Do You Want to Wear? | Y18: 1 | Z18: 二、速率 | AA18: 4 | AB18: 一、文明與科技生活 3.科技的運用與管理 | AC18: 3 | AD18: 二、美好的時光 歌詠家鄉 | AE18: 3 | AF18: 一、簡單機械 活動三 動力的傳送 | AG18: 4 | AH18: 壹、青春生活實踐家四.迎向未來 | AI18: 3 | AJ18: 第三單元母親真偉大(自編) | AK18: 3 | AM18: =SUM(E18:E20)+SUM(G18:Q18)+SUMIF(F18:F20,"*P",G18:G20)+SUMIF(H18:H20,"*P",I18:I20)+SUMIF(J18:J20,"*P",K18:K20)+SUMIF(L18:L20,"*P",M18:M20)+SUMIF(N18:N20,"*P",O18:O20)+SUMIF(P18:P20,"*P",Q18:Q20) -> 5 | AN18: =SUM(F19:Q20)+SUM(T19:AK20)-SUMIF(F19:F20,"*P",G19:G20)-SUMIF(H19:H20,"*P",I19:I20)-SUMIF(J19:J20,"*P",K19:K20)-SUMIF(L19:L20,"*P",M19:M20)-SUMIF(N19:N20,"*P",O19:O20)-SUMIF(P19:P20,"*P",Q19:Q20)-SUMIF(R19:R20,"*P",S19:S20)-SUMIF(T19:T20,"*P",U19:U20)-SUMIF(V19:V20,"*P",W19:W20)-SUMIF(X19:X20,"*P",Y19:Y20)-SUMIF(Z19:Z20,"*P",AA19:AA20)-SUMIF(AB19:AB20,"*P",AC19:AC20)-SUMIF(AD19:AD20,"*P",AE19:AE20)-SUMIF(AF19:AF20,"*P",AG19:AG20)-SUMIF(AH19:AH20,"*P",AI19:AI20)-SUMIF(AJ19:AJ20,"*P",AK19:AK20)-AR18 -> 1 | AO18: =SUM(U18:AK18) -> 27 | AP18: =SUM(S18:S20) -> 1 | AQ18: =AM18+AO18 -> 32 | AR18: 0 | AT18: Y | BZ18: 13
B19: 5 | R19: AG:性侵害防治教育 | S19: 1 | AH19: BA:飲食教育 | AI19: 1 | AT19: Y | BZ19: 14
B20: 5 | AT20: N | BZ20: 15
B21: 6 | C21: 第六週 2019/3/17~2019/3/23 | F21: SA:生活大考驗 四、行-會騎腳踏車 | G21: 1 | H21: SB:五、我的成長記事：網頁簡報 | I21: 1 | J21: SC:Unit 2 Were You at the Bookstore Yesterday? | K21: 1 | L21: SD:五、馬達加斯加，出發！ | M21: 1 | N21: SE:三、形體關係、體積與表面積 | O21: 1 | T21: 海天遊蹤 五、馬達加斯加，出發！ | U21: 5 | V21: 多元文化 二、中和潑水節 | W21: 1 | X21: Unit 2 Were You at the Bookstore Yesterday? | Y21: 1 | Z21: 三、形體關係、體積與表面積 | AA21: 4 | AB21: 一、文明與科技生活 3.科技的運用與管理 | AC21: 3 | AD21: 二、美好的時光 笛聲飛揚 | AE21: 3 | AF21: 一、簡單機械 活動三 動力的傳送 二、微生物與食品保存 活動一 生活中的微生物 | AG21: 4 | AH21: 壹、青春生活實踐家五.健康美麗新社區 | AI21: 3 | AJ21: 第三單元母親真偉大(自編) | AK21: 3 | AM21: =SUM(E21:E23)+SUM(G21:Q21)+SUMIF(F21:F23,"*P",G21:G23)+SUMIF(H21:H23,"*P",I21:I23)+SUMIF(J21:J23,"*P",K21:K23)+SUMIF(L21:L23,"*P",M21:M23)+SUMIF(N21:N23,"*P",O21:O23)+SUMIF(P21:P23,"*P",Q21:Q23) -> 5 | AN21: =SUM(F22:Q23)+SUM(T22:AK23)-SUMIF(F22:F23,"*P",G22:G23)-SUMIF(H22:H23,"*P",I22:I23)-SUMIF(J22:J23,"*P",K22:K23)-SUMIF(L22:L23,"*P",M22:M23)-SUMIF(N22:N23,"*P",O22:O23)-SUMIF(P22:P23,"*P",Q22:Q23)-SUMIF(R22:R23,"*P",S22:S23)-SUMIF(T22:T23,"*P",U22:U23)-SUMIF(V22:V23,"*P",W22:W23)-SUMIF(X22:X23,"*P",Y22:Y23)-SUMIF(Z22:Z23,"*P",AA22:AA23)-SUMIF(AB22:AB23,"*P",AC22:AC23)-SUMIF(AD22:AD23,"*P",AE22:AE23)-SUMIF(AF22:AF23,"*P",AG22:AG23)-SUMIF(AH22:AH23,"*P",AI22:AI23)-SUMIF(AJ22:AJ23,"*P",AK22:AK23)-AR21 -> 2 | AO21: =SUM(U21:AK21) -> 27 | AP21: =SUM(S21:S23) -> 0 | AQ21: =AM21+AO21 -> 32 | AR21: 0 | AT21: Y | BZ21: 16
B22: 6 | AH22: AJ:防災教育 | AI22: 1 | AT22: Y | BZ22: 17
B23: 6 | AH23: AL:登革熱防治 | AI23: 1 | AT23: Y | BZ23: 18
B24: 7 | C24: 第七週 2019/3/24~2019/3/30 | F24: SA:生活大考驗 四、行-會騎腳踏車 | G24: 1 | H24: SB:六、影音格式大不同: Freemake 影音轉檔 | I24: 1 | J24: SC:Unit 2 Were You at the Bookstore Yesterday? | K24: 1 | T24: 海天遊蹤 六、秋日劍橋漫步 | U24: 5 | V24: 多元文化 單元活動一 | W24: 1 | X24: Unit 2 Were You at the Bookstore Yesterday? | Y24: 1 | Z24: 三、形體關係、體積與表面積 | AA24: 4 | AB24: 二、從臺灣走向世界 1.臺灣與世界 | AC24: 3 | AD24: 三、藝術萬光筒 藝術漫遊 公共藝術在校園 | AE24: 3 | AF24: 二、微生物與食品保存 活動一 生活中的微生物 | AG24: 4 | AH24: 貳、運動的樂章六.平衡運動 | AI24: 3 | AJ24: 第三單元母親真偉大(自編) | AK24: 3 | AM24: =SUM(E24:E26)+SUM(G24:Q24)+SUMIF(F24:F26,"*P",G24:G26)+SUMIF(H24:H26,"*P",I24:I26)+SUMIF(J24:J26,"*P",K24:K26)+SUMIF(L24:L26,"*P",M24:M26)+SUMIF(N24:N26,"*P",O24:O26)+SUMIF(P24:P26,"*P",Q24:Q26) -> 5 | AN24: =SUM(F25:Q26)+SUM(T25:AK26)-SUMIF(F25:F26,"*P",G25:G26)-SUMIF(H25:H26,"*P",I25:I26)-SUMIF(J25:J26,"*P",K25:K26)-SUMIF(L25:L26,"*P",M25:M26)-SUMIF(N25:N26,"*P",O25:O26)-SUMIF(P25:P26,"*P",Q25:Q26)-SUMIF(R25:R26,"*P",S25:S26)-SUMIF(T25:T26,"*P",U25:U26)-SUMIF(V25:V26,"*P",W25:W26)-SUMIF(X25:X26,"*P",Y25:Y26)-SUMIF(Z25:Z26,"*P",AA25:AA26)-SUMIF(AB25:AB26,"*P",AC25:AC26)-SUMIF(AD25:AD26,"*P",AE25:AE26)-SUMIF(AF25:AF26,"*P",AG25:AG26)-SUMIF(AH25:AH26,"*P",AI25:AI26)-SUMIF(AJ25:AJ26,"*P",AK25:AK26)-AR24 -> 0 | AO24: =SUM(U24:AK24) -> 27 | AP24: =SUM(S24:S26) -> 0 | AQ24: =AM24+AO24 -> 32 | AR24: 0 | AT24: Y | BZ24: 19
B25: 7 | D25: CD:兒童節闖關活動P | E25: 2 | AT25: Y | BZ25: 20
B26: 7 | AT26: N
B27: 8 | C27: 第八週 2019/3/31~2019/4/6 | F27: SA:生活大考驗 五、體育-除躲避球外會玩另一種球類 | G27: 1 | H27: SB:七、威力導演：影片擷取與素材順序 | I27: 1 | J27: SC:Unit 2 Were You at the Bookstore Yesterday? | K27: 1 | L27: SD:六、秋日劍橋漫步 | M27: 1 | N27: SE:三、形體關係、體積與表面積 | O27: 1 | T27: 海天遊蹤 統整活動二 | U27: 3 | V27: 阮兜的心適代 三、阿爸煮飯 | W27: 1 | X27: Unit 2 Were You at the Bookstore Yesterday? | Y27: 1 | Z27: 三、形體關係、體積與表面積 | AA27: 2 | AB27: 二、從臺灣走向世界 1.臺灣與世界 | AC27: 1 | AD27: 三、藝術萬花筒 送給母校的禮物 | AE27: 1 | AF27: 二、微生物與食品保存 活動二 食物腐壞的原因 | AG27: 2 | AH27: 貳、運動的樂章七.迷你網球 | AI27: 1 | AJ27: 第四單元文化無邊界 活動一文化面面觀 | AK27: 1 | AL27: 108年4月4日(四)兒童節放假1天 108年4月5日(五)清明節放假1天 | AM27: =SUM(E27:E29)+SUM(G27:Q27)+SUMIF(F27:F29,"*P",G27:G29)+SUMIF(H27:H29,"*P",I27:I29)+SUMIF(J27:J29,"*P",K27:K29)+SUMIF(L27:L29,"*P",M27:M29)+SUMIF(N27:N29,"*P",O27:O29)+SUMIF(P27:P29,"*P",Q27:Q29) -> 5 | AN27: =SUM(F28:Q29)+SUM(T28:AK29)-SUMIF(F28:F29,"*P",G28:G29)-SUMIF(H28:H29,"*P",I28:I29)-SUMIF(J28:J29,"*P",K28:K29)-SUMIF(L28:L29,"*P",M28:M29)-SUMIF(N28:N29,"*P",O28:O29)-SUMIF(P28:P29,"*P",Q28:Q29)-SUMIF(R28:R29,"*P",S28:S29)-SUMIF(T28:T29,"*P",U28:U29)-SUMIF(V28:V29,"*P",W28:W29)-SUMIF(X28:X29,"*P",Y28:Y29)-SUMIF(Z28:Z29,"*P",AA28:AA29)-SUMIF(AB28:AB29,"*P",AC28:AC29)-SUMIF(AD28:AD29,"*P",AE28:AE29)-SUMIF(AF28:AF29,"*P",AG28:AG29)-SUMIF(AH28:AH29,"*P",AI28:AI29)-SUMIF(AJ28:AJ29,"*P",AK28:AK29)-AR27 -> 0 | AO27: =SUM(U27:AK27) -> 13 | AP27: =SUM(S27:S29) -> 0 | AQ27: =AM27+AO27 -> 18 | AR27: 0 | AT27: Y
B28: 8 | AT28: N
B29: 8 | AT29: N
B30: 9 | C30: 第九週 2019/4/7~2019/4/13 | F30: SA:生活大考驗 五、體育-除躲避球外會玩另一種球類 | G30: 1 | H30: SB:八、威力導演：影片修剪與視訊調整 | I30: 1 | J30: SC:*Review 1 複習 Unit1~Unit 2 | K30: 1 | T30: 閱讀階梯一 驚蟄驅蟻記 | U30: 5 | V30: 阮兜的心適代 三、阿爸煮飯 | W30: 1 | X30: *Review 1 複習 Unit1~Unit 2 | Y30: 1 | Z30: 四、基準量與比較量 | AA30: 4 | AB30: 二、從臺灣走向世界 2.世界文化大不同 | AC30: 3 | AD30: 四、設計幻想曲 生活中的好設計 | AE30: 3 | AF30: 二、微生物與食品保存 活動二 食物腐壞的原因 活動三 保存食物的方法 | AG30: 4 | AH30: 貳、運動的樂章七.迷你網球 | AI30: 3 | AJ30: 第四單元文化無邊界 活動一文化面面觀 | AK30: 3 | AM30: =SUM(E30:E32)+SUM(G30:Q30)+SUMIF(F30:F32,"*P",G30:G32)+SUMIF(H30:H32,"*P",I30:I32)+SUMIF(J30:J32,"*P",K30:K32)+SUMIF(L30:L32,"*P",M30:M32)+SUMIF(N30:N32,"*P",O30:O32)+SUMIF(P30:P32,"*P",Q30:Q32) -> 5 | AN30: =SUM(F31:Q32)+SUM(T31:AK32)-SUMIF(F31:F32,"*P",G31:G32)-SUMIF(H31:H32,"*P",I31:I32)-SUMIF(J31:J32,"*P",K31:K32)-SUMIF(L31:L32,"*P",M31:M32)-SUMIF(N31:N32,"*P",O31:O32)-SUMIF(P31:P32,"*P",Q31:Q32)-SUMIF(R31:R32,"*P",S31:S32)-SUMIF(T31:T32,"*P",U31:U32)-SUMIF(V31:V32,"*P",W31:W32)-SUMIF(X31:X32,"*P",Y31:Y32)-SUMIF(Z31:Z32,"*P",AA31:AA32)-SUMIF(AB31:AB32,"*P",AC31:AC32)-SUMIF(AD31:AD32,"*P",AE31:AE32)-SUMIF(AF31:AF32,"*P",AG31:AG32)-SUMIF(AH31:AH32,"*P",AI31:AI32)-SUMIF(AJ31:AJ32,"*P",AK31:AK32)-AR30 -> 3 | AO30: =SUM(U30:AK30) -> 27 | AP30: =SUM(S30:S32) -> 0 | AQ30: =AM30+AO30 -> 32 | AR30: 0 | AT30: Y
B31: 9 | D31: AN:作文教學P | E31: 2 | AJ31: AC:家政教育 | AK31: 3 | AT31: Y
B32: 9 | AT32: N
B33: 10 | C33: 第十週 2019/4/14~2019/4/20 | F33: SA:生活大考驗 六、體育-得到游泳第1級海馬級認證 | G33: 1 | H33: SB:九、威力導演：影片上的特效 | I33: 1 | J33: SC:*Review 1 複習 Unit1~Unit 2 | K33: 1 | L33: SD:七、油條報紙•文字夢 | M33: 1 | N33: SE:四、基準量與比較量 | O33: 1 | T33: 童年故事 七、油條報紙•文字夢 | U33: 5 | V33: 阮兜的心適代 三、阿爸煮飯 | W33: 1 | X33: *Review 1 複習 Unit1~Unit 2 | Y33: 1 | Z33: 四、基準量與比較量 | AA33: 4 | AB33: 二、從臺灣走向世界 2.世界文化大不同 | AC33: 3 | AD33: 四、設計幻想曲 生活中的好設計 秀出好設計 | AE33: 3 | AF33: 二、微生物與食品保存 活動三 保存食物的方法 三、生物與環境 活動一 生物生長的環境 | AG33: 4 | AH33: 貳、運動的樂章八.足球小子(二) | AI33: 3 | AJ33: 第四單元文化無邊界 活動二在地文化族群探索 | AK33: 3 | AL33: 期中評量 | AM33: =SUM(E33:E35)+SUM(G33:Q33)+SUMIF(F33:F35,"*P",G33:G35)+SUMIF(H33:H35,"*P",I33:I35)+SUMIF(J33:J35,"*P",K33:K35)+SUMIF(L33:L35,"*P",M33:M35)+SUMIF(N33:N35,"*P",O33:O35)+SUMIF(P33:P35,"*P",Q33:Q35) -> 5 | AN33: =SUM(F34:Q35)+SUM(T34:AK35)-SUMIF(F34:F35,"*P",G34:G35)-SUMIF(H34:H35,"*P",I34:I35)-SUMIF(J34:J35,"*P",K34:K35)-SUMIF(L34:L35,"*P",M34:M35)-SUMIF(N34:N35,"*P",O34:O35)-SUMIF(P34:P35,"*P",Q34:Q35)-SUMIF(R34:R35,"*P",S34:S35)-SUMIF(T34:T35,"*P",U34:U35)-SUMIF(V34:V35,"*P",W34:W35)-SUMIF(X34:X35,"*P",Y34:Y35)-SUMIF(Z34:Z35,"*P",AA34:AA35)-SUMIF(AB34:AB35,"*P",AC34:AC35)-SUMIF(AD34:AD35,"*P",AE34:AE35)-SUMIF(AF34:AF35,"*P",AG34:AG35)-SUMIF(AH34:AH35,"*P",AI34:AI35)-SUMIF(AJ34:AJ35,"*P",AK34:AK35)-AR33 -> 3 | AO33: =SUM(U33:AK33) -> 27 | AP33: =SUM(S33:S35) -> 0 | AQ33: =AM33+AO33 -> 32 | AR33: 0 | AT33: Y
B34: 10 | AJ34: AC:家政教育 | AK34: 3 | AT34: Y
B35: 10 | AT35: N
B36: 11 | C36: 第十一週 2019/4/21~2019/4/27 | F36: SA:生活大考驗 六、體育-得到游泳第1級海馬級認證 | G36: 1 | H36: SB:十、威力導演：于母畫面的製作 | I36: 1 | J36: SC:Unit 3 What Did You Do Last Night? | K36: 1 | N36: SE:四、基準量與比較量 | O36: 1 | T36: 童年故事 八、雕刻一座小島 | U36: 5 | V36: 阮兜的心適代 單元活動二 | W36: 1 | X36: Unit 3 What Did You Do Last Night? | Y36: 1 | Z36: 四、基準量與比較量 | AA36: 4 | AB36: 三、放眼看世界 1.國際組織 | AC36: 3 | AD36: 四、設計幻想曲 秀出好設計 | AE36: 3 | AF36: 三、生物與環境 活動一 生物生長的環境 | AG36: 4 | AH36: 貳、運動的樂章八.足球小子(二) | AI36: 3 | AJ36: 第四單元文化無邊界 活動二在地文化族群探索 | AK36: 3 | AM36: =SUM(E36:E38)+SUM(G36:Q36)+SUMIF(F36:F38,"*P",G36:G38)+SUMIF(H36:H38,"*P",I36:I38)+SUMIF(J36:J38,"*P",K36:K38)+SUMIF(L36:L38,"*P",M36:M38)+SUMIF(N36:N38,"*P",O36:O38)+SUMIF(P36:P38,"*P",Q36:Q38) -> 5 | AN36: =SUM(F37:Q38)+SUM(T37:AK38)-SUMIF(F37:F38,"*P",G37:G38)-SUMIF(H37:H38,"*P",I37:I38)-SUMIF(J37:J38,"*P",K37:K38)-SUMIF(L37:L38,"*P",M37:M38)-SUMIF(N37:N38,"*P",O37:O38)-SUMIF(P37:P38,"*P",Q37:Q38)-SUMIF(R37:R38,"*P",S37:S38)-SUMIF(T37:T38,"*P",U37:U38)-SUMIF(V37:V38,"*P",W37:W38)-SUMIF(X37:X38,"*P",Y37:Y38)-SUMIF(Z37:Z38,"*P",AA37:AA38)-SUMIF(AB37:AB38,"*P",AC37:AC38)-SUMIF(AD37:AD38,"*P",AE37:AE38)-SUMIF(AF37:AF38,"*P",AG37:AG38)-SUMIF(AH37:AH38,"*P",AI37:AI38)-SUMIF(AJ37:AJ38,"*P",AK37:AK38)-AR36 -> 3 | AO36: =SUM(U36:AK36) -> 27 | AP36: =SUM(S36:S38) -> 0 | AQ36: =AM36+AO36 -> 32 | AR36: 0 | AT36: Y
B37: 11 | D37: CM:自治市長選舉P | E37: 1 | AJ37: AC:家政教育 | AK37: 3 | AT37: Y
B38: 11 | AT38: =IF(COUNTA(C38:AQ38)>0,"Y","N") -> N
B39: 12 | C39: 第十二週 2019/4/28~2019/5/4 | F39: SA:生活大考驗 七、樂-會在別班或大眾前唱一首歌 | G39: 1 | H39: SB:十一、威力導演：炫粒功能 | I39: 1 | J39: SC:Unit 3 What Did You Do Last Night? | K39: 1 | T39: 童年故事 九、童年•夏日•棉花糖 | U39: 5 | V39: 我大漢矣 四、大樹青青 | W39: 1 | X39: Unit 3 What Did You Do Last Night? | Y39: 1 | Z39: 五、怎樣解題 | AA39: 4 | AB39: 三、放眼看世界 1.國際組織 | AC39: 3 | AD39: 五、躍上伸展臺 有故事的戲服 衣起環遊世界 | AE39: 3 | AF39: 三、生物與環境 活動一 生物生長的環境 | AG39: 4 | AH39: 貳、運動的樂章九.水中樂逍遙 | AI39: 3 | AJ39: 第五單元活用資源便利多 活動一資源搜查線 | AK39: 3 | AM39: =SUM(E39:E41)+SUM(G39:Q39)+SUMIF(F39:F41,"*P",G39:G41)+SUMIF(H39:H41,"*P",I39:I41)+SUMIF(J39:J41,"*P",K39:K41)+SUMIF(L39:L41,"*P",M39:M41)+SUMIF(N39:N41,"*P",O39:O41)+SUMIF(P39:P41,"*P",Q39:Q41) -> 5 | AN39: =SUM(F40:Q41)+SUM(T40:AK41)-SUMIF(F40:F41,"*P",G40:G41)-SUMIF(H40:H41,"*P",I40:I41)-SUMIF(J40:J41,"*P",K40:K41)-SUMIF(L40:L41,"*P",M40:M41)-SUMIF(N40:N41,"*P",O40:O41)-SUMIF(P40:P41,"*P",Q40:Q41)-SUMIF(R40:R41,"*P",S40:S41)-SUMIF(T40:T41,"*P",U40:U41)-SUMIF(V40:V41,"*P",W40:W41)-SUMIF(X40:X41,"*P",Y40:Y41)-SUMIF(Z40:Z41,"*P",AA40:AA41)-SUMIF(AB40:AB41,"*P",AC40:AC41)-SUMIF(AD40:AD41,"*P",AE40:AE41)-SUMIF(AF40:AF41,"*P",AG40:AG41)-SUMIF(AH40:AH41,"*P",AI40:AI41)-SUMIF(AJ40:AJ41,"*P",AK40:AK41)-AR39 -> 3 | AO39: =SUM(U39:AK39) -> 27 | AP39: =SUM(S39:S41) -> 0 | AQ39: =AM39+AO39 -> 32 | AR39: 0 | AT39: Y
B40: 12 | D40: CC:母親節才藝表演P | E40: 2 | AJ40: AC:家政教育 | AK40: 3 | AT40: Y
B41: 12 | AT41: N
B42: 13 | C42: 第十三週 2019/5/5~2019/5/11 | F42: SA:生活大考驗 七、樂-會在別班或大眾前唱一首歌 | G42: 1 | H42: SB:十二、威力導演：轉場特效 | I42: 1 | J42: SC:Unit 3 What Did You Do Last Night? | K42: 1 | T42: 童年故事 統整活動三 | U42: 5 | V42: 我大漢矣 四、大樹青青 | W42: 1 | X42: Unit 3 What Did You Do Last Night? | Y42: 1 | Z42: 五、怎樣解題 | AA42: 4 | AB42: 三、放眼看世界 2.人口與資源 | AC42: 3 | AD42: 五、躍上伸展臺 造形設計變變變 | AE42: 3 | AF42: 三、生物與環境 活動一 生物生長的環境 活動二 人類活動對環境的影響 | AG42: 4 | AH42: 貳、運動的樂章九.水中樂逍遙 | AI42: 3 | AJ42: 第五單元活用資源便利多 活動一資源搜查線 | AK42: 3 | AM42: =SUM(E42:E44)+SUM(G42:Q42)+SUMIF(F42:F44,"*P",G42:G44)+SUMIF(H42:H44,"*P",I42:I44)+SUMIF(J42:J44,"*P",K42:K44)+SUMIF(L42:L44,"*P",M42:M44)+SUMIF(N42:N44,"*P",O42:O44)+SUMIF(P42:P44,"*P",Q42:Q44) -> 5 | AN42: =SUM(F43:Q44)+SUM(T43:AK44)-SUMIF(F43:F44,"*P",G43:G44)-SUMIF(H43:H44,"*P",I43:I44)-SUMIF(J43:J44,"*P",K43:K44)-SUMIF(L43:L44,"*P",M43:M44)-SUMIF(N43:N44,"*P",O43:O44)-SUMIF(P43:P44,"*P",Q43:Q44)-SUMIF(R43:R44,"*P",S43:S44)-SUMIF(T43:T44,"*P",U43:U44)-SUMIF(V43:V44,"*P",W43:W44)-SUMIF(X43:X44,"*P",Y43:Y44)-SUMIF(Z43:Z44,"*P",AA43:AA44)-SUMIF(AB43:AB44,"*P",AC43:AC44)-SUMIF(AD43:AD44,"*P",AE43:AE44)-SUMIF(AF43:AF44,"*P",AG43:AG44)-SUMIF(AH43:AH44,"*P",AI43:AI44)-SUMIF(AJ43:AJ44,"*P",AK43:AK44)-AR42 -> 1 | AO42: =SUM(U42:AK42) -> 27 | AP42: =SUM(S42:S44) -> 3 | AQ42: =AM42+AO42 -> 32 | AR42: 0 | AT42: Y
B43: 13 | D43: AN:作文教學P | E43: 2 | R43: AE:家暴_家庭暴力防治教育 | S43: 3 | AF43: BG:海洋教育 | AG43: 1 | AT43: Y
B44: 13 | AT44: N
B45: 14 | C45: 第十四週 2019/5/12~2019/5/18 | F45: SA:生活大考驗 八、說話技巧-會在別班或大眾前演講或報導一件事件 | G45: 1 | H45: SB:十三、威力導演：合成與標題字幕 | I45: 1 | J45: SC:Unit 4 Did You Bake Cookies? | K45: 1 | L45: SD:十、追夢的翅膀 | M45: 1 | N45: SE:五、怎樣解題 | O45: 1 | T45: 成長與祝福 十、追夢的翅膀 | U45: 5 | V45: 我大漢矣 四、大樹青青 | W45: 1 | X45: Unit 4 Did You Bake Cookies? | Y45: 1 | Z45: 五、怎樣解題 | AA45: 4 | AB45: 三、放眼看世界 2.人口與資源 | AC45: 3 | AD45: 五、躍上伸展臺 決戰造形伸展臺 | AE45: 3 | AF45: 三、生物與環境 活動二 人類活動對環境的影響 | AG45: 4 | AH45: 參、歡樂嘉年華十.功夫小子 | AI45: 3 | AJ45: 第五單元活用資源便利多 活動二善用資源 | AK45: 3 | AM45: =SUM(E45:E47)+SUM(G45:Q45)+SUMIF(F45:F47,"*P",G45:G47)+SUMIF(H45:H47,"*P",I45:I47)+SUMIF(J45:J47,"*P",K45:K47)+SUMIF(L45:L47,"*P",M45:M47)+SUMIF(N45:N47,"*P",O45:O47)+SUMIF(P45:P47,"*P",Q45:Q47) -> 5 | AN45: =SUM(F46:Q47)+SUM(T46:AK47)-SUMIF(F46:F47,"*P",G46:G47)-SUMIF(H46:H47,"*P",I46:I47)-SUMIF(J46:J47,"*P",K46:K47)-SUMIF(L46:L47,"*P",M46:M47)-SUMIF(N46:N47,"*P",O46:O47)-SUMIF(P46:P47,"*P",Q46:Q47)-SUMIF(R46:R47,"*P",S46:S47)-SUMIF(T46:T47,"*P",U46:U47)-SUMIF(V46:V47,"*P",W46:W47)-SUMIF(X46:X47,"*P",Y46:Y47)-SUMIF(Z46:Z47,"*P",AA46:AA47)-SUMIF(AB46:AB47,"*P",AC46:AC47)-SUMIF(AD46:AD47,"*P",AE46:AE47)-SUMIF(AF46:AF47,"*P",AG46:AG47)-SUMIF(AH46:AH47,"*P",AI46:AI47)-SUMIF(AJ46:AJ47,"*P",AK46:AK47)-AR45 -> 3 | AO45: =SUM(U45:AK45) -> 27 | AP45: =SUM(S45:S47) -> 0 | AQ45: =AM45+AO45 -> 32 | AR45: 0 | AT45: Y
B46: 14 | AF46: BH:低碳教育 | AG46: 1 | AJ46: BI:交通安全教育 | AK46: 2 | AT46: Y
B47: 14 | AT47: N
B48: 15 | C48: 第十五週 2019/5/19~2019/5/25 | H48: SB:十四、威力導演：主題配樂 | I48: 1 | J48: SC:Unit 4 Did You Bake Cookies? | K48: 1 | T48: 成長與祝福 十一、祝賀你，孩子 | U48: 5 | V48: 我大漢矣 五、讀俗諺學智慧 | W48: 1 | X48: Unit 4 Did You Bake Cookies? | Y48: 1 | Z48: 六、圓形圖 | AA48: 4 | AB48: 三、放眼看世界 3.全球議題 | AC48: 3 | AD48: 六、珍重再見 1點點滴滴的回憶 2美麗的印記 | AE48: 3 | AF48: 三、生物與環境 活動二 人類活動對環境的影響 活動三 珍惜自然資源 | AG48: 4 | AH48: 參、歡樂嘉年華十一.籃球高手 | AI48: 3 | AJ48: 第五單元活用資源便利多 活動二善用資源 | AK48: 3 | AL48: 畢業班評量(5/23-5/29) | AM48: =SUM(E48:E50)+SUM(G48:Q48)+SUMIF(F48:F50,"*P",G48:G50)+SUMIF(H48:H50,"*P",I48:I50)+SUMIF(J48:J50,"*P",K48:K50)+SUMIF(L48:L50,"*P",M48:M50)+SUMIF(N48:N50,"*P",O48:O50)+SUMIF(P48:P50,"*P",Q48:Q50) -> 5 | AN48: =SUM(F49:Q50)+SUM(T49:AK50)-SUMIF(F49:F50,"*P",G49:G50)-SUMIF(H49:H50,"*P",I49:I50)-SUMIF(J49:J50,"*P",K49:K50)-SUMIF(L49:L50,"*P",M49:M50)-SUMIF(N49:N50,"*P",O49:O50)-SUMIF(P49:P50,"*P",Q49:Q50)-SUMIF(R49:R50,"*P",S49:S50)-SUMIF(T49:T50,"*P",U49:U50)-SUMIF(V49:V50,"*P",W49:W50)-SUMIF(X49:X50,"*P",Y49:Y50)-SUMIF(Z49:Z50,"*P",AA49:AA50)-SUMIF(AB49:AB50,"*P",AC49:AC50)-SUMIF(AD49:AD50,"*P",AE49:AE50)-SUMIF(AF49:AF50,"*P",AG49:AG50)-SUMIF(AH49:AH50,"*P",AI49:AI50)-SUMIF(AJ49:AJ50,"*P",AK49:AK50)-AR48 -> 1 | AO48: =SUM(U48:AK48) -> 27 | AP48: =SUM(S48:S50) -> 0 | AQ48: =AM48+AO48 -> 32 | AR48: 0 | AT48: Y
B49: 15 | D49: AN:作文教學P | E49: 2 | AJ49: BF:職業試探 | AK49: 1 | AT49: Y
B50: 15 | D50: CN:班際體育競賽P | E50: 1 | AT50: Y
B51: 16 | C51: 第十六週 2019/5/26~2019/6/1 | F51: SA:生活大考驗 九、傳達技巧-會使用E-mail | G51: 1 | H51: SB:十五、威力導演：檔案輸出 | I51: 1 | J51: SC:Unit 4 Did You Bake Cookies? | K51: 1 | T51: 成長與祝福 統整活動四 | U51: 5 | V51: 我大漢矣 五、讀俗諺學智慧 | W51: 1 | X51: Unit 4 Did You Bake Cookies? | Y51: 1 | Z51: 六、圓形圖 | AA51: 4 | AB51: 四、關心我們的地球 1.全球環境 | AC51: 3 | AD51: 六、珍重再見 2美麗的印記 3祝福的樂聲 | AE51: 3 | AF51: 三、生物與環境 活動三 珍惜自然資源 | AG51: 4 | AH51: 參、歡樂嘉年華十一.籃球高手 | AI51: 3 | AJ51: 第一單元生命的故事 活動一我的成長 | AK51: 3 | AM51: =SUM(E51:E53)+SUM(G51:Q51)+SUMIF(F51:F53,"*P",G51:G53)+SUMIF(H51:H53,"*P",I51:I53)+SUMIF(J51:J53,"*P",K51:K53)+SUMIF(L51:L53,"*P",M51:M53)+SUMIF(N51:N53,"*P",O51:O53)+SUMIF(P51:P53,"*P",Q51:Q53) -> 5 | AN51: =SUM(F52:Q53)+SUM(T52:AK53)-SUMIF(F52:F53,"*P",G52:G53)-SUMIF(H52:H53,"*P",I52:I53)-SUMIF(J52:J53,"*P",K52:K53)-SUMIF(L52:L53,"*P",M52:M53)-SUMIF(N52:N53,"*P",O52:O53)-SUMIF(P52:P53,"*P",Q52:Q53)-SUMIF(R52:R53,"*P",S52:S53)-SUMIF(T52:T53,"*P",U52:U53)-SUMIF(V52:V53,"*P",W52:W53)-SUMIF(X52:X53,"*P",Y52:Y53)-SUMIF(Z52:Z53,"*P",AA52:AA53)-SUMIF(AB52:AB53,"*P",AC52:AC53)-SUMIF(AD52:AD53,"*P",AE52:AE53)-SUMIF(AF52:AF53,"*P",AG52:AG53)-SUMIF(AH52:AH53,"*P",AI52:AI53)-SUMIF(AJ52:AJ53,"*P",AK52:AK53)-AR51 -> 0 | AO51: =SUM(U51:AK51) -> 27 | AP51: =SUM(S51:S53) -> 0 | AQ51: =AM51+AO51 -> 32 | AR51: 0 | AT51: Y
B52: 16 | D52: CO:歡送畢業生園遊會P | E52: 2 | AT52: Y
B53: 16 | AT53: N
B54: 17 | C54: 第十七週 2019/6/2~2019/6/8 | F54: SA:生活大考驗 十、生活技巧-會一種繩結 | G54: 1 | H54: SB:十六、我的屏山回憶 | I54: 1 | J54: SC:*Review 2 複習 Unit3~Unit4 | K54: 1 | T54: 閱讀階梯二 桃花源 | U54: 2 | V54: 我大漢矣 單元活動三 | W54: 1 | X54: *Review 2 複習 Unit3~Unit4 | Y54: 1 | Z54: 六、圓形圖 | AA54: 2 | AB54: 四、關心我們的地球 2.世界一家 | AC54: 3 | AD54: 六、珍重再見 2美麗的印記 3祝福的樂聲 | AE54: 3 | AF54: 三、生物與環境 科學閱讀 | AG54: 2 | AH54: 參、歡樂嘉年華十二.勇冠三軍 | AI54: 3 | AJ54: 第一單元生命的故事 活動一我的成長 | AK54: 3 | AL54: 108年6月7日(五)端午節放假1天 | AM54: =SUM(E54:E56)+SUM(G54:Q54)+SUMIF(F54:F56,"*P",G54:G56)+SUMIF(H54:H56,"*P",I54:I56)+SUMIF(J54:J56,"*P",K54:K56)+SUMIF(L54:L56,"*P",M54:M56)+SUMIF(N54:N56,"*P",O54:O56)+SUMIF(P54:P56,"*P",Q54:Q56) -> 5 | AN54: =SUM(F55:Q56)+SUM(T55:AK56)-SUMIF(F55:F56,"*P",G55:G56)-SUMIF(H55:H56,"*P",I55:I56)-SUMIF(J55:J56,"*P",K55:K56)-SUMIF(L55:L56,"*P",M55:M56)-SUMIF(N55:N56,"*P",O55:O56)-SUMIF(P55:P56,"*P",Q55:Q56)-SUMIF(R55:R56,"*P",S55:S56)-SUMIF(T55:T56,"*P",U55:U56)-SUMIF(V55:V56,"*P",W55:W56)-SUMIF(X55:X56,"*P",Y55:Y56)-SUMIF(Z55:Z56,"*P",AA55:AA56)-SUMIF(AB55:AB56,"*P",AC55:AC56)-SUMIF(AD55:AD56,"*P",AE55:AE56)-SUMIF(AF55:AF56,"*P",AG55:AG56)-SUMIF(AH55:AH56,"*P",AI55:AI56)-SUMIF(AJ55:AJ56,"*P",AK55:AK56)-AR54 -> 0 | AO54: =SUM(U54:AK54) -> 20 | AP54: =SUM(S54:S56) -> 0 | AQ54: =AM54+AO54 -> 25 | AR54: 0 | AT54: Y
B55: 17 | D55: CL:畢業典禮預演P | E55: 2 | AT55: Y
B56: 17 | AT56: N
B57: 18 | C57: 第十八週 2019/6/9~2019/6/15 | H57: SB:十六、我的屏山回憶 | I57: 1 | T57: 閱讀階梯二 桃花源 | U57: 1 | W57: 0 | Y57: 0 | AA57: 0 | AB57: 四、關心我們的地球 2.世界一家 | AC57: 2 | AD57: 六、珍重再見 2美麗的印記 3祝福的樂聲 | AE57: 2 | AG57: 0 | AH57: 參、歡樂嘉年華十二.勇冠三軍 | AI57: 2 | AJ57: 第一單元生命的故事 活動一我的成長 | AK57: 2 | AL57: 畢業典禮6/11(二) | AM57: =SUM(E57:E59)+SUM(G57:Q57)+SUMIF(F57:F59,"*P",G57:G59)+SUMIF(H57:H59,"*P",I57:I59)+SUMIF(J57:J59,"*P",K57:K59)+SUMIF(L57:L59,"*P",M57:M59)+SUMIF(N57:N59,"*P",O57:O59)+SUMIF(P57:P59,"*P",Q57:Q59) -> 5 | AN57: =SUM(F58:Q59)+SUM(T58:AK59)-SUMIF(F58:F59,"*P",G58:G59)-SUMIF(H58:H59,"*P",I58:I59)-SUMIF(J58:J59,"*P",K58:K59)-SUMIF(L58:L59,"*P",M58:M59)-SUMIF(N58:N59,"*P",O58:O59)-SUMIF(P58:P59,"*P",Q58:Q59)-SUMIF(R58:R59,"*P",S58:S59)-SUMIF(T58:T59,"*P",U58:U59)-SUMIF(V58:V59,"*P",W58:W59)-SUMIF(X58:X59,"*P",Y58:Y59)-SUMIF(Z58:Z59,"*P",AA58:AA59)-SUMIF(AB58:AB59,"*P",AC58:AC59)-SUMIF(AD58:AD59,"*P",AE58:AE59)-SUMIF(AF58:AF59,"*P",AG58:AG59)-SUMIF(AH58:AH59,"*P",AI58:AI59)-SUMIF(AJ58:AJ59,"*P",AK58:AK59)-AR57 -> 0 | AO57: =SUM(U57:AK57) -> 9 | AP57: =SUM(S57:S59) -> 0 | AQ57: =AM57+AO57 -> 14 | AR57: 0 | AT57: Y
B58: 18 | D58: CG:畢業典禮P | E58: 4 | AT58: Y
B59: 18 | AT59: N
C60: 下學期節數合計 | E60: =SUM(E6:E59) -> 23 | G60: =G6+G9+G12+G15+G18+G21+G24+G27+G30+G33+G36+G39+G42+G45+G48+G51+G54+G57+SUMIF(F6:F59,"*P",G6:G59) -> 16 | I60: =I6+I9+I12+I15+I18+I21+I24+I27+I30+I33+I36+I39+I42+I45+I48+I51+I54+I57+SUMIF(H6:H59,"*P",I6:I59) -> 18 | K60: =K6+K9+K12+K15+K18+K21+K24+K27+K30+K33+K36+K39+K42+K45+K48+K51+K54+K57+SUMIF(J6:J59,"*P",K6:K59) -> 17 | M60: =M6+M9+M12+M15+M18+M21+M24+M27+M30+M33+M36+M39+M42+M45+M48+M51+M54+M57+SUMIF(L6:L59,"*P",M6:M59) -> 7 | O60: =O6+O9+O12+O15+O18+O21+O24+O27+O30+O33+O36+O39+O42+O45+O48+O51+O54+O57+SUMIF(N6:N59,"*P",O6:O59) -> 9 | Q60: =Q6+Q9+Q12+Q15+Q18+Q21+Q24+Q27+Q30+Q33+Q36+Q39+Q42+Q45+Q48+Q51+Q54+Q57+SUMIF(P6:P59,"*P",Q6:Q59) -> 0 | S60: =SUM(S6:S59) -> 9 | U60: =U6+U9+U12+U15+U18+U21+U24+U27+U30+U33+U36+U39+U42+U45+U48+U51+U54+U57 -> 78 | W60: =W6+W9+W12+W15+W18+W21+W24+W27+W30+W33+W36+W39+W42+W45+W48+W51+W54+W57 -> 17 | Y60: =Y6+Y9+Y12+Y15+Y18+Y21+Y24+Y27+Y30+Y33+Y36+Y39+Y42+Y45+Y48+Y51+Y54+Y57 -> 17 | AA60: =AA6+AA9+AA12+AA15+AA18+AA21+AA24+AA27+AA30+AA33+AA36+AA39+AA42+AA45+AA48+AA51+AA54+AA57 -> 62 | AC60: =AC6+AC9+AC12+AC15+AC18+AC21+AC24+AC27+AC30+AC33+AC36+AC39+AC42+AC45+AC48+AC51+AC54+AC57 -> 51 | AE60: =AE6+AE9+AE12+AE15+AE18+AE21+AE24+AE27+AE30+AE33+AE36+AE39+AE42+AE45+AE48+AE51+AE54+AE57 -> 51 | AG60: =AG6+AG9+AG12+AG15+AG18+AG21+AG24+AG27+AG30+AG33+AG36+AG39+AG42+AG45+AG48+AG51+AG54+AG57 -> 62 | AI60: =AI6+AI9+AI12+AI15+AI18+AI21+AI24+AI27+AI30+AI33+AI36+AI39+AI42+AI45+AI48+AI51+AI54+AI57 -> 51 | AK60: =AK6+AK9+AK12+AK15+AK18+AK21+AK24+AK27+AK30+AK33+AK36+AK39+AK42+AK45+AK48+AK51+AK54+AK57 -> 51 | AL60: 跨領域總節數 | AM60: =SUM(AM6:AM59) -> 90 | AN60: =SUM(AN6:AN59) -> 52 | AO60: =SUM(AO6:AO59) -> 440 | AP60: =SUM(AP6:AP59) -> 9 | AQ60: =SUM(AQ6:AQ59) -> 530 | AR60: 0 | AS60: =VLOOKUP(AS62,上課節數,6,FALSE) -> 530 | AT60: =IF(AQ60="","",IF(AQ60=AS60,"正確",IF(AQ60>AS60,"節數多:"&AQ60-AS60&"節",IF(AQ60<AS60,"節數少:"&AS60-AQ60&"節")))) -> 正確
C61: 跨領域 | G61: =SUMIF(F6:F59,"*:F*",G6:G59)+SUMIF(F6:F59,"*:H*",G6:G59)+SUMIF(F6:F59,"*:J*",G6:G59)+SUMIF(F6:F59,"*:L*",G6:G59)+SUMIF(F6:F59,"*:N*",G6:G59)+SUMIF(F6:F59,"*:P*",G6:G59)+SUMIF(F6:F59,"*:R*",G6:G59)+SUMIF(F6:F59,"*:T*",G6:G59)+SUMIF(F6:F59,"*:V*",G6:G59)+SUMIF(F6:F59,"*:X*",G6:G59)+SUMIF(F6:F59,"*:Z*",G6:G59)+SUMIF(F6:F59,"*:AB*",G6:G59)+SUMIF(F6:F59,"*:AD*",G6:G59)+SUMIF(F6:F59,"*:AF*",G6:G59)+SUMIF(F6:F59,"*:AH*",G6:G59)+SUMIF(F6:F59,"*:AJ*",G6:G59) -> 0 | I61: =SUMIF(H6:H59,"*:F*",I6:I59)+SUMIF(H6:H59,"*:H*",I6:I59)+SUMIF(H6:H59,"*:J*",I6:I59)+SUMIF(H6:H59,"*:L*",I6:I59)+SUMIF(H6:H59,"*:N*",I6:I59)+SUMIF(H6:H59,"*:P*",I6:I59)+SUMIF(H6:H59,"*:R*",I6:I59)+SUMIF(H6:H59,"*:T*",I6:I59)+SUMIF(H6:H59,"*:V*",I6:I59)+SUMIF(H6:H59,"*:X*",I6:I59)+SUMIF(H6:H59,"*:Z*",I6:I59)+SUMIF(H6:H59,"*:AB*",I6:I59)+SUMIF(H6:H59,"*:AD*",I6:I59)+SUMIF(H6:H59,"*:AF*",I6:I59)+SUMIF(H6:H59,"*:AH*",I6:I59)+SUMIF(H6:H59,"*:AJ*",I6:I59) -> 0 | K61: =SUMIF(J6:J59,"*:F*",K6:K59)+SUMIF(J6:J59,"*:H*",K6:K59)+SUMIF(J6:J59,"*:J*",K6:K59)+SUMIF(J6:J59,"*:L*",K6:K59)+SUMIF(J6:J59,"*:N*",K6:K59)+SUMIF(J6:J59,"*:P*",K6:K59)+SUMIF(J6:J59,"*:R*",K6:K59)+SUMIF(J6:J59,"*:T*",K6:K59)+SUMIF(J6:J59,"*:V*",K6:K59)+SUMIF(J6:J59,"*:X*",K6:K59)+SUMIF(J6:J59,"*:Z*",K6:K59)+SUMIF(J6:J59,"*:AB*",K6:K59)+SUMIF(J6:J59,"*:AD*",K6:K59)+SUMIF(J6:J59,"*:AF*",K6:K59)+SUMIF(J6:J59,"*:AH*",K6:K59)+SUMIF(J6:J59,"*:AJ*",K6:K59) -> 0 | M61: =SUMIF(L6:L59,"*:F*",M6:M59)+SUMIF(L6:L59,"*:H*",M6:M59)+SUMIF(L6:L59,"*:J*",M6:M59)+SUMIF(L6:L59,"*:L*",M6:M59)+SUMIF(L6:L59,"*:N*",M6:M59)+SUMIF(L6:L59,"*:P*",M6:M59)+SUMIF(L6:L59,"*:R*",M6:M59)+SUMIF(L6:L59,"*:T*",M6:M59)+SUMIF(L6:L59,"*:V*",M6:M59)+SUMIF(L6:L59,"*:X*",M6:M59)+SUMIF(L6:L59,"*:Z*",M6:M59)+SUMIF(L6:L59,"*:AB*",M6:M59)+SUMIF(L6:L59,"*:AD*",M6:M59)+SUMIF(L6:L59,"*:AF*",M6:M59)+SUMIF(L6:L59,"*:AH*",M6:M59)+SUMIF(L6:L59,"*:AJ*",M6:M59) -> 0 | O61: =SUMIF(N6:N59,"*:F*",O6:O59)+SUMIF(N6:N59,"*:H*",O6:O59)+SUMIF(N6:N59,"*:J*",O6:O59)+SUMIF(N6:N59,"*:L*",O6:O59)+SUMIF(N6:N59,"*:N*",O6:O59)+SUMIF(N6:N59,"*:P*",O6:O59)+SUMIF(N6:N59,"*:R*",O6:O59)+SUMIF(N6:N59,"*:T*",O6:O59)+SUMIF(N6:N59,"*:V*",O6:O59)+SUMIF(N6:N59,"*:X*",O6:O59)+SUMIF(N6:N59,"*:Z*",O6:O59)+SUMIF(N6:N59,"*:AB*",O6:O59)+SUMIF(N6:N59,"*:AD*",O6:O59)+SUMIF(N6:N59,"*:AF*",O6:O59)+SUMIF(N6:N59,"*:AH*",O6:O59)+SUMIF(N6:N59,"*:AJ*",O6:O59) -> 0 | Q61: =SUMIF(P6:P59,"*:F*",Q6:Q59)+SUMIF(P6:P59,"*:H*",Q6:Q59)+SUMIF(P6:P59,"*:J*",Q6:Q59)+SUMIF(P6:P59,"*:L*",Q6:Q59)+SUMIF(P6:P59,"*:N*",Q6:Q59)+SUMIF(P6:P59,"*:P*",Q6:Q59)+SUMIF(P6:P59,"*:R*",Q6:Q59)+SUMIF(P6:P59,"*:T*",Q6:Q59)+SUMIF(P6:P59,"*:V*",Q6:Q59)+SUMIF(P6:P59,"*:X*",Q6:Q59)+SUMIF(P6:P59,"*:Z*",Q6:Q59)+SUMIF(P6:P59,"*:AB*",Q6:Q59)+SUMIF(P6:P59,"*:AD*",Q6:Q59)+SUMIF(P6:P59,"*:AF*",Q6:Q59)+SUMIF(P6:P59,"*:AH*",Q6:Q59)+SUMIF(P6:P59,"*:AJ*",Q6:Q59) -> 0 | S61: =SUMIF(R6:R59,"*:F*",S6:S59)+SUMIF(R6:R59,"*:H*",S6:S59)+SUMIF(R6:R59,"*:J*",S6:S59)+SUMIF(R6:R59,"*:L*",S6:S59)+SUMIF(R6:R59,"*:N*",S6:S59)+SUMIF(R6:R59,"*:P*",S6:S59)+SUMIF(R6:R59,"*:R*",S6:S59)+SUMIF(R6:R59,"*:T*",S6:S59)+SUMIF(R6:R59,"*:V*",S6:S59)+SUMIF(R6:R59,"*:X*",S6:S59)+SUMIF(R6:R59,"*:Z*",S6:S59)+SUMIF(R6:R59,"*:AB*",S6:S59)+SUMIF(R6:R59,"*:AD*",S6:S59)+SUMIF(R6:R59,"*:AF*",S6:S59)+SUMIF(R6:R59,"*:AH*",S6:S59)+SUMIF(R6:R59,"*:AJ*",S6:S59) -> 0 | U61: =SUMIF(T6:T59,"*:F*",U6:U59)+SUMIF(T6:T59,"*:H*",U6:U59)+SUMIF(T6:T59,"*:J*",U6:U59)+SUMIF(T6:T59,"*:L*",U6:U59)+SUMIF(T6:T59,"*:N*",U6:U59)+SUMIF(T6:T59,"*:P*",U6:U59)+SUMIF(T6:T59,"*:R*",U6:U59)+SUMIF(T6:T59,"*:T*",U6:U59)+SUMIF(T6:T59,"*:V*",U6:U59)+SUMIF(T6:T59,"*:X*",U6:U59)+SUMIF(T6:T59,"*:Z*",U6:U59)+SUMIF(T6:T59,"*:AB*",U6:U59)+SUMIF(T6:T59,"*:AD*",U6:U59)+SUMIF(T6:T59,"*:AF*",U6:U59)+SUMIF(T6:T59,"*:AH*",U6:U59)+SUMIF(T6:T59,"*:AJ*",U6:U59) -> 0 | W61: =SUMIF(V6:V59,"*:F*",W6:W59)+SUMIF(V6:V59,"*:H*",W6:W59)+SUMIF(V6:V59,"*:J*",W6:W59)+SUMIF(V6:V59,"*:L*",W6:W59)+SUMIF(V6:V59,"*:N*",W6:W59)+SUMIF(V6:V59,"*:P*",W6:W59)+SUMIF(V6:V59,"*:R*",W6:W59)+SUMIF(V6:V59,"*:T*",W6:W59)+SUMIF(V6:V59,"*:V*",W6:W59)+SUMIF(V6:V59,"*:X*",W6:W59)+SUMIF(V6:V59,"*:Z*",W6:W59)+SUMIF(V6:V59,"*:AB*",W6:W59)+SUMIF(V6:V59,"*:AD*",W6:W59)+SUMIF(V6:V59,"*:AF*",W6:W59)+SUMIF(V6:V59,"*:AH*",W6:W59)+SUMIF(V6:V59,"*:AJ*",W6:W59) -> 0 | Y61: =SUMIF(X6:X59,"*:F*",Y6:Y59)+SUMIF(X6:X59,"*:H*",Y6:Y59)+SUMIF(X6:X59,"*:J*",Y6:Y59)+SUMIF(X6:X59,"*:L*",Y6:Y59)+SUMIF(X6:X59,"*:N*",Y6:Y59)+SUMIF(X6:X59,"*:P*",Y6:Y59)+SUMIF(X6:X59,"*:R*",Y6:Y59)+SUMIF(X6:X59,"*:T*",Y6:Y59)+SUMIF(X6:X59,"*:V*",Y6:Y59)+SUMIF(X6:X59,"*:X*",Y6:Y59)+SUMIF(X6:X59,"*:Z*",Y6:Y59)+SUMIF(X6:X59,"*:AB*",Y6:Y59)+SUMIF(X6:X59,"*:AD*",Y6:Y59)+SUMIF(X6:X59,"*:AF*",Y6:Y59)+SUMIF(X6:X59,"*:AH*",Y6:Y59)+SUMIF(X6:X59,"*:AJ*",Y6:Y59) -> 0 | AA61: =SUMIF(Z6:Z59,"*:F*",AA6:AA59)+SUMIF(Z6:Z59,"*:H*",AA6:AA59)+SUMIF(Z6:Z59,"*:J*",AA6:AA59)+SUMIF(Z6:Z59,"*:L*",AA6:AA59)+SUMIF(Z6:Z59,"*:N*",AA6:AA59)+SUMIF(Z6:Z59,"*:P*",AA6:AA59)+SUMIF(Z6:Z59,"*:R*",AA6:AA59)+SUMIF(Z6:Z59,"*:T*",AA6:AA59)+SUMIF(Z6:Z59,"*:V*",AA6:AA59)+SUMIF(Z6:Z59,"*:X*",AA6:AA59)+SUMIF(Z6:Z59,"*:Z*",AA6:AA59)+SUMIF(Z6:Z59,"*:AB*",AA6:AA59)+SUMIF(Z6:Z59,"*:AD*",AA6:AA59)+SUMIF(Z6:Z59,"*:AF*",AA6:AA59)+SUMIF(Z6:Z59,"*:AH*",AA6:AA59)+SUMIF(Z6:Z59,"*:AJ*",AA6:AA59) -> 0 | AC61: =SUMIF(AB6:AB59,"*:F*",AC6:AC59)+SUMIF(AB6:AB59,"*:H*",AC6:AC59)+SUMIF(AB6:AB59,"*:J*",AC6:AC59)+SUMIF(AB6:AB59,"*:L*",AC6:AC59)+SUMIF(AB6:AB59,"*:N*",AC6:AC59)+SUMIF(AB6:AB59,"*:P*",AC6:AC59)+SUMIF(AB6:AB59,"*:R*",AC6:AC59)+SUMIF(AB6:AB59,"*:T*",AC6:AC59)+SUMIF(AB6:AB59,"*:V*",AC6:AC59)+SUMIF(AB6:AB59,"*:X*",AC6:AC59)+SUMIF(AB6:AB59,"*:Z*",AC6:AC59)+SUMIF(AB6:AB59,"*:AB*",AC6:AC59)+SUMIF(AB6:AB59,"*:AD*",AC6:AC59)+SUMIF(AB6:AB59,"*:AF*",AC6:AC59)+SUMIF(AB6:AB59,"*:AH*",AC6:AC59)+SUMIF(AB6:AB59,"*:AJ*",AC6:AC59) -> 0 | AE61: =SUMIF(AD6:AD59,"*:F*",AE6:AE59)+SUMIF(AD6:AD59,"*:H*",AE6:AE59)+SUMIF(AD6:AD59,"*:J*",AE6:AE59)+SUMIF(AD6:AD59,"*:L*",AE6:AE59)+SUMIF(AD6:AD59,"*:N*",AE6:AE59)+SUMIF(AD6:AD59,"*:P*",AE6:AE59)+SUMIF(AD6:AD59,"*:R*",AE6:AE59)+SUMIF(AD6:AD59,"*:T*",AE6:AE59)+SUMIF(AD6:AD59,"*:V*",AE6:AE59)+SUMIF(AD6:AD59,"*:X*",AE6:AE59)+SUMIF(AD6:AD59,"*:Z*",AE6:AE59)+SUMIF(AD6:AD59,"*:AB*",AE6:AE59)+SUMIF(AD6:AD59,"*:AD*",AE6:AE59)+SUMIF(AD6:AD59,"*:AF*",AE6:AE59)+SUMIF(AD6:AD59,"*:AH*",AE6:AE59)+SUMIF(AD6:AD59,"*:AJ*",AE6:AE59) -> 0 | AG61: =SUMIF(AF6:AF59,"*:F*",AG6:AG59)+SUMIF(AF6:AF59,"*:H*",AG6:AG59)+SUMIF(AF6:AF59,"*:J*",AG6:AG59)+SUMIF(AF6:AF59,"*:L*",AG6:AG59)+SUMIF(AF6:AF59,"*:N*",AG6:AG59)+SUMIF(AF6:AF59,"*:P*",AG6:AG59)+SUMIF(AF6:AF59,"*:R*",AG6:AG59)+SUMIF(AF6:AF59,"*:T*",AG6:AG59)+SUMIF(AF6:AF59,"*:V*",AG6:AG59)+SUMIF(AF6:AF59,"*:X*",AG6:AG59)+SUMIF(AF6:AF59,"*:Z*",AG6:AG59)+SUMIF(AF6:AF59,"*:AB*",AG6:AG59)+SUMIF(AF6:AF59,"*:AD*",AG6:AG59)+SUMIF(AF6:AF59,"*:AF*",AG6:AG59)+SUMIF(AF6:AF59,"*:AH*",AG6:AG59)+SUMIF(AF6:AF59,"*:AJ*",AG6:AG59) -> 0 | AI61: =SUMIF(AH6:AH59,"*:F*",AI6:AI59)+SUMIF(AH6:AH59,"*:H*",AI6:AI59)+SUMIF(AH6:AH59,"*:J*",AI6:AI59)+SUMIF(AH6:AH59,"*:L*",AI6:AI59)+SUMIF(AH6:AH59,"*:N*",AI6:AI59)+SUMIF(AH6:AH59,"*:P*",AI6:AI59)+SUMIF(AH6:AH59,"*:R*",AI6:AI59)+SUMIF(AH6:AH59,"*:T*",AI6:AI59)+SUMIF(AH6:AH59,"*:V*",AI6:AI59)+SUMIF(AH6:AH59,"*:X*",AI6:AI59)+SUMIF(AH6:AH59,"*:Z*",AI6:AI59)+SUMIF(AH6:AH59,"*:AB*",AI6:AI59)+SUMIF(AH6:AH59,"*:AD*",AI6:AI59)+SUMIF(AH6:AH59,"*:AF*",AI6:AI59)+SUMIF(AH6:AH59,"*:AH*",AI6:AI59)+SUMIF(AH6:AH59,"*:AJ*",AI6:AI59) -> 0 | AK61: =SUMIF(AJ6:AJ59,"*:F*",AK6:AK59)+SUMIF(AJ6:AJ59,"*:H*",AK6:AK59)+SUMIF(AJ6:AJ59,"*:J*",AK6:AK59)+SUMIF(AJ6:AJ59,"*:L*",AK6:AK59)+SUMIF(AJ6:AJ59,"*:N*",AK6:AK59)+SUMIF(AJ6:AJ59,"*:P*",AK6:AK59)+SUMIF(AJ6:AJ59,"*:R*",AK6:AK59)+SUMIF(AJ6:AJ59,"*:T*",AK6:AK59)+SUMIF(AJ6:AJ59,"*:V*",AK6:AK59)+SUMIF(AJ6:AJ59,"*:X*",AK6:AK59)+SUMIF(AJ6:AJ59,"*:Z*",AK6:AK59)+SUMIF(AJ6:AJ59,"*:AB*",AK6:AK59)+SUMIF(AJ6:AJ59,"*:AD*",AK6:AK59)+SUMIF(AJ6:AJ59,"*:AF*",AK6:AK59)+SUMIF(AJ6:AJ59,"*:AH*",AK6:AK59)+SUMIF(AJ6:AJ59,"*:AJ*",AK6:AK59) -> 0 | AL61: =SUM(G61:AK61) -> 0 | AS61: 放假後上課總節數
C62: 融入節數: | E62: =SUM(E6:E59) -> 23 | G62: =SUM(G63-G60-G61) -> 0 | I62: =SUM(I63-I60-I61) -> 0 | K62: =SUM(K63-K60-K61) -> 0 | M62: =SUM(M63-M60-M61) -> 0 | O62: =SUM(O63-O60-O61) -> 0 | Q62: =SUM(Q63-Q60-Q61) -> 0 | S62: =SUM(S63-S60-S61) -> 0 | U62: =SUM(U63-U60-U61) -> 3 | W62: =SUM(W63-W60-W61) -> 0 | Y62: =SUM(Y63-Y60-Y61) -> 0 | AA62: =SUM(AA63-AA60-AA61) -> 3 | AC62: =SUM(AC63-AC60-AC61) -> 3 | AE62: =SUM(AE63-AE60-AE61) -> 2 | AG62: =SUM(AG63-AG60-AG61) -> 6 | AI62: =SUM(AI63-AI60-AI61) -> 15 | AK62: =SUM(AK63-AK60-AK61) -> 20 | AL62: =SUM(G62:AK62) -> 52 | AS62: 10
C63: 總節數: | E63: =SUM(E6:E59) -> 23 | G63: =SUM(G6:G59) -> 16 | I63: =SUM(I6:I59) -> 18 | K63: =SUM(K6:K59) -> 17 | M63: =SUM(M6:M59) -> 7 | O63: =SUM(O6:O59) -> 9 | Q63: =SUM(Q6:Q59) -> 0 | S63: =SUM(S6:S59) -> 9 | U63: =SUM(U6:U59) -> 81 | W63: =SUM(W6:W59) -> 17 | Y63: =SUM(Y6:Y59) -> 17 | AA63: =SUM(AA6:AA59) -> 65 | AC63: =SUM(AC6:AC59) -> 54 | AE63: =SUM(AE6:AE59) -> 53 | AG63: =SUM(AG6:AG59) -> 68 | AI63: =SUM(AI6:AI59) -> 66 | AK63: =SUM(AK6:AK59) -> 71 | AL63: =SUM(E63:AK63) -> 591 | AQ63: =SUM(AL63-AL61-AL62-AP60) -> 530

Sheet 作業平台__教育部局年度規定節數
M1: =IF(I1="","",IF((J1+K1+L1)<T1,"錯,最低節數:"&T1,J1+K1+L1)) ->  | Q1: =IF(I1="","",IF((N1+O1+P1)<U1,"錯,最低節數:"&U1,N1+O1+P1)) ->  | R1: =IF(I1="","",IF(ISERROR(M1+Q1),"錯誤",IF((M1+Q1)<V1,"錯誤,最低節數:"&V1,M1+Q1))) ->  | S1: =IF(H1="","",IF(AND(H1="A",OR(K1>0,L1>0,O1>0,P1>0)),"錯誤",IF(AND(H1="B",OR(J1>0,L1>0,N1>0,P1>0)),"錯誤",IF(AND(H1="C",OR(L1>0,P1>0)),"錯誤",IF(AND(H1="D",OR(J1>0,K1>0,N1>0,O1>0)),"錯誤",""))))) ->  | T1: 公式儲存 | U1: 公式恢復 | W1: =IF(OR(RIGHT(X1,1)=",",RIGHT(Y1,1)=",",RIGHT(Z1,1)=",",RIGHT(AA1,1)=",",RIGHT(AB1,1)=",",RIGHT(AC1,1)=",",RIGHT(AD1,1)=",",RIGHT(AE1,1)=",",RIGHT(AF1,1)=","),"錯多，",IF(OR(LEFT(X1,1)=",",LEFT(Y1,1)=",",LEFT(Z1,1)=",",LEFT(AA1,1)=",",LEFT(AB1,1)=",",LEFT(AC1,1)=",",LEFT(AD1,1)=",",LEFT(AE1,1)=",",LEFT(AF1,1)=","),"錯多，","")) ->  | AE1: 步驟4 | AG1: =IF(X1="",0,LEN(X1)-LEN(SUBSTITUTE(X1,",",""))+1)+IF(Y1="",0,LEN(Y1)-LEN(SUBSTITUTE(Y1,",",""))+1)+IF(Z1="",0,LEN(Z1)-LEN(SUBSTITUTE(Z1,",",""))+1)+IF(AA1="",0,LEN(AA1)-LEN(SUBSTITUTE(AA1,",",""))+1)+IF(AB1="",0,LEN(AB1)-LEN(SUBSTITUTE(AB1,",",""))+1)+IF(AC1="",0,LEN(AC1)-LEN(SUBSTITUTE(AC1,",",""))+1)+IF(AD1="",0,LEN(AD1)-LEN(SUBSTITUTE(AD1,",",""))+1) -> 0 | AH1: =IF(AE1="",0,LEN(AE1)-LEN(SUBSTITUTE(AE1,",",""))+1) -> 1 | AI1: =IF(AF1="",0,LEN(AF1)-LEN(SUBSTITUTE(AF1,",",""))+1) -> 0 | AJ1: =IF(AND(M1=0,(AG1+AH1+AI1)>0),"錯誤輸入",IF(AND(J1="",K1="",L1=""),"",IF(AND(AG1=J1,AH1=K1,AI1=L1),"正確","No"))) ->  | AK1: =COUNTIF(AK6:AK118,">5") -> 0 | AM1: =COUNTIF(AM6:AM40,">6") -> 0 | AQ1: =IF(OR(RIGHT(AR1,1)=",",RIGHT(AS1,1)=",",RIGHT(AT1,1)=",",RIGHT(AU1,1)=",",RIGHT(AV1,1)=",",RIGHT(AW1,1)=",",RIGHT(AX1,1)=",",RIGHT(AY1,1)=",",RIGHT(AZ1,1)=","),"錯多，",IF(OR(LEFT(AR1,1)=",",LEFT(AS1,1)=",",LEFT(AT1,1)=",",LEFT(AU1,1)=",",LEFT(AV1,1)=",",LEFT(AW1,1)=",",LEFT(AX1,1)=",",LEFT(AY1,1)=",",LEFT(AZ1,1)=","),"錯多，","")) ->  | AR1: 步驟3 | AY1: 步驟4 | AZ1: =IF(AND(AR3="",AU3="",AV3="",AY3="",AZ3=""),"",IF(AND(Q3=BD3,BD3=BH3),"你很棒,輸入全部正確!可以按步驟4"," 尚未完成,加油!")) -> 你很棒,輸入全部正確!可以按步驟4 | BA1: =IF(AR1="",0,LEN(AR1)-LEN(SUBSTITUTE(AR1,",",""))+1)+IF(AS1="",0,LEN(AS1)-LEN(SUBSTITUTE(AS1,",",""))+1)+IF(AT1="",0,LEN(AT1)-LEN(SUBSTITUTE(AT1,",",""))+1)+IF(AU1="",0,LEN(AU1)-LEN(SUBSTITUTE(AU1,",",""))+1)+IF(AV1="",0,LEN(AV1)-LEN(SUBSTITUTE(AV1,",",""))+1)+IF(AW1="",0,LEN(AW1)-LEN(SUBSTITUTE(AW1,",",""))+1)+IF(AX1="",0,LEN(AX1)-LEN(SUBSTITUTE(AX1,",",""))+1) -> 1 | BB1: =IF(AY1="",0,LEN(AY1)-LEN(SUBSTITUTE(AY1,",",""))+1) -> 1 | BC1: =IF(AZ1="",0,LEN(AZ1)-LEN(SUBSTITUTE(AZ1,",",""))+1) -> 2 | BD1: =IF(AND(Q1=0,(BA1+BB1+BC1)>0),"錯誤輸入",IF(AND(N1="",O1="",P1=""),"",IF(AND(BA1=N1,BB1=O1,BC1=P1),"正確","No"))) ->  | BE1: =COUNTIF(BE6:BE118,">5") -> 0 | BG1: =COUNTIF(BG6:BG40,">6") -> 0 | CE1: 1 | CP1: 13
D2: 這是:6年級子檔 | G2: 上學期彈性節數分配檢核 | H2: 下學期彈性節數分配檢核 | I2: 6下分配檢核 | J2: 部&局法定最低節數&各校可依需求新增節數 | X2: ※步驟2:(上課_週次/節數/融入領域/設定)&操作方法:(在X~AB欄綠色儲存格滑鼠左鍵快按2次選取) | AJ2: =COUNTIF(AJ6:AJ43,"No")+COUNTIF(AJ6:AJ43,"錯誤輸入") -> 0 | AL2: 目前已設定的彈性節數(參考用) | AR2: ※步驟2:(上課_週次/節數/融入領域/設定)& 操作方法:(在AR~AV欄綠色儲存格滑鼠左鍵快按2次選取) | BD2: =COUNTIF(BD6:BD43,"No")+COUNTIF(BD6:BD43,"錯誤輸入") -> 0 | BF2: 目前已設定的彈性節數(參考用)
B3: 1 | E3: 插入一列 | F3: 刪除一列 | G3: =IF(I5="","",IF(SUMIF($E$6:$E$43,"SA",$J$6:$J$43)>使用說明!O3,"A2節數太多",IF(SUMIF($E$6:$E$43,"SB",$J$6:$J$43)>使用說明!O3,"A3節數太多",IF(SUMIF($E$6:$E$43,"SC",$J$6:$J$43)>使用說明!O3,"A4節數太多",IF(SUMIF($E$6:$E$43,"SD",$J$6:$J$43)>使用說明!O3,"A5節數太多",IF(SUMIF($E$6:$E$43,"SE",$J$6:$J$43)>使用說明!O3,"A6節數太多",IF(SUMIF($E$6:$E$43,"SF",$J$6:$J$43)>使用說明!O3,"A7節數太多","OK"))))))) -> OK | H3: =IF(OR(I5="",I5=6),"",IF(SUMIF($E$6:$E$43,"SA",$N$6:$N$43)>使用說明!O4,"A2節數太多",IF(SUMIF($E$6:$E$43,"SB",$N$6:$N$43)>使用說明!O4,"A3節數太多",IF(SUMIF($E$6:$E$43,"SC",$N$6:$N$43)>使用說明!O4,"A4節數太多",IF(SUMIF($E$6:$E$43,"SD",$N$6:$N$43)>使用說明!O4,"A5節數太多",IF(SUMIF($E$6:$E$43,"SE",$N$6:$N$43)>使用說明!O4,"A6節數太多",IF(SUMIF($E$6:$E$43,"SF",$N$6:$N$43)>使用說明!O4,"A7節數太多","OK"))))))) ->  | I3: =IF(OR(I5="",I5<>6),"",IF(SUMIF($E$6:$E$43,"SA",$N$6:$N$43)>使用說明!O5,"A2節數太多",IF(SUMIF($E$6:$E$43,"SB",$N$6:$N$43)>使用說明!O5,"A3節數太多",IF(SUMIF($E$6:$E$43,"SC",$N$6:$N$43)>使用說明!O5,"A4節數太多",IF(SUMIF($E$6:$E$43,"SD",$N$6:$N$43)>使用說明!O5,"A5節數太多",IF(SUMIF($E$6:$E$43,"SE",$N$6:$N$43)>使用說明!O5,"A6節數太多",IF(SUMIF($E$6:$E$43,"SF",$N$6:$N$43)>使用說明!O5,"A7節數太多","OK"))))))) -> OK | J3: =IF(I5="","",IF(VLOOKUP(I5,使用說明!B13:D18,2)="","",IF(J5>(VLOOKUP(I5,使用說明!B13:D18,2)),"彈性節數太多!",IF(J5<(VLOOKUP(I5,使用說明!B13:D18,2)),"彈性節數太少","正確")))) -> 正確 | K3: 上學期 | N3: =IF(I5="","",IF(VLOOKUP(I5,使用說明!B13:D18,3)="","",IF(N5>(VLOOKUP(I5,使用說明!B13:D18,3)),"彈性節數太多!",IF(N5<(VLOOKUP(I5,使用說明!B13:D18,3)),"彈性節數太少","正確")))) -> 正確 | O3: 下學期 | R3: =IF(COUNTIF(R6:R43,"錯誤*")>0,"錯誤請修正!","") ->  | S3: 1*1 | T3: * | U3: REF | X3: 上學期 | Y3: =IF(AND(X5="",Y5="",Z5="",AA5="",AB5="",AC5="",AD5=""),"",IF(AG5=0,"",IF(AJ2>0,"尚未完成或輸入錯誤請修正!",IF(AND(M5=AJ5,AJ5=AN5,AM1>0),"你很棒,輸入全部正確，但是有週次彈性節數太多須修正(補課例外)!","你很棒,輸入全部正確!!可以按步驟4")))) -> 你很棒,輸入全部正確!!可以按步驟4 | AL3: =IF(AM5=0,"",IF(AM1>0,"(※※紅色數字表示該週彈性節數太多!!)","(※各週彈性節數OK正確)")) -> (※各週彈性節數OK正確) | AR3: 下學期 | AS3: =IF(AND(AR5="",AS5="",AT5="",AU5="",AV5="",AW5="",AX5=""),"",IF(BA5=0,"",IF(BD2>0,"尚未完成或輸入錯誤請修正!",IF(AND(Q5=BD5,BD5=BH5,BG1>0),"你很棒,輸入全部正確，但是有週次彈性節數太多須修正(補課例外)","你很棒,輸入全部正確!!可以按步驟4")))) -> 你很棒,輸入全部正確!!可以按步驟4 | BF3: =IF(BG5=0,"",IF(BG1>0,"(※※紅色數字表示該週彈性節數太多!!)","(※各週彈性節數OK正確)")) -> (※各週彈性節數OK正確)
C4: 顏色管理_插入一列/(學校自行調整) | D4: 編號 | E4: 項目代號 | F4: 檢核項目大綱__學校可自訂新增項目_全校1~6各年級可在< 作業平台設定完成> | G4: 指定校訂課程欄位/內定融入領域 | H4: 課程類別代號 | I4: 年級 | J4: A:彈性 | K4: B:融入領域 | L4: D:非領域 | M4: 節數合計 | N4: A:彈性 | O4: B:融入領域 | P4: D:非領域 | Q4: 節數合計 | R4: 學年度總節數: | S4: J | T4: 上學期最低節數 | U4: 下學期最低節數 | V4: 總節數 | W4: & | X4: 全校_各年級_活動 | Y4: 校本課程 | Z4: 資訊教育 | AA4: 英語 | AB4: 國語學習診斷與補救 | AC4: 數學學習診斷與補救 | AE4: B:融入領域課程 | AF4: D:非領域 | AG4: 彈性合計 | AH4: 融入節數 | AI4: 非領域節數 | AJ4: 節數正確否? | AL4: 週次 | AM4: 已設定的彈性節數 | AN4: 各週已設定的彈+融+非領域節數 | AO4: 彈性課程(自訂)跨領域設定D2總節數 | AP4: 跨領域節數小計 | AR4: 全校_各年級_活動 | AS4: 校本課程 | AT4: 資訊教育 | AU4: 英語 | AV4: 國語學習診斷與補救 | AW4: 數學學習診斷與補救 | AY4: =AE4 -> B:融入領域課程 | AZ4: =AF4 -> D:非領域 | BA4: 彈性合計 | BB4: 融入節數 | BC4: 非領域節數 | BD4: 節數正確否? | BF4: 週次 | BG4: 已設定的彈性節數 | BH4: 各週已設定的彈+融+非領域節數 | BI4: 彈性課程(自訂)跨領域設定D2總節數 | BJ4: 跨領域節數小計
A5: 1* | C5: 1.教 2.學 3.總 4.輔 | D5: 在編號儲存格滑鼠快按2次可刪除該列 | F5: 說明:校訂彈性課程,項目自訂,等單元名稱確定後,再執行更新 | G5: 說明:避免校本更換單名稱錯誤 | H5: A:彈性B:融入C:A或B皆可D:非領域E:任何 | I5: 6 | J5: =SUMIF($I$6:$I$43,$I$5,J6:J43)+SUMIF($I$6:$I$43,"=1~6",J6:J43)+SUMIF($I$6:$I$43,"=2~6",J6:J43)+SUMIF($I$6:$I$43,"=3~6",J6:J43)+SUMIF($I$6:$I$43,"=4~6",J6:J43)+SUMIF($I$6:$I$43,"=5~6",J6:J43) -> 105 | K5: =SUMIF($I$6:$I$43,$I$5,K6:K43)+SUMIF($I$6:$I$43,"=1~6",K6:K43)+SUMIF($I$6:$I$43,"=2~6",K6:K43)+SUMIF($I$6:$I$43,"=3~6",K6:K43)+SUMIF($I$6:$I$43,"=4~6",K6:K43)+SUMIF($I$6:$I$43,"=5~6",K6:K43) -> 46 | L5: =SUMIF($I$6:$I$43,$I$5,L6:L43)+SUMIF($I$6:$I$43,"=1~6",L6:L43)+SUMIF($I$6:$I$43,"=2~6",L6:L43)+SUMIF($I$6:$I$43,"=3~6",L6:L43)+SUMIF($I$6:$I$43,"=4~6",L6:L43)+SUMIF($I$6:$I$43,"=5~6",L6:L43) -> 9 | M5: =SUM(J5:L5) -> 160 | N5: =SUMIF($I$6:$I$43,$I$5,N6:N43)+SUMIF($I$6:$I$43,"=1~6",N6:N43)+SUMIF($I$6:$I$43,"=2~6",N6:N43)+SUMIF($I$6:$I$43,"=3~6",N6:N43)+SUMIF($I$6:$I$43,"=4~6",N6:N43)+SUMIF($I$6:$I$43,"=5~6",N6:N43) -> 90 | O5: =SUMIF($I$6:$I$43,$I$5,O6:O43)+SUMIF($I$6:$I$43,"=1~6",O6:O43)+SUMIF($I$6:$I$43,"=2~6",O6:O43)+SUMIF($I$6:$I$43,"=3~6",O6:O43)+SUMIF($I$6:$I$43,"=4~6",O6:O43)+SUMIF($I$6:$I$43,"=5~6",O6:O43) -> 52 | P5: =SUMIF($I$6:$I$43,$I$5,P6:P43)+SUMIF($I$6:$I$43,"=1~6",P6:P43)+SUMIF($I$6:$I$43,"=2~6",P6:P43)+SUMIF($I$6:$I$43,"=3~6",P6:P43)+SUMIF($I$6:$I$43,"=4~6",P6:P43)+SUMIF($I$6:$I$43,"=5~6",P6:P43) -> 9 | Q5: =SUM(N5:P5) -> 151 | R5: =M5+Q5 -> 311 | X5: 17 | Y5: 20 | Z5: 21 | AA5: 21 | AB5: 11 | AC5: 15 | AD5: 0 | AE5: 46 | AF5: 9 | AG5: 105 | AH5: 46 | AI5: 9 | AJ5: 160 | AL5: 合計 | AM5: 105 | AN5: 160 | AR5: 23 | AS5: 16 | AT5: 18 | AU5: 17 | AV5: 7 | AW5: 9 | AX5: 0 | AY5: 52 | AZ5: 9 | BA5: 90 | BB5: 52 | BC5: 9 | BD5: 151 | BF5: 合計 | BG5: 90 | BH5: 151 | CL5: T_1,AJ_1
B6: =IF(COUNTIF($E$6:$E$43,E6)>1,"代號重複,須更正","") ->  | C6: 1 | D6: 1 | E6: AC | F6: 家政教育 | G6: 9綜合 | H6: B | I6: 5~6 | K6: 12 | M6: =IF(I6="","",IF((J6+K6+L6)<T6,"錯,最低節數:"&T6,J6+K6+L6)) -> 12 | O6: 12 | Q6: =IF(I6="","",IF((N6+O6+P6)<U6,"錯,最低節數:"&U6,N6+O6+P6)) -> 12 | R6: =IF(I6="","",IF(ISERROR(M6+Q6),"錯誤",IF((M6+Q6)<V6,"錯誤,最低節數:"&V6,M6+Q6))) -> 24 | S6: =IF(H6="","",IF(AND(H6="A",OR(K6>0,L6>0,O6>0,P6>0)),"錯誤",IF(AND(H6="B",OR(J6>0,L6>0,N6>0,P6>0)),"錯誤",IF(AND(H6="C",OR(L6>0,P6>0)),"錯誤",IF(AND(H6="D",OR(J6>0,K6>0,N6>0,O6>0)),"錯誤",""))))) ->  | T6: 12 | U6: 12 | V6: =T6+U6 -> 24 | W6: =IF(OR(RIGHT(X6,1)=",",RIGHT(AA6,1)=",",RIGHT(AB6,1)=",",RIGHT(AE6,1)=",",RIGHT(AF6,1)=","),"錯多，",IF(OR(LEFT(X6,1)=",",LEFT(AA6,1)=",",LEFT(AB6,1)=",",LEFT(AE6,1)=",",LEFT(AF6,1)=","),"錯多，","")) ->  | AE6: AJ_9,AJ_9,AJ_9,AJ_10,AJ_10,AJ_10,AJ_11,AJ_11,AJ_11,AJ_13,AJ_13,AJ_13 | AG6: =IF(X6="",0,LEN(X6)-LEN(SUBSTITUTE(X6,",",""))+1)+IF(Y6="",0,LEN(Y6)-LEN(SUBSTITUTE(Y6,",",""))+1)+IF(Z6="",0,LEN(Z6)-LEN(SUBSTITUTE(Z6,",",""))+1)+IF(AA6="",0,LEN(AA6)-LEN(SUBSTITUTE(AA6,",",""))+1)+IF(AB6="",0,LEN(AB6)-LEN(SUBSTITUTE(AB6,",",""))+1)+IF(AC6="",0,LEN(AC6)-LEN(SUBSTITUTE(AC6,",",""))+1)+IF(AD6="",0,LEN(AD6)-LEN(SUBSTITUTE(AD6,",",""))+1) -> 0 | AH6: =IF(AE6="",0,LEN(AE6)-LEN(SUBSTITUTE(AE6,",",""))+1) -> 12 | AI6: =IF(AF6="",0,LEN(AF6)-LEN(SUBSTITUTE(AF6,",",""))+1) -> 0 | AJ6: =IF(AND(M6=0,(AG6+AH6+AI6)>0),"錯誤輸入",IF(AND(J6="",K6="",L6=""),"",IF(AND(AG6=J6,K6=AH6,AI6=L6),"正確","No"))) -> 正確 | AL6: 第1週 | AM6: 5 | AN6: 9 | AQ6: =IF(OR(RIGHT(AR6,1)=",",RIGHT(AU6,1)=",",RIGHT(AV6,1)=",",RIGHT(AY6,1)=",",RIGHT(AZ6,1)=","),"錯多，",IF(OR(LEFT(AR6,1)=",",LEFT(AU6,1)=",",LEFT(AV6,1)=",",LEFT(AY6,1)=",",LEFT(AZ6,1)=","),"錯多，","")) ->  | AY6: AJ_9,AJ_9,AJ_9,AJ_10,AJ_10,AJ_10,AJ_11,AJ_11,AJ_11,AJ_12,AJ_12,AJ_12 | BA6: =IF(AR6="",0,LEN(AR6)-LEN(SUBSTITUTE(AR6,",",""))+1)+IF(AS6="",0,LEN(AS6)-LEN(SUBSTITUTE(AS6,",",""))+1)+IF(AT6="",0,LEN(AT6)-LEN(SUBSTITUTE(AT6,",",""))+1)+IF(AU6="",0,LEN(AU6)-LEN(SUBSTITUTE(AU6,",",""))+1)+IF(AV6="",0,LEN(AV6)-LEN(SUBSTITUTE(AV6,",",""))+1)+IF(AW6="",0,LEN(AW6)-LEN(SUBSTITUTE(AW6,",",""))+1)+IF(AX6="",0,LEN(AX6)-LEN(SUBSTITUTE(AX6,",",""))+1) -> 0 | BB6: =IF(AY6="",0,LEN(AY6)-LEN(SUBSTITUTE(AY6,",",""))+1) -> 12 | BC6: =IF(AZ6="",0,LEN(AZ6)-LEN(SUBSTITUTE(AZ6,",",""))+1) -> 0 | BD6: =IF(AND(Q6=0,(BA6+BB6+BC6)>0),"錯誤輸入",IF(AND(N6="",O6="",P6=""),"",IF(AND(BA6=N6,BB6=O6,BC6=P6),"正確","No"))) -> 正確 | BF6: 第1週 | BG6: 5 | BH6: 13
C7: 4 | D7: 2 | E7: AD | F7: 家庭教育 | H7: D | I7: 1~6 | L7: 3 | M7: 3 | P7: 3 | Q7: 3 | R7: 6 | T7: 0 | U7: 0 | V7: 6 | AF7: 1,1,1 | AG7: 0 | AH7: =IF(AE7="",0,LEN(AE7)-LEN(SUBSTITUTE(AE7,",",""))+1) -> 0 | AI7: 3 | AJ7: 正確 | AL7: 第2週 | AM7: 5 | AN7: 8 | AQ7: =IF(OR(RIGHT(AR7,1)=",",RIGHT(AU7,1)=",",RIGHT(AV7,1)=",",RIGHT(AY7,1)=",",RIGHT(AZ7,1)=","),"錯多，",IF(OR(LEFT(AR7,1)=",",LEFT(AU7,1)=",",LEFT(AV7,1)=",",LEFT(AY7,1)=",",LEFT(AZ7,1)=","),"錯多，","")) ->  | AZ7: 2,2,2 | BA7: 0 | BB7: 0 | BC7: =IF(AZ7="",0,LEN(AZ7)-LEN(SUBSTITUTE(AZ7,",",""))+1) -> 3 | BD7: 正確 | BF7: 第2週 | BG7: 5 | BH7: 29
C8: 4 | D8: 3 | E8: AE | F8: 家暴_家庭暴力防治教育 | H8: E | I8: 1~6 | L8: 3 | M8: 3 | P8: 3 | Q8: 3 | R8: 6 | T8: 0 | U8: 0 | V8: 6 | AF8: 3,3,3 | AG8: 0 | AH8: 0 | AI8: 3 | AJ8: 正確 | AL8: 第3週 | AM8: 5 | AN8: 6 | AQ8: =IF(OR(RIGHT(AR8,1)=",",RIGHT(AU8,1)=",",RIGHT(AV8,1)=",",RIGHT(AY8,1)=",",RIGHT(AZ8,1)=","),"錯多，",IF(OR(LEFT(AR8,1)=",",LEFT(AU8,1)=",",LEFT(AV8,1)=",",LEFT(AY8,1)=",",LEFT(AZ8,1)=","),"錯多，","")) ->  | AZ8: 13,13,13 | BA8: 0 | BB8: 0 | BC8: =IF(AZ8="",0,LEN(AZ8)-LEN(SUBSTITUTE(AZ8,",",""))+1) -> 3 | BD8: 正確 | BF8: 第3週 | BG8: 5 | BH8: 11
C9: 2 | D9: 4 | E9: AF | F9: 友善校園 | H9: D | I9: 1~6 | L9: 1 | M9: 1 | P9: 1 | Q9: 1 | R9: 2 | T9: 1 | U9: 1 | V9: 2 | AF9: 1 | AG9: 0 | AH9: 0 | AI9: 1 | AJ9: 正確 | AL9: 第4週 | AM9: 5 | AN9: 6 | AQ9: =IF(OR(RIGHT(AR9,1)=",",RIGHT(AU9,1)=",",RIGHT(AV9,1)=",",RIGHT(AY9,1)=",",RIGHT(AZ9,1)=","),"錯多，",IF(OR(LEFT(AR9,1)=",",LEFT(AU9,1)=",",LEFT(AV9,1)=",",LEFT(AY9,1)=",",LEFT(AZ9,1)=","),"錯多，","")) ->  | AZ9: 1 | BA9: 0 | BB9: 0 | BC9: =IF(AZ9="",0,LEN(AZ9)-LEN(SUBSTITUTE(AZ9,",",""))+1) -> 1 | BD9: 正確 | BF9: 第4週 | BG9: 5 | BH9: 11
C10: 4 | D10: 5 | E10: AG | F10: 性侵害防治教育 | H10: E | I10: 1~6 | K10: 2 | L10: 1 | M10: 3 | O10: 2 | P10: 1 | Q10: 3 | R10: 6 | T10: 0 | U10: 0 | V10: 6 | AE10: AH_1,AH_2 | AF10: 6 | AG10: 0 | AH10: 2 | AI10: 1 | AJ10: 正確 | AL10: 第5週 | AM10: 5 | AN10: 6 | AQ10: =IF(OR(RIGHT(AR10,1)=",",RIGHT(AU10,1)=",",RIGHT(AV10,1)=",",RIGHT(AY10,1)=",",RIGHT(AZ10,1)=","),"錯多，",IF(OR(LEFT(AR10,1)=",",LEFT(AU10,1)=",",LEFT(AV10,1)=",",LEFT(AY10,1)=",",LEFT(AZ10,1)=","),"錯多，","")) ->  | AY10: AH_3,AH_3 | AZ10: 5 | BA10: 0 | BB10: 2 | BC10: =IF(AZ10="",0,LEN(AZ10)-LEN(SUBSTITUTE(AZ10,",",""))+1) -> 1 | BD10: 正確 | BF10: 第5週 | BG10: 5 | BH10: 9
C11: 4 | D11: 6 | E11: AH | F11: 性別平等教育 | H11: E | I11: 1~6 | K11: 6 | M11: 6 | O11: 6 | Q11: 6 | R11: 12 | T11: 6 | U11: 6 | V11: 12 | AE11: AH_1,AH_2,AH_4,AH_5,AH_6,AH_9 | AG11: 0 | AH11: 6 | AI11: 0 | AJ11: 正確 | AL11: 第6週 | AM11: 5 | AN11: 6 | AQ11: =IF(OR(RIGHT(AR11,1)=",",RIGHT(AU11,1)=",",RIGHT(AV11,1)=",",RIGHT(AY11,1)=",",RIGHT(AZ11,1)=","),"錯多，",IF(OR(LEFT(AR11,1)=",",LEFT(AU11,1)=",",LEFT(AV11,1)=",",LEFT(AY11,1)=",",LEFT(AZ11,1)=","),"錯多，","")) ->  | AY11: AH_1,AH_1,AH_2,AH_2,AH_4,AH_4 | BA11: 0 | BB11: 6 | BC11: 0 | BD11: 正確 | BF11: 第6週 | BG11: 5 | BH11: 10
C12: 2 | D12: 7 | E12: AI | F12: 環境教育 | H12: E | I12: 1~6 | K12: 2 | M12: 2 | O12: 2 | Q12: 2 | R12: 4 | T12: 0 | U12: 0 | V12: 4 | AE12: AF_12,AF_12 | AG12: 0 | AH12: 2 | AI12: 0 | AJ12: 正確 | AL12: 第7週 | AM12: 5 | AN12: 8 | AY12: AJ_1,AJ_1 | BA12: 0 | BB12: 2 | BC12: 0 | BD12: 正確 | BF12: 第7週 | BG12: 5 | BH12: 8
C13: 2 | D13: 8 | E13: AJ | F13: 防災教育 | H13: E | I13: 1~6 | K13: 1 | L13: 1 | M13: 2 | O13: 1 | P13: 1 | Q13: 2 | R13: 4 | T13: 2 | U13: 2 | V13: 4 | AE13: AJ_20 | AF13: 4 | AG13: 0 | AH13: 1 | AI13: 1 | AJ13: 正確 | AL13: 第8週 | AM13: 5 | AN13: 7 | AY13: AH_6 | AZ13: 3 | BA13: 0 | BB13: 1 | BC13: 1 | BD13: 正確 | BF13: 第8週 | BG13: 5 | BH13: 8
C14: 2 | D14: 9 | E14: AL | F14: 登革熱防治 | G14: 8健體 | H14: B | I14: 1~6 | K14: 1 | M14: 1 | O14: 1 | Q14: 1 | R14: 2 | T14: 1 | U14: 1 | V14: 2 | W14: =IF(OR(RIGHT(X14,1)=",",RIGHT(AA14,1)=",",RIGHT(AB14,1)=",",RIGHT(AE14,1)=",",RIGHT(AF14,1)=","),"錯多，",IF(OR(LEFT(X14,1)=",",LEFT(AA14,1)=",",LEFT(AB14,1)=",",LEFT(AE14,1)=",",LEFT(AF14,1)=","),"錯多，","")) ->  | AE14: AH_7 | AG14: =IF(X14="",0,LEN(X14)-LEN(SUBSTITUTE(X14,",",""))+1)+IF(Y14="",0,LEN(Y14)-LEN(SUBSTITUTE(Y14,",",""))+1)+IF(Z14="",0,LEN(Z14)-LEN(SUBSTITUTE(Z14,",",""))+1)+IF(AA14="",0,LEN(AA14)-LEN(SUBSTITUTE(AA14,",",""))+1)+IF(AB14="",0,LEN(AB14)-LEN(SUBSTITUTE(AB14,",",""))+1)+IF(AC14="",0,LEN(AC14)-LEN(SUBSTITUTE(AC14,",",""))+1)+IF(AD14="",0,LEN(AD14)-LEN(SUBSTITUTE(AD14,",",""))+1) -> 0 | AH14: 1 | AI14: 0 | AJ14: 正確 | AL14: 第9週 | AM14: 5 | AN14: 9 | AY14: AH_6 | BA14: 0 | BB14: 1 | BC14: 0 | BD14: 正確 | BF14: 第9週 | BG14: 5 | BH14: 11
C15: 1 | D15: 10 | E15: AN | F15: 作文教學 | H15: C | I15: 3~6 | J15: 8 | M15: 8 | N15: 8 | Q15: 8 | R15: 16 | T15: 4 | U15: 4 | V15: 8 | X15: 5,5,10,10,13,13,18,18 | AG15: 8 | AH15: 0 | AI15: 0 | AJ15: 正確 | AL15: 第10週 | AM15: 5 | AN15: 9 | AR15: 3,3,9,9,13,13,15,15 | BA15: 8 | BB15: 0 | BC15: 0 | BD15: 正確 | BF15: 第10週 | BG15: 5 | BH15: 11
C16: 2 | D16: 11 | E16: AQ | F16: 戶外教育 | H16: C | I16: 6 | K16: 7 | M16: 7 | O16: 18 | Q16: 18 | R16: 25 | T16: 0 | U16: 0 | V16: 0 | AE16: T_17,T_17,AF_17,AF_17,AJ_17,AJ_17,AJ_17 | AG16: 0 | AH16: 7 | AI16: 0 | AJ16: 正確 | AL16: 第11週 | AM16: 5 | AN16: 8 | AY16: T_2,T_2,T_2,Z_2,Z_2,Z_2,AB_2,AB_2,AB_2,AD_2,AD_2,AF_2,AF_2,AF_2,AF_2,AJ_2,AJ_2,AJ_2 | BA16: 0 | BB16: 18 | BC16: 0 | BD16: 正確 | BF16: 第11週 | BG16: 5 | BH16: 11
C17: 2 | D17: 12 | E17: BA | F17: 飲食教育 | G17: 8健體 | H17: B | I17: 1~6 | K17: 5 | M17: 5 | O17: 5 | Q17: 5 | R17: 10 | T17: 5 | U17: 5 | V17: 10 | AE17: AH_1,AH_2,AH_3,AH_7,AH_8 | AG17: 0 | AH17: 5 | AI17: 0 | AJ17: 正確 | AL17: 第12週 | AM17: 5 | AN17: 12 | AY17: AH_1,AH_2,AH_3,AH_4,AH_5 | BA17: 0 | BB17: 5 | BC17: 0 | BD17: 正確 | BF17: 第12週 | BG17: 5 | BH17: 11
C18: 4 | D18: 13 | E18: BF | F18: 職業試探 | H18: B | I18: 1~6 | K18: 1 | M18: 1 | O18: 1 | Q18: 1 | R18: 2 | T18: 0 | U18: 0 | V18: 0 | AE18: AJ_1 | AG18: 0 | AH18: 1 | AI18: 0 | AJ18: 正確 | AL18: 第13週 | AM18: 5 | AN18: 8 | AY18: AJ_15 | BA18: 0 | BB18: 1 | BC18: 0 | BD18: 正確 | BF18: 第13週 | BG18: 5 | BH18: 9
C19: 2 | D19: 14 | E19: BG | F19: 海洋教育 | H19: B | I19: 1~6 | K19: 1 | M19: 1 | O19: 1 | Q19: 1 | R19: 2 | T19: 0 | U19: 0 | V19: 0 | AE19: AD_17 | AG19: 0 | AH19: 1 | AI19: 0 | AJ19: 正確 | AL19: 第14週 | AM19: 5 | AN19: 5 | AY19: AF_13 | BA19: 0 | BB19: 1 | BC19: 0 | BD19: 正確 | BF19: 第14週 | BG19: 5 | BH19: 11
C20: 2 | D20: 15 | E20: BH | F20: 低碳教育 | H20: E | I20: 1~6 | K20: 1 | M20: 1 | O20: 1 | Q20: 1 | R20: 2 | T20: 0 | U20: 0 | V20: 2 | AE20: AH_10 | AG20: 0 | AH20: 1 | AI20: 0 | AJ20: 正確 | AL20: 第15週 | AM20: 5 | AN20: 5 | AY20: AF_14 | BA20: 0 | BB20: 1 | BC20: 0 | BD20: 正確 | BF20: 第15週 | BG20: 5 | BH20: 9
C21: 2 | D21: 16 | E21: BI | F21: 交通安全教育 | H21: B | I21: 1~6 | K21: 2 | M21: 2 | O21: 2 | Q21: 2 | R21: 4 | T21: 0 | U21: 0 | V21: 0 | AE21: AH_7,AH_8 | AG21: 0 | AH21: 2 | AI21: 0 | AJ21: 正確 | AL21: 第16週 | AM21: 5 | AN21: 5 | AY21: AJ_14,AJ_14 | BA21: 0 | BB21: 2 | BC21: 0 | BD21: 正確 | BF21: 第16週 | BG21: 5 | BH21: 8
C22: 1 | D22: 17 | E22: SA | F22: 校本課程 | G22: A2 | H22: C | I22: 1~6 | J22: 20 | M22: 20 | N22: 16 | Q22: 16 | R22: 36 | Y22: 1,2,3,4,5,6,7,8,9,10,11,13,14,15,16,17,18,19,20,21 | AG22: 20 | AH22: 0 | AI22: 0 | AJ22: 正確 | AL22: 第17週 | AM22: 5 | AN22: 13 | AS22: 1,2,3,4,5,6,7,8,9,10,11,12,13,14,16,17 | BA22: 16 | BB22: 0 | BC22: 0 | BD22: =IF(AND(Q22=0,(BA22+BB22+BC22)>0),"錯誤輸入",IF(AND(N22="",O22="",P22=""),"",IF(AND(BA22=N22,BB22=O22,BC22=P22),"正確","No"))) -> 正確 | BF22: 第17週 | BG22: 5 | BH22: 8
C23: 1 | D23: 18 | E23: SB | F23: 資訊教育 | G23: A3 | H23: C | I23: 1~6 | J23: 21 | M23: 21 | N23: 18 | Q23: 18 | R23: 39 | Z23: 1,2,3,4,5,6,7,8,9,10,11,12,13,14,15,16,17,18,19,20,21 | AG23: 21 | AH23: 0 | AI23: 0 | AJ23: 正確 | AL23: 第18週 | AM23: 5 | AN23: 5 | AT23: 1,2,3,4,5,6,7,8,9,10,11,12,13,14,15,16,17,18 | BA23: 18 | BB23: 0 | BC23: 0 | BD23: 正確 | BF23: 第18週 | BG23: 5 | BH23: 8
C24: 1 | D24: 19 | E24: SC | F24: 英語 | G24: A4 | H24: C | I24: 1~6 | J24: 21 | M24: 21 | N24: 17 | Q24: 17 | R24: 38 | AA24: 1,2,3,4,5,6,7,8,9,10,11,12,13,14,15,16,17,18,19,20,21 | AG24: 21 | AH24: 0 | AI24: 0 | AJ24: 正確 | AL24: 第19週 | AM24: 5 | AN24: 5 | AU24: 1,2,3,4,5,6,7,8,9,10,11,12,13,14,15,16,17 | BA24: 17 | BB24: 0 | BC24: 0 | BD24: 正確 | BF24: 第19週
C25: 1 | D25: 20 | E25: SD | F25: 國語學習診斷與補救 | G25: A5 | H25: C | I25: 1~6 | J25: 11 | M25: 11 | N25: 7 | Q25: 7 | R25: 18 | AB25: 1,6,7,8,11,14,15,16,19,20,21 | AG25: 11 | AH25: 0 | AI25: 0 | AJ25: 正確 | AL25: 第20週 | AM25: 5 | AN25: 6 | AV25: 1,4,5,6,8,10,14 | BA25: 7 | BB25: 0 | BC25: 0 | BD25: 正確 | BF25: 第20週
C26: 1 | D26: 21 | E26: SE | F26: 數學學習診斷與補救 | G26: A6 | H26: C | I26: 1~6 | J26: 15 | M26: 15 | N26: 9 | Q26: 9 | R26: 24 | AC26: 1,2,3,4,6,7,8,9,11,14,15,16,19,20,21 | AG26: 15 | AH26: 0 | AI26: 0 | AJ26: 正確 | AL26: 第21週 | AM26: 5 | AN26: 5 | AW26: 1,2,4,5,6,8,10,11,14 | BA26: 9 | BB26: 0 | BC26: 0 | BD26: 正確
C27: 2 | D27: 22 | E27: CB | F27: 身高.體重.視力檢查 | H27: A | I27: 1~6 | J27: 1 | M27: 1 | N27: 1 | Q27: 1 | R27: 2 | X27: 3 | AG27: 1 | AH27: 0 | AI27: 0 | AJ27: 正確 | AR27: 2 | BA27: 1 | BB27: 0 | BC27: 0 | BD27: 正確
C28: 2 | D28: 23 | E28: CD | F28: 兒童節闖關活動 | H28: A | I28: 1~6 | M28: 0 | N28: 2 | Q28: 2 | R28: 2 | AG28: 0 | AH28: 0 | AI28: 0 | AR28: 7,7 | BA28: 2 | BB28: 0 | BC28: 0 | BD28: 正確
C29: 2 | D29: 24 | E29: CE | F29: 校慶運動會預演 | H29: A | I29: 1~6 | J29: 1 | M29: 1 | Q29: 0 | R29: 1 | X29: 12 | AG29: 1 | AH29: 0 | AI29: 0 | AJ29: 正確 | BA29: 0 | BB29: 0 | BC29: 0
C30: 2 | D30: 25 | E30: CF | F30: 校慶運動會(中高年級) | H30: C | I30: 3~6 | J30: 2 | K30: 5 | M30: 7 | Q30: 0 | R30: 7 | X30: 12,12 | AE30: AH_12,AH_12,AH_12,AJ_12,AJ_12 | AG30: 2 | AH30: 5 | AI30: 0 | AJ30: 正確 | BA30: 0 | BB30: 0 | BC30: 0
C31: 4 | D31: 26 | E31: CC | F31: 母親節才藝表演 | H31: A | I31: 1~6 | M31: =IF(I31="","",IF((J31+K31+L31)<T31,"錯,最低節數:"&T31,J31+K31+L31)) -> 0 | N31: 2 | Q31: =IF(I31="","",IF((N31+O31+P31)<U31,"錯,最低節數:"&U31,N31+O31+P31)) -> 2 | R31: =IF(I31="","",IF(ISERROR(M31+Q31),"錯誤",IF((M31+Q31)<V31,"錯誤,最低節數:"&V31,M31+Q31))) -> 2 | S31: =IF(H31="","",IF(AND(H31="A",OR(K31>0,L31>0,O31>0,P31>0)),"錯誤",IF(AND(H31="B",OR(J31>0,L31>0,N31>0,P31>0)),"錯誤",IF(AND(H31="C",OR(L31>0,P31>0)),"錯誤",IF(AND(H31="D",OR(J31>0,K31>0,N31>0,O31>0)),"錯誤",""))))) ->  | W31: =IF(OR(RIGHT(X31,1)=",",RIGHT(AA31,1)=",",RIGHT(AB31,1)=",",RIGHT(AE31,1)=",",RIGHT(AF31,1)=","),"錯多，",IF(OR(LEFT(X31,1)=",",LEFT(AA31,1)=",",LEFT(AB31,1)=",",LEFT(AE31,1)=",",LEFT(AF31,1)=","),"錯多，","")) ->  | AG31: =IF(X31="",0,LEN(X31)-LEN(SUBSTITUTE(X31,",",""))+1)+IF(Y31="",0,LEN(Y31)-LEN(SUBSTITUTE(Y31,",",""))+1)+IF(Z31="",0,LEN(Z31)-LEN(SUBSTITUTE(Z31,",",""))+1)+IF(AA31="",0,LEN(AA31)-LEN(SUBSTITUTE(AA31,",",""))+1)+IF(AB31="",0,LEN(AB31)-LEN(SUBSTITUTE(AB31,",",""))+1)+IF(AC31="",0,LEN(AC31)-LEN(SUBSTITUTE(AC31,",",""))+1)+IF(AD31="",0,LEN(AD31)-LEN(SUBSTITUTE(AD31,",",""))+1) -> 0 | AH31: =IF(AE31="",0,LEN(AE31)-LEN(SUBSTITUTE(AE31,",",""))+1) -> 0 | AI31: =IF(AF31="",0,LEN(AF31)-LEN(SUBSTITUTE(AF31,",",""))+1) -> 0 | AJ31: =IF(AND(M31=0,(AG31+AH31+AI31)>0),"錯誤輸入",IF(AND(J31="",K31="",L31=""),"",IF(AND(AG31=J31,K31=AH31,AI31=L31),"正確","No"))) ->  | AQ31: =IF(OR(RIGHT(AR31,1)=",",RIGHT(AU31,1)=",",RIGHT(AV31,1)=",",RIGHT(AY31,1)=",",RIGHT(AZ31,1)=","),"錯多，",IF(OR(LEFT(AR31,1)=",",LEFT(AU31,1)=",",LEFT(AV31,1)=",",LEFT(AY31,1)=",",LEFT(AZ31,1)=","),"錯多，","")) ->  | AR31: 12,12 | BA31: =IF(AR31="",0,LEN(AR31)-LEN(SUBSTITUTE(AR31,",",""))+1)+IF(AS31="",0,LEN(AS31)-LEN(SUBSTITUTE(AS31,",",""))+1)+IF(AT31="",0,LEN(AT31)-LEN(SUBSTITUTE(AT31,",",""))+1)+IF(AU31="",0,LEN(AU31)-LEN(SUBSTITUTE(AU31,",",""))+1)+IF(AV31="",0,LEN(AV31)-LEN(SUBSTITUTE(AV31,",",""))+1)+IF(AW31="",0,LEN(AW31)-LEN(SUBSTITUTE(AW31,",",""))+1)+IF(AX31="",0,LEN(AX31)-LEN(SUBSTITUTE(AX31,",",""))+1) -> 2 | BB31: =IF(AY31="",0,LEN(AY31)-LEN(SUBSTITUTE(AY31,",",""))+1) -> 0 | BC31: =IF(AZ31="",0,LEN(AZ31)-LEN(SUBSTITUTE(AZ31,",",""))+1) -> 0 | BD31: =IF(AND(Q31=0,(BA31+BB31+BC31)>0),"錯誤輸入",IF(AND(N31="",O31="",P31=""),"",IF(AND(BA31=N31,BB31=O31,BC31=P31),"正確","No"))) -> 正確
C32: 1 | D32: 27 | E32: CG | F32: 畢業典禮 | H32: A | I32: 1~6 | M32: 0 | N32: 4 | Q32: 4 | R32: 4 | AG32: 0 | AH32: 0 | AI32: 0 | AR32: 18,18,18,18 | BA32: 4 | BB32: 0 | BC32: 0 | BD32: 正確
C33: 2 | D33: 28 | E33: CH | F33: 口腔檢查 | H33: A | I33: 1~6 | J33: 1 | M33: 1 | Q33: 0 | R33: 1 | X33: 2 | AG33: 1 | AH33: 0 | AI33: 0 | AJ33: 正確 | BA33: 0 | BB33: 0 | BC33: 0
C34: 2 | D34: 29 | E34: CI | F34: 斜弱視.辨色力檢查 | H34: A | I34: 1~6 | J34: 1 | M34: 1 | Q34: 0 | R34: 1 | X34: 4 | AG34: 1 | AH34: 0 | AI34: 0 | AJ34: 正確 | BA34: 0 | BB34: 0 | BC34: 0
C35: 4 | D35: 30 | E35: CJ | F35: 聖誕節活動 | H35: A | I35: 1~6 | J35: 2 | M35: =IF(I35="","",IF((J35+K35+L35)<T35,"錯,最低節數:"&T35,J35+K35+L35)) -> 2 | Q35: =IF(I35="","",IF((N35+O35+P35)<U35,"錯,最低節數:"&U35,N35+O35+P35)) -> 0 | R35: =IF(I35="","",IF(ISERROR(M35+Q35),"錯誤",IF((M35+Q35)<V35,"錯誤,最低節數:"&V35,M35+Q35))) -> 2 | S35: =IF(H35="","",IF(AND(H35="A",OR(K35>0,L35>0,O35>0,P35>0)),"錯誤",IF(AND(H35="B",OR(J35>0,L35>0,N35>0,P35>0)),"錯誤",IF(AND(H35="C",OR(L35>0,P35>0)),"錯誤",IF(AND(H35="D",OR(J35>0,K35>0,N35>0,O35>0)),"錯誤",""))))) ->  | W35: =IF(OR(RIGHT(X35,1)=",",RIGHT(AA35,1)=",",RIGHT(AB35,1)=",",RIGHT(AE35,1)=",",RIGHT(AF35,1)=","),"錯多，",IF(OR(LEFT(X35,1)=",",LEFT(AA35,1)=",",LEFT(AB35,1)=",",LEFT(AE35,1)=",",LEFT(AF35,1)=","),"錯多，","")) ->  | X35: 17,17 | AG35: 2 | AH35: 0 | AI35: =IF(AF35="",0,LEN(AF35)-LEN(SUBSTITUTE(AF35,",",""))+1) -> 0 | AJ35: 正確 | AQ35: =IF(OR(RIGHT(AR35,1)=",",RIGHT(AU35,1)=",",RIGHT(AV35,1)=",",RIGHT(AY35,1)=",",RIGHT(AZ35,1)=","),"錯多，",IF(OR(LEFT(AR35,1)=",",LEFT(AU35,1)=",",LEFT(AV35,1)=",",LEFT(AY35,1)=",",LEFT(AZ35,1)=","),"錯多，","")) ->  | BA35: 0 | BB35: =IF(AY35="",0,LEN(AY35)-LEN(SUBSTITUTE(AY35,",",""))+1) -> 0 | BC35: 0 | BD35: =IF(AND(Q35=0,(BA35+BB35+BC35)>0),"錯誤輸入",IF(AND(N35="",O35="",P35=""),"",IF(AND(BA35=N35,BB35=O35,BC35=P35),"正確","No"))) -> 
C36: 1 | D36: 31 | E36: CL | F36: 畢業典禮預演 | H36: A | I36: 1~6 | M36: 0 | N36: 2 | Q36: 2 | R36: 2 | AG36: =IF(X36="",0,LEN(X36)-LEN(SUBSTITUTE(X36,",",""))+1)+IF(Y36="",0,LEN(Y36)-LEN(SUBSTITUTE(Y36,",",""))+1)+IF(Z36="",0,LEN(Z36)-LEN(SUBSTITUTE(Z36,",",""))+1)+IF(AA36="",0,LEN(AA36)-LEN(SUBSTITUTE(AA36,",",""))+1)+IF(AB36="",0,LEN(AB36)-LEN(SUBSTITUTE(AB36,",",""))+1)+IF(AC36="",0,LEN(AC36)-LEN(SUBSTITUTE(AC36,",",""))+1)+IF(AD36="",0,LEN(AD36)-LEN(SUBSTITUTE(AD36,",",""))+1) -> 0 | AH36: =IF(AE36="",0,LEN(AE36)-LEN(SUBSTITUTE(AE36,",",""))+1) -> 0 | AI36: 0 | AJ36: =IF(AND(M36=0,(AG36+AH36+AI36)>0),"錯誤輸入",IF(AND(J36="",K36="",L36=""),"",IF(AND(AG36=J36,K36=AH36,AI36=L36),"正確","No"))) ->  | AR36: 17,17 | BA36: =IF(AR36="",0,LEN(AR36)-LEN(SUBSTITUTE(AR36,",",""))+1)+IF(AS36="",0,LEN(AS36)-LEN(SUBSTITUTE(AS36,",",""))+1)+IF(AT36="",0,LEN(AT36)-LEN(SUBSTITUTE(AT36,",",""))+1)+IF(AU36="",0,LEN(AU36)-LEN(SUBSTITUTE(AU36,",",""))+1)+IF(AV36="",0,LEN(AV36)-LEN(SUBSTITUTE(AV36,",",""))+1)+IF(AW36="",0,LEN(AW36)-LEN(SUBSTITUTE(AW36,",",""))+1)+IF(AX36="",0,LEN(AX36)-LEN(SUBSTITUTE(AX36,",",""))+1) -> 2 | BB36: 0 | BC36: 0 | BD36: 正確
C37: 2 | D37: 32 | E37: CM | F37: 自治市長選舉 | H37: A | I37: 1~6 | M37: 0 | N37: 1 | Q37: 1 | R37: 1 | AG37: =IF(X37="",0,LEN(X37)-LEN(SUBSTITUTE(X37,",",""))+1)+IF(Y37="",0,LEN(Y37)-LEN(SUBSTITUTE(Y37,",",""))+1)+IF(Z37="",0,LEN(Z37)-LEN(SUBSTITUTE(Z37,",",""))+1)+IF(AA37="",0,LEN(AA37)-LEN(SUBSTITUTE(AA37,",",""))+1)+IF(AB37="",0,LEN(AB37)-LEN(SUBSTITUTE(AB37,",",""))+1)+IF(AC37="",0,LEN(AC37)-LEN(SUBSTITUTE(AC37,",",""))+1)+IF(AD37="",0,LEN(AD37)-LEN(SUBSTITUTE(AD37,",",""))+1) -> 0 | AH37: 0 | AI37: 0 | AJ37: =IF(AND(M37=0,(AG37+AH37+AI37)>0),"錯誤輸入",IF(AND(J37="",K37="",L37=""),"",IF(AND(AG37=J37,K37=AH37,AI37=L37),"正確","No"))) ->  | AR37: 11 | BA37: =IF(AR37="",0,LEN(AR37)-LEN(SUBSTITUTE(AR37,",",""))+1)+IF(AS37="",0,LEN(AS37)-LEN(SUBSTITUTE(AS37,",",""))+1)+IF(AT37="",0,LEN(AT37)-LEN(SUBSTITUTE(AT37,",",""))+1)+IF(AU37="",0,LEN(AU37)-LEN(SUBSTITUTE(AU37,",",""))+1)+IF(AV37="",0,LEN(AV37)-LEN(SUBSTITUTE(AV37,",",""))+1)+IF(AW37="",0,LEN(AW37)-LEN(SUBSTITUTE(AW37,",",""))+1)+IF(AX37="",0,LEN(AX37)-LEN(SUBSTITUTE(AX37,",",""))+1) -> 1 | BB37: 0 | BC37: 0 | BD37: 正確
C38: 2 | D38: 33 | E38: CN | F38: 班際體育競賽 | H38: A | I38: 1~6 | M38: 0 | N38: 1 | Q38: 1 | R38: 1 | AG38: =IF(X38="",0,LEN(X38)-LEN(SUBSTITUTE(X38,",",""))+1)+IF(Y38="",0,LEN(Y38)-LEN(SUBSTITUTE(Y38,",",""))+1)+IF(Z38="",0,LEN(Z38)-LEN(SUBSTITUTE(Z38,",",""))+1)+IF(AA38="",0,LEN(AA38)-LEN(SUBSTITUTE(AA38,",",""))+1)+IF(AB38="",0,LEN(AB38)-LEN(SUBSTITUTE(AB38,",",""))+1)+IF(AC38="",0,LEN(AC38)-LEN(SUBSTITUTE(AC38,",",""))+1)+IF(AD38="",0,LEN(AD38)-LEN(SUBSTITUTE(AD38,",",""))+1) -> 0 | AH38: 0 | AI38: 0 | AJ38: =IF(AND(M38=0,(AG38+AH38+AI38)>0),"錯誤輸入",IF(AND(J38="",K38="",L38=""),"",IF(AND(AG38=J38,K38=AH38,AI38=L38),"正確","No"))) ->  | AR38: 15 | BA38: =IF(AR38="",0,LEN(AR38)-LEN(SUBSTITUTE(AR38,",",""))+1)+IF(AS38="",0,LEN(AS38)-LEN(SUBSTITUTE(AS38,",",""))+1)+IF(AT38="",0,LEN(AT38)-LEN(SUBSTITUTE(AT38,",",""))+1)+IF(AU38="",0,LEN(AU38)-LEN(SUBSTITUTE(AU38,",",""))+1)+IF(AV38="",0,LEN(AV38)-LEN(SUBSTITUTE(AV38,",",""))+1)+IF(AW38="",0,LEN(AW38)-LEN(SUBSTITUTE(AW38,",",""))+1)+IF(AX38="",0,LEN(AX38)-LEN(SUBSTITUTE(AX38,",",""))+1) -> 1 | BB38: 0 | BC38: 0 | BD38: 正確
C39: 2 | D39: 34 | E39: CO | F39: 歡送畢業生園遊會 | H39: A | I39: 1~6 | M39: 0 | N39: 2 | Q39: 2 | R39: 2 | AG39: =IF(X39="",0,LEN(X39)-LEN(SUBSTITUTE(X39,",",""))+1)+IF(Y39="",0,LEN(Y39)-LEN(SUBSTITUTE(Y39,",",""))+1)+IF(Z39="",0,LEN(Z39)-LEN(SUBSTITUTE(Z39,",",""))+1)+IF(AA39="",0,LEN(AA39)-LEN(SUBSTITUTE(AA39,",",""))+1)+IF(AB39="",0,LEN(AB39)-LEN(SUBSTITUTE(AB39,",",""))+1)+IF(AC39="",0,LEN(AC39)-LEN(SUBSTITUTE(AC39,",",""))+1)+IF(AD39="",0,LEN(AD39)-LEN(SUBSTITUTE(AD39,",",""))+1) -> 0 | AH39: 0 | AI39: 0 | AJ39: =IF(AND(M39=0,(AG39+AH39+AI39)>0),"錯誤輸入",IF(AND(J39="",K39="",L39=""),"",IF(AND(AG39=J39,K39=AH39,AI39=L39),"正確","No"))) ->  | AR39: 16,16 | BA39: =IF(AR39="",0,LEN(AR39)-LEN(SUBSTITUTE(AR39,",",""))+1)+IF(AS39="",0,LEN(AS39)-LEN(SUBSTITUTE(AS39,",",""))+1)+IF(AT39="",0,LEN(AT39)-LEN(SUBSTITUTE(AT39,",",""))+1)+IF(AU39="",0,LEN(AU39)-LEN(SUBSTITUTE(AU39,",",""))+1)+IF(AV39="",0,LEN(AV39)-LEN(SUBSTITUTE(AV39,",",""))+1)+IF(AW39="",0,LEN(AW39)-LEN(SUBSTITUTE(AW39,",",""))+1)+IF(AX39="",0,LEN(AX39)-LEN(SUBSTITUTE(AX39,",",""))+1) -> 2 | BB39: 0 | BC39: 0 | BD39: 正確
C40: 2 | D40: 35 | E40: CP | F40: 預防注射(流感) | H40: C | I40: 1~6 | J40: 1 | M40: 1 | Q40: 0 | R40: 1 | X40: 9 | AG40: =IF(X40="",0,LEN(X40)-LEN(SUBSTITUTE(X40,",",""))+1)+IF(Y40="",0,LEN(Y40)-LEN(SUBSTITUTE(Y40,",",""))+1)+IF(Z40="",0,LEN(Z40)-LEN(SUBSTITUTE(Z40,",",""))+1)+IF(AA40="",0,LEN(AA40)-LEN(SUBSTITUTE(AA40,",",""))+1)+IF(AB40="",0,LEN(AB40)-LEN(SUBSTITUTE(AB40,",",""))+1)+IF(AC40="",0,LEN(AC40)-LEN(SUBSTITUTE(AC40,",",""))+1)+IF(AD40="",0,LEN(AD40)-LEN(SUBSTITUTE(AD40,",",""))+1) -> 1 | AH40: 0 | AI40: 0 | AJ40: =IF(AND(M40=0,(AG40+AH40+AI40)>0),"錯誤輸入",IF(AND(J40="",K40="",L40=""),"",IF(AND(AG40=J40,K40=AH40,AI40=L40),"正確","No"))) -> 正確 | BA40: =IF(AR40="",0,LEN(AR40)-LEN(SUBSTITUTE(AR40,",",""))+1)+IF(AS40="",0,LEN(AS40)-LEN(SUBSTITUTE(AS40,",",""))+1)+IF(AT40="",0,LEN(AT40)-LEN(SUBSTITUTE(AT40,",",""))+1)+IF(AU40="",0,LEN(AU40)-LEN(SUBSTITUTE(AU40,",",""))+1)+IF(AV40="",0,LEN(AV40)-LEN(SUBSTITUTE(AV40,",",""))+1)+IF(AW40="",0,LEN(AW40)-LEN(SUBSTITUTE(AW40,",",""))+1)+IF(AX40="",0,LEN(AX40)-LEN(SUBSTITUTE(AX40,",",""))+1) -> 0 | BB40: 0 | BC40: 0
W47: =IF(OR(RIGHT(X47,1)=",",RIGHT(AA47,1)=",",RIGHT(AB47,1)=",",RIGHT(AE47,1)=",",RIGHT(AF47,1)=","),"錯多，",IF(OR(LEFT(X47,1)=",",LEFT(AA47,1)=",",LEFT(AB47,1)=",",LEFT(AE47,1)=",",LEFT(AF47,1)=","),"錯多，","")) -> 
W55: =IF(OR(RIGHT(X55,1)=",",RIGHT(AA55,1)=",",RIGHT(AB55,1)=",",RIGHT(AE55,1)=",",RIGHT(AF55,1)=","),"錯多，",IF(OR(LEFT(X55,1)=",",LEFT(AA55,1)=",",LEFT(AB55,1)=",",LEFT(AE55,1)=",",LEFT(AF55,1)=","),"錯多，","")) -> 
W119: =IF(OR(RIGHT(X119,1)=",",RIGHT(AA119,1)=",",RIGHT(AB119,1)=",",RIGHT(AE119,1)=",",RIGHT(AF119,1)=","),"錯多，",IF(OR(LEFT(X119,1)=",",LEFT(AA119,1)=",",LEFT(AB119,1)=",",LEFT(AE119,1)=",",LEFT(AF119,1)=","),"錯多，","")) -> 
W183: =IF(OR(RIGHT(X183,1)=",",RIGHT(AA183,1)=",",RIGHT(AB183,1)=",",RIGHT(AE183,1)=",",RIGHT(AF183,1)=","),"錯多，",IF(OR(LEFT(X183,1)=",",LEFT(AA183,1)=",",LEFT(AB183,1)=",",LEFT(AE183,1)=",",LEFT(AF183,1)=","),"錯多，","")) -> 
W247: =IF(OR(RIGHT(X247,1)=",",RIGHT(AA247,1)=",",RIGHT(AB247,1)=",",RIGHT(AE247,1)=",",RIGHT(AF247,1)=","),"錯多，",IF(OR(LEFT(X247,1)=",",LEFT(AA247,1)=",",LEFT(AB247,1)=",",LEFT(AE247,1)=",",LEFT(AF247,1)=","),"錯多，","")) -> 
W311: =IF(OR(RIGHT(X311,1)=",",RIGHT(AA311,1)=",",RIGHT(AB311,1)=",",RIGHT(AE311,1)=",",RIGHT(AF311,1)=","),"錯多，",IF(OR(LEFT(X311,1)=",",LEFT(AA311,1)=",",LEFT(AB311,1)=",",LEFT(AE311,1)=",",LEFT(AF311,1)=","),"錯多，","")) -> 
W375: =IF(OR(RIGHT(X375,1)=",",RIGHT(AA375,1)=",",RIGHT(AB375,1)=",",RIGHT(AE375,1)=",",RIGHT(AF375,1)=","),"錯多，",IF(OR(LEFT(X375,1)=",",LEFT(AA375,1)=",",LEFT(AB375,1)=",",LEFT(AE375,1)=",",LEFT(AF375,1)=","),"錯多，","")) -> 
W439: =IF(OR(RIGHT(X439,1)=",",RIGHT(AA439,1)=",",RIGHT(AB439,1)=",",RIGHT(AE439,1)=",",RIGHT(AF439,1)=","),"錯多，",IF(OR(LEFT(X439,1)=",",LEFT(AA439,1)=",",LEFT(AB439,1)=",",LEFT(AE439,1)=",",LEFT(AF439,1)=","),"錯多，","")) -> 
W503: =IF(OR(RIGHT(X503,1)=",",RIGHT(AA503,1)=",",RIGHT(AB503,1)=",",RIGHT(AE503,1)=",",RIGHT(AF503,1)=","),"錯多，",IF(OR(LEFT(X503,1)=",",LEFT(AA503,1)=",",LEFT(AB503,1)=",",LEFT(AE503,1)=",",LEFT(AF503,1)=","),"錯多，","")) -> 
W567: =IF(OR(RIGHT(X567,1)=",",RIGHT(AA567,1)=",",RIGHT(AB567,1)=",",RIGHT(AE567,1)=",",RIGHT(AF567,1)=","),"錯多，",IF(OR(LEFT(X567,1)=",",LEFT(AA567,1)=",",LEFT(AB567,1)=",",LEFT(AE567,1)=",",LEFT(AF567,1)=","),"錯多，","")) -> 
W631: =IF(OR(RIGHT(X631,1)=",",RIGHT(AA631,1)=",",RIGHT(AB631,1)=",",RIGHT(AE631,1)=",",RIGHT(AF631,1)=","),"錯多，",IF(OR(LEFT(X631,1)=",",LEFT(AA631,1)=",",LEFT(AB631,1)=",",LEFT(AE631,1)=",",LEFT(AF631,1)=","),"錯多，","")) -> 
W695: =IF(OR(RIGHT(X695,1)=",",RIGHT(AA695,1)=",",RIGHT(AB695,1)=",",RIGHT(AE695,1)=",",RIGHT(AF695,1)=","),"錯多，",IF(OR(LEFT(X695,1)=",",LEFT(AA695,1)=",",LEFT(AB695,1)=",",LEFT(AE695,1)=",",LEFT(AF695,1)=","),"錯多，","")) -> 
W759: =IF(OR(RIGHT(X759,1)=",",RIGHT(AA759,1)=",",RIGHT(AB759,1)=",",RIGHT(AE759,1)=",",RIGHT(AF759,1)=","),"錯多，",IF(OR(LEFT(X759,1)=",",LEFT(AA759,1)=",",LEFT(AB759,1)=",",LEFT(AE759,1)=",",LEFT(AF759,1)=","),"錯多，","")) -> 
W823: =IF(OR(RIGHT(X823,1)=",",RIGHT(AA823,1)=",",RIGHT(AB823,1)=",",RIGHT(AE823,1)=",",RIGHT(AF823,1)=","),"錯多，",IF(OR(LEFT(X823,1)=",",LEFT(AA823,1)=",",LEFT(AB823,1)=",",LEFT(AE823,1)=",",LEFT(AF823,1)=","),"錯多，","")) -> 
W887: =IF(OR(RIGHT(X887,1)=",",RIGHT(AA887,1)=",",RIGHT(AB887,1)=",",RIGHT(AE887,1)=",",RIGHT(AF887,1)=","),"錯多，",IF(OR(LEFT(X887,1)=",",LEFT(AA887,1)=",",LEFT(AB887,1)=",",LEFT(AE887,1)=",",LEFT(AF887,1)=","),"錯多，","")) -> 
W951: =IF(OR(RIGHT(X951,1)=",",RIGHT(AA951,1)=",",RIGHT(AB951,1)=",",RIGHT(AE951,1)=",",RIGHT(AF951,1)=","),"錯多，",IF(OR(LEFT(X951,1)=",",LEFT(AA951,1)=",",LEFT(AB951,1)=",",LEFT(AE951,1)=",",LEFT(AF951,1)=","),"錯多，","")) -> 
W1015: =IF(OR(RIGHT(X1015,1)=",",RIGHT(AA1015,1)=",",RIGHT(AB1015,1)=",",RIGHT(AE1015,1)=",",RIGHT(AF1015,1)=","),"錯多，",IF(OR(LEFT(X1015,1)=",",LEFT(AA1015,1)=",",LEFT(AB1015,1)=",",LEFT(AE1015,1)=",",LEFT(AF1015,1)=","),"錯多，","")) -> 

Sheet 學習領域各單元
B1: 週次: | D1: 21 | E1: 上學期 | F1: 1234 | G1: 1.(說明:如果COPY的資料有2個儲存格以上合併成一個儲存格的,請取消,將正確的資料放在正確的週次右側儲存格) | V1: 每周上課總節數 | AJ1: 4
B2: 第2列_輸入每周上課節數→→→(沒有學習領域節數輸入0,不是空白) | D2: 每周上課節數 | E2: 5 | G2: 1 | I2: 1 | K2: 4 | M2: 3 | O2: 3 | Q2: 4 | S2: 3 | U2: 3 | V2: =SUM(E2:U2) -> 27
D3: 上課週次 | E3: 國語文 | F3: 上課週次 | G3: 本土語文 | H3: 上課週次 | I3: 英語文 | J3: 上課週次 | K3: 數學 | L3: 上課週次 | M3: 社會 | N3: 上課週次 | O3: 藝術與人文 | P3: 上課週次 | Q3: 自然與科技 | R3: 上課週次 | S3: 健康與體育 | T3: 上課週次 | U3: 綜合活動 | AI3: 週次 | AJ3: 代號 | AK3: 單元活動名稱 | AL3: 週次 | AM3: 代號 | AN3: 單元活動名稱
B4: 第4列_輸入正確書局版本→→ | E4: 國語 ( 康軒版) 第11冊 | G4: 本土語言 ( 康軒版)第11冊 | I4: 英語 (何嘉仁 Story.com)第7冊 | K4: 數學 ( 康軒版)第11冊 | M4: 社會 (康軒版)第7冊 | O4: 藝術與人文 ( 康軒版)第7冊 | Q4: 自然與科技 ( 康軒版)第7冊 | S4: 健康與體育翰林 (南一版)第11冊 | U4: 綜合活動 (康軒版)第11冊+自編 | AI4: 1 | AJ4: SB | AK4: 1.認識山門
B5: 第一單元一定在5列→→ | D5: 1 | E5: 品格修養 一、神奇的藍絲帶 | F5: 1 | G5: 臺灣的好食物 一、紙箱仔揣朋友 | H5: 1 | I5: 英語入學輔導週 角色介紹、圖示介紹 | J5: 1 | K5: 一、最大公因數與最小公倍數 | L5: 1 | M5: 一、東瀛來的統治者 1.日治時代的殖民統治 | N5: 1 | O5: 一、歌劇狂想曲 1.歌劇中的喜怒哀樂 | P5: 1 | Q5: 一、天氣的變化 活動一 大氣中的水 | R5: 1 | S5: 壹、成長與蛻變一.青春好樣 | T5: 1 | U5: 第一單元發現不同的自己 活動一探索課程 | AI5: 2 | AJ5: SB | AK5: 2.建築語彙-蓮入瓶安
D6: 2 | E6: 品格修養 二、跑道 | F6: 2 | G6: 臺灣的好食物 一、紙箱仔揣朋友 | H6: 2 | I6: 圖示介紹 發音複習表 | J6: 2 | K6: 一、最大公因數與最小公倍數 | L6: 2 | M6: 一、東瀛來的統治者 1.日治時代的殖民統治 | N6: 2 | O6: 一、歌劇狂想曲 1.歌劇中的喜怒哀樂 2.音樂劇在臺灣 | P6: 2 | Q6: 一、天氣的變化 活動一 大氣中的水 | R6: 2 | S6: 壹、成長與蛻變一.青春好樣 | T6: 2 | U6: 第一單元發現不同的自己 活動二努力學習 | AI6: 3 | AJ6: SB | AK6: 3.建築語彙-葫蘆
D7: 3 | E7: 品格修養 三、說話也要停看聽 | F7: 3 | G7: 臺灣的好食物 一、紙箱仔揣朋友 | H7: 3 | I7: Unit 1 Where Are You From? | J7: 3 | K7: 二、分數除法 | L7: 3 | M7: 一、東瀛來的統治者 2.日治時代的社會變遷 | N7: 3 | O7: 一、歌劇狂想曲 2.音樂劇在臺灣 3.笛聲飛揚 | P7: 3 | Q7: 一、天氣的變化 活動二 認識天氣的變化 | R7: 3 | S7: 壹、成長與蛻變二.飲食萬花筒 | T7: 3 | U7: 第二單元我是生活大師 活動一當時間的主人 | AI7: 4 | AJ7: SB | AK7: 4.建築語彙-蝙蝠
D8: 4 | E8: 品格修養 四、朱子治家格言選 | F8: 4 | G8: 臺灣的好食物 二、踅夜市 | H8: 4 | I8: Unit 1 Where Are You From? | J8: 4 | K8: 二、分數除法 | L8: 4 | M8: 一、東瀛來的統治者 3.日治時代的社會變遷 | N8: 4 | O8: 二、雋永之歌 1.與音樂對話 | P8: 4 | Q8: 一、天氣的變化 活動二 認識天氣的變化 活動三 颱風 | R8: 4 | S8: 壹、成長與蛻變三.人我之間 | T8: 4 | U8: 第二單元我是生活大師 活動二時間管理高手 | AI8: 5 | AJ8: SB | AK8: 5.認識山牆
D9: 5 | E9: 品格修養 統整活動一 | F9: 5 | G9: 臺灣的好食物 二、踅夜市 | H9: 5 | I9: Unit 1 Where Are You From? | J9: 5 | K9: 三、數量關係 | L9: 5 | M9: 二、戰後臺灣的政治演變 1.政治發展 | N9: 5 | O9: 二、雋永之歌 2.清新的旋律 | P9: 5 | Q9: 一、天氣的變化 活動三 颱風 | R9: 5 | S9: 壹、成長與蛻變三.人我之間 | T9: 5 | U9: 第二單元我是生活大師 活動三理財小達人 | AI9: 6 | AJ9: SB | AK9: 6.馬背、鳥踏
D10: 6 | E10: 臺灣印象 五、山的巡禮 | F10: 6 | G10: 臺灣的好食物 二、踅夜市 | H10: 6 | I10: Unit 2 We Have Science Class on Monday | J10: 6 | K10: 三、數量關係 | L10: 6 | M10: 二、戰後臺灣的政治演變 2.政府組織 | N10: 6 | O10: 二、雋永之歌 3.笛聲飛揚 | P10: 6 | Q10: 二、熱對物質的影響 活動一 物質受熱後的變化 | R10: 6 | S10: 壹、成長與蛻變四.青春進行曲 | T10: 6 | U10: 第二單元我是生活大師 活動三理財小達人 | AI10: 7 | AJ10: SB | AK10: 7.斗子牆
D11: 7 | E11: 臺灣印象 六、東海岸鐵路 | F11: 7 | G11: 臺灣的好食物 單元活動一 | H11: 7 | I11: Unit 2 We Have Science Class on Monday | J11: 7 | K11: 四、小數除法 | L11: 7 | M11: 三、戰後臺灣的經濟發展 1.經濟重整與復甦 | N11: 7 | O11: 三、傳藝之美 1.傳統藝術之美 2.刻劃之美 | P11: 7 | Q11: 二、熱對物質的影響 活動一 物質受熱後的變化 活動二 熱的傳播 | R11: 7 | S11: 壹、成長與蛻變五.健康生活深呼吸 | T11: 7 | U11: 第一單元發現不同的自己 活動三持續發展 | AI11: 8 | AJ11: SB | AK11: 8.花格磚
D12: 8 | E12: 臺灣印象 七、沉城之謎 | F12: 8 | G12: 天災地變 三、地動 | H12: 8 | I12: Unit 2 We Have Science Class on Monday | J12: 8 | K12: 四、小數除法 | L12: 8 | M12: 三、戰後臺灣的經濟發展 1.經濟重整與復甦 | N12: 8 | O12: 三、傳藝之美 3.版畫好好玩 | P12: 8 | Q12: 二、熱對物質的影響 活動二 熱的傳播 | R12: 8 | S12: 壹、成長與蛻變五.健康生活深呼吸 | T12: 8 | U12: 第三單元服務收穫多 活動一服務的真諦 | AI12: 9 | AJ12: SB | AK12: 9.西施脊、柳條窗
D13: 9 | E13: 臺灣印象 統整活動二 | F13: 9 | G13: 天災地變 三、地動 | H13: 9 | I13: *Review 1 複習 Unit1~Unit 2 | J13: 9 | K13: 五、長條圖與折線圖 | L13: 9 | M13: 三、戰後臺灣的經濟發展 2.經濟發展與轉型 | N13: 9 | O13: 三、傳藝之美 3.版畫好好玩 | P13: 9 | Q13: 二、熱對物質的影響 活動二 熱的傳播 活動三 保溫與散熱 | R13: 9 | S13: 貳、身體力與美六.青春奔跑 | T13: 9 | U13: 第三單元服務收穫多 活動一服務的真諦 | AI13: 10 | AJ13: SB | AK13: 10.瓦當、滴水
D14: 10 | E14: 閱讀階梯一 進入雨林 | F14: 10 | G14: 天災地變 三、地動 | H14: 10 | I14: *Review 1 複習 Unit1~Unit 2 | J14: 10 | K14: 六、圓周率與圓周長 | L14: 10 | M14: 三、戰後臺灣的經濟發展 2.經濟發展與轉型 | N14: 10 | O14: 四、美哉人生 1.人生百態 | P14: 10 | Q14: 二、熱對物質的影響 活動三 保溫與散熱 三、大地的奧祕 活動一 多變的大地景觀 | R14: 10 | S14: 貳、身體力與美七.健康有氧 | T14: 10 | U14: 第三單元服務收穫多 活動二服務中學習 | AI14: 11 | AJ14: SB | AK14: 11.女兒牆
D15: 11 | E15: 思考的藝術 八、大小剛好的鞋子 | F15: 11 | G15: 天災地變 單元活動二 | H15: 11 | I15: Unit 3 How Many Tigers Are There? | J15: 11 | K15: 六、圓周率與圓周長 | L15: 11 | M15: 四、戰後臺灣的社會與文化 1.社會的變遷 | N15: 11 | O15: 四、美哉人生 2.塑造精采人生 | P15: 11 | Q15: 三、大地的奧祕 活動一 多變的大地景觀 | R15: 11 | S15: 貳、身體力與美七.健康有氧 | T15: 11 | U15: 第三單元服務收穫多 活動三服務中成長 | AI15: 12 | AJ15: SB | AK15: 12.尺二磚
D16: 12 | E16: 思考的藝術 九、沉思三帖 | F16: 12 | G16: 生活真趣味 四、圓仔圓圓圓 | H16: 12 | I16: Unit 3 How Many Tigers Are There? | J16: 12 | K16: 七、圓面積 | L16: 12 | M16: 四、戰後臺灣的社會與文化 1.社會的變遷 | N16: 12 | O16: 四、美哉人生 2.塑造精采人生 | P16: 12 | Q16: 三、大地的奧祕 活動一 多變的大地景觀 | R16: 12 | S16: 貳、身體力與美八.足球小子(一) | T16: 12 | U16: 第三單元服務收穫多 活動三服務中成長 | AI16: 13 | AJ16: SB | AK16: 13.(金木水火土)五形馬背
D17: 13 | E17: 思考的藝術 十、狐假虎威 | F17: 13 | G17: 生活真趣味 四、圓仔圓圓圓 | H17: 13 | I17: Unit 3 How Many Tigers Are There? | J17: 13 | K17: 七、圓面積 | L17: 13 | M17: 四、戰後臺灣的社會與文化 2.文化的傳承與發展 | N17: 13 | O17: 五、打開戲劇百寶箱 1.聚光燈下的戲劇 2.認識演出的場地—劇場 | P17: 13 | Q17: 三、大地的奧祕 活動一 多變的大地景觀 活動二 岩石與礦物 | R17: 13 | S17: 貳、身體力與美八.足球小子(一) | T17: 13 | U17: 第四單元寶貝我的家 活動一我們這一家 | AI17: 14 | AJ17: SB | AK17: 14.閩式建築院落
D18: 14 | E18: 思考的藝術 統整活動三 | F18: 14 | G18: 生活真趣味 四、圓仔圓圓圓 | H18: 14 | I18: Unit 4 Are There Any Windows in the Dining Room? | J18: 14 | K18: 八、等量公理與應用 | L18: 14 | M18: 四、戰後臺灣的社會與文化 2.文化的傳承與發展 | N18: 14 | O18: 五、打開戲劇百寶箱 3.表演欣賞停看聽 4.跨國界的表演藝術 | P18: 14 | Q18: 三、大地的奧祕 活動二 岩石與礦物 | R18: 14 | S18: 貳、身體力與美九.體操精靈 | T18: 14 | U18: 第四單元寶貝我的家 活動二親情交流站 | AI18: 15 | AJ18: SB | AK18: 15.一條龍、轆轤把
D19: 15 | E19: 文學長廊 十一、我願 | F19: 15 | G19: 生活真趣味 五、搬戲 | H19: 15 | I19: Unit 4 Are There Any Windows in the Dining Room? | J19: 15 | K19: 八、等量公理與應用 | L19: 15 | M19: 五、臺灣的人口 1.人口分布與遷移 | N19: 15 | O19: 五、打開戲劇百寶箱 4.跨國界的表演藝術 5.說學逗唱樣樣精 | P19: 15 | Q19: 三、大地的奧祕 活動二 岩石與礦物 活動三 風化與土壤 | R19: 15 | S19: 貳、身體力與美九.體操精靈 | T19: 15 | U19: 第四單元寶貝我的家 活動二親情交流站 | AI19: 16 | AJ19: SB | AK19: 16.三合院、四合院
D20: 16 | E20: 文學長廊 十二、最好的味覺禮物 | F20: 16 | G20: 生活真趣味 五、搬戲 | H20: 16 | I20: Unit 4 Are There Any Windows in the Dining Room? | J20: 16 | K20: 九、比、比值與成正比 | L20: 16 | M20: 五、臺灣的人口 1.人口分布與遷移 | N20: 16 | O20: 五、打開戲劇百寶箱 5.說學逗唱樣樣精 6.藝術新視野 | P20: 16 | Q20: 四、電磁作用 活動一 指北針和地磁 活動二 電磁鐵 | R20: 16 | S20: 貳、身體力與美九.體操精靈 | T20: 16 | U20: 第四單元寶貝我的家 活動三互動一家親 | AI20: 17 | AJ20: SB | AK20: 17.多護龍、多院落、書院
D21: 17 | E21: 文學長廊 十三、空城計 | F21: 17 | G21: 生活真趣味 五、搬戲 | H21: 17 | I21: Unit 5 What Do You Want to Drink? | J21: 17 | K21: 九、比、比值與成正比 | L21: 17 | M21: 五、臺灣的人口 2.人口現象與政策 | N21: 17 | O21: 六、海洋家園 1.大海的歌唱 | P21: 17 | Q21: 四、電磁作用 活動二 電磁鐵 | R21: 17 | S21: 參、運動競技場十.現代輕功 | T21: 17 | U21: 第五單元反制危機大作戰 活動一危機要提防 | AI21: 18 | AJ21: SB | AK21: 18.認識廟宇建築
D22: 18 | E22: 文學長廊 十四、桂花雨 | F22: 18 | G22: 生活真趣味 單元活動三 | H22: 18 | I22: Unit 5 What Do You Want to Drink? | J22: 18 | K22: 九、比、比值與成正比 | L22: 18 | M22: 五、臺灣的人口 2.人口現象與政策 | N22: 18 | O22: 六、海洋家園 1.大海的歌唱 | P22: 18 | Q22: 四、電磁作用 活動二 電磁鐵 | R22: 18 | S22: 參、運動競技場十一.力拔山河 | T22: 18 | U22: 第五單元反制危機大作戰 活動二危機急轉彎 | AI22: 1 | AJ22: SA | AK22: 都是放屁惹的禍
D23: 19 | E23: 文學長廊 十四、桂花雨 | F23: 19 | G23: 唸謠 臆臺灣的地名 | H23: 19 | I23: Unit 5 What Do You Want to Drink? | J23: 19 | K23: 十、縮圖、放大圖與比例尺 | L23: 19 | M23: 六、臺灣的城鄉與區域 1.鄉村與都市 | N23: 19 | O23: 六、海洋家園 2.海洋之舞 | P23: 19 | Q23: 四、電磁作用 活動二 電磁鐵 活動三 電磁鐵的應用 | R23: 19 | S23: 參、運動競技場十一.力拔山河 | T23: 19 | U23: 第五單元反制危機大作戰 活動三化險為夷 | AI23: 2 | AJ23: SA | AK23: 親愛的漢修先生
D24: 20 | E24: 文學長廊 統整活動四 | F24: 20 | G24: 來唱節日的歌 一年四季 | H24: 20 | I24: *Review 2 複習 Unit3~Unit 5 | J24: 20 | K24: 十、縮圖、放大圖與比例尺 | L24: 20 | M24: 六、臺灣的城鄉與區域 2.區域特色與發展 | N24: 20 | O24: 六、海洋家園 2.海洋之舞 3.海洋風情畫 | P24: 20 | Q24: 四、電磁作用 活動三 電磁鐵的應用 | R24: 20 | S24: 參、運動競技場十二.樂趣手球 | T24: 20 | U24: 第五單元反制危機大作戰 活動三化險為夷 | AI24: 3 | AJ24: SA | AK24: 吸墨鬼來了
D25: 21 | E25: 閱讀階梯二 進入雨林 | F25: 21 | G25: 趣味的話語 | H25: 21 | I25: *Review 2 複習 Unit3~Unit5 | J25: 21 | K25: 十、縮圖、放大圖與比例尺 | L25: 21 | M25: 六、臺灣的城鄉與區域 2.區域特色與發展 | N25: 21 | O25: 六、海洋家園 3.海洋風情畫 | P25: 21 | Q25: 四、電磁作用 科學閱讀 | R25: 21 | S25: 總復習 | T25: 21 | U25: 第一單元發現不同的自己 活動三持續發展
B51: 週次: | D51: 18 | E51: 下學期 | G51: (說明:如果COPY的資料有合併儲存的,請取消,將正確的資料放在正確的週次旁儲存格) | V51: 每周上課總節數
B52: 第52列_輸入每周上課節數→→ | E52: 5 | G52: 1 | I52: 1 | K52: 4 | M52: 3 | O52: 3 | Q52: 4 | S52: 3 | U52: 3 | V52: =SUM(E52:U52) -> 27
E53: 國語文 | F53: 上課週次 | G53: 本土語文 | H53: 上課週次 | I53: 英語文 | J53: 上課週次 | K53: 數學 | L53: 上課週次 | M53: 社會 | N53: 上課週次 | O53: 藝術與人文 | P53: 上課週次 | Q53: 自然與科技 | R53: 上課週次 | S53: 健康與體育 | T53: 上課週次 | U53: 綜合活動
B54: 第54列_輸入正確書局版本→→ | C54: 輸入書局版本→→ | E54: 國語 ( 康軒版) 第12冊 | G54: 本土語言 ( 康軒版)第12冊 | I54: 英語 (何嘉仁 Story.com )第8冊 | K54: 數學 ( 康軒版)第12冊 | M54: 社會 (康軒版)第8冊 | O54: 藝術與人文 (康軒版)第8冊 | Q54: 自然與科技 (康軒版)第8冊 | S54: 健康與體育翰林 (南一版)第12冊 | U54: 綜合活動 (康軒版)第12冊
B55: 第一單元一定在55列→→ | C55: 第一單元一定在55列→→→→ | D55: 1 | E55: 人間有情 一、過故人莊 | F55: 1 | G55: 多元文化 一、地球人 | H55: 1 | I55: 角色介紹、 圖示介紹 | J55: 1 | K55: 一、分數與小數的計算 | L55: 1 | M55: 一、文明與科技生活 1.古代的文明與科技 | N55: 1 | O55: 一、音樂聯合國 唱歌謠看世界 | P55: 1 | Q55: 一、簡單機械 活動一 認識槓桿 | R55: 1 | S55: 壹、青春生活實踐家一.飲食新主張 | T55: 1 | U55: 第一單元生命的故事 活動一我的成長
D56: 2 | E56: 人間有情 二、把愛傳下去 | F56: 2 | G56: 多元文化 一、地球人 | H56: 2 | I56: 圖示介紹 發音複習表 | J56: 2 | K56: 一、分數與小數的計算 | L56: 2 | M56: 一、文明與科技生活 1.古代的文明與科技 | N56: 2 | O56: 一、音樂聯合國 唱歌謠看世界 樂器嘉年華 | P56: 2 | Q56: 一、簡單機械 活動一 認識槓桿 活動二 滑輪與輪軸 | R56: 2 | S56: 壹、青春生活實踐家二.關鍵時刻 | T56: 2 | U56: 第一單元生命的故事 活動二生命中的變化
D57: 3 | E57: 人間有情 三、山村車輄寮 | F57: 3 | G57: 多元文化 一、地球人 | H57: 3 | I57: Unit 1 What Do You Want to Wear? | J57: 3 | K57: 二、速率 | L57: 3 | M57: 一、文明與科技生活 2.科學的突破 | N57: 3 | O57: 一、音樂聯合國 樂器嘉年華 笛聲飛揚 | P57: 3 | Q57: 一、簡單機械 活動二 滑輪與輪軸 | R57: 3 | S57: 壹、青春生活實踐家三.青春防衛站 | T57: 3 | U57: 第一單元生命的故事 活動二生命中的變化
D58: 4 | E58: 海天遊蹤 統整活動一 | F58: 4 | G58: 多元文化 二、中和潑水節 | H58: 4 | I58: Unit 1 What Do You Want to Wear? | J58: 4 | K58: 二、速率 | L58: 4 | M58: 一、文明與科技生活 2.科學的突破 | N58: 4 | O58: 二、美好的時光 夏日輕歌 | P58: 4 | Q58: 一、簡單機械 活動二 滑輪與輪軸 活動三 動力的傳送 | R58: 4 | S58: 壹、青春生活實踐家三.青春防衛站 | T58: 4 | U58: 第二單元保護地球行動 活動一生態環境改變
D59: 5 | E59: 海天遊蹤 四、迷途 | F59: 5 | G59: 多元文化 二、中和潑水節 | H59: 5 | I59: Unit 1 What Do You Want to Wear? | J59: 5 | K59: 二、速率 | L59: 5 | M59: 一、文明與科技生活 3.科技的運用與管理 | N59: 5 | O59: 二、美好的時光 歌詠家鄉 | P59: 5 | Q59: 一、簡單機械 活動三 動力的傳送 | R59: 5 | S59: 壹、青春生活實踐家四.迎向未來 | T59: 5 | U59: 第二單元保護地球行動 活動一生態環境改變
D60: 6 | E60: 海天遊蹤 五、馬達加斯加，出發！ | F60: 6 | G60: 多元文化 二、中和潑水節 | H60: 6 | I60: Unit 2 Were You at the Bookstore Yesterday? | J60: 6 | K60: 三、形體關係、體積與表面積 | L60: 6 | M60: 一、文明與科技生活 3.科技的運用與管理 | N60: 6 | O60: 二、美好的時光 笛聲飛揚 | P60: 6 | Q60: 一、簡單機械 活動三 動力的傳送 二、微生物與食品保存 活動一 生活中的微生物 | R60: 6 | S60: 壹、青春生活實踐家五.健康美麗新社區 | T60: 6 | U60: 第二單元保護地球行動 活動二珍惜生態環境
D61: 7 | E61: 海天遊蹤 六、秋日劍橋漫步 | F61: 7 | G61: 多元文化 單元活動一 | H61: 7 | I61: Unit 2 Were You at the Bookstore Yesterday? | J61: 7 | K61: 三、形體關係、體積與表面積 | L61: 7 | M61: 二、從臺灣走向世界 1.臺灣與世界 | N61: 7 | O61: 三、藝術萬光筒 藝術漫遊 公共藝術在校園 | P61: 7 | Q61: 二、微生物與食品保存 活動一 生活中的微生物 | R61: 7 | S61: 貳、運動的樂章六.平衡運動 | T61: 7 | U61: 第二單元保護地球行動 活動二珍惜生態環境
D62: 8 | E62: 海天遊蹤 統整活動二 | F62: 8 | G62: 阮兜的心適代 三、阿爸煮飯 | H62: 8 | I62: Unit 2 Were You at the Bookstore Yesterday? | J62: 8 | K62: 三、形體關係、體積與表面積 | L62: 8 | M62: 二、從臺灣走向世界 1.臺灣與世界 | N62: 8 | O62: 三、藝術萬花筒 送給母校的禮物 | P62: 8 | Q62: 二、微生物與食品保存 活動二 食物腐壞的原因 | R62: 8 | S62: 貳、運動的樂章七.迷你網球 | T62: 8 | U62: 第三單元文化無邊界 活動一文化面面觀
D63: 9 | E63: 閱讀階梯一 驚蟄驅蟻記 | F63: 9 | G63: 阮兜的心適代 三、阿爸煮飯 | H63: 9 | I63: *Review 1 複習 Unit1~Unit 2 | J63: 9 | K63: 四、基準量與比較量 | L63: 9 | M63: 二、從臺灣走向世界 2.世界文化大不同 | N63: 9 | O63: 四、設計幻想曲 生活中的好設計 | P63: 9 | Q63: 二、微生物與食品保存 活動二 食物腐壞的原因 活動三 保存食物的方法 | R63: 9 | S63: 貳、運動的樂章七.迷你網球 | T63: 9 | U63: 第三單元文化無邊界 活動一文化面面觀
D64: 10 | E64: 童年故事 七、油條報紙•文字夢 | F64: 10 | G64: 阮兜的心適代 三、阿爸煮飯 | H64: 10 | I64: *Review 1 複習 Unit1~Unit 2 | J64: 10 | K64: 四、基準量與比較量 | L64: 10 | M64: 二、從臺灣走向世界 2.世界文化大不同 | N64: 10 | O64: 四、設計幻想曲 生活中的好設計 秀出好設計 | P64: 10 | Q64: 二、微生物與食品保存 活動三 保存食物的方法 三、生物與環境 活動一 生物生長的環境 | R64: 10 | S64: 貳、運動的樂章八.足球小子(二) | T64: 10 | U64: 第三單元文化無邊界 活動二在地文化族群探索
D65: 11 | E65: 童年故事 八、雕刻一座小島 | F65: 11 | G65: 阮兜的心適代 單元活動二 | H65: 11 | I65: Unit 3 What Did You Do Last Night? | J65: 11 | K65: 四、基準量與比較量 | L65: 11 | M65: 三、放眼看世界 1.國際組織 | N65: 11 | O65: 四、設計幻想曲 秀出好設計 | P65: 11 | Q65: 三、生物與環境 活動一 生物生長的環境 | R65: 11 | S65: 貳、運動的樂章八.足球小子(二) | T65: 11 | U65: 第三單元文化無邊界 活動二在地文化族群探索
D66: 12 | E66: 童年故事 九、童年•夏日•棉花糖 | F66: 12 | G66: 我大漢矣 四、大樹青青 | H66: 12 | I66: Unit 3 What Did You Do Last Night? | J66: 12 | K66: 五、怎樣解題 | L66: 12 | M66: 三、放眼看世界 1.國際組織 | N66: 12 | O66: 五、躍上伸展臺 有故事的戲服 衣起環遊世界 | P66: 12 | Q66: 三、生物與環境 活動一 生物生長的環境 | R66: 12 | S66: 貳、運動的樂章九.水中樂逍遙 | T66: 12 | U66: 第四單元活用資源便利多 活動一資源搜查線
D67: 13 | E67: 童年故事 統整活動三 | F67: 13 | G67: 我大漢矣 四、大樹青青 | H67: 13 | I67: Unit 3 What Did You Do Last Night? | J67: 13 | K67: 五、怎樣解題 | L67: 13 | M67: 三、放眼看世界 2.人口與資源 | N67: 13 | O67: 五、躍上伸展臺 造形設計變變變 | P67: 13 | Q67: 三、生物與環境 活動一 生物生長的環境 活動二 人類活動對環境的影響 | R67: 13 | S67: 貳、運動的樂章九.水中樂逍遙 | T67: 13 | U67: 第四單元活用資源便利多 活動一資源搜查線
D68: 14 | E68: 成長與祝福 十、追夢的翅膀 | F68: 14 | G68: 我大漢矣 四、大樹青青 | H68: 14 | I68: Unit 4 Did You Bake Cookies? | J68: 14 | K68: 五、怎樣解題 | L68: 14 | M68: 三、放眼看世界 2.人口與資源 | N68: 14 | O68: 五、躍上伸展臺 決戰造形伸展臺 | P68: 14 | Q68: 三、生物與環境 活動二 人類活動對環境的影響 | R68: 14 | S68: 參、歡樂嘉年華十.功夫小子 | T68: 14 | U68: 第四單元活用資源便利多 活動二善用資源
D69: 15 | E69: 成長與祝福 十一、祝賀你，孩子 | F69: 15 | G69: 我大漢矣 五、讀俗諺學智慧 | H69: 15 | I69: Unit 4 Did You Bake Cookies? | J69: 15 | K69: 六、圓形圖 | L69: 15 | M69: 三、放眼看世界 3.全球議題 | N69: 15 | O69: 六、珍重再見 1點點滴滴的回憶 2美麗的印記 | P69: 15 | Q69: 三、生物與環境 活動二 人類活動對環境的影響 活動三 珍惜自然資源 | R69: 15 | S69: 參、歡樂嘉年華十一.籃球高手 | T69: 15 | U69: 第四單元活用資源便利多 活動二善用資源
D70: 16 | E70: 成長與祝福 統整活動四 | F70: 16 | G70: 我大漢矣 五、讀俗諺學智慧 | H70: 16 | I70: Unit 4 Did You Bake Cookies? | J70: 16 | K70: 六、圓形圖 | L70: 16 | M70: 四、關心我們的地球 1.全球環境 | N70: 16 | O70: 六、珍重再見 2美麗的印記 3祝福的樂聲 | P70: 16 | Q70: 三、生物與環境 活動三 珍惜自然資源 | R70: 16 | S70: 參、歡樂嘉年華十一.籃球高手 | T70: 16 | U70: 第一單元生命的故事 活動一我的成長
D71: 17 | E71: 閱讀階梯二 桃花源 | F71: 17 | G71: 我大漢矣 單元活動三 | H71: 17 | I71: *Review 2 複習 Unit3~Unit4 | J71: 17 | K71: 六、圓形圖 | L71: 17 | M71: 四、關心我們的地球 2.世界一家 | N71: 17 | O71: 六、珍重再見 2美麗的印記 3祝福的樂聲 | P71: 17 | Q71: 三、生物與環境 科學閱讀 | R71: 17 | S71: 參、歡樂嘉年華十二.勇冠三軍 | T71: 17 | U71: 第一單元生命的故事 活動一我的成長
D72: 18 | E72: 畢業週 | F72: 18 | G72: 畢業週 | H72: 18 | I72: *Review 2 複習 Unit3~Unit4 | J72: 18 | K72: 畢業週 | L72: 18 | M72: 畢業週 | N72: 18 | O72: 畢業週 | P72: 18 | Q72: 畢業週 | R72: 18 | S72: 參、歡樂嘉年華十二.勇冠三軍 | T72: 18 | U72: 畢業週

Sheet 上學期週次節數總表
A1: 請輸入搜尋代號或字串: | C1: 彈性課程
C2: 年級 | D2: 1 | E2: 2 | F2: 3 | G2: 4 | H2: 5 | I2: 6 | J2: 7 | K2: 8 | L2: 9 | M2: 10 | N2: 11 | O2: 12 | P2: 13 | Q2: 14 | R2: 15 | S2: 16 | T2: 17 | U2: 18 | V2: 19 | W2: 20 | X2: 21 | Y2: 22
B3: 彈性課程 | C3: 1 | AE3: 1 | AF3: 1
B4: 彈性課程 | C4: 2 | AE4: 2 | AF4: 1
B5: 彈性課程 | C5: 3 | AE5: 3 | AF5: 1
B6: 彈性課程 | C6: 4 | AE6: 4 | AF6: 1
B7: 彈性課程 | C7: 5 | AE7: 5 | AF7: 1
B8: 彈性課程 | C8: 6 | AE8: 6 | AF8: 1
B9: 各週小計: | AE9: 7 | AF9: 1
AE10: 8 | AF10: 1
B11: N | C11: 非領域 | AE11: 9 | AF11: 1
C12: 年級 | D12: 1 | E12: 2 | F12: 3 | G12: 4 | H12: 5 | I12: 6 | J12: 7 | K12: 8 | L12: 9 | M12: 10 | N12: 11 | O12: 12 | P12: 13 | Q12: 14 | R12: 15 | S12: 16 | T12: 17 | U12: 18 | V12: 19 | W12: 20 | X12: 21 | Y12: 22 | AE12: 10 | AF12: 1
B13: 非領域 | C13: 1 | AE13: 11 | AF13: 1
B14: 非領域 | C14: 2 | AE14: 12 | AF14: 1
B15: 非領域 | C15: 3 | AE15: 13 | AF15: 1
B16: 非領域 | C16: 4 | AE16: 14 | AF16: 1
B17: 非領域 | C17: 5 | AE17: 15 | AF17: 1
B18: 非領域 | C18: 6 | AE18: 16 | AF18: 1
B19: 各週小計: | AE19: 17 | AF19: 1
AE20: 18 | AF20: 1
B21: A | C21: 國語文 | D21: 週次 | AE21: 19 | AF21: 1
C22: 年級 | D22: 1 | E22: 2 | F22: 3 | G22: 4 | H22: 5 | I22: 6 | J22: 7 | K22: 8 | L22: 9 | M22: 10 | N22: 11 | O22: 12 | P22: 13 | Q22: 14 | R22: 15 | S22: 16 | T22: 17 | U22: 18 | V22: 19 | W22: 20 | X22: 21 | Y22: 22 | AE22: 20 | AF22: 1
B23: 國語文 | C23: 1
B24: 國語文 | C24: 2
B25: 國語文 | C25: 3
B26: 國語文 | C26: 4
B27: 國語文 | C27: 5
B28: 國語文 | C28: 6
B29: 各週小計:
B31: B | C31: 本土語文
C32: 年級 | D32: 1 | E32: 2 | F32: 3 | G32: 4 | H32: 5 | I32: 6 | J32: 7 | K32: 8 | L32: 9 | M32: 10 | N32: 11 | O32: 12 | P32: 13 | Q32: 14 | R32: 15 | S32: 16 | T32: 17 | U32: 18 | V32: 19 | W32: 20 | X32: 21 | Y32: 22
B33: 本土語文 | C33: 1
B34: 本土語文 | C34: 2
B35: 本土語文 | C35: 3
B36: 本土語文 | C36: 4
B37: 本土語文 | C37: 5
B38: 本土語文 | C38: 6
B39: 各週小計:
B41: C | C41: 英語文
C42: 年級 | D42: 1 | E42: 2 | F42: 3 | G42: 4 | H42: 5 | I42: 6 | J42: 7 | K42: 8 | L42: 9 | M42: 10 | N42: 11 | O42: 12 | P42: 13 | Q42: 14 | R42: 15 | S42: 16 | T42: 17 | U42: 18 | V42: 19 | W42: 20 | X42: 21 | Y42: 22
B43: 英語文 | C43: 1
B44: 英語文 | C44: 2
B45: 英語文 | C45: 3
B46: 英語文 | C46: 4
B47: 英語文 | C47: 5
B48: 英語文 | C48: 6
B49: 各週小計:
B51: D | C51: 數學
C52: 年級 | D52: 1 | E52: 2 | F52: 3 | G52: 4 | H52: 5 | I52: 6 | J52: 7 | K52: 8 | L52: 9 | M52: 10 | N52: 11 | O52: 12 | P52: 13 | Q52: 14 | R52: 15 | S52: 16 | T52: 17 | U52: 18 | V52: 19 | W52: 20 | X52: 21 | Y52: 22
B53: 數學 | C53: 1
B54: 數學 | C54: 2
B55: 數學 | C55: 3
B56: 數學 | C56: 4
B57: 數學 | C57: 5
B58: 數學 | C58: 6
B59: 各週小計:
B61: E | C61: 社會
C62: 年級 | D62: 1 | E62: 2 | F62: 3 | G62: 4 | H62: 5 | I62: 6 | J62: 7 | K62: 8 | L62: 9 | M62: 10 | N62: 11 | O62: 12 | P62: 13 | Q62: 14 | R62: 15 | S62: 16 | T62: 17 | U62: 18 | V62: 19 | W62: 20 | X62: 21 | Y62: 22
B63: 社會 | C63: 1
B64: 社會 | C64: 2
B65: 社會 | C65: 3
B66: 社會 | C66: 4
B67: 社會 | C67: 5
B68: 社會 | C68: 6
B69: 各週小計:
B71: F | C71: 藝術
C72: 年級 | D72: 1 | E72: 2 | F72: 3 | G72: 4 | H72: 5 | I72: 6 | J72: 7 | K72: 8 | L72: 9 | M72: 10 | N72: 11 | O72: 12 | P72: 13 | Q72: 14 | R72: 15 | S72: 16 | T72: 17 | U72: 18 | V72: 19 | W72: 20 | X72: 21 | Y72: 22
B73: 藝術 | C73: 1
B74: 藝術 | C74: 2
B75: 藝術 | C75: 3
B76: 藝術 | C76: 4
B77: 藝術 | C77: 5
B78: 藝術 | C78: 6
B79: 各週小計:
B81: G | C81: 自然與科技
C82: 年級 | D82: 1 | E82: 2 | F82: 3 | G82: 4 | H82: 5 | I82: 6 | J82: 7 | K82: 8 | L82: 9 | M82: 10 | N82: 11 | O82: 12 | P82: 13 | Q82: 14 | R82: 15 | S82: 16 | T82: 17 | U82: 18 | V82: 19 | W82: 20 | X82: 21 | Y82: 22
B83: 自然與科技 | C83: 1
B84: 自然與科技 | C84: 2
B85: 自然與科技 | C85: 3
B86: 自然與科技 | C86: 4
B87: 自然與科技 | C87: 5
B88: 自然與科技 | C88: 6
B89: 各週小計:
B91: H | C91: 健康與體育
C92: 年級 | D92: 1 | E92: 2 | F92: 3 | G92: 4 | H92: 5 | I92: 6 | J92: 7 | K92: 8 | L92: 9 | M92: 10 | N92: 11 | O92: 12 | P92: 13 | Q92: 14 | R92: 15 | S92: 16 | T92: 17 | U92: 18 | V92: 19 | W92: 20 | X92: 21 | Y92: 22
B93: 健康與體育 | C93: 1
B94: 健康與體育 | C94: 2
B95: 健康與體育 | C95: 3
B96: 健康與體育 | C96: 4
B97: 健康與體育 | C97: 5
B98: 健康與體育 | C98: 6
B99: 各週小計:
B101: I | C101: 綜合活動
C102: 年級 | D102: 1 | E102: 2 | F102: 3 | G102: 4 | H102: 5 | I102: 6 | J102: 7 | K102: 8 | L102: 9 | M102: 10 | N102: 11 | O102: 12 | P102: 13 | Q102: 14 | R102: 15 | S102: 16 | T102: 17 | U102: 18 | V102: 19 | W102: 20 | X102: 21 | Y102: 22
B103: 綜合活動 | C103: 1
B104: 綜合活動 | C104: 2
B105: 綜合活動 | C105: 3
B106: 綜合活動 | C106: 4
B107: 綜合活動 | C107: 5
B108: 綜合活動 | C108: 6
B109: 各週小計:
B110: 彈性課程融入各項議題專用
B111: J | C111: 悅讀童樂會
C112: 年級 | D112: 1 | E112: 2 | F112: 3 | G112: 4 | H112: 5 | I112: 6 | J112: 7 | K112: 8 | L112: 9 | M112: 10 | N112: 11 | O112: 12 | P112: 13 | Q112: 14 | R112: 15 | S112: 16 | T112: 17 | U112: 18 | V112: 19 | W112: 20 | X112: 21 | Y112: 22
B113: 悅讀童樂會 | C113: 1
B114: 悅讀童樂會 | C114: 2
B115: 悅讀童樂會 | C115: 3
B116: 悅讀童樂會 | C116: 4
B117: 悅讀童樂會 | C117: 5
B118: 悅讀童樂會 | C118: 6
B119: 各週小計:
B121: K | C121: 吾愛吾校
C122: 年級 | D122: 1 | E122: 2 | F122: 3 | G122: 4 | H122: 5 | I122: 6 | J122: 7 | K122: 8 | L122: 9 | M122: 10 | N122: 11 | O122: 12 | P122: 13 | Q122: 14 | R122: 15 | S122: 16 | T122: 17 | U122: 18 | V122: 19 | W122: 20 | X122: 21 | Y122: 22
B123: 吾愛吾校 | C123: 1
B124: 吾愛吾校 | C124: 2
B125: 吾愛吾校 | C125: 3
B126: 吾愛吾校 | C126: 4
B127: 吾愛吾校 | C127: 5
B128: 吾愛吾校 | C128: 6
B129: 各週小計:
B131: L | C131: 班級活動
C132: 年級 | D132: 1 | E132: 2 | F132: 3 | G132: 4 | H132: 5 | I132: 6 | J132: 7 | K132: 8 | L132: 9 | M132: 10 | N132: 11 | O132: 12 | P132: 13 | Q132: 14 | R132: 15 | S132: 16 | T132: 17 | U132: 18 | V132: 19 | W132: 20 | X132: 21 | Y132: 22
B133: 班級活動 | C133: 1
B134: 班級活動 | C134: 2
B135: 班級活動 | C135: 3
B136: 班級活動 | C136: 4
B137: 班級活動 | C137: 5
B138: 班級活動 | C138: 6
B139: 各週小計:
B141: M | C141: 資訊教育
C142: 年級 | D142: 1 | E142: 2 | F142: 3 | G142: 4 | H142: 5 | I142: 6 | J142: 7 | K142: 8 | L142: 9 | M142: 10 | N142: 11 | O142: 12 | P142: 13 | Q142: 14 | R142: 15 | S142: 16 | T142: 17 | U142: 18 | V142: 19 | W142: 20 | X142: 21 | Y142: 22
B143: 資訊教育 | C143: 1
B144: 資訊教育 | C144: 2
B145: 資訊教育 | C145: 3
B146: 資訊教育 | C146: 4
B147: 資訊教育 | C147: 5
B148: 資訊教育 | C148: 6
B149: 各週小計:
B151: N | C151: 英語教育
C152: 年級 | D152: 1 | E152: 2 | F152: 3 | G152: 4 | H152: 5 | I152: 6 | J152: 7 | K152: 8 | L152: 9 | M152: 10 | N152: 11 | O152: 12 | P152: 13 | Q152: 14 | R152: 15 | S152: 16 | T152: 17 | U152: 18 | V152: 19 | W152: 20 | X152: 21 | Y152: 22
B153: 英語教育 | C153: 1
B154: 英語教育 | C154: 2
B155: 英語教育 | C155: 3
B156: 英語教育 | C156: 4
B157: 英語教育 | C157: 5
B158: 英語教育 | C158: 6
B159: 各週小計:
B161: O | C161: 學習診斷與補救
C162: 年級 | D162: 1 | E162: 2 | F162: 3 | G162: 4 | H162: 5 | I162: 6 | J162: 7 | K162: 8 | L162: 9 | M162: 10 | N162: 11 | O162: 12 | P162: 13 | Q162: 14 | R162: 15 | S162: 16 | T162: 17 | U162: 18 | V162: 19 | W162: 20 | X162: 21 | Y162: 22
B163: 學習診斷與補救 | C163: 1
B164: 學習診斷與補救 | C164: 2
B165: 學習診斷與補救 | C165: 3
B166: 學習診斷與補救 | C166: 4
B167: 學習診斷與補救 | C167: 5
B168: 學習診斷與補救 | C168: 6
B169: 各週小計:
B173: 年級: | C173: 六 | E173: 總節數:
A174: 各領域節數 | B174: 跨領域專用 | D174: 1 | E174: 2 | F174: 3 | G174: 4 | H174: 5 | I174: 6 | J174: 7 | K174: 8 | L174: 9 | M174: 10 | N174: 11 | O174: 12 | P174: 13 | Q174: 14 | R174: 15 | S174: 16 | T174: 17 | U174: 18 | V174: 19 | W174: 20 | X174: 21 | Y174: 22
A175: =SUM(D175:Y175) -> 0 | B175: A | C175: 國語文 | D175: 0 | E175: 0 | F175: 0 | G175: 0 | H175: 0 | I175: 0 | J175: 0 | K175: 0 | L175: 0 | M175: 0 | N175: 0 | O175: 0 | P175: 0 | Q175: 0 | R175: 0 | S175: 0 | T175: 0 | U175: 0 | V175: 0 | W175: 0 | X175: 0
A176: =SUM(D176:Y176) -> 0 | B176: B | C176: 本土語文 | D176: 0 | E176: 0 | F176: 0 | G176: 0 | H176: 0 | I176: 0 | J176: 0 | K176: 0 | L176: 0 | M176: 0 | N176: 0 | O176: 0 | P176: 0 | Q176: 0 | R176: 0 | S176: 0 | T176: 0 | U176: 0 | V176: 0 | W176: 0 | X176: 0
A177: 0 | B177: C | C177: 英語文 | D177: 0 | E177: 0 | F177: 0 | G177: 0 | H177: 0 | I177: 0 | J177: 0 | K177: 0 | L177: 0 | M177: 0 | N177: 0 | O177: 0 | P177: 0 | Q177: 0 | R177: 0 | S177: 0 | T177: 0 | U177: 0 | V177: 0 | W177: 0 | X177: 0
A178: 0 | B178: D | C178: 數學 | D178: 0 | E178: 0 | F178: 0 | G178: 0 | H178: 0 | I178: 0 | J178: 0 | K178: 0 | L178: 0 | M178: 0 | N178: 0 | O178: 0 | P178: 0 | Q178: 0 | R178: 0 | S178: 0 | T178: 0 | U178: 0 | V178: 0 | W178: 0 | X178: 0
A179: 0 | B179: E | C179: 社會 | D179: 0 | E179: 0 | F179: 0 | G179: 0 | H179: 0 | I179: 0 | J179: 0 | K179: 0 | L179: 0 | M179: 0 | N179: 0 | O179: 0 | P179: 0 | Q179: 0 | R179: 0 | S179: 0 | T179: 0 | U179: 0 | V179: 0 | W179: 0 | X179: 0
A180: 0 | B180: F | C180: 藝術 | D180: 0 | E180: 0 | F180: 0 | G180: 0 | H180: 0 | I180: 0 | J180: 0 | K180: 0 | L180: 0 | M180: 0 | N180: 0 | O180: 0 | P180: 0 | Q180: 0 | R180: 0 | S180: 0 | T180: 0 | U180: 0 | V180: 0 | W180: 0 | X180: 0
A181: 0 | B181: G | C181: 自然與科技 | D181: 0 | E181: 0 | F181: 0 | G181: 0 | H181: 0 | I181: 0 | J181: 0 | K181: 0 | L181: 0 | M181: 0 | N181: 0 | O181: 0 | P181: 0 | Q181: 0 | R181: 0 | S181: 0 | T181: 0 | U181: 0 | V181: 0 | W181: 0 | X181: 0
A182: 0 | B182: H | C182: 健康與體育 | D182: 0 | E182: 0 | F182: 0 | G182: 0 | H182: 0 | I182: 0 | J182: 0 | K182: 0 | L182: 0 | M182: 0 | N182: 0 | O182: 0 | P182: 0 | Q182: 0 | R182: 0 | S182: 0 | T182: 0 | U182: 0 | V182: 0 | W182: 0 | X182: 0
A183: 0 | B183: I | C183: 綜合活動 | D183: 0 | E183: 0 | F183: 0 | G183: 0 | H183: 0 | I183: 0 | J183: 0 | K183: 0 | L183: 0 | M183: 0 | N183: 0 | O183: 0 | P183: 0 | Q183: 0 | R183: 0 | S183: 0 | T183: 0 | U183: 0 | V183: 0 | W183: 0 | X183: 0
A184: 0
A185: 0 | B185: J | C185: 悅讀童樂會 | D185: 0 | E185: 0 | F185: 0 | G185: 0 | H185: 0 | I185: 0 | J185: 0 | K185: 0 | L185: 0 | M185: 0 | N185: 0 | O185: 0 | P185: 0 | Q185: 0 | R185: 0 | S185: 0 | T185: 0 | U185: 0 | V185: 0 | W185: 0 | X185: 0
A186: 0 | B186: K | C186: 吾愛吾校 | D186: 0 | E186: 0 | F186: 0 | G186: 0 | H186: 0 | I186: 0 | J186: 0 | K186: 0 | L186: 0 | M186: 0 | N186: 0 | O186: 0 | P186: 0 | Q186: 0 | R186: 0 | S186: 0 | T186: 0 | U186: 0 | V186: 0 | W186: 0 | X186: 0
A187: 0 | B187: L | C187: 班級活動 | D187: 0 | E187: 0 | F187: 0 | G187: 0 | H187: 0 | I187: 0 | J187: 0 | K187: 0 | L187: 0 | M187: 0 | N187: 0 | O187: 0 | P187: 0 | Q187: 0 | R187: 0 | S187: 0 | T187: 0 | U187: 0 | V187: 0 | W187: 0 | X187: 0
A188: 0 | B188: M | C188: 資訊教育 | D188: 0 | E188: 0 | F188: 0 | G188: 0 | H188: 0 | I188: 0 | J188: 0 | K188: 0 | L188: 0 | M188: 0 | N188: 0 | O188: 0 | P188: 0 | Q188: 0 | R188: 0 | S188: 0 | T188: 0 | U188: 0 | V188: 0 | W188: 0 | X188: 0
A189: 0 | B189: N | C189: 英語教育 | D189: 0 | E189: 0 | F189: 0 | G189: 0 | H189: 0 | I189: 0 | J189: 0 | K189: 0 | L189: 0 | M189: 0 | N189: 0 | O189: 0 | P189: 0 | Q189: 0 | R189: 0 | S189: 0 | T189: 0 | U189: 0 | V189: 0 | W189: 0 | X189: 0
A190: 0 | B190: O | C190: 學習診斷與補救 | D190: 0 | E190: 0 | F190: 0 | G190: 0 | H190: 0 | I190: 0 | J190: 0 | K190: 0 | L190: 0 | M190: 0 | N190: 0 | O190: 0 | P190: 0 | Q190: 0 | R190: 0 | S190: 0 | T190: 0 | U190: 0 | V190: 0 | W190: 0 | X190: 0
A191: =SUM(A175:A190) -> 0 | D191: =SUM(D175:D190) -> 0 | E191: 0 | F191: 0 | G191: 0 | H191: 0 | I191: 0 | J191: 0 | K191: 0 | L191: 0 | M191: 0 | N191: 0 | O191: 0 | P191: 0 | Q191: 0 | R191: 0 | S191: 0 | T191: 0 | U191: 0 | V191: 0 | W191: 0 | X191: 0 | Y191: 0

Sheet 下學期週次節數總表
C1: 彈性課程
C2: 年級 | D2: 1 | E2: 2 | F2: 3 | G2: 4 | H2: 5 | I2: 6 | J2: 7 | K2: 8 | L2: 9 | M2: 10 | N2: 11 | O2: 12 | P2: 13 | Q2: 14 | R2: 15 | S2: 16 | T2: 17 | U2: 18 | V2: 19 | W2: 20 | X2: 21 | Y2: 22
B3: 彈性課程 | C3: 1 | AD3: AJ | AE3: 18 | AF3: 1
B4: 彈性課程 | C4: 2 | AD4: AJ | AE4: 19 | AF4: 1
B5: 彈性課程 | C5: 3 | AD5: AJ | AE5: 20 | AF5: 1
B6: 彈性課程 | C6: 4
B7: 彈性課程 | C7: 5
B8: 彈性課程 | C8: 6
B9: 各週小計:
B11: N | C11: 非領域
C12: 年級 | D12: 1 | E12: 2 | F12: 3 | G12: 4 | H12: 5 | I12: 6 | J12: 7 | K12: 8 | L12: 9 | M12: 10 | N12: 11 | O12: 12 | P12: 13 | Q12: 14 | R12: 15 | S12: 16 | T12: 17 | U12: 18 | V12: 19 | W12: 20 | X12: 21 | Y12: 22
B13: 非領域 | C13: 1
B14: 非領域 | C14: 2
B15: 非領域 | C15: 3
B16: 非領域 | C16: 4
B17: 非領域 | C17: 5
B18: 非領域 | C18: 6
B19: 各週小計:
B21: A | C21: 國語文 | D21: 週次
C22: 年級 | D22: 1 | E22: 2 | F22: 3 | G22: 4 | H22: 5 | I22: 6 | J22: 7 | K22: 8 | L22: 9 | M22: 10 | N22: 11 | O22: 12 | P22: 13 | Q22: 14 | R22: 15 | S22: 16 | T22: 17 | U22: 18 | V22: 19 | W22: 20 | X22: 21 | Y22: 22
B23: 國語文 | C23: 1
B24: 國語文 | C24: 2
B25: 國語文 | C25: 3
B26: 國語文 | C26: 4
B27: 國語文 | C27: 5
B28: 國語文 | C28: 6
B29: 各週小計:
B31: B | C31: 本土語文
C32: 年級 | D32: 1 | E32: 2 | F32: 3 | G32: 4 | H32: 5 | I32: 6 | J32: 7 | K32: 8 | L32: 9 | M32: 10 | N32: 11 | O32: 12 | P32: 13 | Q32: 14 | R32: 15 | S32: 16 | T32: 17 | U32: 18 | V32: 19 | W32: 20 | X32: 21 | Y32: 22
B33: 本土語文 | C33: 1
B34: 本土語文 | C34: 2
B35: 本土語文 | C35: 3
B36: 本土語文 | C36: 4
B37: 本土語文 | C37: 5
B38: 本土語文 | C38: 6
B39: 各週小計:
B41: C | C41: 英語文
C42: 年級 | D42: 1 | E42: 2 | F42: 3 | G42: 4 | H42: 5 | I42: 6 | J42: 7 | K42: 8 | L42: 9 | M42: 10 | N42: 11 | O42: 12 | P42: 13 | Q42: 14 | R42: 15 | S42: 16 | T42: 17 | U42: 18 | V42: 19 | W42: 20 | X42: 21 | Y42: 22
B43: 英語文 | C43: 1
B44: 英語文 | C44: 2
B45: 英語文 | C45: 3
B46: 英語文 | C46: 4
B47: 英語文 | C47: 5
B48: 英語文 | C48: 6
B49: 各週小計:
B51: D | C51: 數學
C52: 年級 | D52: 1 | E52: 2 | F52: 3 | G52: 4 | H52: 5 | I52: 6 | J52: 7 | K52: 8 | L52: 9 | M52: 10 | N52: 11 | O52: 12 | P52: 13 | Q52: 14 | R52: 15 | S52: 16 | T52: 17 | U52: 18 | V52: 19 | W52: 20 | X52: 21 | Y52: 22
B53: 數學 | C53: 1
B54: 數學 | C54: 2
B55: 數學 | C55: 3
B56: 數學 | C56: 4
B57: 數學 | C57: 5
B58: 數學 | C58: 6
B59: 各週小計:
B61: E | C61: 社會
C62: 年級 | D62: 1 | E62: 2 | F62: 3 | G62: 4 | H62: 5 | I62: 6 | J62: 7 | K62: 8 | L62: 9 | M62: 10 | N62: 11 | O62: 12 | P62: 13 | Q62: 14 | R62: 15 | S62: 16 | T62: 17 | U62: 18 | V62: 19 | W62: 20 | X62: 21 | Y62: 22
B63: 社會 | C63: 1
B64: 社會 | C64: 2
B65: 社會 | C65: 3
B66: 社會 | C66: 4
B67: 社會 | C67: 5
B68: 社會 | C68: 6
B69: 各週小計:
B71: F | C71: 藝術
C72: 年級 | D72: 1 | E72: 2 | F72: 3 | G72: 4 | H72: 5 | I72: 6 | J72: 7 | K72: 8 | L72: 9 | M72: 10 | N72: 11 | O72: 12 | P72: 13 | Q72: 14 | R72: 15 | S72: 16 | T72: 17 | U72: 18 | V72: 19 | W72: 20 | X72: 21 | Y72: 22
B73: 藝術 | C73: 1
B74: 藝術 | C74: 2
B75: 藝術 | C75: 3
B76: 藝術 | C76: 4
B77: 藝術 | C77: 5
B78: 藝術 | C78: 6
B79: 各週小計:
B81: G | C81: 自然與科技
C82: 年級 | D82: 1 | E82: 2 | F82: 3 | G82: 4 | H82: 5 | I82: 6 | J82: 7 | K82: 8 | L82: 9 | M82: 10 | N82: 11 | O82: 12 | P82: 13 | Q82: 14 | R82: 15 | S82: 16 | T82: 17 | U82: 18 | V82: 19 | W82: 20 | X82: 21 | Y82: 22
B83: 自然與科技 | C83: 1
B84: 自然與科技 | C84: 2
B85: 自然與科技 | C85: 3
B86: 自然與科技 | C86: 4
B87: 自然與科技 | C87: 5
B88: 自然與科技 | C88: 6
B89: 各週小計:
B91: H | C91: 健康與體育
C92: 年級 | D92: 1 | E92: 2 | F92: 3 | G92: 4 | H92: 5 | I92: 6 | J92: 7 | K92: 8 | L92: 9 | M92: 10 | N92: 11 | O92: 12 | P92: 13 | Q92: 14 | R92: 15 | S92: 16 | T92: 17 | U92: 18 | V92: 19 | W92: 20 | X92: 21 | Y92: 22
B93: 健康與體育 | C93: 1
B94: 健康與體育 | C94: 2
B95: 健康與體育 | C95: 3
B96: 健康與體育 | C96: 4
B97: 健康與體育 | C97: 5
B98: 健康與體育 | C98: 6
B99: 各週小計:
B101: I | C101: 綜合活動
C102: 年級 | D102: 1 | E102: 2 | F102: 3 | G102: 4 | H102: 5 | I102: 6 | J102: 7 | K102: 8 | L102: 9 | M102: 10 | N102: 11 | O102: 12 | P102: 13 | Q102: 14 | R102: 15 | S102: 16 | T102: 17 | U102: 18 | V102: 19 | W102: 20 | X102: 21 | Y102: 22
B103: 綜合活動 | C103: 1
B104: 綜合活動 | C104: 2
B105: 綜合活動 | C105: 3
B106: 綜合活動 | C106: 4
B107: 綜合活動 | C107: 5
B108: 綜合活動 | C108: 6
B109: 各週小計:
B110: 彈性課程融入各項議題專用
B111: J | C111: 悅讀童樂會
C112: 年級 | D112: 1 | E112: 2 | F112: 3 | G112: 4 | H112: 5 | I112: 6 | J112: 7 | K112: 8 | L112: 9 | M112: 10 | N112: 11 | O112: 12 | P112: 13 | Q112: 14 | R112: 15 | S112: 16 | T112: 17 | U112: 18 | V112: 19 | W112: 20 | X112: 21 | Y112: 22
B113: 悅讀童樂會 | C113: 1
B114: 悅讀童樂會 | C114: 2
B115: 悅讀童樂會 | C115: 3
B116: 悅讀童樂會 | C116: 4
B117: 悅讀童樂會 | C117: 5
B118: 悅讀童樂會 | C118: 6
B119: 各週小計:
B121: K | C121: 吾愛吾校
C122: 年級 | D122: 1 | E122: 2 | F122: 3 | G122: 4 | H122: 5 | I122: 6 | J122: 7 | K122: 8 | L122: 9 | M122: 10 | N122: 11 | O122: 12 | P122: 13 | Q122: 14 | R122: 15 | S122: 16 | T122: 17 | U122: 18 | V122: 19 | W122: 20 | X122: 21 | Y122: 22
B123: 吾愛吾校 | C123: 1
B124: 吾愛吾校 | C124: 2
B125: 吾愛吾校 | C125: 3
B126: 吾愛吾校 | C126: 4
B127: 吾愛吾校 | C127: 5
B128: 吾愛吾校 | C128: 6
B129: 各週小計:
B131: L | C131: 班級活動
C132: 年級 | D132: 1 | E132: 2 | F132: 3 | G132: 4 | H132: 5 | I132: 6 | J132: 7 | K132: 8 | L132: 9 | M132: 10 | N132: 11 | O132: 12 | P132: 13 | Q132: 14 | R132: 15 | S132: 16 | T132: 17 | U132: 18 | V132: 19 | W132: 20 | X132: 21 | Y132: 22
B133: 班級活動 | C133: 1
B134: 班級活動 | C134: 2
B135: 班級活動 | C135: 3
B136: 班級活動 | C136: 4
B137: 班級活動 | C137: 5
B138: 班級活動 | C138: 6
B139: 各週小計:
B141: M | C141: 資訊教育
C142: 年級 | D142: 1 | E142: 2 | F142: 3 | G142: 4 | H142: 5 | I142: 6 | J142: 7 | K142: 8 | L142: 9 | M142: 10 | N142: 11 | O142: 12 | P142: 13 | Q142: 14 | R142: 15 | S142: 16 | T142: 17 | U142: 18 | V142: 19 | W142: 20 | X142: 21 | Y142: 22
B143: 資訊教育 | C143: 1
B144: 資訊教育 | C144: 2
B145: 資訊教育 | C145: 3
B146: 資訊教育 | C146: 4
B147: 資訊教育 | C147: 5
B148: 資訊教育 | C148: 6
B149: 各週小計:
B151: N | C151: 英語教育
C152: 年級 | D152: 1 | E152: 2 | F152: 3 | G152: 4 | H152: 5 | I152: 6 | J152: 7 | K152: 8 | L152: 9 | M152: 10 | N152: 11 | O152: 12 | P152: 13 | Q152: 14 | R152: 15 | S152: 16 | T152: 17 | U152: 18 | V152: 19 | W152: 20 | X152: 21 | Y152: 22
B153: 英語教育 | C153: 1
B154: 英語教育 | C154: 2
B155: 英語教育 | C155: 3
B156: 英語教育 | C156: 4
B157: 英語教育 | C157: 5
B158: 英語教育 | C158: 6
B159: 各週小計:
B161: O | C161: 學習診斷與補救
C162: 年級 | D162: 1 | E162: 2 | F162: 3 | G162: 4 | H162: 5 | I162: 6 | J162: 7 | K162: 8 | L162: 9 | M162: 10 | N162: 11 | O162: 12 | P162: 13 | Q162: 14 | R162: 15 | S162: 16 | T162: 17 | U162: 18 | V162: 19 | W162: 20 | X162: 21 | Y162: 22
B163: 學習診斷與補救 | C163: 1
B164: 學習診斷與補救 | C164: 2
B165: 學習診斷與補救 | C165: 3
B166: 學習診斷與補救 | C166: 4
B167: 學習診斷與補救 | C167: 5
B168: 學習診斷與補救 | C168: 6
B169: 各週小計:
B173: 年級: | C173: 六 | E173: 總節數:
A174: 各領域節數 | B174: 跨領域專用 | D174: 1 | E174: 2 | F174: 3 | G174: 4 | H174: 5 | I174: 6 | J174: 7 | K174: 8 | L174: 9 | M174: 10 | N174: 11 | O174: 12 | P174: 13 | Q174: 14 | R174: 15 | S174: 16 | T174: 17 | U174: 18 | V174: 19 | W174: 20 | X174: 21 | Y174: 22
A175: =SUM(D175:Y175) -> 0 | B175: A | C175: 國語文 | D175: 0 | E175: 0 | F175: 0 | G175: 0 | H175: 0 | I175: 0 | J175: 0 | K175: 0 | L175: 0 | M175: 0 | N175: 0 | O175: 0 | P175: 0 | Q175: 0 | R175: 0 | S175: 0 | T175: 0 | U175: 0 | V175: 0 | W175: 0 | X175: 0
A176: =SUM(D176:Y176) -> 0 | B176: B | C176: 本土語文 | D176: 0 | E176: 0 | F176: 0 | G176: 0 | H176: 0 | I176: 0 | J176: 0 | K176: 0 | L176: 0 | M176: 0 | N176: 0 | O176: 0 | P176: 0 | Q176: 0 | R176: 0 | S176: 0 | T176: 0 | U176: 0 | V176: 0 | W176: 0 | X176: 0
A177: 0 | B177: C | C177: 英語文 | D177: 0 | E177: 0 | F177: 0 | G177: 0 | H177: 0 | I177: 0 | J177: 0 | K177: 0 | L177: 0 | M177: 0 | N177: 0 | O177: 0 | P177: 0 | Q177: 0 | R177: 0 | S177: 0 | T177: 0 | U177: 0 | V177: 0 | W177: 0 | X177: 0
A178: 0 | B178: D | C178: 數學 | D178: 0 | E178: 0 | F178: 0 | G178: 0 | H178: 0 | I178: 0 | J178: 0 | K178: 0 | L178: 0 | M178: 0 | N178: 0 | O178: 0 | P178: 0 | Q178: 0 | R178: 0 | S178: 0 | T178: 0 | U178: 0 | V178: 0 | W178: 0 | X178: 0
A179: 0 | B179: E | C179: 社會 | D179: 0 | E179: 0 | F179: 0 | G179: 0 | H179: 0 | I179: 0 | J179: 0 | K179: 0 | L179: 0 | M179: 0 | N179: 0 | O179: 0 | P179: 0 | Q179: 0 | R179: 0 | S179: 0 | T179: 0 | U179: 0 | V179: 0 | W179: 0 | X179: 0
A180: 0 | B180: F | C180: 藝術 | D180: 0 | E180: 0 | F180: 0 | G180: 0 | H180: 0 | I180: 0 | J180: 0 | K180: 0 | L180: 0 | M180: 0 | N180: 0 | O180: 0 | P180: 0 | Q180: 0 | R180: 0 | S180: 0 | T180: 0 | U180: 0 | V180: 0 | W180: 0 | X180: 0
A181: 0 | B181: G | C181: 自然與科技 | D181: 0 | E181: 0 | F181: 0 | G181: 0 | H181: 0 | I181: 0 | J181: 0 | K181: 0 | L181: 0 | M181: 0 | N181: 0 | O181: 0 | P181: 0 | Q181: 0 | R181: 0 | S181: 0 | T181: 0 | U181: 0 | V181: 0 | W181: 0 | X181: 0
A182: 0 | B182: H | C182: 健康與體育 | D182: 0 | E182: 0 | F182: 0 | G182: 0 | H182: 0 | I182: 0 | J182: 0 | K182: 0 | L182: 0 | M182: 0 | N182: 0 | O182: 0 | P182: 0 | Q182: 0 | R182: 0 | S182: 0 | T182: 0 | U182: 0 | V182: 0 | W182: 0 | X182: 0
A183: 0 | B183: I | C183: 綜合活動 | D183: 0 | E183: 0 | F183: 0 | G183: 0 | H183: 0 | I183: 0 | J183: 0 | K183: 0 | L183: 0 | M183: 0 | N183: 0 | O183: 0 | P183: 0 | Q183: 0 | R183: 0 | S183: 0 | T183: 0 | U183: 0 | V183: 0 | W183: 0 | X183: 0
A184: 0
A185: 0 | B185: J | C185: 悅讀童樂會 | D185: 0 | E185: 0 | F185: 0 | G185: 0 | H185: 0 | I185: 0 | J185: 0 | K185: 0 | L185: 0 | M185: 0 | N185: 0 | O185: 0 | P185: 0 | Q185: 0 | R185: 0 | S185: 0 | T185: 0 | U185: 0 | V185: 0 | W185: 0 | X185: 0
A186: 0 | B186: K | C186: 吾愛吾校 | D186: 0 | E186: 0 | F186: 0 | G186: 0 | H186: 0 | I186: 0 | J186: 0 | K186: 0 | L186: 0 | M186: 0 | N186: 0 | O186: 0 | P186: 0 | Q186: 0 | R186: 0 | S186: 0 | T186: 0 | U186: 0 | V186: 0 | W186: 0 | X186: 0
A187: 0 | B187: L | C187: 班級活動 | D187: 0 | E187: 0 | F187: 0 | G187: 0 | H187: 0 | I187: 0 | J187: 0 | K187: 0 | L187: 0 | M187: 0 | N187: 0 | O187: 0 | P187: 0 | Q187: 0 | R187: 0 | S187: 0 | T187: 0 | U187: 0 | V187: 0 | W187: 0 | X187: 0
A188: 0 | B188: M | C188: 資訊教育 | D188: 0 | E188: 0 | F188: 0 | G188: 0 | H188: 0 | I188: 0 | J188: 0 | K188: 0 | L188: 0 | M188: 0 | N188: 0 | O188: 0 | P188: 0 | Q188: 0 | R188: 0 | S188: 0 | T188: 0 | U188: 0 | V188: 0 | W188: 0 | X188: 0
A189: 0 | B189: N | C189: 英語教育 | D189: 0 | E189: 0 | F189: 0 | G189: 0 | H189: 0 | I189: 0 | J189: 0 | K189: 0 | L189: 0 | M189: 0 | N189: 0 | O189: 0 | P189: 0 | Q189: 0 | R189: 0 | S189: 0 | T189: 0 | U189: 0 | V189: 0 | W189: 0 | X189: 0
A190: 0 | B190: O | C190: 學習診斷與補救 | D190: 0 | E190: 0 | F190: 0 | G190: 0 | H190: 0 | I190: 0 | J190: 0 | K190: 0 | L190: 0 | M190: 0 | N190: 0 | O190: 0 | P190: 0 | Q190: 0 | R190: 0 | S190: 0 | T190: 0 | U190: 0 | V190: 0 | W190: 0 | X190: 0
A191: =SUM(A175:A190) -> 0 | D191: =SUM(D175:D190) -> 0 | E191: 0 | F191: 0 | G191: 0 | H191: 0 | I191: 0 | J191: 0 | K191: 0 | L191: 0 | M191: 0 | N191: 0 | O191: 0 | P191: 0 | Q191: 0 | R191: 0 | S191: 0 | T191: 0 | U191: 0 | V191: 0 | W191: 0 | X191: 0 | Y191: 0

Sheet 上學期彈性課程名稱變換
AV1: =作業平台__教育部局年度規定節數!I5 -> 6 | AW1: SHOW | AX1: 1 | BA1: 上 | BB1: 可以先輸入彈性課程預定更換單元名稱(不更改__空白)
A2: SHOW | B2: 1 | D2: 不更改__空白 | J2: 2 | Q2: 3 | S2: A3:已經完成匯出 | X2: 4 | AE2: 5 | AL2: 6 | AS2: 7 | AW2: 4 | BB2: 2 | BD2: 3 | BF2: 4 | BH2: 5 | BJ2: 6 | BL2: 7
B3: 上課週次 | C3: 代號 | D3: 全校_各年級_活動 | E3: 更改單元活動名稱 | F3: 節數 | G3: 彈性類別 | I3: 上課週次 | J3: 代號 | K3: 校本課程 | L3: 更改單元活動名稱 (可直接輸入) | M3: 節數 | N3: 彈性類別(選取) | P3: 上課週次 | Q3: 代號 | R3: 資訊教育 | S3: 更改單元活動名稱 (可直接輸入) | T3: 節數 | U3: 彈性類別(選取) | W3: 上課週次 | X3: 代號 | Y3: 英語 | Z3: 更改單元活動名稱 (可直接輸入) | AA3: 節數 | AB3: 彈性類別(選取) | AD3: 上課週次 | AE3: 代號 | AF3: 國語學習診斷與補救 | AG3: 更改單元活動名稱 (可直接輸入) | AH3: 節數 | AI3: 彈性類別(選取) | AK3: 上課週次 | AL3: 代號 | AM3: 數學學習診斷與補救 | AN3: 更改單元活動名稱 (可直接輸入) | AO3: 節數 | AP3: 彈性類別(選取) | AR3: 上課週次 | AS3: 代號 | AU3: 更改單元活動名稱 (可直接輸入) | AV3: 節數 | AW3: 彈性類別(選取) | BA3: 項目流水號不是週次 | BB3: =K3 -> 校本課程 | BC3: 彈性類別 | BD3: =R3 -> 資訊教育 | BE3: 彈性類別 | BF3: =Y3 -> 英語 | BG3: 彈性類別 | BH3: =AF3 -> 國語學習診斷與補救 | BI3: 彈性類別 | BJ3: =AM3 -> 數學學習診斷與補救 | BK3: 彈性類別 | BL3: =AT3 -> 0 | BM3: 彈性類別
C4: 教材來源 | D4: 自編1 | J4: 教材來源 | K4: 自編A | M4: =SUM(M5:M26) -> 20 | Q4: 教材來源 | R4: 自編B | T4: =SUM(T5:T26) -> 21 | X4: 教材來源 | Y4: 何嘉仁 Story.com 第7冊 | AA4: =SUM(AA5:AA26) -> 21 | AE4: 教材來源 | AF4: 自編D | AH4: =SUM(AH5:AH26) -> 11 | AL4: 教材來源 | AM4: 自編E | AO4: =SUM(AO5:AO26) -> 15 | AS4: 教材來源 | AT4: 自編F | AV4: =SUM(AV5:AV26) -> 0
B5: 5 | C5: AN | D5: 作文教學 | F5: 1 | G5: d | I5: 1 | J5: SA | K5: SA:校本課程 | L5: 一、半屏山初探 | M5: 1 | P5: 1 | Q5: SB | R5: SB:資訊教育 | S5: 一、進入Scratch的世界: Scratch可以做什麼 | T5: 1 | W5: 1 | X5: SC | Y5: SC:英語 | Z5: 英語入學輔導週 角色介紹、圖示介紹 | AA5: 1 | AD5: 1 | AE5: SD | AF5: SD:國語補救教學 | AH5: 1 | AK5: 1 | AL5: SE | AM5: SE:數學補救教學 | AO5: 1 | AY5: 1 | BA5: 1 | BB5: 觀念生物小學堂 | BC5: a | BD5: 健康體適能1 | BE5: b | BF5: 小眼睛看世界1 | BG5: a | BH5: 資訊倫理教育 | BI5: a | BJ5: 我愛後庄Go Go Go1 | BK5: d | BL5: 多位小數 | BM5: d | EX5: 1 | EY5: SB:友善校園－繪本導讀：南瓜湯_B | FA5: SB:友善校園－繪本導讀：南瓜湯_B | FD5: SB:C英語文,SB:C英語文,SB:E社會,SB:E社會,SB:G自然科學,SB:G自然科學 | FE5: 6
B6: 5 | C6: AN | D6: 作文教學 | F6: 1 | G6: d | I6: 2 | J6: SA | K6: SA:校本課程 | L6: 一、半屏山初探 | M6: 1 | P6: 2 | Q6: SB | R6: SB:資訊教育 | S6: 一、進入Scratch的世界: 角色與舞台 | T6: 1 | W6: 2 | X6: SC | Y6: SC:英語 | Z6: 圖示介紹 發音複習表 | AA6: 1 | AD6: 6 | AE6: SD | AF6: SD:國語補救教學 | AH6: 1 | AK6: 2 | AL6: SE | AM6: SE:數學補救教學 | AO6: 1 | AY6: 2 | BA6: 2 | BB6: 觀念生物小學堂 | BC6: a | BD6: 健康體適能1 | BE6: b | BF6: 小眼睛看世界2 | BG6: a | BH6: 1.認識PhotoImpact | BI6: a | BJ6: 我愛後庄Go Go Go1 | BK6: d | BL6: 多位小數 | BM6: d | EX6: 2 | EY6: SB:繪本討論：南瓜湯 _B | EZ6: 1 | FA6: SB:繪本討論：南瓜湯 _B
B7: 10 | C7: AN | D7: 作文教學 | F7: 1 | G7: d | I7: 3 | J7: SA | K7: SA:校本課程 | L7: 一、半屏山初探 | M7: 1 | P7: 3 | Q7: SB | R7: SB:資訊教育 | S7: 二、漫步未來城: Scratch 動起來 | T7: 1 | W7: 3 | X7: SC | Y7: SC:英語 | Z7: Unit 1 Where Are You From? | AA7: 1 | AD7: 7 | AE7: SD | AF7: SD:國語補救教學 | AH7: 1 | AK7: 3 | AL7: SE | AM7: SE:數學補救教學 | AO7: 1 | AY7: 3 | BA7: 3 | BB7: 觀念生物小學堂 | BC7: a | BD7: 健康體適能2 | BE7: b | BF7: 小眼睛看世界3 | BG7: a | BH7: 2.圖片格式介紹 | BI7: a | BJ7: 我愛後庄Go Go Go1 | BK7: d | BL7: 因數與公因數 | BM7: d | EX7: 3 | EY7: SB:繪本教學-我會做任何事_B | EZ7: 1 | FA7: SB:繪本教學-我會做任何事_B
B8: 10 | C8: AN | D8: 作文教學 | F8: 1 | G8: d | I8: 4 | J8: SA | K8: SA:校本課程 | L8: 二、非常接觸- 擁抱半屏山 1.半屏山尋寶記 | M8: 1 | P8: 4 | Q8: SB | R8: SB:資訊教育 | S8: 二、漫步未來城: Scratch小試身手 | T8: 1 | W8: 4 | X8: SC | Y8: SC:英語 | Z8: Unit 1 Where Are You From? | AA8: 1 | AD8: 8 | AE8: SD | AF8: SD:國語補救教學 | AH8: 1 | AK8: 4 | AL8: SE | AM8: SE:數學補救教學 | AO8: 1 | AY8: 4 | BA8: 4 | BB8: 晴空小侍郎 | BC8: a | BD8: 健康體適能2 | BE8: b | BF8: 小眼睛看世界4 | BG8: a | BH8: 3.影像處理 | BI8: a | BJ8: 我愛後庄Go Go Go2 | BK8: d | BL8: 因數與公因數 | BM8: d | EX8: 4 | EY8: SB:繪本教學：小毛上學去_B | EZ8: 1 | FA8: SB:繪本教學：小毛上學去_B
B9: 13 | C9: AN | D9: 作文教學 | F9: 1 | G9: d | I9: 5 | J9: SA | K9: SA:校本課程 | L9: 二、非常接觸- 擁抱半屏山 1.半屏山尋寶記 | M9: 1 | P9: 5 | Q9: SB | R9: SB:資訊教育 | S9: 三、街頭秀才藝: 變更角色大小、角色大變身 | T9: 1 | W9: 5 | X9: SC | Y9: SC:英語 | Z9: Unit 1 Where Are You From? | AA9: 1 | AD9: 11 | AE9: SD | AF9: SD:國語補救教學 | AH9: 1 | AK9: 6 | AL9: SE | AM9: SE:數學補救教學 | AO9: 1 | AY9: 5 | BA9: 5 | BB9: 晴空小侍郎 | BC9: a | BD9: 健康體適能3 | BE9: b | BF9: 生態冒險王1 | BG9: a | BH9: 4.善用百寶箱 | BI9: a | BJ9: 我愛後庄Go Go Go2 | BK9: d | BL9: 倍數與公倍數 | BM9: d | EX9: 5 | EY9: SB:家庭教育-繪本教學：媽媽買綠豆_B | EZ9: 1 | FA9: SB:家庭教育-繪本教學：媽媽買綠豆_B
B10: 13 | C10: AN | D10: 作文教學 | F10: 1 | G10: d | I10: 6 | J10: SA | K10: SA:校本課程 | L10: 二、非常接觸- 擁抱半屏山 1.半屏山尋寶記 | M10: 1 | P10: 6 | Q10: SB | R10: SB:資訊教育 | S10: 三、街頭秀才藝: 角色的分身與特效 | T10: 1 | W10: 6 | X10: SC | Y10: SC:英語 | Z10: Unit 2 We Have Science Class on Monday | AA10: 1 | AD10: 14 | AE10: SD | AF10: SD:國語補救教學 | AH10: 1 | AK10: 7 | AL10: SE | AM10: SE:數學補救教學 | AO10: 1 | AY10: 6 | BA10: 6 | BB10: 晴空小侍郎 | BC10: a | BD10: 健康體適能3 | BE10: b | BF10: 生態冒險王2 | BG10: a | BH10: 5.卡通圖案製作 | BI10: a | BJ10: 我愛後庄Go Go Go2 | BK10: d | BL10: 倍數與公倍數 | BM10: d | EX10: 6 | EY10: SB:性平教育-繪本教學-奧利佛是個娘娘腔_B | EZ10: 1 | FA10: SB:性平教育-繪本教學-奧利佛是個娘娘腔_B
B11: 18 | C11: AN | D11: 作文教學 | F11: 1 | G11: d | I11: 7 | J11: SA | K11: SA:校本課程 | L11: 二、非常接觸- 擁抱半屏山 1.半屏山尋寶記 | M11: 1 | P11: 7 | Q11: SB | R11: SB:資訊教育 | S11: 四、小小畢卡索: 走過要留下痕跡、多功能畫筆 | T11: 1 | W11: 7 | X11: SC | Y11: SC:英語 | Z11: Unit 2 We Have Science Class on Monday | AA11: 1 | AD11: 15 | AE11: SD | AF11: SD:國語補救教學 | AH11: 1 | AK11: 8 | AL11: SE | AM11: SE:數學補救教學 | AO11: 1 | AY11: 7 | BA11: 7 | BB11: 其實我不想說 | BC11: a | BD11: 健康體適能4 | BE11: b | BF11: 生態冒險王3 | BG11: a | BH11: 6.實作-可愛的無尾熊(1) | BI11: a | BJ11: 我愛後庄Go Go Go3 | BK11: d | BL11: 倍數與公倍數 | BM11: d | EX11: 7 | EY11: SB:繪本教學：快樂的菲菲_B | EZ11: 1 | FA11: SB:繪本教學：快樂的菲菲_B
B12: 18 | C12: AN | D12: 作文教學 | F12: 1 | G12: d | I12: 8 | J12: SA | K12: SA:校本課程 | L12: 二、非常接觸- 擁抱半屏山 2.站在高崗上 | M12: 1 | P12: 8 | Q12: SB | R12: SB:資訊教育 | S12: 四、小小畢卡索: 變色投影燈、神奇畫筆 | T12: 1 | W12: 8 | X12: SC | Y12: SC:英語 | Z12: Unit 2 We Have Science Class on Monday | AA12: 1 | AD12: 16 | AE12: SD | AF12: SD:國語補救教學 | AH12: 1 | AK12: 9 | AL12: SE | AM12: SE:數學補救教學 | AO12: 1 | AY12: 8 | BA12: 8 | BB12: 其實我不想說 | BC12: a | BD12: 健康體適能4 | BE12: b | BF12: 生態冒險王4 | BG12: a | BH12: 6.實作-可愛的無尾熊(2) | BI12: a | BJ12: 我愛後庄Go Go Go3 | BK12: d | BL12: 平面圖形 | BM12: d | EX12: 8 | EY12: SB:認識圖書館_B | EZ12: 1 | FA12: SB:認識圖書館_B
B13: 3 | C13: CB | D13: 身高.體重.視力檢查 | F13: 1 | G13: d | I13: 9 | J13: SA | K13: SA:校本課程 | L13: 二、非常接觸- 擁抱半屏山 2.站在高崗上 | M13: 1 | P13: 9 | Q13: SB | R13: SB:資訊教育 | S13: 五、小小導演: 腳本設計、布置故事場景 | T13: 1 | W13: 9 | X13: SC | Y13: SC:英語 | Z13: Review 1 複習 Unit1~Unit 2 | AA13: 1 | AD13: 19 | AE13: SD | AF13: SD:國語補救教學 | AH13: 1 | AK13: 11 | AL13: SE | AM13: SE:數學補救教學 | AO13: 1 | AY13: 9 | BA13: 9 | BB13: 其實我不想說 | BC13: a | BD13: 健康體適能5 | BE13: b | BF13: 生態冒險王5 | BG13: a | BH13: 7.文字工具的運用 | BI13: a | BJ13: 我愛後庄Go Go Go3 | BK13: d | BL13: 平面圖形 | BM13: d | EX13: 9 | EY13: SB:閱讀指導_B | EZ13: 1 | FA13: SB:閱讀指導_B
B14: 12 | C14: CE | D14: 校慶運動會預演 | F14: 1 | G14: d | I14: 10 | J14: SA | K14: SA:校本課程 | L14: 二、非常接觸- 擁抱半屏山 2.站在高崗上 | M14: 1 | P14: 10 | Q14: SB | R14: SB:資訊教育 | S14: 五、小小導演: 角色登場、製作角色對話 | T14: 1 | W14: 10 | X14: SC | Y14: SC:英語 | Z14: Review 1 複習 Unit1~Unit 2 | AA14: 1 | AD14: 20 | AE14: SD | AF14: SD:國語補救教學 | AH14: 1 | AK14: 14 | AL14: SE | AM14: SE:數學補救教學 | AO14: 1 | AY14: 10 | BA14: 10 | BB14: 金銀島：魔鬼的選擇 | BC14: a | BD14: 健康體適能5 | BE14: b | BF14: 體驗自然更深刻1 | BG14: a | BH14: 8.變形工具的運用 | BI14: a | BJ14: 我愛後庄Go Go Go4 | BK14: d | BL14: 多位數的乘除 | BM14: d | EX14: 10 | EY14: SB:閱讀指導_B | EZ14: 1 | FA14: SB:繪本教學：爸爸你愛我嗎_B
B15: 12 | C15: CF | D15: 校慶運動會(中高年級) | F15: 1 | G15: d | I15: 11 | J15: SA | K15: SA:校本課程 | L15: 二、非常接觸- 擁抱半屏山 2.站在高崗上 | M15: 1 | P15: 11 | Q15: SB | R15: SB:資訊教育 | S15: 六、小小音樂家: scratch的音階與節奏 | T15: 1 | W15: 11 | X15: SC | Y15: SC:英語 | Z15: Unit 3 How Many Tigers Are There? | AA15: 1 | AD15: 21 | AE15: SD | AF15: SD:國語補救教學 | AH15: 1 | AK15: 15 | AL15: SE | AM15: SE:數學補救教學 | AO15: 1 | AY15: 11 | BA15: 11 | BB15: 金銀島：魔鬼的選擇 | BC15: a | BD15: 退一步海闊天空-拔河1 | BE15: b | BF15: 體驗自然更深刻2 | BG15: a | BH15: 9.實作-聖誕節晚會傳單(1) | BI15: a | BJ15: 我愛後庄Go Go Go4 | BK15: d | BL15: 多位數的乘除 | BM15: d | EX15: 11 | EY15: SB:閱讀指導_B | EZ15: 1 | FA15: SB:繪本教學：怕浪費的奶奶_B
B16: 12 | C16: CF | D16: 校慶運動會(中高年級) | F16: 1 | G16: d | I16: 13 | J16: SA | K16: SA:校本課程 | L16: 二、非常接觸- 擁抱半屏山 3.屏山頌 | M16: 1 | P16: 12 | Q16: SB | R16: SB:資訊教育 | S16: 六、小小音樂家: 電子琴按鍵、 聲音特效 | T16: 1 | W16: 12 | X16: SC | Y16: SC:英語 | Z16: Unit 3 How Many Tigers Are There? | AA16: 1 | AK16: 16 | AL16: SE | AM16: SE:數學補救教學 | AO16: 1 | AY16: 12 | BA16: 12 | BB16: 金銀島：魔鬼的選擇 | BC16: a | BD16: 退一步海闊天空-拔河1 | BE16: b | BF16: 體驗自然更深刻3 | BG16: a | BH16: 9.實作-聖誕節晚會傳單(2) | BI16: a | BJ16: 我愛後庄Go Go Go4 | BK16: d | BL16: 多位數的乘除 | BM16: d | EX16: 12 | EY16: SB:閱讀指導_B | EZ16: 1 | FA16: SB:繪本教學：阿松爺爺的柿子樹_B
B17: 2 | C17: CH | D17: 口腔檢查 | F17: 1 | G17: d | I17: 14 | J17: SA | K17: SA:校本課程 | L17: 二、非常接觸- 擁抱半屏山 3.屏山頌 | M17: 1 | P17: 13 | Q17: SB | R17: SB:資訊教育 | S17: 六、小小音樂家: 創意作曲家 | T17: 1 | W17: 13 | X17: SC | Y17: SC:英語 | Z17: Unit 3 How Many Tigers Are There? | AA17: 1 | AK17: 19 | AL17: SE | AM17: SE:數學補救教學 | AO17: 1 | AY17: 13 | BA17: 13 | BB17: 巧克力冒險工廠 | BC17: a | BD17: 退一步海闊天空-拔河2 | BE17: b | BF17: 體驗自然更深刻4 | BG17: a | BH17: 10.剪裁、魔術棒工具使用 | BI17: a | BJ17: 我愛後庄Go Go Go4 | BK17: d | BL17: 擴分、約分和通分 | BM17: d | EX17: 13 | EY17: SB:繪本教學：爸爸你愛我嗎_B | EZ17: 1
B18: 4 | C18: CI | D18: 斜弱視.辨色力檢查 | F18: 1 | G18: d | I18: 15 | J18: SA | K18: SA:校本課程 | L18: 二、非常接觸- 擁抱半屏山 3.屏山頌 | M18: 1 | P18: 14 | Q18: SB | R18: SB:資訊教育 | S18: 六、小小音樂家: 我的電子琴 | T18: 1 | W18: 14 | X18: SC | Y18: SC:英語 | Z18: Unit 4 Are There Any Windows in the Dining Room? | AA18: 1 | AK18: 20 | AL18: SE | AM18: SE:數學補救教學 | AO18: 1 | AY18: 14 | BA18: 14 | BB18: 巧克力冒險工廠 | BC18: a | BD18: 退一步海闊天空-拔河2 | BE18: b | BF18: 翻轉實驗桌1 | BG18: a | BH18: 11.套索、挑選工具使用 | BI18: a | BJ18: 我愛後庄Go Go Go5 | BK18: d | BL18: 擴分、約分和通分 | BM18: d | EX18: 14 | EY18: SB:繪本教學：怕浪費的奶奶_B | EZ18: 1
B19: 17 | C19: CJ | D19: 聖誕節活動 | F19: 1 | G19: d | I19: 16 | J19: SA | K19: SA:校本課程 | L19: 三、疼惜半屏山 | M19: 1 | P19: 15 | Q19: SB | R19: SB:資訊教育 | S19: 七、迷城尋寶: 迷宮圖軟體與製作 | T19: 1 | W19: 15 | X19: SC | Y19: SC:英語 | Z19: Unit 4 Are There Any Windows in the Dining Room? | AA19: 1 | AK19: 21 | AL19: SE | AM19: SE:數學補救教學 | AO19: 1 | AY19: 15 | BA19: 15 | BB19: 巧克力冒險工廠 | BC19: a | BD19: 退一步海闊天空-拔河2 | BE19: b | BF19: 翻轉實驗桌2 | BG19: a | BH19: 12.認識數位相機 | BI19: a | BJ19: 我愛後庄Go Go Go5 | BK19: d | BL19: 異分母分數的加減 | BM19: d | EX19: 15 | EY19: SB:繪本教學：阿松爺爺的柿子樹_B | EZ19: 1
B20: 17 | C20: CJ | D20: 聖誕節活動 | F20: 1 | G20: d | I20: 17 | J20: SA | K20: SA:校本課程 | L20: 三、疼惜半屏山 | M20: 1 | P20: 16 | Q20: SB | R20: SB:資訊教育 | S20: 七、迷城尋寶: 遊戲規則及角色設計、寶物現身 | T20: 1 | W20: 16 | X20: SC | Y20: SC:英語 | Z20: Unit 4 Are There Any Windows in the Dining Room? | AA20: 1 | AY20: 16 | BA20: 16 | BB20: 少年讀史記1：帝王之路 | BC20: a | BD20: 退一步海闊天空-拔河3 | BE20: b | BF20: 翻轉實驗桌3 | BG20: a | BH20: 13.相片編修 | BI20: a | BJ20: 我愛後庄Go Go Go5 | BK20: d | BL20: 異分母分數的加減 | BM20: d | EX20: 16 | EY20: SB:繪本教學：怕浪費的奶奶_B | EZ20: 1
B21: 9 | C21: CP | D21: 預防注射(流感) | F21: 1 | G21: d | I21: 18 | J21: SA | K21: SA:校本課程 | L21: 三、疼惜半屏山 | M21: 1 | P21: 17 | Q21: SB | R21: SB:資訊教育 | S21: 七、迷城尋寶: 製作陷阱、生命數及過關 | T21: 1 | W21: 17 | X21: SC | Y21: SC:英語 | Z21: Unit 5 What Do You Want to Drink? | AA21: 1 | AY21: 17 | BA21: 17 | BB21: 少年讀史記1：帝王之路 | BC21: a | BD21: 退一步海闊天空-拔河3 | BE21: b | BF21: 翻轉實驗桌4 | BG21: a | BH21: 14.網頁圖示製作 | BI21: a | BL21: 四則運算 | BM21: d | EX21: 17 | EY21: SB:繪本教學：阿松爺爺的柿子樹_B | EZ21: 1
I22: 19 | J22: SA | K22: SA:校本課程 | L22: 四、創造美好生活 | M22: 1 | P22: 18 | Q22: SB | R22: SB:資訊教育 | S22: 八、生存保衛戰: 遊戲規劃、武器的設計 | T22: 1 | W22: 18 | X22: SC | Y22: SC:英語 | Z22: Unit 5 What Do You Want to Drink? | AA22: 1 | AY22: 18 | BA22: 18 | BB22: 少年讀史記1：帝王之路 | BC22: a | BD22: 退一步海闊天空-拔河4 | BE22: b | BG22: a | BH22: 15.網頁背景製作 | BI22: a | BL22: 四則運算 | BM22: d | EX22: 18 | EY22: SB:繪本教學：怕浪費的奶奶_B | EZ22: 1
I23: 20 | J23: SA | K23: SA:校本課程 | L23: 四、創造美好生活 | M23: 1 | P23: 19 | Q23: SB | R23: SB:資訊教育 | S23: 八、生存保衛戰: 敵人來襲、大魔王報到 | T23: 1 | W23: 19 | X23: SC | Y23: SC:英語 | Z23: Unit 5 What Do You Want to Drink? | AA23: 1 | AY23: 19 | BA23: 19 | BB23: 夏綠蒂的網 | BC23: a | BD23: 退一步海闊天空-拔河4 | BE23: b | BG23: a | BH23: 16.網頁按鈕製作 | BI23: a | BL23: 面積 | BM23: d | EX23: 19 | EY23: SB:繪本教學：阿松爺爺的柿子樹_B | EZ23: 1
I24: 21 | J24: SA | K24: SA:校本課程 | L24: 四、創造美好生活 | M24: 1 | P24: 20 | Q24: SB | R24: SB:資訊教育 | S24: 八、生存保衛戰: 生命值設計 | T24: 1 | W24: 20 | X24: SC | Y24: SC:英語 | Z24: Review 2 複習 Unit3~Unit 5 | AA24: 1 | AY24: 20 | BA24: 20 | BB24: 夏綠蒂的網 | BC24: a | BD24: 退一步海闊天空-拔河4 | BE24: b | BG24: a | BH24: 學生作品發表【1】 | BI24: a | BL24: 線對稱圖形 | BM24: d | EX24: 20 | EY24: SB:繪本教學：怕浪費的奶奶_B | EZ24: 1
P25: 21 | Q25: SB | R25: SB:資訊教育 | S25: 九、我的獨創遊戲－尊重智慧財產權【資訊倫理教育】 | T25: 1 | W25: 21 | X25: SC | Y25: SC:英語 | Z25: Review 2 複習 Unit3~Unit5 | AA25: 1 | AY25: 21 | BA25: 21 | BB25: 夏綠蒂的網 | BC25: a | BD25: 退一步海闊天空-拔河4 | BE25: b | BG25: a | BH25: 學生作品發表【2】 | BI25: a | BL25: 線對稱圖形 | BM25: d
I29: 彈性類別 | J29: 節數
I30: a | J30: =SUMIF(N5:N26,"a",M5:M26)+SUMIF(U5:U26,"a",T5:T26)+SUMIF(AB5:AB26,"a",AA5:AA26)+SUMIF(AI5:AI26,"a",AH5:AH26)+SUMIF(AP5:AP26,"a",AO5:AO26)+SUMIF(AW5:AW26,"a",AV5:AV26)+SUMIF(G5:G26,"a",F5:F26) -> 0
I31: b | J31: =SUMIF(N5:N26,"b",M5:M26)+SUMIF(U5:U26,"b",T5:T26)+SUMIF(AB5:AB26,"b",AA5:AA26)+SUMIF(AI5:AI26,"b",AH5:AH26)+SUMIF(AP5:AP26,"b",AO5:AO26)+SUMIF(AW5:AW26,"b",AV5:AV26)+SUMIF(G5:G26,"b",F5:F26) -> 0
I32: c | J32: =SUMIF(N5:N26,"c",M5:M26)+SUMIF(U5:U26,"c",T5:T26)+SUMIF(AB5:AB26,"c",AA5:AA26)+SUMIF(AI5:AI26,"c",AH5:AH26)+SUMIF(AP5:AP26,"c",AO5:AO26)+SUMIF(AW5:AW26,"c",AV5:AV26)+SUMIF(G5:G26,"c",F5:F26) -> 0
I33: d | J33: =SUMIF(N5:N26,"d",M5:M26)+SUMIF(U5:U26,"d",T5:T26)+SUMIF(AB5:AB26,"d",AA5:AA26)+SUMIF(AI5:AI26,"d",AH5:AH26)+SUMIF(AP5:AP26,"d",AO5:AO26)+SUMIF(AW5:AW26,"d",AV5:AV26)+SUMIF(G5:G26,"d",F5:F26) -> 17

Sheet 下學期彈性課程名稱變換
AV1: =作業平台__教育部局年度規定節數!I5 -> 6 | AW1: SHOW | AX1: 1 | BA1: 下 | BB1: 可以先輸入彈性課程預定更換單元名稱(不更改__空白)
A2: SHOW | B2: 1 | D2: 不更改__空白 | J2: 2 | Q2: 3 | S2: A3:已經完成匯出 | X2: 4 | AE2: 5 | AL2: 6 | AS2: 7 | AW2: 4 | BB2: 2 | BD2: 3 | BF2: 4 | BH2: 5 | BJ2: 6 | BL2: 7
B3: 上課週次 | C3: 代號 | D3: 全校_各年級_活動 | E3: 更改單元活動名稱 | F3: 節數 | G3: 彈性類別 | I3: 上課週次 | J3: 代號 | K3: 校本課程 | L3: 更改單元活動名稱 (可直接輸入) | M3: 節數 | N3: 彈性類別(選取) | P3: 上課週次 | Q3: 代號 | R3: 資訊教育 | S3: 更改單元活動名稱 (可直接輸入) | T3: 節數 | U3: 彈性類別(選取) | W3: 上課週次 | X3: 代號 | Y3: 英語 | Z3: 更改單元活動名稱 (可直接輸入) | AA3: 節數 | AB3: 彈性類別(選取) | AD3: 上課週次 | AE3: 代號 | AF3: 國語學習診斷與補救 | AG3: 更改單元活動名稱 (可直接輸入) | AH3: 節數 | AI3: 彈性類別(選取) | AK3: 上課週次 | AL3: 代號 | AM3: 數學學習診斷與補救 | AN3: 更改單元活動名稱 (可直接輸入) | AO3: 節數 | AP3: 彈性類別(選取) | AR3: 上課週次 | AS3: 代號 | AU3: 更改單元活動名稱 (可直接輸入) | AV3: 節數 | AW3: 彈性類別(選取) | BA3: 項目流水號不是週次 | BB3: =K3 -> 校本課程 | BC3: 彈性類別 | BD3: =R3 -> 資訊教育 | BE3: 彈性類別 | BF3: =Y3 -> 英語 | BG3: 彈性類別 | BH3: =AF3 -> 國語學習診斷與補救 | BI3: 彈性類別 | BJ3: =AM3 -> 數學學習診斷與補救 | BK3: 彈性類別 | BL3: =AT3 -> 0 | BM3: 彈性類別
C4: 教材來源 | D4: 自編1 | J4: 教材來源 | K4: 自編A | M4: =SUM(M5:M26) -> 16 | Q4: 教材來源 | R4: 自編B | T4: =SUM(T5:T26) -> 18 | X4: 教材來源 | Y4: 何嘉仁 Story.com第7冊 | AA4: =SUM(AA5:AA26) -> 17 | AE4: 教材來源 | AF4: 自編D | AH4: =SUM(AH5:AH26) -> 7 | AL4: 教材來源 | AM4: 自編E | AO4: =SUM(AO5:AO26) -> 9 | AS4: 教材來源 | AT4: 自編F | AV4: =SUM(AV5:AV26) -> 0
B5: 3 | C5: AN | D5: 作文教學 | F5: 1 | G5: d | I5: 1 | J5: SA | K5: SA:校本課程 | L5: 生活大考驗 一、衣-會縫鈕釦 | M5: 1 | P5: 1 | Q5: SB | R5: SB:資訊教育 | S5: 一、媒體素材的取得：數位資源智慧分享【資訊倫理教育】 | T5: 1 | W5: 1 | X5: SC | Y5: SC:英語 | Z5: 角色介紹、 圖示介紹 | AA5: 1 | AD5: 1 | AE5: SD | AF5: SD:國語補救教學 | AH5: 1 | AK5: 1 | AL5: SE | AM5: SE:數學補救教學 | AO5: 1 | AY5: 1 | BA5: 1 | BB5: 少年噶瑪蘭 | BC5: a | BD5: 健康體適能1 | BE5: b | BF5: 小眼睛看世界1 | BG5: a | BH5: 資訊倫理教育 | BI5: a | BJ5: 我愛後庄Go Go Go1 | BK5: d | BL5: 分數 | BM5: d
B6: 3 | C6: AN | D6: 作文教學 | F6: 1 | G6: d | I6: 2 | J6: SA | K6: SA:校本課程 | L6: 生活大考驗 一、衣-會縫鈕釦 | M6: 1 | P6: 2 | Q6: SB | R6: SB:資訊教育 | S6: 二、魅力四射初體驗：簡報製作流程 | T6: 1 | W6: 2 | X6: SC | Y6: SC:英語 | Z6: 圖示介紹 發音複習表 | AA6: 1 | AD6: 4 | AE6: SD | AF6: SD:國語補救教學 | AH6: 1 | AK6: 2 | AL6: SE | AM6: SE:數學補救教學 | AO6: 1 | AY6: 2 | BA6: 2 | BB6: 少年噶瑪蘭 | BC6: a | BD6: 健康體適能2 | BE6: b | BF6: 小眼睛看世界2 | BG6: a | BH6: 1.認識Excel | BI6: a | BJ6: 我愛後庄Go Go Go1 | BK6: d | BL6: 分數 | BM6: d
B7: 9 | C7: AN | D7: 作文教學 | F7: 1 | G7: d | I7: 3 | J7: SA | K7: SA:校本課程 | L7: 生活大考驗 二、食-會煎蛋或做一道菜 | M7: 1 | P7: 3 | Q7: SB | R7: SB:資訊教育 | S7: 二、我的螢幕保護程式：文字與轉場特效 | T7: 1 | W7: 3 | X7: SC | Y7: SC:英語 | Z7: Unit 1 What Do You Want to Wear? | AA7: 1 | AD7: 5 | AE7: SD | AF7: SD:國語補救教學 | AH7: 1 | AK7: 4 | AL7: SE | AM7: SE:數學補救教學 | AO7: 1 | AY7: 3 | BA7: 3 | BB7: 少年噶瑪蘭 | BC7: a | BD7: 健康體適能3 | BE7: b | BF7: 小眼睛看世界3 | BG7: a | BH7: 1.認識Excel | BI7: a | BJ7: 我愛後庄Go Go Go1 | BK7: d | BL7: 長方體和正方體的體積 | BM7: d
B8: 9 | C8: AN | D8: 作文教學 | F8: 1 | G8: d | I8: 4 | J8: SA | K8: SA:校本課程 | L8: 生活大考驗 二、食-會煎蛋或做一道菜 | M8: 1 | P8: 4 | Q8: SB | R8: SB:資訊教育 | S8: 三、有聲祝福傳千里：音訊特效 | T8: 1 | W8: 4 | X8: SC | Y8: SC:英語 | Z8: Unit 1 What Do You Want to Wear? | AA8: 1 | AD8: 6 | AE8: SD | AF8: SD:國語補救教學 | AH8: 1 | AK8: 5 | AL8: SE | AM8: SE:數學補救教學 | AO8: 1 | AY8: 4 | BA8: 4 | BB8: 記憶傳授人 | BC8: a | BD8: 健康體適能4 | BE8: b | BF8: 小眼睛看世界4 | BG8: a | BH8: 2.儲存格用法 | BI8: a | BJ8: 我愛後庄Go Go Go2 | BK8: d | BL8: 長方體和正方體的體積 | BM8: d
B9: 13 | C9: AN | D9: 作文教學 | F9: 1 | G9: d | I9: 5 | J9: SA | K9: SA:校本課程 | L9: 生活大考驗 三、住-會打掃廁所 | M9: 1 | P9: 5 | Q9: SB | R9: SB:資訊教育 | S9: 四、校外教學全記錄：遮罩特效 | T9: 1 | W9: 5 | X9: SC | Y9: SC:英語 | Z9: Unit 1 What Do You Want to Wear? | AA9: 1 | AD9: 8 | AE9: SD | AF9: SD:國語補救教學 | AH9: 1 | AK9: 6 | AL9: SE | AM9: SE:數學補救教學 | AO9: 1 | AY9: 5 | BA9: 5 | BB9: 記憶傳授人 | BC9: a | BD9: 健康體適能5 | BE9: b | BF9: 生態冒險王1 | BG9: a | BH9: 3.工具列操作 | BI9: a | BJ9: 我愛後庄Go Go Go2 | BK9: d | BL9: 容積 | BM9: d
B10: 13 | C10: AN | D10: 作文教學 | F10: 1 | G10: d | I10: 6 | J10: SA | K10: SA:校本課程 | L10: 生活大考驗 四、行-會騎腳踏車 | M10: 1 | P10: 6 | Q10: SB | R10: SB:資訊教育 | S10: 五、我的成長記事：網頁簡報 | T10: 1 | W10: 6 | X10: SC | Y10: SC:英語 | Z10: Unit 2 Were You at the Bookstore Yesterday? | AA10: 1 | AD10: 10 | AE10: SD | AF10: SD:國語補救教學 | AH10: 1 | AK10: 8 | AL10: SE | AM10: SE:數學補救教學 | AO10: 1 | AY10: 6 | BA10: 6 | BB10: 記憶傳授人 | BC10: a | BD10: 健康體適能6 | BE10: b | BF10: 生態冒險王2 | BG10: a | BH10: 4.神奇加總 | BI10: a | BJ10: 我愛後庄Go Go Go2 | BK10: d | BL10: 容積 | BM10: d
B11: 15 | C11: AN | D11: 作文教學 | F11: 1 | G11: d | I11: 7 | J11: SA | K11: SA:校本課程 | L11: 生活大考驗 四、行-會騎腳踏車 | M11: 1 | P11: 7 | Q11: SB | R11: SB:資訊教育 | S11: 六、影音格式大不同: Freemake 影音轉檔 | T11: 1 | W11: 7 | X11: SC | Y11: SC:英語 | Z11: Unit 2 Were You at the Bookstore Yesterday? | AA11: 1 | AD11: 14 | AE11: SD | AF11: SD:國語補救教學 | AH11: 1 | AK11: 10 | AL11: SE | AM11: SE:數學補救教學 | AO11: 1 | AY11: 7 | BA11: 7 | BB11: 代做功課股份有限公司 | BC11: a | BD11: 退一步海闊天空-拔河5 | BE11: b | BF11: 生態冒險王3 | BG11: a | BH11: 5.儲存格欄寬調整(1) | BI11: a | BJ11: 我愛後庄Go Go Go3 | BK11: d | BL11: 時間的計算 | BM11: d
B12: 15 | C12: AN | D12: 作文教學 | F12: 1 | G12: d | I12: 8 | J12: SA | K12: SA:校本課程 | L12: 生活大考驗 五、體育-除躲避球外會玩另一種球類 | M12: 1 | P12: 8 | Q12: SB | R12: SB:資訊教育 | S12: 七、威力導演：影片擷取與素材順序 | T12: 1 | W12: 8 | X12: SC | Y12: SC:英語 | Z12: Unit 2 Were You at the Bookstore Yesterday? | AA12: 1 | AK12: 11 | AL12: SE | AM12: SE:數學補救教學 | AO12: 1 | AY12: 8 | BA12: 8 | BB12: 代做功課股份有限公司 | BC12: a | BD12: 退一步海闊天空-拔河5 | BE12: b | BF12: 生態冒險王4 | BG12: a | BH12: 5.儲存格欄寬調整(2) | BI12: a | BJ12: 我愛後庄Go Go Go3 | BK12: d | BL12: 時間的計算 | BM12: d
B13: 2 | C13: CB | D13: 身高.體重.視力檢查 | F13: 1 | G13: d | I13: 9 | J13: SA | K13: SA:校本課程 | L13: 生活大考驗 五、體育-除躲避球外會玩另一種球類 | M13: 1 | P13: 9 | Q13: SB | R13: SB:資訊教育 | S13: 八、威力導演：影片修剪與視訊調整 | T13: 1 | W13: 9 | X13: SC | Y13: SC:英語 | Z13: Review 1 複習 Unit1~Unit 2 | AA13: 1 | AK13: 14 | AL13: SE | AM13: SE:數學補救教學 | AO13: 1 | AY13: 9 | BA13: 9 | BB13: 代做功課股份有限公司 | BC13: a | BD13: 退一步海闊天空-拔河5 | BE13: b | BF13: 生態冒險王5 | BG13: a | BH13: 6.文件美化 | BI13: a | BJ13: 我愛後庄Go Go Go3 | BK13: d | BL13: 符號代表數 | BM13: d
B14: 7 | C14: CD | D14: 兒童節闖關活動 | F14: 1 | G14: d | I14: 10 | J14: SA | K14: SA:校本課程 | L14: 生活大考驗 六、體育-得到游泳第1級海馬級認證 | M14: 1 | P14: 10 | Q14: SB | R14: SB:資訊教育 | S14: 九、威力導演：影片上的特效 | T14: 1 | W14: 10 | X14: SC | Y14: SC:英語 | Z14: Review 1 複習 Unit1~Unit 2 | AA14: 1 | AY14: 10 | BA14: 10 | BB14: 貓戰士首部曲之一 荒野新生 | BC14: a | BD14: 退一步海闊天空-拔河6 | BE14: b | BF14: 體驗自然更深刻1 | BG14: a | BH14: 7.智慧型列印 | BI14: a | BJ14: 我愛後庄Go Go Go4 | BK14: d | BL14: 表面積 | BM14: d
B15: 7 | C15: CD | D15: 兒童節闖關活動 | F15: 1 | G15: d | I15: 11 | J15: SA | K15: SA:校本課程 | L15: 生活大考驗 六、體育-得到游泳第1級海馬級認證 | M15: 1 | P15: 11 | Q15: SB | R15: SB:資訊教育 | S15: 十、威力導演：于母畫面的製作 | T15: 1 | W15: 11 | X15: SC | Y15: SC:英語 | Z15: Unit 3 What Did You Do Last Night? | AA15: 1 | AY15: 11 | BA15: 11 | BB15: 貓戰士首部曲之一 荒野新生 | BC15: a | BD15: 退一步海闊天空-拔河6 | BE15: b | BF15: 體驗自然更深刻2 | BG15: a | BH15: 8.成績單製作(1) | BI15: a | BJ15: 我愛後庄Go Go Go4 | BK15: d | BL15: 表面積 | BM15: d
B16: 12 | C16: CC | D16: 母親節才藝表演 | F16: 1 | G16: d | I16: 12 | J16: SA | K16: SA:校本課程 | L16: 生活大考驗 七、樂-會在別班或大眾前唱一首歌 | M16: 1 | P16: 12 | Q16: SB | R16: SB:資訊教育 | S16: 十一、威力導演：炫粒功能 | T16: 1 | W16: 12 | X16: SC | Y16: SC:英語 | Z16: Unit 3 What Did You Do Last Night? | AA16: 1 | AY16: 12 | BA16: 12 | BB16: 貓戰士首部曲之一 荒野新生 | BC16: a | BD16: 退一步海闊天空-拔河6 | BE16: b | BF16: 體驗自然更深刻3 | BG16: a | BH16: 8.成績單製作(2) | BI16: a | BJ16: 我愛後庄Go Go Go4 | BK16: d | BL16: 小數 | BM16: d
B17: 12 | C17: CC | D17: 母親節才藝表演 | F17: 1 | G17: d | I17: 13 | J17: SA | K17: SA:校本課程 | L17: 生活大考驗 七、樂-會在別班或大眾前唱一首歌 | M17: 1 | P17: 13 | Q17: SB | R17: SB:資訊教育 | S17: 十二、威力導演：轉場特效 | T17: 1 | W17: 13 | X17: SC | Y17: SC:英語 | Z17: Unit 3 What Did You Do Last Night? | AA17: 1 | AY17: 13 | BA17: 13 | BB17: 圖書館的小奇蹟 | BC17: a | BD17: 退一步海闊天空-拔河7 | BE17: b | BF17: 體驗自然更深刻4 | BG17: a | BH17: 9.神奇的運算功能(1) | BI17: a | BJ17: 我愛後庄Go Go Go4 | BK17: d | BL17: 小數 | BM17: d
B18: 18 | C18: CG | D18: 畢業典禮 | F18: 1 | G18: d | I18: 14 | J18: SA | K18: SA:校本課程 | L18: 生活大考驗 八、說話技巧-會在別班或大眾前演講或報導一件事件 | M18: 1 | P18: 14 | Q18: SB | R18: SB:資訊教育 | S18: 十三、威力導演：合成與標題字幕 | T18: 1 | W18: 14 | X18: SC | Y18: SC:英語 | Z18: Unit 4 Did You Bake Cookies? | AA18: 1 | AY18: 14 | BA18: 14 | BB18: 圖書館的小奇蹟 | BC18: a | BD18: 退一步海闊天空-拔河7 | BE18: b | BF18: 翻轉實驗桌1 | BG18: a | BH18: 9.神奇的運算功能(2) | BI18: a | BJ18: 我愛後庄Go Go Go5 | BK18: d | BL18: 生活中的大單位 | BM18: d
B19: 18 | C19: CG | D19: 畢業典禮 | F19: 1 | G19: d | I19: 16 | J19: SA | K19: SA:校本課程 | L19: 生活大考驗 九、傳達技巧-會使用E-mail | M19: 1 | P19: 15 | Q19: SB | R19: SB:資訊教育 | S19: 十四、威力導演：主題配樂 | T19: 1 | W19: 15 | X19: SC | Y19: SC:英語 | Z19: Unit 4 Did You Bake Cookies? | AA19: 1 | AY19: 15 | BA19: 15 | BB19: 少年讀史記1：帝王之路 | BC19: a | BD19: 1.閩式建築院落特徵 | BE19: a | BF19: 翻轉實驗桌2 | BG19: a | BH19: 10.成績加權程式設定(1) | BI19: a | BJ19: 我愛後庄Go Go Go5 | BK19: d | BL19: 生活中的大單位 | BM19: d
B20: 18 | C20: CG | D20: 畢業典禮 | F20: 1 | G20: d | I20: 17 | J20: SA | K20: SA:校本課程 | L20: 生活大考驗 十、生活技巧-會一種繩結 | M20: 1 | P20: 16 | Q20: SB | R20: SB:資訊教育 | S20: 十五、威力導演：檔案輸出 | T20: 1 | W20: 16 | X20: SC | Y20: SC:英語 | Z20: Unit 4 Did You Bake Cookies? | AA20: 1 | AY20: 16 | BA20: 16 | BB20: 少年讀史記1：帝王之路 | BC20: a | BD20: 2.一條龍、轆轤把 | BE20: a | BF20: 翻轉實驗桌3 | BG20: a | BH20: 10.成績加權程式設定(2) | BI20: a | BJ20: 我愛後庄Go Go Go5 | BK20: d | BL20: 比率與百分率 | BM20: d
B21: 18 | C21: CG | D21: 畢業典禮 | F21: 1 | G21: d | P21: 17 | Q21: SB | R21: SB:資訊教育 | S21: 十六、我的屏山回憶 | T21: 1 | W21: 17 | X21: SC | Y21: SC:英語 | Z21: Review 2 複習 Unit3~Unit4 | AA21: 1 | AY21: 17 | BA21: 17 | BB21: 少年讀史記1：帝王之路 | BC21: a | BD21: 3.三合院、四合院 | BE21: a | BF21: 翻轉實驗桌4 | BG21: a | BH21: 11.資料應用及處理(1) | BI21: a | BL21: 比率與百分率 | BM21: d
B22: 17 | C22: CL | D22: 畢業典禮預演 | F22: 1 | G22: d | P22: 18 | Q22: SB | R22: SB:資訊教育 | S22: 十六、我的屏山回憶 | T22: 1 | BA22: 18 | BB22: 少年讀史記1：帝王之路 | BC22: a | BD22: 4.多護龍、多院落 | BE22: a | BG22: a | BH22: 11.資料應用及處理(2) | BI22: a | BL22: 立體形體 | BM22: d
B23: 17 | C23: CL | D23: 畢業典禮預演 | F23: 1 | G23: d | BA23: 19 | BB23: 少年讀史記1：帝王之路 | BC23: a | BD23: 5.本校的書院建築 | BE23: a | BG23: a | BH23: 12.後庄國小人數統計圖 | BI23: a | BL23: 立體形體 | BM23: d
B24: 11 | C24: CM | D24: 自治市長選舉 | F24: 1 | G24: d | BA24: 20 | BB24: 少年讀史記1：帝王之路 | BC24: a | BD24: 6.傳統建築設計師 | BE24: a | BG24: a | BH24: 13.家鄉人口分布圖 | BI24: a | BL24: 差異化課程教學 | BM24: d
B25: 15 | C25: CN | D25: 班際體育競賽 | F25: 1 | G25: d | BA25: 21 | BC25: a | BE25: a | BG25: a | BI25: a | BM25: d
B26: 16 | C26: CO | D26: 歡送畢業生園遊會 | F26: 1 | G26: d
B27: 16 | C27: CO | D27: 歡送畢業生園遊會 | F27: 1 | G27: d
I29: 彈性類別 | J29: 節數
I30: a | J30: =SUMIF(N5:N26,"a",M5:M26)+SUMIF(U5:U26,"a",T5:T26)+SUMIF(AB5:AB26,"a",AA5:AA26)+SUMIF(AI5:AI26,"a",AH5:AH26)+SUMIF(AP5:AP26,"a",AO5:AO26)+SUMIF(AW5:AW26,"a",AV5:AV26)+SUMIF(G5:G26,"a",F5:F26) -> 0
I31: b | J31: =SUMIF(N5:N26,"b",M5:M26)+SUMIF(U5:U26,"b",T5:T26)+SUMIF(AB5:AB26,"b",AA5:AA26)+SUMIF(AI5:AI26,"b",AH5:AH26)+SUMIF(AP5:AP26,"b",AO5:AO26)+SUMIF(AW5:AW26,"b",AV5:AV26)+SUMIF(G5:G26,"b",F5:F26) -> 0
I32: c | J32: =SUMIF(N5:N26,"c",M5:M26)+SUMIF(U5:U26,"c",T5:T26)+SUMIF(AB5:AB26,"c",AA5:AA26)+SUMIF(AI5:AI26,"c",AH5:AH26)+SUMIF(AP5:AP26,"c",AO5:AO26)+SUMIF(AW5:AW26,"c",AV5:AV26)+SUMIF(G5:G26,"c",F5:F26) -> 0
I33: d | J33: =SUMIF(N5:N26,"d",M5:M26)+SUMIF(U5:U26,"d",T5:T26)+SUMIF(AB5:AB26,"d",AA5:AA26)+SUMIF(AI5:AI26,"d",AH5:AH26)+SUMIF(AP5:AP26,"d",AO5:AO26)+SUMIF(AW5:AW26,"d",AV5:AV26)+SUMIF(G5:G26,"d",F5:F26) -> 22

Sheet 檢核自評表
A1: * | S1: 年級 | V1: 總節數_下限 | AA1: 彈性總節數: | AC1: 總節數 | AD1: 國定假日放假 | AF1: * | BA1: 實際上課總節數 | BD1: 彈性總節數: | BF1: 總節數 | BW1: ※說明：97課綱自100學年度逐年向上實施，至104學年度止，已實施新課綱之年級及學習 領域課程如下：
E2: 高雄市左營區屏山國小 | R2: 上學期 | AA2: 上學期 | AD2: 國定假日放假 | BA2: 0 | BD2: 上學期 | BW2: 【一年級－國語、數學、健體、綜合、生活】、 【二年級－國語、數學、 健體、綜合、生活】、
E3: 107學年度學校課程計畫撰寫---檢核（自評）表 | R3: 下學期 | AA3: 下學期 | AD3: 國定假日放假 | BA3: 0 | BD3: 下學期 | BH3: 檢核結果 | BW3: 【三年級－國語、數學、健體、綜合、自然、社會、藝文】、【四年級－國語、數學、健體、綜合、自然、社會、藝文】、
R4: 學校自評結果如下: | AG4: 教育局複評結果如下: | BW4: 【五年級－自然、社會、 藝文】、 【六年級－自然、社會、藝文】
I5: 上學期 | M5: 下學期 | R5: 上學期 | V5: 下學期 | AA5: 0 | AC5: =COUNTIF(AC7:AC150,"N") -> 0 | AD5: =COUNTA(AD8:AD150) -> 0 | AL5: 上學期 | AP5: 下學期 | AU5: 上學期 | AY5: 下學期 | BD5: 0 | BG5: 0
A6: 檢核編號之工作表位置 | B6: =COUNTIF(B7:B18,"N") -> 0 | C6: 流水號 | D6: 檢核代號 | E6: 檢核項目大綱 | F6: 檢 核 項 目 | G6: 課程規定節數類別 | H6: 年級 | I6: A:彈性 | J6: B:融入學習領域 | K6: D:非領域 | L6: 上學期 | M6: A:彈性 | N6: B:融入學習領域 | O6: D:非領域 | P6: 下學期 | Q6: 總節數 | R6: A:彈性 | S6: B:融入學習領域 | T6: D:非領域 | U6: 小計 | V6: A:彈性 | W6: B:融入學習領域 | X6: D:非領域 | Y6: 小 計 | Z6: 總節數 | AA6: 上學期增減節數 | AB6: 下學期增減節數 | AC6: 自評結果 | AD6: 節數不符原因說明 | AF6: 流水號 | AG6: 檢核代號 | AH6: 檢核項目大綱 | AI6: 檢 核 項 目 | AJ6: 課程規定節數類別 | AK6: 年級 | AL6: A:彈性 | AM6: B:融入學習領域 | AN6: D:非課程 | AO6: 上學期 | AP6: A:彈性 | AQ6: B:融入學習領域 | AR6: D:非課程 | AS6: 下學期 | AU6: A:彈性 | AV6: B:融入學習領域 | AW6: D:非課程 | AX6: 小計 | AY6: A:彈性 | AZ6: B:融入學習領域 | BA6: D:非課程 | BB6: 小計 | BC6: 總節數 | BD6: 上學期增減節數 | BE6: 下學期增減節數 | BF6: 總節數比對是否符合 | BG6: 節數不符原因說明 | BH6: 檢核記錄與說明
A7: 1.各年級總節數 | B7: Y | G7: 合計: | H7: 6 | I7: 105 | J7: 46 | K7: 9 | L7: 160 | M7: 90 | N7: 52 | O7: 9 | P7: 151 | Q7: 311 | R7: 105 | S7: 46 | T7: 9 | U7: 160 | V7: 90 | W7: 52 | X7: 9 | Y7: 151 | Z7: =U7+Y7 -> 311 | AA7: =SUM(AA8:AA200) -> 0 | AB7: =SUM(AB8:AB200) -> 0 | AC7: =IF(AND(L7=0,P7=0),"",IF(AND(L7=(U7-AA7),P7=(Y7-AB7)),"Y","N")) -> Y | BC7: =AX7+BB7 -> 0 | BD7: =SUM(BD8:BD200) -> 0 | BE7: =SUM(BE8:BE200) -> 0 | BF7: =IF(AND(AO7=0,AS7=0),"",IF(AND(AO7=(AX7-BD7),AS7=(BB7-BE7)),"Y","N")) -> 
A8: 2.上課總節數 | B8: Y | C8: 1 | D8: AC | E8: 家政教育 | F8: 9綜合 | G8: B | H8: 5~6 | J8: 12 | L8: 12 | N8: 12 | P8: 12 | Q8: 24 | S8: 12 | U8: 12 | W8: 12 | Y8: 12 | Z8: 12 | AA8: 0 | AB8: 0 | AC8: =IF(AND(L8=0,P8=0),"",IF(AND(L8=(U8-AA8),P8=(Y8-AB8)),"Y","N")) -> Y
A9: 3.年級節數新舊課程選取 | B9: Y | C9: 2 | D9: AD | E9: 家庭教育 | G9: D | H9: 1~6 | K9: 3 | L9: 3 | O9: 3 | P9: 3 | Q9: 6 | S9: 0 | T9: 3 | U9: 3 | W9: 0 | X9: 3 | Y9: 3 | Z9: 3 | AA9: 0 | AB9: 0 | AC9: Y
A10: 4.各年級彈性節數設定 | B10: Y | C10: 3 | D10: AE | E10: 家暴_家庭暴力防治教育 | G10: E | H10: 1~6 | K10: 3 | L10: 3 | O10: 3 | P10: 3 | Q10: 6 | S10: 0 | T10: 3 | U10: 3 | W10: 0 | X10: 3 | Y10: 3 | Z10: 3 | AA10: 0 | AB10: 0 | AC10: Y
A11: 5.領域節數% | B11: Y | C11: 4 | D11: AF | E11: 友善校園 | G11: D | H11: 1~6 | K11: 1 | L11: 1 | O11: 1 | P11: 1 | Q11: 2 | S11: 0 | T11: 1 | U11: 1 | W11: 0 | X11: 1 | Y11: 1 | Z11: 1 | AA11: 0 | AB11: 0 | AC11: Y
A12: 6.放假節日增減_上 | B12: Y | C12: 5 | D12: AG | E12: 性侵害防治教育 | G12: E | H12: 1~6 | J12: 2 | K12: 1 | L12: 3 | N12: 2 | O12: 1 | P12: 3 | Q12: 6 | S12: 2 | T12: 1 | U12: 3 | W12: 2 | X12: 1 | Y12: 3 | Z12: 3 | AA12: 0 | AB12: 0 | AC12: Y
A13: 7.放假節日增減_下 | B13: Y | C13: 6 | D13: AH | E13: 性別平等教育 | G13: E | H13: 1~6 | J13: 6 | L13: 6 | N13: 6 | P13: 6 | Q13: 12 | S13: 6 | U13: 6 | W13: 6 | Y13: 6 | Z13: 6 | AA13: 0 | AB13: 0 | AC13: Y
A14: 8.上課總節數確認_上 | B14: Y | C14: 7 | D14: AI | E14: 環境教育 | G14: E | H14: 1~6 | J14: 2 | L14: 2 | N14: 2 | P14: 2 | Q14: 4 | S14: 2 | U14: 2 | W14: 2 | Y14: 2 | Z14: 2 | AA14: 0 | AB14: 0 | AC14: Y
A15: 9.上課總節數確認_下 | B15: Y | C15: 8 | D15: AJ | E15: 防災教育 | G15: E | H15: 1~6 | J15: 1 | K15: 1 | L15: 2 | N15: 1 | O15: 1 | P15: 2 | Q15: 4 | S15: 1 | T15: 1 | U15: 2 | W15: 1 | X15: 1 | Y15: 2 | Z15: 2 | AA15: 0 | AB15: 0 | AC15: Y
A16: 10.彈性節數分配設定_上 | B16: Y | C16: 9 | D16: AL | E16: 登革熱防治 | F16: 8健體 | G16: B | H16: 1~6 | J16: 1 | L16: 1 | N16: 1 | P16: 1 | Q16: 2 | S16: 1 | U16: 1 | W16: 1 | Y16: 1 | Z16: 1 | AA16: 0 | AB16: 0 | AC16: Y
A17: 11.彈性節數分配設定_下 | B17: Y | C17: 10 | D17: AN | E17: 作文教學 | G17: C | H17: 3~6 | I17: 8 | L17: 8 | M17: 8 | P17: 8 | Q17: 16 | R17: 8 | S17: 0 | U17: 8 | V17: 8 | W17: 0 | Y17: 8 | Z17: 16 | AA17: 0 | AB17: 0 | AC17: Y
A18: 12.學年度總節數統計 | B18: Y | C18: 11 | D18: AQ | E18: 戶外教育 | G18: C | H18: 6 | J18: 7 | L18: 7 | N18: 18 | P18: 18 | Q18: 25 | S18: 7 | U18: 7 | W18: 18 | Y18: 18 | Z18: 7 | AA18: 0 | AB18: 0 | AC18: Y
C19: 12 | D19: BA | E19: 飲食教育 | F19: 8健體 | G19: B | H19: 1~6 | J19: 5 | L19: 5 | N19: 5 | P19: 5 | Q19: 10 | S19: 5 | U19: 5 | W19: 5 | Y19: 5 | Z19: 5 | AA19: 0 | AB19: 0 | AC19: Y
C20: 13 | D20: BF | E20: 職業試探 | G20: B | H20: 1~6 | J20: 1 | L20: 1 | N20: 1 | P20: 1 | Q20: 2 | S20: 1 | U20: 1 | W20: 1 | Y20: 1 | Z20: 1 | AA20: 0 | AB20: 0 | AC20: Y
C21: 14 | D21: BG | E21: 海洋教育 | G21: B | H21: 1~6 | J21: 1 | L21: 1 | N21: 1 | P21: 1 | Q21: 2 | S21: 1 | U21: 1 | W21: 1 | Y21: 1 | Z21: 1 | AA21: 0 | AB21: 0 | AC21: Y
C22: 15 | D22: BH | E22: 低碳教育 | G22: E | H22: 1~6 | J22: 1 | L22: 1 | N22: 1 | P22: 1 | Q22: 2 | S22: 1 | U22: 1 | W22: 1 | Y22: 1 | Z22: 1 | AA22: 0 | AB22: 0 | AC22: Y
C23: 16 | D23: BI | E23: 交通安全教育 | G23: B | H23: 1~6 | J23: 2 | L23: 2 | N23: 2 | P23: 2 | Q23: 4 | S23: 2 | U23: 2 | W23: 2 | Y23: 2 | Z23: 2 | AA23: 0 | AB23: 0 | AC23: Y
C24: 17 | D24: SA | E24: 校本課程 | F24: A2 | G24: C | H24: 1~6 | I24: 20 | L24: 20 | M24: 16 | P24: 16 | Q24: 36 | R24: 20 | S24: 0 | U24: 20 | V24: 16 | W24: 0 | Y24: 16 | Z24: 36 | AA24: 0 | AB24: 0 | AC24: Y
C25: 18 | D25: SB | E25: 資訊教育 | F25: A3 | G25: C | H25: 1~6 | I25: 21 | L25: 21 | M25: 18 | P25: 18 | Q25: 39 | R25: 21 | S25: 0 | U25: 21 | V25: 18 | W25: 0 | Y25: 18 | Z25: 39 | AA25: 0 | AB25: 0 | AC25: Y
C26: 19 | D26: SC | E26: 英語 | F26: A4 | G26: C | H26: 1~6 | I26: 21 | L26: 21 | M26: 17 | P26: 17 | Q26: 38 | R26: 21 | S26: 0 | U26: 21 | V26: 17 | W26: 0 | Y26: 17 | Z26: 38 | AA26: 0 | AB26: 0 | AC26: Y
C27: 20 | D27: SD | E27: 國語補救教學 | F27: A5 | G27: C | H27: 1~6 | I27: 11 | L27: 11 | M27: 7 | P27: 7 | Q27: 18 | R27: 11 | S27: 0 | U27: 11 | V27: 7 | W27: 0 | Y27: 7 | Z27: 18 | AA27: 0 | AB27: 0 | AC27: Y
C28: 21 | D28: SE | E28: 數學補救教學 | F28: A6 | G28: C | H28: 1~6 | I28: 15 | L28: 15 | M28: 9 | P28: 9 | Q28: 24 | R28: 15 | S28: 0 | U28: 15 | V28: 9 | W28: 0 | Y28: 9 | Z28: 24 | AA28: 0 | AB28: 0 | AC28: Y
C29: 22 | D29: CB | E29: 身高.體重.視力檢查 | G29: A | H29: 1~6 | I29: 1 | L29: 1 | M29: 1 | P29: 1 | Q29: 2 | R29: 1 | S29: 0 | U29: 1 | V29: 1 | W29: 0 | Y29: 1 | Z29: 2 | AA29: 0 | AB29: 0 | AC29: Y
C30: 23 | D30: CD | E30: 兒童節闖關活動 | G30: A | H30: 1~6 | L30: 0 | M30: 2 | P30: 2 | Q30: 2 | U30: 0 | V30: 2 | W30: 0 | Y30: 2 | Z30: 2 | AA30: 0 | AB30: 0 | AC30: Y
C31: 24 | D31: CE | E31: 校慶運動會預演 | G31: A | H31: 1~6 | I31: 1 | L31: 1 | P31: 0 | Q31: 1 | R31: 1 | S31: 0 | U31: 1 | Y31: 0 | Z31: 1 | AA31: 0 | AB31: 0 | AC31: Y
C32: 25 | D32: CF | E32: 校慶運動會(中高年級) | G32: C | H32: 3~6 | I32: 2 | J32: 5 | L32: 7 | P32: 0 | Q32: 7 | R32: 2 | S32: 5 | U32: 7 | Y32: 0 | Z32: 7 | AA32: 0 | AB32: 0 | AC32: Y
C33: 26 | D33: CC | E33: 母親節才藝表演 | G33: A | H33: 1~6 | L33: 0 | M33: 2 | P33: 2 | Q33: 2 | U33: 0 | V33: 2 | W33: 0 | Y33: 2 | Z33: 2 | AA33: 0 | AB33: 0 | AC33: Y
C34: 27 | D34: CG | E34: 畢業典禮 | G34: A | H34: 1~6 | L34: 0 | M34: 4 | P34: 4 | Q34: 4 | U34: 0 | V34: 4 | W34: 0 | Y34: 4 | Z34: 4 | AA34: 0 | AB34: 0 | AC34: Y
C35: 28 | D35: CH | E35: 口腔檢查 | G35: A | H35: 1~6 | I35: 1 | L35: 1 | P35: 0 | Q35: 1 | R35: 1 | S35: 0 | U35: 1 | Y35: 0 | Z35: 1 | AA35: 0 | AB35: 0 | AC35: Y
C36: 29 | D36: CI | E36: 斜弱視.辨色力檢查 | G36: A | H36: 1~6 | I36: 1 | L36: 1 | P36: 0 | Q36: 1 | R36: 1 | S36: 0 | U36: 1 | Y36: 0 | Z36: 1 | AA36: 0 | AB36: 0 | AC36: Y
C37: 30 | D37: CJ | E37: 聖誕節活動 | G37: A | H37: 1~6 | I37: 2 | L37: 2 | P37: 0 | Q37: 2 | R37: 2 | S37: 0 | U37: 2 | Y37: 0 | Z37: 2 | AA37: 0 | AB37: 0 | AC37: Y
C38: 31 | D38: CL | E38: 畢業典禮預演 | G38: A | H38: 1~6 | L38: 0 | M38: 2 | P38: 2 | Q38: 2 | U38: 0 | V38: 2 | W38: 0 | Y38: 2 | Z38: 2 | AA38: 0 | AB38: 0 | AC38: Y
C39: 32 | D39: CM | E39: 自治市長選舉 | G39: A | H39: 1~6 | L39: 0 | M39: 1 | P39: 1 | Q39: 1 | U39: 0 | V39: 1 | W39: 0 | Y39: 1 | Z39: 1 | AA39: 0 | AB39: 0 | AC39: Y
C40: 33 | D40: CN | E40: 班際體育競賽 | G40: A | H40: 1~6 | L40: 0 | M40: 1 | P40: 1 | Q40: 1 | U40: 0 | V40: 1 | W40: 0 | Y40: 1 | Z40: 1 | AA40: 0 | AB40: 0 | AC40: Y
C41: 34 | D41: CO | E41: 歡送畢業生園遊會 | G41: A | H41: 1~6 | L41: 0 | M41: 2 | P41: 2 | Q41: 2 | U41: 0 | V41: 2 | W41: 0 | Y41: 2 | Z41: 2 | AA41: 0 | AB41: 0 | AC41: Y
C42: 35 | D42: CP | E42: 預防注射(流感) | G42: C | H42: 1~6 | I42: 1 | L42: 1 | P42: 0 | Q42: 1 | R42: 1 | S42: 0 | U42: 1 | Y42: 0 | Z42: 1 | AA42: 0 | AB42: 0 | AC42: Y

Sheet 上_相關議題撰寫統整表
Z1: 高雄市大寮區後庄國小107年度
D4: 高雄市左營區屏山國小107上學期學校課程計畫相關議題撰寫統整表
C6: 檢核代號 | D6: 相關議題 | E6: 原設定節數小計 | F6: 課程規定節數類別 | G6: 年級 | H6: 實施領域週次及節數參考寫法如下: 彈性11(1)、12(1)、13(1)、14(1)、15(1)、18(1)，綜合4(2)、5(2)、8(2)，共12節。 | I6: 放假日後小計 | J6: 減少的節數 | K6: 原因 | L6: 備註 | M6: 教務處紅色_代號1 學務處藍色_代號2 總務處紫色_代號3 輔導處綠色_代號4 黑色_跨領域代號
B7: 1 | C7: AC | D7: 家政教育 | E7: 12 | F7: B | G7: 5~6 | H7: 融入課程:綜合9(3),綜合10(3),綜合11(3),綜合13(3)/共:12節 | I7: 12 | J7: 0
B8: 2 | C8: AD | D8: 家庭教育 | E8: 3 | F8: D | G8: 1~6 | H8: 非課程:1(3)/共:3節 | I8: 3 | J8: 0
B9: 3 | C9: AE | D9: 家暴_家庭暴力防治教育 | E9: 3 | F9: E | G9: 1~6 | H9: 非課程:3(3)/共:3節 | I9: 3 | J9: 0
B10: 4 | C10: AF | D10: 友善校園 | E10: 1 | F10: D | G10: 1~6 | H10: 非課程:1(1)/共:1節 | I10: 1 | J10: 0
B11: 5 | C11: AG | D11: 性侵害防治教育 | E11: 3 | F11: E | G11: 1~6 | H11: 非課程:6(1) 融入課程:健康1(1),健康2(1)/共:3節 | I11: 3 | J11: 0
B12: 6 | C12: AH | D12: 性別平等教育 | E12: 6 | F12: E | G12: 1~6 | H12: 融入課程:健康1(1),健康2(1),健康4(1),健康5(1),健康6(1),健康9(1)/共:6節 | I12: 6 | J12: 0
B13: 7 | C13: AI | D13: 環境教育 | E13: 2 | F13: E | G13: 1~6 | H13: 融入課程:自然12(2)/共:2節 | I13: 2 | J13: 0
B14: 8 | C14: AJ | D14: 防災教育 | E14: 2 | F14: E | G14: 1~6 | H14: 非課程:4(1) 融入課程:綜合20(1)/共:2節 | I14: 2 | J14: 0
B15: 9 | C15: AL | D15: 登革熱防治 | E15: 1 | F15: B | G15: 1~6 | H15: 融入課程:健康7(1)/共:1節 | I15: 1 | J15: 0
B16: 10 | C16: AN | D16: 作文教學 | E16: 8 | F16: C | G16: 3~6 | H16: 全校活動:5(2),10(2),13(2),18(2)/共:8節 | I16: 8 | J16: 0
B17: 11 | C17: AQ | D17: 戶外教育 | E17: 7 | F17: C | G17: 6 | H17: 融入課程:國語17(2),自然17(2),綜合17(3)/共:7節 | I17: 7 | J17: 0
B18: 12 | C18: BA | D18: 飲食教育 | E18: 5 | F18: B | G18: 1~6 | H18: 融入課程:健康1(1),健康2(1),健康3(1),健康7(1),健康8(1)/共:5節 | I18: 5 | J18: 0
B19: 13 | C19: BF | D19: 職業試探 | E19: 1 | F19: B | G19: 1~6 | H19: 融入課程:綜合1(1)/共:1節 | I19: 1 | J19: 0
B20: 14 | C20: BG | D20: 海洋教育 | E20: 1 | F20: B | G20: 1~6 | H20: 融入課程:藝術17(1)/共:1節 | I20: 1 | J20: 0
B21: 15 | C21: BH | D21: 低碳教育 | E21: 1 | F21: E | G21: 1~6 | H21: 融入課程:健康10(1)/共:1節 | I21: 1 | J21: 0
B22: 16 | C22: BI | D22: 交通安全教育 | E22: 2 | F22: B | G22: 1~6 | H22: 融入課程:健康7(1),健康8(1)/共:2節 | I22: 2 | J22: 0
B23: 17 | C23: SA | D23: 校本課程 | E23: 20 | F23: C | G23: 1~6 | H23: 彈性課程:1(1),2(1),3(1),4(1),5(1),6(1),7(1),8(1),9(1),10(1),11(1),13(1),14(1),15(1),16(1),17(1),18(1),19(1),20(1),21(1)/共:20節 | I23: 20 | J23: 0
B24: 18 | C24: SB | D24: 資訊教育 | E24: 21 | F24: C | G24: 1~6 | H24: 彈性課程:1(1),2(1),3(1),4(1),5(1),6(1),7(1),8(1),9(1),10(1),11(1),12(1),13(1),14(1),15(1),16(1),17(1),18(1),19(1),20(1),21(1)/共:21節 | I24: 21 | J24: 0
B25: 19 | C25: SC | D25: 英語 | E25: 21 | F25: C | G25: 1~6 | H25: 彈性課程:1(1),2(1),3(1),4(1),5(1),6(1),7(1),8(1),9(1),10(1),11(1),12(1),13(1),14(1),15(1),16(1),17(1),18(1),19(1),20(1),21(1)/共:21節 | I25: 21 | J25: 0
B26: 20 | C26: SD | D26: 國語補救教學 | E26: 11 | F26: C | G26: 1~6 | H26: 彈性課程:1(1),6(1),7(1),8(1),11(1),14(1),15(1),16(1),19(1),20(1),21(1)/共:11節 | I26: 11 | J26: 0
B27: 21 | C27: SE | D27: 數學補救教學 | E27: 15 | F27: C | G27: 1~6 | H27: 彈性課程:1(1),2(1),3(1),4(1),6(1),7(1),8(1),9(1),11(1),14(1),15(1),16(1),19(1),20(1),21(1)/共:15節 | I27: 15 | J27: 0
B28: 22 | C28: CB | D28: 身高.體重.視力檢查 | E28: 1 | F28: A | G28: 1~6 | H28: 全校活動:3(1)/共:1節 | I28: 1 | J28: 0
B29: 23 | C29: CD | D29: 兒童節闖關活動 | E29: 0 | F29: A | G29: 1~6 | I29: 0 | J29: 0
B30: 24 | C30: CE | D30: 校慶運動會預演 | E30: 1 | F30: A | G30: 1~6 | H30: 全校活動:12(1)/共:1節 | I30: 1 | J30: 0
B31: 25 | C31: CF | D31: 校慶運動會(中高年級) | E31: 7 | F31: C | G31: 3~6 | H31: 全校活動:12(2) 融入課程:健康12(3),綜合12(2)/共:7節 | I31: 7 | J31: 0
B32: 26 | C32: CC | D32: 母親節才藝表演 | E32: 0 | F32: A | G32: 1~6 | I32: 0 | J32: 0
B33: 27 | C33: CG | D33: 畢業典禮 | E33: 0 | F33: A | G33: 1~6 | I33: 0 | J33: 0
B34: 28 | C34: CH | D34: 口腔檢查 | E34: 1 | F34: A | G34: 1~6 | H34: 全校活動:2(1)/共:1節 | I34: 1 | J34: 0
B35: 29 | C35: CI | D35: 斜弱視.辨色力檢查 | E35: 1 | F35: A | G35: 1~6 | H35: 全校活動:4(1)/共:1節 | I35: 1 | J35: 0
B36: 30 | C36: CJ | D36: 聖誕節活動 | E36: 2 | F36: A | G36: 1~6 | H36: 全校活動:17(2)/共:2節 | I36: 2 | J36: 0
B37: 31 | C37: CL | D37: 畢業典禮預演 | E37: 0 | F37: A | G37: 1~6 | I37: 0 | J37: 0
B38: 32 | C38: CM | D38: 自治市長選舉 | E38: 0 | F38: A | G38: 1~6 | I38: 0 | J38: 0
B39: 33 | C39: CN | D39: 班際體育競賽 | E39: 0 | F39: A | G39: 1~6 | I39: 0 | J39: 0
B40: 34 | C40: CO | D40: 歡送畢業生園遊會 | E40: 0 | F40: A | G40: 1~6 | I40: 0 | J40: 0
B41: 35 | C41: CP | D41: 預防注射(流感) | E41: 1 | F41: C | G41: 1~6 | H41: 全校活動:9(1)/共:1節 | I41: 1 | J41: 0

Sheet 下_相關議題撰寫統整表
Z1: 高雄市大寮區後庄國小107年度
D4: 高雄市左營區屏山國小107下學期學校課程計畫相關議題撰寫統整表
C6: 檢核代號 | D6: 相關議題 | E6: 原設定節數小計 | F6: 課程規定節數類別 | G6: 年級 | H6: 實施領域週次及節數參考寫法如下: 彈性11(1)、12(1)、13(1)、14(1)、15(1)、18(1)，綜合4(2)、5(2)、8(2)，共12節。 | I6: 放假日後小計 | J6: 減少的節數 | K6: 原因 | L6: 備註 | M6: 教務處紅色_代號1 學務處藍色_代號2 總務處紫色_代號3 輔導處綠色_代號4 黑色_跨領域代號
B7: 1 | C7: AC | D7: 家政教育 | E7: 12 | F7: B | G7: 5~6 | H7: 融入課程:綜合9(3),綜合10(3),綜合11(3),綜合12(3)/共:12節 | I7: 12 | J7: 0
B8: 2 | C8: AD | D8: 家庭教育 | E8: 3 | F8: D | G8: 1~6 | H8: 非課程:2(3)/共:3節 | I8: 3 | J8: 0
B9: 3 | C9: AE | D9: 家暴_家庭暴力防治教育 | E9: 3 | F9: E | G9: 1~6 | H9: 非課程:13(3)/共:3節 | I9: 3 | J9: 0
B10: 4 | C10: AF | D10: 友善校園 | E10: 1 | F10: D | G10: 1~6 | H10: 非課程:1(1)/共:1節 | I10: 1 | J10: 0
B11: 5 | C11: AG | D11: 性侵害防治教育 | E11: 3 | F11: E | G11: 1~6 | H11: 非課程:5(1) 融入課程:健康3(2)/共:3節 | I11: 3 | J11: 0
B12: 6 | C12: AH | D12: 性別平等教育 | E12: 6 | F12: E | G12: 1~6 | H12: 融入課程:健康1(2),健康2(2),健康4(2)/共:6節 | I12: 6 | J12: 0
B13: 7 | C13: AI | D13: 環境教育 | E13: 2 | F13: E | G13: 1~6 | H13: 融入課程:綜合1(2)/共:2節 | I13: 2 | J13: 0
B14: 8 | C14: AJ | D14: 防災教育 | E14: 2 | F14: E | G14: 1~6 | H14: 非課程:3(1) 融入課程:健康6(1)/共:2節 | I14: 2 | J14: 0
B15: 9 | C15: AL | D15: 登革熱防治 | E15: 1 | F15: B | G15: 1~6 | H15: 融入課程:健康6(1)/共:1節 | I15: 1 | J15: 0
B16: 10 | C16: AN | D16: 作文教學 | E16: 8 | F16: C | G16: 3~6 | H16: 全校活動:3(2),9(2),13(2),15(2)/共:8節 | I16: 8 | J16: 0
B17: 11 | C17: AQ | D17: 戶外教育 | E17: 18 | F17: C | G17: 6 | H17: 融入課程:國語2(3),數學2(3),社會2(3),藝術2(2),自然2(4),綜合2(3)/共:18節 | I17: 18 | J17: 0
B18: 12 | C18: BA | D18: 飲食教育 | E18: 5 | F18: B | G18: 1~6 | H18: 融入課程:健康1(1),健康2(1),健康3(1),健康4(1),健康5(1)/共:5節 | I18: 5 | J18: 0
B19: 13 | C19: BF | D19: 職業試探 | E19: 1 | F19: B | G19: 1~6 | H19: 融入課程:綜合15(1)/共:1節 | I19: 1 | J19: 0
B20: 14 | C20: BG | D20: 海洋教育 | E20: 1 | F20: B | G20: 1~6 | H20: 融入課程:自然13(1)/共:1節 | I20: 1 | J20: 0
B21: 15 | C21: BH | D21: 低碳教育 | E21: 1 | F21: E | G21: 1~6 | H21: 融入課程:自然14(1)/共:1節 | I21: 1 | J21: 0
B22: 16 | C22: BI | D22: 交通安全教育 | E22: 2 | F22: B | G22: 1~6 | H22: 融入課程:綜合14(2)/共:2節 | I22: 2 | J22: 0
B23: 17 | C23: SA | D23: 校本課程 | E23: 16 | F23: C | G23: 1~6 | H23: 彈性課程:1(1),2(1),3(1),4(1),5(1),6(1),7(1),8(1),9(1),10(1),11(1),12(1),13(1),14(1),16(1),17(1)/共:16節 | I23: 16 | J23: 0
B24: 18 | C24: SB | D24: 資訊教育 | E24: 18 | F24: C | G24: 1~6 | H24: 彈性課程:1(1),2(1),3(1),4(1),5(1),6(1),7(1),8(1),9(1),10(1),11(1),12(1),13(1),14(1),15(1),16(1),17(1),18(1)/共:18節 | I24: 18 | J24: 0
B25: 19 | C25: SC | D25: 英語 | E25: 17 | F25: C | G25: 1~6 | H25: 彈性課程:1(1),2(1),3(1),4(1),5(1),6(1),7(1),8(1),9(1),10(1),11(1),12(1),13(1),14(1),15(1),16(1),17(1)/共:17節 | I25: 17 | J25: 0
B26: 20 | C26: SD | D26: 國語補救教學 | E26: 7 | F26: C | G26: 1~6 | H26: 彈性課程:1(1),4(1),5(1),6(1),8(1),10(1),14(1)/共:7節 | I26: 7 | J26: 0
B27: 21 | C27: SE | D27: 數學補救教學 | E27: 9 | F27: C | G27: 1~6 | H27: 彈性課程:1(1),2(1),4(1),5(1),6(1),8(1),10(1),11(1),14(1)/共:9節 | I27: 9 | J27: 0
B28: 22 | C28: CB | D28: 身高.體重.視力檢查 | E28: 1 | F28: A | G28: 1~6 | H28: 全校活動:2(1)/共:1節 | I28: 1 | J28: 0
B29: 23 | C29: CD | D29: 兒童節闖關活動 | E29: 2 | F29: A | G29: 1~6 | H29: 全校活動:7(2)/共:2節 | I29: 2 | J29: 0
B30: 24 | C30: CE | D30: 校慶運動會預演 | E30: 0 | F30: A | G30: 1~6 | I30: 0 | J30: 0
B31: 25 | C31: CF | D31: 校慶運動會(中高年級) | E31: 0 | F31: C | G31: 3~6 | I31: 0 | J31: 0
B32: 26 | C32: CC | D32: 母親節才藝表演 | E32: 2 | F32: A | G32: 1~6 | H32: 全校活動:12(2)/共:2節 | I32: 2 | J32: 0
B33: 27 | C33: CG | D33: 畢業典禮 | E33: 4 | F33: A | G33: 1~6 | H33: 全校活動:18(4)/共:4節 | I33: 4 | J33: 0
B34: 28 | C34: CH | D34: 口腔檢查 | E34: 0 | F34: A | G34: 1~6 | I34: 0 | J34: 0
B35: 29 | C35: CI | D35: 斜弱視.辨色力檢查 | E35: 0 | F35: A | G35: 1~6 | I35: 0 | J35: 0
B36: 30 | C36: CJ | D36: 聖誕節活動 | E36: 0 | F36: A | G36: 1~6 | I36: 0 | J36: 0
B37: 31 | C37: CL | D37: 畢業典禮預演 | E37: 2 | F37: A | G37: 1~6 | H37: 全校活動:17(2)/共:2節 | I37: 2 | J37: 0
B38: 32 | C38: CM | D38: 自治市長選舉 | E38: 1 | F38: A | G38: 1~6 | H38: 全校活動:11(1)/共:1節 | I38: 1 | J38: 0
B39: 33 | C39: CN | D39: 班際體育競賽 | E39: 1 | F39: A | G39: 1~6 | H39: 全校活動:15(1)/共:1節 | I39: 1 | J39: 0
B40: 34 | C40: CO | D40: 歡送畢業生園遊會 | E40: 2 | F40: A | G40: 1~6 | H40: 全校活動:16(2)/共:2節 | I40: 2 | J40: 0
B41: 35 | C41: CP | D41: 預防注射(流感) | E41: 0 | F41: C | G41: 1~6 | I41: 0 | J41: 0

Sheet 能力指標 (hidden)
D1: EXCEL標準格式檢查確認,按F1→OK→ | F1: 匯出能力指標到課程計畫表 | N1: 範例1 | O1: 範例2 | P1: 範例3
D3: 學期學習目標 | E3: 1.從植物種子的傳播繁殖，培養科學觀察的精神，學習大自然的智慧。 2.體會生活中的溫情，時時刻刻懷著感恩的心，回饋社會。 3.透過認識圖書館、閱讀分享、讀書會等閱讀活動，讓學生體會閱讀的樂趣，提高學生學習語文的興趣，並培養自我學習的能力。 | L3: =E3 -> 1.從植物種子的傳播繁殖，培養科學觀察的精神，學習大自然的智慧。 2.體會生活中的溫情，時時刻刻懷著感恩的心，回饋社會。 3.透過認識圖書館、閱讀分享、讀書會等閱讀活動，讓學生體會閱讀的樂趣，提高學生學習語文的興趣，並培養自我學習的能力。 | M3: =E3 -> 1.從植物種子的傳播繁殖，培養科學觀察的精神，學習大自然的智慧。 2.體會生活中的溫情，時時刻刻懷著感恩的心，回饋社會。 3.透過認識圖書館、閱讀分享、讀書會等閱讀活動，讓學生體會閱讀的樂趣，提高學生學習語文的興趣，並培養自我學習的能力。
D4: 融入重大議題之能力指標 | E4: 1. 應用注音符號，認識文字，輔助記錄訊息。 2. 培養良好的聆聽態度，並學會使用禮貌語言，適當應對。 3. 清楚覆述所聽到的事物，掌握說話主題。 4. 認識常用中國文字，並會使用字（詞）典。 5. 培養閱讀的興趣、態度和習慣，並流暢朗讀文章表達的情感。 6. 在口述作文和筆述作文中，培養豐富的想像力。 7. 練習利用不同的途徑和方式，蒐集各類寫作的材料。 4.學習日記的寫作方法，培養短文寫作的能力。 5.從故事中學習道理、感受趣味，培養喜愛閱讀的興趣。 | L4: =E4 -> 1. 應用注音符號，認識文字，輔助記錄訊息。 2. 培養良好的聆聽態度，並學會使用禮貌語言，適當應對。 3. 清楚覆述所聽到的事物，掌握說話主題。 4. 認識常用中國文字，並會使用字（詞）典。 5. 培養閱讀的興趣、態度和習慣，並流暢朗讀文章表達的情感。 6. 在口述作文和筆述作文中，培養豐富的想像力。 7. 練習利用不同的途徑和方式，蒐集各類寫作的材料。 4.學習日記的寫作方法，培養短文寫作的能力。 5.從故事中學習道理、感受趣味，培養喜愛閱讀的興趣。 | M4: =E4 -> 1. 應用注音符號，認識文字，輔助記錄訊息。 2. 培養良好的聆聽態度，並學會使用禮貌語言，適當應對。 3. 清楚覆述所聽到的事物，掌握說話主題。 4. 認識常用中國文字，並會使用字（詞）典。 5. 培養閱讀的興趣、態度和習慣，並流暢朗讀文章表達的情感。 6. 在口述作文和筆述作文中，培養豐富的想像力。 7. 練習利用不同的途徑和方式，蒐集各類寫作的材料。 4.學習日記的寫作方法，培養短文寫作的能力。 5.從故事中學習道理、感受趣味，培養喜愛閱讀的興趣。
D6: 週次 | E6: 各領域單元_能力指標COPY存放區 | F6: 評量方式 | G6: 備註(重大議題)
D7: 1 | E7: 【一、我是行道樹】 1-1-4-2 能運用注音讀物，擴充閱讀範圍。 2-1-2-6 能結合科技與資訊，提升聆聽的能力，以提高學習興趣。 3-1-1-7 能依照文意，概略讀出文章的節奏。 4-1-4-1 能掌握基本筆畫的名稱、字形和筆順。 5-1-3-1 能培養良好的閱讀興趣。 | F7: 1.朗讀評量。 2.口頭評量。 3.實作評量。 4.習作評量。 | G7: 【環境教育】 1-1-1 能運用五官觀察體驗、探究環境中的事物。 【生涯發展教育】 1-1-2 認識自己的長處及優點。
D8: 2 | E8: 【一、我是行道樹】 6-1-2-1 能運用學過的字詞，造出通順的短語或句子。 【二、歡迎來我家】 1-1-2-2 能運用注音符號，和他人分享自己的經驗和想法。 2-1-1-5 能注意聆聽，不做不必要的插嘴。 3-1-4-3 能依主題表達意見。 4-1-1-1 能利用部首或簡單造字原理，輔助識字。 | F8: 1.朗讀評量。 2.口頭評量。 3.實作評量。 4.習作評量。 | G8: 【環境教育】 1-1-1 能運用五官觀察體驗、探究環境中的事物。 【環境教育】 2-1-1 認識生活周遭的自然環境與人造環境，以及常見的動物、植物、微生物彼此之間的互動關係。 【生涯發展教育】 1-1-2 認識自己的長處及優點。
D9: 3 | E9: 【二、歡迎來我家】 5-1-4-1 能喜愛閱讀課外（注音）讀物，擴展閱讀視野。 6-1-1-1 能學習觀察簡單的圖畫和事物，並練習寫成一段文字。 【三、種子的旅行】 1-1-2-2 能運用注音符號，和他人分享自己的經驗和想法。 2-1-1-5 能注意聆聽，不做不必要的插嘴。 3-1-4-3 能依主題表達意見。 | F9: 1.口頭評量。 2.實作評量。 3.習作評量。 4.觀察評量。 | G9: 【環境教育】 2-1-1 認識生活周遭的自然環境與人造環境，以及常見的動物、植物、微生物彼此之間的互動關係。 【環境教育】 1-1-1 能運用五官觀察體驗、探究環境中的事物。 | L9: =LEFT(F9) -> 1
D10: 4 | E10: 【三、種子的旅行】 4-1-1-1 能利用部首或簡單造字原理，輔助識字。 5-1-2-2 能概略了解課文的內容與大意。 6-1-1-1 能學習觀察簡單的圖畫和事物，並練習寫成一段文字。 【四、綠色的海洋】 1-1-2-2 能運用注音符號，和他人分享自己的經驗和想法。 2-1-2-5 能聽出別人所表達的意思，達成溝通的目的。 3-1-1-8 能清楚說出自己的意思。 | F10: 1.遊戲評量。 2.口頭評量。 3.觀察評量。 4.朗讀評量。 5.習作評量。 | G10: 【環境教育】 1-1-1 能運用五官觀察體驗、探究環境中的事物。 【環境教育】 4-1-1 能以語言、文字或圖畫等表達自己對自然體驗或環境保護的想法。
D11: 5 | E11: 【四、綠色的海洋】 4-1-4-1 能掌握基本筆畫的名稱、字形和筆順。 5-1-2-2 能概略了解課文的內容與大意。 6-1-1-1 能學習觀察簡單的圖畫和事物，並練習寫成一段文字。 【統整活動一】 3-1-3-2 能生動的看圖說故事。 5-1-1 能熟習常用生字詞語的形音義。 5-1-7-2 能理解在閱讀過程中所觀察到的訊息。 5-1-7-3 能從閱讀的材料中，培養分析歸納的能力。 6-1-1-4 能經由作品欣賞、朗讀、美讀等方式，培養寫作的興趣。 6-1-2 能擴充詞彙，正確的遣詞造句，並練習常用的基本句型。 | F11: 1.實作評量。 2.朗讀評量。 3.習作評量。 4.口頭評量。 | G11: 【環境教育】 4-1-1 能以語言、文字或圖畫等表達自己對自然體驗或環境保護的想法。
D12: 6 | E12: 【五、爸爸】 1-1-2-1 能運用注音符號，提升說話及閱讀能力。 2-1-3-1 能概略聽出朗讀時優美的節奏。 3-1-1-7 能依照文意，概略讀出文章的節奏。 4-1-1-3 能利用新詞造句。 5-1-2-2 能概略了解課文的內容與大意。 | F12: 1.實作評量。 2.朗讀評量。 3.習作評量。 4.口頭評量。 | G12: 【家政教育】 4-1-2 察覺自己與家人的溝通方式。
D13: 7 | E13: 【五、爸爸】 6-1-2-1 能運用學過的字詞，造出通順的短語或句子。 【六、我的家人】 1-1-2-2 能運用注音符號，和他人分享自己的經驗和想法。 2-1-2-5 能聽出別人所表達的意思，達成溝通的目的。 3-1-1-1 能清楚明白的口述一件事情。 4-1-1-1 能利用部首或簡單造字原理，輔助識字。 | F13: 1.口頭評量。 2.活動評量。 3.實作評量。 4.朗讀評量。 5.習作評量。 | G13: 【家政教育】 4-1-1 認識家庭的組成分子與稱謂。 【家政教育】 4-1-2 察覺自己與家人的溝通方式。 【生涯發展教育】 2-1-1 培養互助合作的生活態度。
D14: 8 | E14: 【六、我的家人】 5-1-2-2 能概略了解課文的內容與大意。 6-1-1-1 能學習觀察簡單的圖畫和事物，並練習寫成一段文字。 【七、黃媽媽的笑臉】 1-1-2-1 能運用注音符號，提升說話及閱讀能力。 2-1-1-7 能學會使用有禮貌的語言，適當應對。 | F14: 1.口頭評量。 2.朗讀評量。 3.習作評量。 4.聆聽評量。 | G14: 【家政教育】 4-1-1 認識家庭的組成分子與稱謂。 【家政教育】 4-1-2 察覺自己與家人的溝通方式。 【生涯發展教育】 2-1-1 培養互助合作的生活態度。
D15: 9 | E15: 【七、黃媽媽的笑臉】 3-1-3-2 能生動的看圖說故事。 4-1-1-1 能利用部首或簡單造字原理，輔助識字。 5-1-7-2 能理解在閱讀過程中所觀察到的訊息。 6-1-2-2 能仿寫簡單句型。 【統整活動二】 2-1-1-3 能養成仔細聆聽的習慣。 3-1-1-8 能清楚說出自己的意思。 3-1-3 能生動活潑敘述故事。 5-1-3-2 能培養良好的閱讀習慣和態度。 5-1-4-2 能和別人分享閱讀的心得。 6-1-2-1 能運用學過的字詞，造出通順的短語或句子。 | F15: 1.朗讀評量。 2.口頭評量。 3.習作評量。 4.實作評量。 | G15: 【生涯發展教育】 2-1-1 培養互助合作的生活態度。
D16: 10 | E16: 【阿婆的良心傘】 1-1-4-1 能運用注音符號輔助認識文字。 2-1-2-5 能聽出別人所表達的意思，達成溝通的目的。 3-1-4-3 能依主題表達意見。 5-1-7-3 能從閱讀的材料中，培養分析歸納的能力。 【第一次評量週】 | F16: 1.習作評量。 2.朗讀評量。 3.口頭評量。 | G16: 【生涯發展教育】 2-1-1 培養互助合作的生活態度。
D17: 11 | E17: 【八、不說話的萬事通】 1-1-4-1 能運用注音符號輔助認識文字。 2-1-1-3 能養成仔細聆聽的習慣。 3-1-1-11 能用完整的語句，說出想要完成的事。 4-1-4-2 能正確認識楷書基本筆畫的書寫原則。 5-1-3 能培養良好的閱讀興趣。 6-1-1-2 能在口述作文和筆述作文中，培養豐富的想像力。 | F17: 1.口頭評量。 2.習作評量。 3.觀察評量。 4.實作評量。 | G17: 【環境教育】 2-1-1 認識生活周遭的自然環境與人造環境，以及常見的動物、植物、微生物彼此之間的互動關係。
D18: 12 | E18: 【八、不說話的萬事通】 6-1-2-1 能運用學過的字詞，造出通順的短語或句子。 【九、書香森林】 1-1-5-3 能就所讀的注音讀物，說出自己發現的問題和想法。 2-1-2-6 能結合科技與資訊，提升聆聽的能力，以提高學習興趣。 3-1-1-11 能用完整的語句，說出想要完成的事。 4-1-4-5 能認識楷書基本筆畫的變化。 | F18: 1.口頭評量。 2.習作評量。 3.朗讀評量。 4.實作評量。 | G18: 【環境教育】 2-1-1 認識生活周遭的自然環境與人造環境，以及常見的動物、植物、微生物彼此之間的互動關係。 【環境教育】 1-1-1 能運用五官觀察體驗、探究環境中的事物。 【家政教育】 3-1-1 了解自己所擁有的物品並願意與他人分享。
D19: 13 | E19: 【九、書香森林】 5-1-4-2 能和別人分享閱讀的心得。 6-1-1-2 能在口述作文和筆述作文中，培養豐富的想像力。 【十、小讀者樂園】 1-1-5-2 能運用注音符號之輔助，表達自己的經驗和想法（如：寫日記、便條等）。 2-1-1-8 能主動參與溝通，聆聽對方的說明。 3-1-1-11 能用完整的語句，說出想要完成的事。 4-1-4-3 能用硬筆寫出合理的筆順、正確的筆畫及形體結構的國字。 5-1-5-1 能了解圖書室的設施、使用途徑和功能，並能充分利用，以激發閱 讀興趣。 | F19: 1.口頭評量。 2.實作評量。 3.習作評量。 4.問答評量。 5.朗讀評量。 | G19: 【環境教育】 1-1-1 能運用五官觀察體驗、探究環境中的事物。 【家政教育】 3-1-1 了解自己所擁有的物品並願意與他人分享。 【人權教育】 1-1-2 了解、遵守團體的規則，並實踐民主法治的精神。
D20: 14 | E20: 【十、小讀者樂園】 6-1-3-2 能配合日常生活，練習寫簡單的應用文（如：賀卡、便條、書信及日記等）。 【十一、喜歡讀書的人】 1-1-2-1 能運用注音符號，提升說話及閱讀能力。 2-1-1-3 能養成仔細聆聽的習慣。 3-1-1-1 能清楚明白的口述一件事情。 4-1-4-3 能用硬筆寫出合理的筆順、正確的筆畫及形體結構的國字。 5-1-3 能培養良好的閱讀興趣、態度和習慣。 | F20: 1.習作評量。 2.問答評量。 3.朗讀評量。 4.觀察評量。 5.口頭評量。 | G20: 【人權教育】 1-1-2 了解、遵守團體的規則，並實踐民主法治的精神。 【家政教育】 3-1-1 了解自己所擁有的物品並願意與他人分享。
D21: 15 | E21: 【十一、喜歡讀書的人】 6-1-1 能經由觀摩、分享與欣賞，培養良好的寫作態度與興趣。 【統整活動三】 2-1-2-4 能有條理的掌握聆聽到的內容。 3-1-3-1 能流利的說故事。 5-1-7-2 能理解在閱讀過程中所觀察到的訊息。 6-1-1-3 能相互觀摩作品。 6-1-3-2 能配合日常生活，練習寫簡單的應用文（如：賀卡、便條、書信及日記等）。 6-1-6 能認識並練習使用常用的標點符號。 【十二、黃狗生蛋】 1-1-2-2 能運用注音符號，和他人分享自己的經驗和想法。 2-1-2-4 能有條理的掌握聆聽到的內容。 | F21: 1.朗讀評量。 2.口頭評量。 3.問答評量。 4.活動評量。 5.習作評量。 6.實作評量。 7.觀察評量。 8.聆聽評量。 | G21: 【家政教育】 3-1-1 了解自己所擁有的物品並願意與他人分享。 【性別平等教育】 1-1-2 尊重不同性別者的特質。 【性別平等教育】 2-1-3 表達自己的意見和感受，不受性別的限制。 【生涯發展教育】 2-1-1 培養互助合作的生活態度。
D22: 16 | E22: 【十二、黃狗生蛋】 3-1-3-2 能生動的看圖說故事。 4-1-1-3 能利用新詞造句。 5-1-7-3 能從閱讀的材料中，培養分析歸納的能力。 | F22: 1.口頭評量。 2.實作評量。 3.朗讀評量。 4.習作評量。 | G22: 【性別平等教育】 1-1-2 尊重不同性別者的特質。 【性別平等教育】 2-1-3 表達自己的意見和感受，不受性別的限制。 【生涯發展教育】 2-1-1 培養互助合作的生活態度。
D23: 17 | E23: 【十二、黃狗生蛋】 6-1-2 能擴充詞彙，正確的遣詞造句，並練習常用的基本句型。 【十三、小孩秤大象】 1-1-5-4 能就所讀的注音讀物，提出自己的看法，並做整理歸納。 2-1-1-8 能主動參與溝通，聆聽對方的說明。 3-1-1-1 能清楚明白的口述一件事情。 4-1-4-3 能用硬筆寫出合理的筆順、正確的筆畫及形體結構的漢字。 5-1-2-1 能讀懂課文內容，了解文章的大意。 | F23: 1.朗讀評量。 2.習作評量。 3.口頭評量。 4.聆聽評量。 | G23: 【性別平等教育】 1-1-2 尊重不同性別者的特質。 【性別平等教育】 2-1-3 表達自己的意見和感受，不受性別的限制。 【生涯發展教育】 1-1-2 認識自己的長處及優點。 【生涯發展教育】 2-1-1 培養互助合作的生活態度。 【環境教育】 1-1-1 能運用五官觀察體驗、探究環境中的事物。
D24: 18 | E24: 【十三、小孩秤大象】 6-1-2-1 能運用學過的字詞，造出通順的短語或句子。 【十四、勇士射太陽】 1-1-2-1 能運用注音符號，提升說話及閱讀能力。 2-1-2-4 能有條理的掌握聆聽到的內容。 3-1-3-1 能流利的說故事。 4-1-4-3 能用硬筆寫出合理的筆順、正確的筆畫及形體結構的國字。 | F24: 1.朗讀評量。 2.習作評量。 3.實作評量。 4.口頭評量。 | G24: 【性別平等教育】 2-1-3 表達自己的意見和感受，不受性別的限制。 【環境教育】 1-1-1 能運用五官觀察體驗、探究環境中的事物。 【環境教育】 3-1-2 能具有好奇心，體認人類在生態中的角色，以及自然環境與人的相互關係。 【生涯發展教育】 1-1-2 認識自己的長處及優點。
D25: 19 | E25: 【十四、勇士射太陽】 5-1-7-2 能理解在閱讀過程中所觀察到的訊息。 6-1-2-2 能仿寫簡單句型。 【統整活動四】 5-1-7-2 能理解在閱讀過程中所觀察到的訊息。 5-1-7-3 能從閱讀的材料中，培養分析歸納的能力。 6-1-6 能認識並練習使用常用的標點符號。 【第二次評量週】 | F25: 1.習作評量。 2.實作評量。 3.口頭評量。 4.自我評量。 | G25: 【環境教育】 3-1-2 能具有好奇心，體認人類在生態中的角色，以及自然環境與人的相互關係。
D26: 20 | E26: 【月光河】 1-1-4-2 能運用注音讀物，擴充閱讀範圍。 2-1-2-5 能聽出別人所表達的意思，達成溝通的目的。 3-1-1-7 能依照文意，概略讀出文章的節奏。 5-1-7-2 能理解在閱讀過程中所觀察到的訊息。 6-1-2 能擴充詞彙，正確的遣詞造句，並練習常用的基本句型。 【休業式】 | F26: 1.習作評量。 2.朗讀評量。 3.口頭評量。 | G26: 【性別平等教育】 2-1-3 表達自己的意見和感受，不受性別的限制。 【環境教育】 2-1-1 認識生活周遭的自然環境與人造環境，以及常見的動物、植物、微生物彼此之間的互動關係。
D27: 21
D28: 22
D32: word 複製貼上完成後,按F32→→ | F32: word格式轉到上方excell標準格式
E33: 步驟1:word 複製學習目標_COPY貼到_ E35儲存格 | F33: 步驟2:word 複製重大議題_COPY貼到_ F35儲存格
E34: 學期學習目標(最多15列) | F34: 融入重大議題之能力指標(最多15列)
D35: 內定最多15列 | E35: 1.從植物種子的傳播繁殖，培養科學觀察的精神，學習大自然的智慧。 | F35: 1. 應用注音符號，認識文字，輔助記錄訊息。
E36: 2.體會生活中的溫情，時時刻刻懷著感恩的心，回饋社會。 | F36: 2. 培養良好的聆聽態度，並學會使用禮貌語言，適當應對。
E37: 3.透過認識圖書館、閱讀分享、讀書會等閱讀活動，讓學生體會閱讀的樂趣，提高學生學習語文的興趣，並培養自我學習的能力。 | F37: 3. 清楚覆述所聽到的事物，掌握說話主題。
F38: 4. 認識常用中國文字，並會使用字（詞）典。
F39: 5. 培養閱讀的興趣、態度和習慣，並流暢朗讀文章表達的情感。
F40: 6. 在口述作文和筆述作文中，培養豐富的想像力。
F41: 7. 練習利用不同的途徑和方式，蒐集各類寫作的材料。
F42: 8.學習日記的寫作方法，培養短文寫作的能力。
F43: 9.從故事中學習道理、感受趣味，培養喜愛閱讀的興趣。
D50: 步驟3:word 複製週次_COPY貼到_ D52儲存格 | E50: 步驟4:word 複製能力指標_COPY貼到_ E52儲存格 | F50: 步驟5:word 複製_評量_COPY貼到 F52儲存格 | G50: 步驟6:word 複製_重大議題_COPY貼到G52儲存格
D51: 週次 | E51: 各領域單元_能力指標COPY存放區 | F51: 評量方式 | G51: 備註(重大議題)
D52: 一 | E52: 【一、我是行道樹】 | F52: 1.朗讀評量 | G52: 【環境教育】 | H52: 一、了解自我與發展潛能
E53: 1-1-4-2 能運用注音讀物，擴充閱讀範圍。 | F53: 2.口頭評量 | G53: 1-1-1 能運用五官觀察體驗、探究環境中的事物。 | H53: 二、欣賞、表現與創新
E54: 2-1-2-6 能結合科技與資訊，提升聆聽的能力，以提高學習興趣。 | F54: 3.實作評量 | G54: 【生涯發展教育】 | H54: 五、尊重、關懷與團隊合作
E55: 3-1-1-7 能依照文意，概略讀出文章的節奏。 | F55: 4.習作評量 | G55: 1-1-2 認識自己的長處及優點。
E56: 4-1-4-1 能掌握基本筆畫的名稱、字形和筆順。
E57: 5-1-3-1 能培養良好的閱讀興趣。
D58: 二 | E58: 【一、我是行道樹】 | F58: 1.朗讀評量 | G58: 【環境教育】 | H58: 一、了解自我與發展潛能
E59: 6-1-2-1 能運用學過的字詞，造出通順的短語或句子。 | F59: 2.口頭評量 | G59: 1-1-1 能運用五官觀察體驗、探究環境中的事物。 | H59: 二、欣賞、表現與創新
E60: 【二、歡迎來我家】 | F60: 3.實作評量 | G60: 【環境教育】 | H60: 五、尊重、關懷與團隊合作
E61: 1-1-2-2 能運用注音符號，和他人分享自己的經驗和想法。 | F61: 4.習作評量 | G61: 2-1-1 認識生活周遭的自然環境與人造環境，以及常見的動物、植物、微生物彼此之間的互動關係。
E62: 2-1-1-5 能注意聆聽，不做不必要的插嘴。 | G62: 【生涯發展教育】
E63: 3-1-4-3 能依主題表達意見。 | G63: 1-1-2 認識自己的長處及優點。
E64: 4-1-1-1 能利用部首或簡單造字原理，輔助識字。
D65: 三 | E65: 【二、歡迎來我家】 | F65: 1.口頭評量 | G65: 【環境教育】 | H65: 四、表達、溝通與分享
E66: 5-1-4-1 能喜愛閱讀課外（注音）讀物，擴展閱讀視野。 | F66: 2.實作評量 | G66: 2-1-1 認識生活周遭的自然環境與人造環境，以及常見的動物、植物、微生物彼此之間的互動關係。 | H66: 五、尊重、關懷與團隊合作
E67: 6-1-1-1 能學習觀察簡單的圖畫和事物，並練習寫成一段文字。 | F67: 3.習作評量 | G67: 【環境教育】 | H67: 七、規畫、組織與實踐
E68: 【三、種子的旅行】 | F68: 4.觀察評量 | G68: 1-1-1 能運用五官觀察體驗、探究環境中的事物。 | H68: 九、主動探索與研究
E69: 1-1-2-2 能運用注音符號，和他人分享自己的經驗和想法。
E70: 2-1-1-5 能注意聆聽，不做不必要的插嘴。
E71: 3-1-4-3 能依主題表達意見。
D72: 四 | E72: 【三、種子的旅行】 | F72: 1.遊戲評量 | G72: 【環境教育】 | H72: 二、欣賞、表現與創新
E73: 4-1-1-1 能利用部首或簡單造字原理，輔助識字。 | F73: 2.口頭評量 | G73: 1-1-1 能運用五官觀察體驗、探究環境中的事物。 | H73: 四、表達、溝通與分享
E74: 5-1-2-2 能概略了解課文的內容與大意。 | F74: 3.觀察評量 | G74: 【環境教育】 | H74: 五、尊重、關懷與團隊合作
E75: 6-1-1-1 能學習觀察簡單的圖畫和事物，並練習寫成一段文字。 | F75: 4.朗讀評量 | G75: 4-1-1 能以語言、文字或圖畫等表達自己對自然體驗或環境保護的想法。 | H75: 九、主動探索與研究
E76: 【四、綠色的海洋】 | F76: 5.習作評量
E77: 1-1-2-2 能運用注音符號，和他人分享自己的經驗和想法。
E78: 2-1-2-5 能聽出別人所表達的意思，達成溝通的目的。
E79: 3-1-1-8 能清楚說出自己的意思。
D80: 五 | E80: 【四、綠色的海洋】 | F80: 1.實作評量 | G80: 【環境教育】 | H80: 一、了解自我與發展潛能
E81: 4-1-4-1 能掌握基本筆畫的名稱、字形和筆順。 | F81: 2.朗讀評量 | G81: 4-1-1 能以語言、文字或圖畫等表達自己對自然體驗或環境保護的想法。 | H81: 二、欣賞、表現與創新
E82: 5-1-2-2 能概略了解課文的內容與大意。 | F82: 3.習作評量 | H82: 四、表達、溝通與分享
E83: 6-1-1-1 能學習觀察簡單的圖畫和事物，並練習寫成一段文字。 | F83: 4.口頭評量 | H83: 九、主動探索與研究
E84: 【統整活動一】
E85: 3-1-3-2 能生動的看圖說故事。
E86: 5-1-1 能熟習常用生字詞語的形音義。
E87: 5-1-7-2 能理解在閱讀過程中所觀察到的訊息。
E88: 5-1-7-3 能從閱讀的材料中，培養分析歸納的能力。
E89: 6-1-1-4 能經由作品欣賞、朗讀、美讀等方式，培養寫作的興趣。
E90: 6-1-2 能擴充詞彙，正確的遣詞造句，並練習常用的基本句型。
D91: 六 | E91: 【五、爸爸】 | F91: 1.實作評量 | G91: 【家政教育】 | H91: 一、了解自我與發展潛能
E92: 1-1-2-1 能運用注音符號，提升說話及閱讀能力。 | F92: 2.朗讀評量 | G92: 4-1-2 察覺自己與家人的溝通方式。 | H92: 二、欣賞、表現與創新
E93: 2-1-3-1 能概略聽出朗讀時優美的節奏。 | F93: 3.習作評量 | H93: 四、表達、溝通與分享
E94: 3-1-1-7 能依照文意，概略讀出文章的節奏。 | F94: 4.口頭評量 | H94: 五、尊重、關懷與團隊合作
E95: 4-1-1-3 能利用新詞造句。
E96: 5-1-2-2 能概略了解課文的內容與大意。
D97: 七 | E97: 【五、爸爸】 | F97: 1.口頭評量 | G97: 【家政教育】 | H97: 一、了解自我與發展潛能
E98: 6-1-2-1 能運用學過的字詞，造出通順的短語或句子。 | F98: 2.活動評量 | G98: 4-1-1 認識家庭的組成分子與稱謂。 | H98: 二、欣賞、表現與創新
E99: 【六、我的家人】 | F99: 3.實作評量 | G99: 【家政教育】 | H99: 四、表達、溝通與分享
E100: 1-1-2-2 能運用注音符號，和他人分享自己的經驗和想法。 | F100: 4.朗讀評量 | G100: 4-1-2 察覺自己與家人的溝通方式。 | H100: 五、尊重、關懷與團隊合作
E101: 2-1-2-5 能聽出別人所表達的意思，達成溝通的目的。 | F101: 5.習作評量 | G101: 【生涯發展教育】
E102: 3-1-1-1 能清楚明白的口述一件事情。 | G102: 2-1-1 培養互助合作的生活態度。
E103: 4-1-1-1 能利用部首或簡單造字原理，輔助識字。
D104: 八 | E104: 【六、我的家人】 | F104: 1.口頭評量 | G104: 【家政教育】 | H104: 一、了解自我與發展潛能
E105: 5-1-2-2 能概略了解課文的內容與大意。 | F105: 2.朗讀評量 | G105: 4-1-1 認識家庭的組成分子與稱謂。 | H105: 四、表達、溝通與分享
E106: 6-1-1-1 能學習觀察簡單的圖畫和事物，並練習寫成一段文字。 | F106: 3.習作評量 | G106: 【家政教育】 | H106: 五、尊重、關懷與團隊合作
E107: 【七、黃媽媽的笑臉】 | F107: 4.聆聽評量 | G107: 4-1-2 察覺自己與家人的溝通方式。
E108: 1-1-2-1 能運用注音符號，提升說話及閱讀能力。 | G108: 【生涯發展教育】
E109: 2-1-1-7 能學會使用有禮貌的語言，適當應對。 | G109: 2-1-1 培養互助合作的生活態度。
D110: 九 | E110: 【七、黃媽媽的笑臉】 | F110: 1.朗讀評量 | G110: 【生涯發展教育】 | H110: 二、欣賞、表現與創新
E111: 3-1-3-2 能生動的看圖說故事。 | F111: 2.口頭評量 | G111: 2-1-1 培養互助合作的生活態度。 | H111: 四、表達、溝通與分享
E112: 4-1-1-1 能利用部首或簡單造字原理，輔助識字。 | F112: 3.習作評量 | H112: 五、尊重、關懷與團隊合作
E113: 5-1-7-2 能理解在閱讀過程中所觀察到的訊息。 | F113: 4.實作評量
E114: 6-1-2-2 能仿寫簡單句型。
E115: 【統整活動二】
E116: 2-1-1-3 能養成仔細聆聽的習慣。
E117: 3-1-1-8 能清楚說出自己的意思。
E118: 3-1-3 能生動活潑敘述故事。
E119: 5-1-3-2 能培養良好的閱讀習慣和態度。
E120: 5-1-4-2 能和別人分享閱讀的心得。
E121: 6-1-2-1 能運用學過的字詞，造出通順的短語或句子。
D125: 十 | E125: 【阿婆的良心傘】 | F125: 1.習作評量 | G125: 【生涯發展教育】 | H125: 二、欣賞、表現與創新
E126: 1-1-4-1 能運用注音符號輔助認識文字。 | F126: 2.朗讀評量 | G126: 2-1-1 培養互助合作的生活態度。 | H126: 四、表達、溝通與分享
E127: 2-1-2-5 能聽出別人所表達的意思，達成溝通的目的。 | F127: 3.口頭評量 | H127: 五、尊重、關懷與團隊合作
E128: 3-1-4-3 能依主題表達意見。
E129: 5-1-7-3 能從閱讀的材料中，培養分析歸納的能力。
E131: 【第一次評量週】
D132: 十一 | E132: 【八、不說話的萬事通】 | F132: 1.口頭評量 | G132: 【環境教育】 | H132: 二、欣賞、表現與創新
E133: 1-1-4-1 能運用注音符號輔助認識文字。 | F133: 2.習作評量 | G133: 2-1-1 認識生活周遭的自然環境與人造環境，以及常見的動物、植物、微生物彼此之間的互動關係。 | H133: 四、表達、溝通與分享
E134: 2-1-1-3 能養成仔細聆聽的習慣。 | F134: 3.觀察評量 | H134: 八、運用科技與資訊
E135: 3-1-1-11 能用完整的語句，說出想要完成的事。 | F135: 4.實作評量 | H135: 十、獨立思考與解決問題
E136: 4-1-4-2 能正確認識楷書基本筆畫的書寫原則。
E137: 5-1-3 能培養良好的閱讀興趣。
E138: 6-1-1-2 能在口述作文和筆述作文中，培養豐富的想像力。
D140: 十二 | E140: 【八、不說話的萬事通】 | F140: 1.口頭評量 | G140: 【環境教育】 | H140: 四、表達、溝通與分享
E141: 6-1-2-1 能運用學過的字詞，造出通順的短語或句子。 | F141: 2.習作評量 | G141: 2-1-1 認識生活周遭的自然環境與人造環境，以及常見的動物、植物、微生物彼此之間的互動關係。 | H141: 五、尊重、關懷與團隊合作
E142: 【九、書香森林】 | F142: 3.朗讀評量 | G142: 【環境教育】 | H142: 八、運用科技與資訊
E143: 1-1-5-3 能就所讀的注音讀物，說出自己發現的問題和想法。 | F143: 4.實作評量 | G143: 1-1-1 能運用五官觀察體驗、探究環境中的事物。 | H143: 十、獨立思考與解決問題
E144: 2-1-2-6 能結合科技與資訊，提升聆聽的能力，以提高學習興趣。 | G144: 【家政教育】
E145: 3-1-1-11 能用完整的語句，說出想要完成的事。 | G145: 3-1-1 了解自己所擁有的物品並願意與他人分享。
E146: 4-1-4-5 能認識楷書基本筆畫的變化。
D148: 十三 | E148: 【九、書香森林】 | F148: 1.口頭評量 | G148: 【環境教育】 | H148: 三、生涯規畫與終身學習
E149: 5-1-4-2 能和別人分享閱讀的心得。 | F149: 2.實作評量 | G149: 1-1-1 能運用五官觀察體驗、探究環境中的事物。 | H149: 四、表達、溝通與分享
E150: 6-1-1-2 能在口述作文和筆述作文中，培養豐富的想像力。 | F150: 3.習作評量 | G150: 【家政教育】 | H150: 五、尊重、關懷與團隊合作
E151: 【十、小讀者樂園】 | F151: 4.問答評量 | G151: 3-1-1 了解自己所擁有的物品並願意與他人分享。 | H151: 八、運用科技與資訊
E152: 1-1-5-2 能運用注音符號之輔助，表達自己的經驗和想法（如：寫日記、便條等）。 | F152: 5.朗讀評量 | G152: 【人權教育】 | H152: 九、主動探索與研究
E153: 2-1-1-8 能主動參與溝通，聆聽對方的說明。 | G153: 1-1-2 了解、遵守團體的規則，並實踐民主法治的精神。 | H153: 十、獨立思考與解決問題
E154: 3-1-1-11 能用完整的語句，說出想要完成的事。
E155: 4-1-4-3 能用硬筆寫出合理的筆順、正確的筆畫及形體結構的國字。
E156: 5-1-5-1 能了解圖書室的設施、使用途徑和功能，並能充分利用，以激發閱
E157: 讀興趣。
D158: 十四 | E158: 【十、小讀者樂園】 | F158: 1.習作評量 | G158: 【人權教育】 | H158: 一、了解自我與發展潛能
E159: 6-1-3-2 能配合日常生活，練習寫簡單的應用文（如：賀卡、便條、書信及日記等）。 | F159: 2.問答評量 | G159: 1-1-2 了解、遵守團體的規則，並實踐民主法治的精神。 | H159: 三、生涯規畫與終身學習
E160: 【十一、喜歡讀書的人】 | F160: 3.朗讀評量 | G160: 【家政教育】 | H160: 八、運用科技與資訊
E161: 1-1-2-1 能運用注音符號，提升說話及閱讀能力。 | F161: 4.觀察評量 | G161: 3-1-1 了解自己所擁有的物品並願意與他人分享。 | H161: 九、主動探索與研究
E162: 2-1-1-3 能養成仔細聆聽的習慣。 | F162: 5.口頭評量
E163: 3-1-1-1 能清楚明白的口述一件事情。
E164: 4-1-4-3 能用硬筆寫出合理的筆順、正確的筆畫及形體結構的國字。
E165: 5-1-3 能培養良好的閱讀興趣、態度和習慣。
D166: 十五 | E166: 【十一、喜歡讀書的人】 | F166: 1.朗讀評量 | G166: 【家政教育】 | H166: 一、了解自我與發展潛能
E167: 6-1-1 能經由觀摩、分享與欣賞，培養良好的寫作態度與興趣。 | F167: 2.口頭評量 | G167: 3-1-1 了解自己所擁有的物品並願意與他人分享。 | H167: 三、生涯規畫與終身學習
E168: 【統整活動三】 | F168: 3.問答評量 | G168: 【性別平等教育】 | H168: 四、表達、溝通與分享
E169: 2-1-2-4 能有條理的掌握聆聽到的內容。 | F169: 4.活動評量 | G169: 1-1-2 尊重不同性別者的特質。 | H169: 五、尊重、關懷與團隊合作
E170: 3-1-3-1 能流利的說故事。 | F170: 5.習作評量 | G170: 【性別平等教育】 | H170: 七、規畫、組織與實踐
E171: 5-1-7-2 能理解在閱讀過程中所觀察到的訊息。 | F171: 6.實作評量 | G171: 2-1-3 表達自己的意見和感受，不受性別的限制。 | H171: 九、主動探索與研究
E172: 6-1-1-3 能相互觀摩作品。 | F172: 7.觀察評量 | G172: 【生涯發展教育】
E173: 6-1-3-2 能配合日常生活，練習寫簡單的應用文（如：賀卡、便條、書信及日記等）。 | F173: 8.聆聽評量 | G173: 2-1-1 培養互助合作的生活態度。
E174: 6-1-6 能認識並練習使用常用的標點符號。
E175: 【十二、黃狗生蛋】
E176: 1-1-2-2 能運用注音符號，和他人分享自己的經驗和想法。
E177: 2-1-2-4 能有條理的掌握聆聽到的內容。
D178: 十六 | E178: 【十二、黃狗生蛋】 | F178: 1.口頭評量 | G178: 【性別平等教育】 | H178: 四、表達、溝通與分享
E179: 3-1-3-2 能生動的看圖說故事。 | F179: 2.實作評量 | G179: 1-1-2 尊重不同性別者的特質。 | H179: 五、尊重、關懷與團隊合作
E180: 4-1-1-3 能利用新詞造句。 | F180: 3.朗讀評量 | G180: 【性別平等教育】 | H180: 九、主動探索與研究
E181: 5-1-7-3 能從閱讀的材料中，培養分析歸納的能力。 | F181: 4.習作評量 | G181: 2-1-3 表達自己的意見和感受，不受性別的限制。 | H181: 十、獨立思考與解決問題
G182: 【生涯發展教育】
G183: 2-1-1 培養互助合作的生活態度。
D185: 十七 | E185: 【十二、黃狗生蛋】 | F185: 1.朗讀評量 | G185: 【性別平等教育】 | H185: 一、了解自我與發展潛能
E186: 6-1-2 能擴充詞彙，正確的遣詞造句，並練習常用的基本句型。 | F186: 2.習作評量 | G186: 1-1-2 尊重不同性別者的特質。 | H186: 二、欣賞、表現與創新
E187: 【十三、小孩秤大象】 | F187: 3.口頭評量 | G187: 【性別平等教育】 | H187: 五、尊重、關懷與團隊合作
E188: 1-1-5-4 能就所讀的注音讀物，提出自己的看法，並做整理歸納。 | F188: 4.聆聽評量 | G188: 2-1-3 表達自己的意見和感受，不受性別的限制。 | H188: 十、獨立思考與解決問題
E189: 2-1-1-8 能主動參與溝通，聆聽對方的說明。 | G189: 【生涯發展教育】
E190: 3-1-1-1 能清楚明白的口述一件事情。 | G190: 1-1-2 認識自己的長處及優點。
E191: 4-1-4-3 能用硬筆寫出合理的筆順、正確的筆畫及形體結構的漢字。 | G191: 【生涯發展教育】
E192: 5-1-2-1 能讀懂課文內容，了解文章的大意。 | G192: 2-1-1 培養互助合作的生活態度。
G193: 【環境教育】
G194: 1-1-1 能運用五官觀察體驗、探究環境中的事物。
D195: 十八 | E195: 【十三、小孩秤大象】 | F195: 1.朗讀評量 | G195: 【性別平等教育】 | H195: 一、了解自我與發展潛能
E196: 6-1-2-1 能運用學過的字詞，造出通順的短語或句子。 | F196: 2.習作評量 | G196: 2-1-3 表達自己的意見和感受，不受性別的限制。 | H196: 二、欣賞、表現與創新
E197: 【十四、勇士射太陽】 | F197: 3.實作評量 | G197: 【環境教育】 | H197: 五、尊重、關懷與團隊合作
E198: 1-1-2-1 能運用注音符號，提升說話及閱讀能力。 | F198: 4.口頭評量 | G198: 1-1-1 能運用五官觀察體驗、探究環境中的事物。 | H198: 十、獨立思考與解決問題
E199: 2-1-2-4 能有條理的掌握聆聽到的內容。 | G199: 【環境教育】
E200: 3-1-3-1 能流利的說故事。 | G200: 3-1-2 能具有好奇心，體認人類在生態中的角色，以及自然環境與人的相互關係。
E201: 4-1-4-3 能用硬筆寫出合理的筆順、正確的筆畫及形體結構的國字。 | G201: 【生涯發展教育】
G202: 1-1-2 認識自己的長處及優點。
D205: 十九 | E205: 【十四、勇士射太陽】 | F205: 1.習作評量 | G205: 【環境教育】 | H205: 一、了解自我與發展潛能
E206: 5-1-7-2 能理解在閱讀過程中所觀察到的訊息。 | F206: 2.實作評量 | G206: 3-1-2 能具有好奇心，體認人類在生態中的角色，以及自然環境與人的相互關係。 | H206: 二、欣賞、表現與創新
E207: 6-1-2-2 能仿寫簡單句型。 | F207: 3.口頭評量 | H207: 五、尊重、關懷與團隊合作
E208: 【統整活動四】 | F208: 4.自我評量 | H208: 六、文化學習與國際了解
E209: 5-1-7-2 能理解在閱讀過程中所觀察到的訊息。 | H209: 十、獨立思考與解決問題
E210: 5-1-7-3 能從閱讀的材料中，培養分析歸納的能力。
E211: 6-1-6 能認識並練習使用常用的標點符號。
E213: 【第二次評量週】
D214: 二十 | E214: 【月光河】 | F214: 1.習作評量 | G214: 【性別平等教育】 | H214: 二、欣賞、表現與創新
E215: 1-1-4-2 能運用注音讀物，擴充閱讀範圍。 | F215: 2.朗讀評量 | G215: 2-1-3 表達自己的意見和感受，不受性別的限制。 | H215: 五、尊重、關懷與團隊合作
E216: 2-1-2-5 能聽出別人所表達的意思，達成溝通的目的。 | F216: 3.口頭評量 | G216: 【環境教育】 | H216: 十、獨立思考與解決問題
E217: 3-1-1-7 能依照文意，概略讀出文章的節奏。 | G217: 2-1-1 認識生活周遭的自然環境與人造環境，以及常見的動物、植物、微生物彼此之間的互動關係。
E218: 5-1-7-2 能理解在閱讀過程中所觀察到的訊息。
E219: 6-1-2 能擴充詞彙，正確的遣詞造句，並練習常用的基本句型。
E221: 【休業式】
D301: 二 | E301: 【一、我是行道樹】 | F301: 1.朗讀評量 | G301: 【環境教育】
... 235 more rows

Sheet 學習領域資料庫
C1: 彙整時間: | D1: 0分38秒 | J1: 本學年度__各學習領域課程計畫資料庫 | Q1: 350 | R1: 資料處理中,請稍後..... | Y1: 跨領域總節數: | Z1: =SUM(#REF!) ->  | AP1: 第二週 2017/2/19~2017/2/25 | AQ1: =TRIM(MID(AP1,SEARCH("週",AP1)+1,25)) -> 2017/2/19~2017/2/25
D4: 流水號 | E4: 領域/年級/學期 | F4: 領域代號 | G4: 年級 | H4: 上/下學期 | I4: 學習領域 | J4: 出版社 | K4: 教學節數： | L4: 設 計 者 | M4: 教 學 者 | N4: 學期學習目標 | O4: 融入重大議題之能力指標 | P4: 週次 | Q4: 日期 | R4: 能 力 指 標 | S4: 單元名稱 | T4: 節數(備用) | U4: 融入學習領域 | V4: 節數 | W4: 評量方式 | X4: 備註 | Y4: 跨領域 | Z4: 節數
D5: 1 | F5: A | G5: 6 | H5: 上 | I5: 國語文 | J5: 國語 ( 康軒版) 第11冊 | K5: 2 | L5: 六年級教學團隊 | M5: 六年級教學團隊 | P5: 1 | Q5: 第一週 2018/8/26~2018/9/1 | S5: 品格修養 一、神奇的藍絲帶
D6: 2 | F6: A | G6: 6 | H6: 上 | I6: 國語文 | J6: 國語 ( 康軒版) 第11冊 | K6: 5 | L6: 六年級教學團隊 | M6: 六年級教學團隊 | P6: 2 | Q6: 第二週 2018/9/2~2018/9/8 | S6: 品格修養 二、跑道 | Z6: 0
D7: 3 | F7: A | G7: 6 | H7: 上 | I7: 國語文 | J7: 國語 ( 康軒版) 第11冊 | K7: 5 | L7: 六年級教學團隊 | M7: 六年級教學團隊 | P7: 3 | Q7: 第三週 2018/9/9~2018/9/15 | S7: 品格修養 三、說話也要停看聽 | Z7: 0
D8: 4 | F8: A | G8: 6 | H8: 上 | I8: 國語文 | J8: 國語 ( 康軒版) 第11冊 | K8: 5 | L8: 六年級教學團隊 | M8: 六年級教學團隊 | P8: 4 | Q8: 第四週 2018/9/16~2018/9/22 | S8: 品格修養 四、朱子治家格言選 | Z8: 0
D9: 5 | F9: A | G9: 6 | H9: 上 | I9: 國語文 | J9: 國語 ( 康軒版) 第11冊 | K9: 3 | L9: 六年級教學團隊 | M9: 六年級教學團隊 | P9: 5 | Q9: 第五週 2018/9/23~2018/9/29 | S9: 品格修養 統整活動一 | Z9: 0
D10: 6 | F10: A | G10: 6 | H10: 上 | I10: 國語文 | J10: 國語 ( 康軒版) 第11冊 | K10: 5 | L10: 六年級教學團隊 | M10: 六年級教學團隊 | P10: 6 | Q10: 第六週 2018/9/30~2018/10/6 | S10: 臺灣印象 五、山的巡禮 | Z10: 0
D11: 7 | F11: A | G11: 6 | H11: 上 | I11: 國語文 | J11: 國語 ( 康軒版) 第11冊 | K11: 4 | L11: 六年級教學團隊 | M11: 六年級教學團隊 | P11: 7 | Q11: 第七週 2018/10/7~2018/10/13 | S11: 臺灣印象 六、東海岸鐵路 | Z11: 0
D12: 8 | F12: A | G12: 6 | H12: 上 | I12: 國語文 | J12: 國語 ( 康軒版) 第11冊 | K12: 5 | L12: 六年級教學團隊 | M12: 六年級教學團隊 | P12: 8 | Q12: 第八週 2018/10/14~2018/10/20 | S12: 臺灣印象 七、沉城之謎 | Z12: 0
D13: 9 | F13: A | G13: 6 | H13: 上 | I13: 國語文 | J13: 國語 ( 康軒版) 第11冊 | K13: 5 | L13: 六年級教學團隊 | M13: 六年級教學團隊 | P13: 9 | Q13: 第九週 2018/10/21~2018/10/27 | S13: 臺灣印象 統整活動二 | Z13: 0
D14: 10 | F14: A | G14: 6 | H14: 上 | I14: 國語文 | J14: 國語 ( 康軒版) 第11冊 | K14: 5 | L14: 六年級教學團隊 | M14: 六年級教學團隊 | P14: 10 | Q14: 第十週 2018/10/28~2018/11/3 | S14: 閱讀階梯一 進入雨林 | Z14: 0
D15: 11 | F15: A | G15: 6 | H15: 上 | I15: 國語文 | J15: 國語 ( 康軒版) 第11冊 | K15: 5 | L15: 六年級教學團隊 | M15: 六年級教學團隊 | P15: 11 | Q15: 第十一週 2018/11/4~2018/11/10 | S15: 思考的藝術 八、大小剛好的鞋子 | Z15: 0
D16: 12 | F16: A | G16: 6 | H16: 上 | I16: 國語文 | J16: 國語 ( 康軒版) 第11冊 | K16: 5 | L16: 六年級教學團隊 | M16: 六年級教學團隊 | P16: 12 | Q16: 第十二週 2018/11/11~2018/11/17 | S16: 思考的藝術 九、沉思三帖 | Z16: 0
D17: 13 | F17: A | G17: 6 | H17: 上 | I17: 國語文 | J17: 國語 ( 康軒版) 第11冊 | K17: 5 | L17: 六年級教學團隊 | M17: 六年級教學團隊 | P17: 13 | Q17: 第十三週 2018/11/18~2018/11/24 | S17: 思考的藝術 十、狐假虎威 | Z17: 0
D18: 14 | F18: A | G18: 6 | H18: 上 | I18: 國語文 | J18: 國語 ( 康軒版) 第11冊 | K18: 5 | L18: 六年級教學團隊 | M18: 六年級教學團隊 | P18: 14 | Q18: 第十四週 2018/11/25~2018/12/1 | S18: 思考的藝術 統整活動三 | Z18: 0
D19: 15 | F19: A | G19: 6 | H19: 上 | I19: 國語文 | J19: 國語 ( 康軒版) 第11冊 | K19: 5 | L19: 六年級教學團隊 | M19: 六年級教學團隊 | P19: 15 | Q19: 第十五週 2018/12/2~2018/12/8 | S19: 文學長廊 十一、我願 | Z19: 0
D20: 16 | F20: A | G20: 6 | H20: 上 | I20: 國語文 | J20: 國語 ( 康軒版) 第11冊 | K20: 5 | L20: 六年級教學團隊 | M20: 六年級教學團隊 | P20: 16 | Q20: 第十六週 2018/12/9~2018/12/15 | S20: 文學長廊 十二、最好的味覺禮物 | Z20: 0
D21: 17 | F21: A | G21: 6 | H21: 上 | I21: 國語文 | J21: 國語 ( 康軒版) 第11冊 | K21: 5 | L21: 六年級教學團隊 | M21: 六年級教學團隊 | P21: 17 | Q21: 第十七週 2018/12/16~2018/12/22 | S21: 文學長廊 十三、空城計 | U21: AQ:戶外教育(2) | V21: 2 | Z21: 0
D22: 18 | F22: A | G22: 6 | H22: 上 | I22: 國語文 | J22: 國語 ( 康軒版) 第11冊 | K22: 5 | L22: 六年級教學團隊 | M22: 六年級教學團隊 | P22: 18 | Q22: 第十八週 2018/12/23~2018/12/29 | S22: 文學長廊 十四、桂花雨 | Z22: 0
D23: 19 | F23: A | G23: 6 | H23: 上 | I23: 國語文 | J23: 國語 ( 康軒版) 第11冊 | K23: 4 | L23: 六年級教學團隊 | M23: 六年級教學團隊 | P23: 19 | Q23: 第十九週 2018/12/30~2019/1/5 | S23: 文學長廊 十四、桂花雨 | Z23: 0
D24: 20 | F24: A | G24: 6 | H24: 上 | I24: 國語文 | J24: 國語 ( 康軒版) 第11冊 | K24: 5 | L24: 六年級教學團隊 | M24: 六年級教學團隊 | P24: 20 | Q24: 第二十週 2019/1/6~2019/1/12 | S24: 文學長廊 統整活動四 | Z24: 0
D25: 21 | F25: A | G25: 6 | H25: 上 | I25: 國語文 | J25: 國語 ( 康軒版) 第11冊 | K25: 5 | L25: 六年級教學團隊 | M25: 六年級教學團隊 | P25: 21 | Q25: 第二十一週 2019/1/13~2019/1/19 | S25: 閱讀階梯二 進入雨林 | Z25: 0
D26: 22 | F26: B | G26: 6 | H26: 上 | I26: 本土語文 | J26: 本土語言 ( 康軒版)第11冊 | K26: 1 | L26: 六年級教學團隊 | M26: 六年級教學團隊 | P26: 1 | Q26: 第一週 2018/8/26~2018/9/1 | S26: 臺灣的好食物 一、紙箱仔揣朋友 | Z26: 0
D27: 23 | F27: B | G27: 6 | H27: 上 | I27: 本土語文 | J27: 本土語言 ( 康軒版)第11冊 | K27: 1 | L27: 六年級教學團隊 | M27: 六年級教學團隊 | P27: 2 | Q27: 第二週 2018/9/2~2018/9/8 | S27: 臺灣的好食物 一、紙箱仔揣朋友 | Z27: 0
D28: 24 | F28: B | G28: 6 | H28: 上 | I28: 本土語文 | J28: 本土語言 ( 康軒版)第11冊 | K28: 1 | L28: 六年級教學團隊 | M28: 六年級教學團隊 | P28: 3 | Q28: 第三週 2018/9/9~2018/9/15 | S28: 臺灣的好食物 一、紙箱仔揣朋友 | Z28: 0
D29: 25 | F29: B | G29: 6 | H29: 上 | I29: 本土語文 | J29: 本土語言 ( 康軒版)第11冊 | K29: 1 | L29: 六年級教學團隊 | M29: 六年級教學團隊 | P29: 4 | Q29: 第四週 2018/9/16~2018/9/22 | S29: 臺灣的好食物 二、踅夜市 | Z29: 0
D30: 26 | F30: B | G30: 6 | H30: 上 | I30: 本土語文 | J30: 本土語言 ( 康軒版)第11冊 | K30: 1 | L30: 六年級教學團隊 | M30: 六年級教學團隊 | P30: 5 | Q30: 第五週 2018/9/23~2018/9/29 | S30: 臺灣的好食物 二、踅夜市 | Z30: 0
D31: 27 | F31: B | G31: 6 | H31: 上 | I31: 本土語文 | J31: 本土語言 ( 康軒版)第11冊 | K31: 1 | L31: 六年級教學團隊 | M31: 六年級教學團隊 | P31: 6 | Q31: 第六週 2018/9/30~2018/10/6 | S31: 臺灣的好食物 二、踅夜市 | Z31: 0
D32: 28 | F32: B | G32: 6 | H32: 上 | I32: 本土語文 | J32: 本土語言 ( 康軒版)第11冊 | K32: 1 | L32: 六年級教學團隊 | M32: 六年級教學團隊 | P32: 7 | Q32: 第七週 2018/10/7~2018/10/13 | S32: 臺灣的好食物 單元活動一 | Z32: 0
D33: 29 | F33: B | G33: 6 | H33: 上 | I33: 本土語文 | J33: 本土語言 ( 康軒版)第11冊 | K33: 1 | L33: 六年級教學團隊 | M33: 六年級教學團隊 | P33: 8 | Q33: 第八週 2018/10/14~2018/10/20 | S33: 天災地變 三、地動 | Z33: 0
D34: 30 | F34: B | G34: 6 | H34: 上 | I34: 本土語文 | J34: 本土語言 ( 康軒版)第11冊 | K34: 1 | L34: 六年級教學團隊 | M34: 六年級教學團隊 | P34: 9 | Q34: 第九週 2018/10/21~2018/10/27 | S34: 天災地變 三、地動 | Z34: 0
D35: 31 | F35: B | G35: 6 | H35: 上 | I35: 本土語文 | J35: 本土語言 ( 康軒版)第11冊 | K35: 1 | L35: 六年級教學團隊 | M35: 六年級教學團隊 | P35: 10 | Q35: 第十週 2018/10/28~2018/11/3 | S35: 天災地變 三、地動 | Z35: 0
D36: 32 | F36: B | G36: 6 | H36: 上 | I36: 本土語文 | J36: 本土語言 ( 康軒版)第11冊 | K36: 1 | L36: 六年級教學團隊 | M36: 六年級教學團隊 | P36: 11 | Q36: 第十一週 2018/11/4~2018/11/10 | S36: 天災地變 單元活動二 | Z36: 0
D37: 33 | F37: B | G37: 6 | H37: 上 | I37: 本土語文 | J37: 本土語言 ( 康軒版)第11冊 | K37: 1 | L37: 六年級教學團隊 | M37: 六年級教學團隊 | P37: 12 | Q37: 第十二週 2018/11/11~2018/11/17 | S37: 生活真趣味 四、圓仔圓圓圓 | Z37: 0
D38: 34 | F38: B | G38: 6 | H38: 上 | I38: 本土語文 | J38: 本土語言 ( 康軒版)第11冊 | K38: 1 | L38: 六年級教學團隊 | M38: 六年級教學團隊 | P38: 13 | Q38: 第十三週 2018/11/18~2018/11/24 | S38: 生活真趣味 四、圓仔圓圓圓 | Z38: 0
D39: 35 | F39: B | G39: 6 | H39: 上 | I39: 本土語文 | J39: 本土語言 ( 康軒版)第11冊 | K39: 1 | L39: 六年級教學團隊 | M39: 六年級教學團隊 | P39: 14 | Q39: 第十四週 2018/11/25~2018/12/1 | S39: 生活真趣味 四、圓仔圓圓圓 | Z39: 0
D40: 36 | F40: B | G40: 6 | H40: 上 | I40: 本土語文 | J40: 本土語言 ( 康軒版)第11冊 | K40: 1 | L40: 六年級教學團隊 | M40: 六年級教學團隊 | P40: 15 | Q40: 第十五週 2018/12/2~2018/12/8 | S40: 生活真趣味 五、搬戲 | Z40: 0
D41: 37 | F41: B | G41: 6 | H41: 上 | I41: 本土語文 | J41: 本土語言 ( 康軒版)第11冊 | K41: 1 | L41: 六年級教學團隊 | M41: 六年級教學團隊 | P41: 16 | Q41: 第十六週 2018/12/9~2018/12/15 | S41: 生活真趣味 五、搬戲 | Z41: 0
D42: 38 | F42: B | G42: 6 | H42: 上 | I42: 本土語文 | J42: 本土語言 ( 康軒版)第11冊 | K42: 1 | L42: 六年級教學團隊 | M42: 六年級教學團隊 | P42: 17 | Q42: 第十七週 2018/12/16~2018/12/22 | S42: 生活真趣味 五、搬戲 | Z42: 0
D43: 39 | F43: B | G43: 6 | H43: 上 | I43: 本土語文 | J43: 本土語言 ( 康軒版)第11冊 | K43: 1 | L43: 六年級教學團隊 | M43: 六年級教學團隊 | P43: 18 | Q43: 第十八週 2018/12/23~2018/12/29 | S43: 生活真趣味 單元活動三 | Z43: 0
D44: 40 | F44: B | G44: 6 | H44: 上 | I44: 本土語文 | J44: 本土語言 ( 康軒版)第11冊 | K44: 1 | L44: 六年級教學團隊 | M44: 六年級教學團隊 | P44: 19 | Q44: 第十九週 2018/12/30~2019/1/5 | S44: 唸謠 臆臺灣的地名 | Z44: 0
D45: 41 | F45: B | G45: 6 | H45: 上 | I45: 本土語文 | J45: 本土語言 ( 康軒版)第11冊 | K45: 1 | L45: 六年級教學團隊 | M45: 六年級教學團隊 | P45: 20 | Q45: 第二十週 2019/1/6~2019/1/12 | S45: 來唱節日的歌 一年四季 | Z45: 0
D46: 42 | F46: B | G46: 6 | H46: 上 | I46: 本土語文 | J46: 本土語言 ( 康軒版)第11冊 | K46: 1 | L46: 六年級教學團隊 | M46: 六年級教學團隊 | P46: 21 | Q46: 第二十一週 2019/1/13~2019/1/19 | S46: 趣味的話語 | Z46: 0
D47: 43 | F47: C | G47: 6 | H47: 上 | I47: 英語文 | J47: 英語 (何嘉仁 Story.com)第7冊 | K47: 1 | L47: 六年級教學團隊 | M47: 六年級教學團隊 | P47: 1 | Q47: 第一週 2018/8/26~2018/9/1 | S47: 英語入學輔導週 角色介紹、圖示介紹 | Z47: 0
D48: 44 | F48: C | G48: 6 | H48: 上 | I48: 英語文 | J48: 英語 (何嘉仁 Story.com)第7冊 | K48: 1 | L48: 六年級教學團隊 | M48: 六年級教學團隊 | P48: 2 | Q48: 第二週 2018/9/2~2018/9/8 | S48: 圖示介紹 發音複習表 | Z48: 0
D49: 45 | F49: C | G49: 6 | H49: 上 | I49: 英語文 | J49: 英語 (何嘉仁 Story.com)第7冊 | K49: 1 | L49: 六年級教學團隊 | M49: 六年級教學團隊 | P49: 3 | Q49: 第三週 2018/9/9~2018/9/15 | S49: Unit 1 Where Are You From? | Z49: 0
D50: 46 | F50: C | G50: 6 | H50: 上 | I50: 英語文 | J50: 英語 (何嘉仁 Story.com)第7冊 | K50: 1 | L50: 六年級教學團隊 | M50: 六年級教學團隊 | P50: 4 | Q50: 第四週 2018/9/16~2018/9/22 | S50: Unit 1 Where Are You From? | Z50: 0
D51: 47 | F51: C | G51: 6 | H51: 上 | I51: 英語文 | J51: 英語 (何嘉仁 Story.com)第7冊 | K51: 1 | L51: 六年級教學團隊 | M51: 六年級教學團隊 | P51: 5 | Q51: 第五週 2018/9/23~2018/9/29 | S51: Unit 1 Where Are You From? | Z51: 0
D52: 48 | F52: C | G52: 6 | H52: 上 | I52: 英語文 | J52: 英語 (何嘉仁 Story.com)第7冊 | K52: 1 | L52: 六年級教學團隊 | M52: 六年級教學團隊 | P52: 6 | Q52: 第六週 2018/9/30~2018/10/6 | S52: Unit 2 We Have Science Class on Monday | Z52: 0
D53: 49 | F53: C | G53: 6 | H53: 上 | I53: 英語文 | J53: 英語 (何嘉仁 Story.com)第7冊 | K53: 1 | L53: 六年級教學團隊 | M53: 六年級教學團隊 | P53: 7 | Q53: 第七週 2018/10/7~2018/10/13 | S53: Unit 2 We Have Science Class on Monday | Z53: 0
D54: 50 | F54: C | G54: 6 | H54: 上 | I54: 英語文 | J54: 英語 (何嘉仁 Story.com)第7冊 | K54: 1 | L54: 六年級教學團隊 | M54: 六年級教學團隊 | P54: 8 | Q54: 第八週 2018/10/14~2018/10/20 | S54: Unit 2 We Have Science Class on Monday | Z54: 0
D55: 51 | F55: C | G55: 6 | H55: 上 | I55: 英語文 | J55: 英語 (何嘉仁 Story.com)第7冊 | K55: 1 | L55: 六年級教學團隊 | M55: 六年級教學團隊 | P55: 9 | Q55: 第九週 2018/10/21~2018/10/27 | S55: *Review 1 複習 Unit1~Unit 2 | Z55: 0
D56: 52 | F56: C | G56: 6 | H56: 上 | I56: 英語文 | J56: 英語 (何嘉仁 Story.com)第7冊 | K56: 1 | L56: 六年級教學團隊 | M56: 六年級教學團隊 | P56: 10 | Q56: 第十週 2018/10/28~2018/11/3 | S56: *Review 1 複習 Unit1~Unit 2 | Z56: 0
D57: 53 | F57: C | G57: 6 | H57: 上 | I57: 英語文 | J57: 英語 (何嘉仁 Story.com)第7冊 | K57: 1 | L57: 六年級教學團隊 | M57: 六年級教學團隊 | P57: 11 | Q57: 第十一週 2018/11/4~2018/11/10 | S57: Unit 3 How Many Tigers Are There? | Z57: 0
D58: 54 | F58: C | G58: 6 | H58: 上 | I58: 英語文 | J58: 英語 (何嘉仁 Story.com)第7冊 | K58: 1 | L58: 六年級教學團隊 | M58: 六年級教學團隊 | P58: 12 | Q58: 第十二週 2018/11/11~2018/11/17 | S58: Unit 3 How Many Tigers Are There? | Z58: 0
D59: 55 | F59: C | G59: 6 | H59: 上 | I59: 英語文 | J59: 英語 (何嘉仁 Story.com)第7冊 | K59: 1 | L59: 六年級教學團隊 | M59: 六年級教學團隊 | P59: 13 | Q59: 第十三週 2018/11/18~2018/11/24 | S59: Unit 3 How Many Tigers Are There? | Z59: 0
D60: 56 | F60: C | G60: 6 | H60: 上 | I60: 英語文 | J60: 英語 (何嘉仁 Story.com)第7冊 | K60: 1 | L60: 六年級教學團隊 | M60: 六年級教學團隊 | P60: 14 | Q60: 第十四週 2018/11/25~2018/12/1 | S60: Unit 4 Are There Any Windows in the Dining Room? | Z60: 0
D61: 57 | F61: C | G61: 6 | H61: 上 | I61: 英語文 | J61: 英語 (何嘉仁 Story.com)第7冊 | K61: 1 | L61: 六年級教學團隊 | M61: 六年級教學團隊 | P61: 15 | Q61: 第十五週 2018/12/2~2018/12/8 | S61: Unit 4 Are There Any Windows in the Dining Room? | Z61: 0
D62: 58 | F62: C | G62: 6 | H62: 上 | I62: 英語文 | J62: 英語 (何嘉仁 Story.com)第7冊 | K62: 1 | L62: 六年級教學團隊 | M62: 六年級教學團隊 | P62: 16 | Q62: 第十六週 2018/12/9~2018/12/15 | S62: Unit 4 Are There Any Windows in the Dining Room? | Z62: 0
D63: 59 | F63: C | G63: 6 | H63: 上 | I63: 英語文 | J63: 英語 (何嘉仁 Story.com)第7冊 | K63: 1 | L63: 六年級教學團隊 | M63: 六年級教學團隊 | P63: 17 | Q63: 第十七週 2018/12/16~2018/12/22 | S63: Unit 5 What Do You Want to Drink? | Z63: 0
D64: 60 | F64: C | G64: 6 | H64: 上 | I64: 英語文 | J64: 英語 (何嘉仁 Story.com)第7冊 | K64: 1 | L64: 六年級教學團隊 | M64: 六年級教學團隊 | P64: 18 | Q64: 第十八週 2018/12/23~2018/12/29 | S64: Unit 5 What Do You Want to Drink? | Z64: 0
D65: 61 | F65: C | G65: 6 | H65: 上 | I65: 英語文 | J65: 英語 (何嘉仁 Story.com)第7冊 | K65: 1 | L65: 六年級教學團隊 | M65: 六年級教學團隊 | P65: 19 | Q65: 第十九週 2018/12/30~2019/1/5 | S65: Unit 5 What Do You Want to Drink? | Z65: 0
D66: 62 | F66: C | G66: 6 | H66: 上 | I66: 英語文 | J66: 英語 (何嘉仁 Story.com)第7冊 | K66: 1 | L66: 六年級教學團隊 | M66: 六年級教學團隊 | P66: 20 | Q66: 第二十週 2019/1/6~2019/1/12 | S66: *Review 2 複習 Unit3~Unit 5 | Z66: 0
D67: 63 | F67: C | G67: 6 | H67: 上 | I67: 英語文 | J67: 英語 (何嘉仁 Story.com)第7冊 | K67: 1 | L67: 六年級教學團隊 | M67: 六年級教學團隊 | P67: 21 | Q67: 第二十一週 2019/1/13~2019/1/19 | S67: *Review 2 複習 Unit3~Unit5 | Z67: 0
D68: 64 | F68: D | G68: 6 | H68: 上 | I68: 數學 | J68: 數學 ( 康軒版)第11冊 | K68: 1 | L68: 六年級教學團隊 | M68: 六年級教學團隊 | P68: 1 | Q68: 第一週 2018/8/26~2018/9/1 | S68: *Review 2 複習 Unit3~Unit5 | Z68: 0
D69: 65 | F69: D | G69: 6 | H69: 上 | I69: 數學 | J69: 數學 ( 康軒版)第11冊 | K69: 4 | L69: 六年級教學團隊 | M69: 六年級教學團隊 | P69: 2 | Q69: 第二週 2018/9/2~2018/9/8 | S69: 一、最大公因數與最小公倍數 | Z69: 0
D70: 66 | F70: D | G70: 6 | H70: 上 | I70: 數學 | J70: 數學 ( 康軒版)第11冊 | K70: 4 | L70: 六年級教學團隊 | M70: 六年級教學團隊 | P70: 3 | Q70: 第三週 2018/9/9~2018/9/15 | S70: 二、分數除法 | Z70: 0
D71: 67 | F71: D | G71: 6 | H71: 上 | I71: 數學 | J71: 數學 ( 康軒版)第11冊 | K71: 4 | L71: 六年級教學團隊 | M71: 六年級教學團隊 | P71: 4 | Q71: 第四週 2018/9/16~2018/9/22 | S71: 二、分數除法 | Z71: 0
D72: 68 | F72: D | G72: 6 | H72: 上 | I72: 數學 | J72: 數學 ( 康軒版)第11冊 | K72: 2 | L72: 六年級教學團隊 | M72: 六年級教學團隊 | P72: 5 | Q72: 第五週 2018/9/23~2018/9/29 | S72: 三、數量關係 | Z72: 0
D73: 69 | F73: D | G73: 6 | H73: 上 | I73: 數學 | J73: 數學 ( 康軒版)第11冊 | K73: 4 | L73: 六年級教學團隊 | M73: 六年級教學團隊 | P73: 6 | Q73: 第六週 2018/9/30~2018/10/6 | S73: 三、數量關係 | Z73: 0
D74: 70 | F74: D | G74: 6 | H74: 上 | I74: 數學 | J74: 數學 ( 康軒版)第11冊 | K74: 3 | L74: 六年級教學團隊 | M74: 六年級教學團隊 | P74: 7 | Q74: 第七週 2018/10/7~2018/10/13 | S74: 四、小數除法 | Z74: 0
D75: 71 | F75: D | G75: 6 | H75: 上 | I75: 數學 | J75: 數學 ( 康軒版)第11冊 | K75: 4 | L75: 六年級教學團隊 | M75: 六年級教學團隊 | P75: 8 | Q75: 第八週 2018/10/14~2018/10/20 | S75: 四、小數除法 | Z75: 0
D76: 72 | F76: D | G76: 6 | H76: 上 | I76: 數學 | J76: 數學 ( 康軒版)第11冊 | K76: 4 | L76: 六年級教學團隊 | M76: 六年級教學團隊 | P76: 9 | Q76: 第九週 2018/10/21~2018/10/27 | S76: 五、長條圖與折線圖 | Z76: 0
D77: 73 | F77: D | G77: 6 | H77: 上 | I77: 數學 | J77: 數學 ( 康軒版)第11冊 | K77: 4 | L77: 六年級教學團隊 | M77: 六年級教學團隊 | P77: 10 | Q77: 第十週 2018/10/28~2018/11/3 | S77: 六、圓周率與圓周長 | Z77: 0
D78: 74 | F78: D | G78: 6 | H78: 上 | I78: 數學 | J78: 數學 ( 康軒版)第11冊 | K78: 4 | L78: 六年級教學團隊 | M78: 六年級教學團隊 | P78: 11 | Q78: 第十一週 2018/11/4~2018/11/10 | S78: 六、圓周率與圓周長 | Z78: 0
D79: 75 | F79: D | G79: 6 | H79: 上 | I79: 數學 | J79: 數學 ( 康軒版)第11冊 | K79: 4 | L79: 六年級教學團隊 | M79: 六年級教學團隊 | P79: 12 | Q79: 第十二週 2018/11/11~2018/11/17 | S79: 七、圓面積 | Z79: 0
D80: 76 | F80: D | G80: 6 | H80: 上 | I80: 數學 | J80: 數學 ( 康軒版)第11冊 | K80: 4 | L80: 六年級教學團隊 | M80: 六年級教學團隊 | P80: 13 | Q80: 第十三週 2018/11/18~2018/11/24 | S80: 七、圓面積 | Z80: 0
D81: 77 | F81: D | G81: 6 | H81: 上 | I81: 數學 | J81: 數學 ( 康軒版)第11冊 | K81: 4 | L81: 六年級教學團隊 | M81: 六年級教學團隊 | P81: 14 | Q81: 第十四週 2018/11/25~2018/12/1 | S81: 八、等量公理與應用 | Z81: 0
D82: 78 | F82: D | G82: 6 | H82: 上 | I82: 數學 | J82: 數學 ( 康軒版)第11冊 | K82: 4 | L82: 六年級教學團隊 | M82: 六年級教學團隊 | P82: 15 | Q82: 第十五週 2018/12/2~2018/12/8 | S82: 八、等量公理與應用 | Z82: 0
D83: 79 | F83: D | G83: 6 | H83: 上 | I83: 數學 | J83: 數學 ( 康軒版)第11冊 | K83: 4 | L83: 六年級教學團隊 | M83: 六年級教學團隊 | P83: 16 | Q83: 第十六週 2018/12/9~2018/12/15 | S83: 九、比、比值與成正比 | Z83: 0
D84: 80 | F84: D | G84: 6 | H84: 上 | I84: 數學 | J84: 數學 ( 康軒版)第11冊 | K84: 4 | L84: 六年級教學團隊 | M84: 六年級教學團隊 | P84: 17 | Q84: 第十七週 2018/12/16~2018/12/22 | S84: 九、比、比值與成正比 | Z84: 0
D85: 81 | F85: D | G85: 6 | H85: 上 | I85: 數學 | J85: 數學 ( 康軒版)第11冊 | K85: 4 | L85: 六年級教學團隊 | M85: 六年級教學團隊 | P85: 18 | Q85: 第十八週 2018/12/23~2018/12/29 | S85: 九、比、比值與成正比 | Z85: 0
D86: 82 | F86: D | G86: 6 | H86: 上 | I86: 數學 | J86: 數學 ( 康軒版)第11冊 | K86: 3 | L86: 六年級教學團隊 | M86: 六年級教學團隊 | P86: 19 | Q86: 第十九週 2018/12/30~2019/1/5 | S86: 十、縮圖、放大圖與比例尺 | Z86: 0
D87: 83 | F87: D | G87: 6 | H87: 上 | I87: 數學 | J87: 數學 ( 康軒版)第11冊 | K87: 4 | L87: 六年級教學團隊 | M87: 六年級教學團隊 | P87: 20 | Q87: 第二十週 2019/1/6~2019/1/12 | S87: 十、縮圖、放大圖與比例尺 | Z87: 0
D88: 84 | F88: D | G88: 6 | H88: 上 | I88: 數學 | J88: 數學 ( 康軒版)第11冊 | K88: 4 | L88: 六年級教學團隊 | M88: 六年級教學團隊 | P88: 21 | Q88: 第二十一週 2019/1/13~2019/1/19 | S88: 十、縮圖、放大圖與比例尺 | Z88: 0
D89: 85 | F89: E | G89: 6 | H89: 上 | I89: 社會 | J89: 社會 (康軒版)第7冊 | K89: 1 | L89: 六年級教學團隊 | M89: 六年級教學團隊 | P89: 1 | Q89: 第一週 2018/8/26~2018/9/1 | S89: 一、東瀛來的統治者 1.日治時代的殖民統治 | Z89: 0
D90: 86 | F90: E | G90: 6 | H90: 上 | I90: 社會 | J90: 社會 (康軒版)第7冊 | K90: 3 | L90: 六年級教學團隊 | M90: 六年級教學團隊 | P90: 2 | Q90: 第二週 2018/9/2~2018/9/8 | S90: 一、東瀛來的統治者 1.日治時代的殖民統治 | Z90: 0
D91: 87 | F91: E | G91: 6 | H91: 上 | I91: 社會 | J91: 社會 (康軒版)第7冊 | K91: 3 | L91: 六年級教學團隊 | M91: 六年級教學團隊 | P91: 3 | Q91: 第三週 2018/9/9~2018/9/15 | S91: 一、東瀛來的統治者 2.日治時代的社會變遷 | Z91: 0
D92: 88 | F92: E | G92: 6 | H92: 上 | I92: 社會 | J92: 社會 (康軒版)第7冊 | K92: 3 | L92: 六年級教學團隊 | M92: 六年級教學團隊 | P92: 4 | Q92: 第四週 2018/9/16~2018/9/22 | S92: 一、東瀛來的統治者 3.日治時代的社會變遷 | Z92: 0
D93: 89 | F93: E | G93: 6 | H93: 上 | I93: 社會 | J93: 社會 (康軒版)第7冊 | K93: 3 | L93: 六年級教學團隊 | M93: 六年級教學團隊 | P93: 5 | Q93: 第五週 2018/9/23~2018/9/29 | S93: 二、戰後臺灣的政治演變 1.政治發展 | Z93: 0
D94: 90 | F94: E | G94: 6 | H94: 上 | I94: 社會 | J94: 社會 (康軒版)第7冊 | K94: 3 | L94: 六年級教學團隊 | M94: 六年級教學團隊 | P94: 6 | Q94: 第六週 2018/9/30~2018/10/6 | S94: 二、戰後臺灣的政治演變 2.政府組織 | Z94: 0
D95: 91 | F95: E | G95: 6 | H95: 上 | I95: 社會 | J95: 社會 (康軒版)第7冊 | K95: 2 | L95: 六年級教學團隊 | M95: 六年級教學團隊 | P95: 7 | Q95: 第七週 2018/10/7~2018/10/13 | S95: 三、戰後臺灣的經濟發展 1.經濟重整與復甦 | Z95: 0
D96: 92 | F96: E | G96: 6 | H96: 上 | I96: 社會 | J96: 社會 (康軒版)第7冊 | K96: 3 | L96: 六年級教學團隊 | M96: 六年級教學團隊 | P96: 8 | Q96: 第八週 2018/10/14~2018/10/20 | S96: 三、戰後臺灣的經濟發展 1.經濟重整與復甦 | Z96: 0
D97: 93 | F97: E | G97: 6 | H97: 上 | I97: 社會 | J97: 社會 (康軒版)第7冊 | K97: 3 | L97: 六年級教學團隊 | M97: 六年級教學團隊 | P97: 9 | Q97: 第九週 2018/10/21~2018/10/27 | S97: 三、戰後臺灣的經濟發展 2.經濟發展與轉型 | Z97: 0
D98: 94 | F98: E | G98: 6 | H98: 上 | I98: 社會 | J98: 社會 (康軒版)第7冊 | K98: 3 | L98: 六年級教學團隊 | M98: 六年級教學團隊 | P98: 10 | Q98: 第十週 2018/10/28~2018/11/3 | S98: 三、戰後臺灣的經濟發展 2.經濟發展與轉型 | Z98: 0
D99: 95 | F99: E | G99: 6 | H99: 上 | I99: 社會 | J99: 社會 (康軒版)第7冊 | K99: 3 | L99: 六年級教學團隊 | M99: 六年級教學團隊 | P99: 11 | Q99: 第十一週 2018/11/4~2018/11/10 | S99: 四、戰後臺灣的社會與文化 1.社會的變遷 | Z99: 0
D100: 96 | F100: E | G100: 6 | H100: 上 | I100: 社會 | J100: 社會 (康軒版)第7冊 | K100: 3 | L100: 六年級教學團隊 | M100: 六年級教學團隊 | P100: 12 | Q100: 第十二週 2018/11/11~2018/11/17 | S100: 四、戰後臺灣的社會與文化 1.社會的變遷 | Z100: 0
D101: 97 | F101: E | G101: 6 | H101: 上 | I101: 社會 | J101: 社會 (康軒版)第7冊 | K101: 3 | L101: 六年級教學團隊 | M101: 六年級教學團隊 | P101: 13 | Q101: 第十三週 2018/11/18~2018/11/24 | S101: 四、戰後臺灣的社會與文化 2.文化的傳承與發展 | Z101: 0
D102: 98 | F102: E | G102: 6 | H102: 上 | I102: 社會 | J102: 社會 (康軒版)第7冊 | K102: 3 | L102: 六年級教學團隊 | M102: 六年級教學團隊 | P102: 14 | Q102: 第十四週 2018/11/25~2018/12/1 | S102: 四、戰後臺灣的社會與文化 2.文化的傳承與發展 | Z102: 0
D103: 99 | F103: E | G103: 6 | H103: 上 | I103: 社會 | J103: 社會 (康軒版)第7冊 | K103: 3 | L103: 六年級教學團隊 | M103: 六年級教學團隊 | P103: 15 | Q103: 第十五週 2018/12/2~2018/12/8 | S103: 五、臺灣的人口 1.人口分布與遷移 | Z103: 0
D104: 100 | F104: E | G104: 6 | H104: 上 | I104: 社會 | J104: 社會 (康軒版)第7冊 | K104: 3 | L104: 六年級教學團隊 | M104: 六年級教學團隊 | P104: 16 | Q104: 第十六週 2018/12/9~2018/12/15 | S104: 五、臺灣的人口 1.人口分布與遷移 | Z104: 0
D105: 101 | F105: E | G105: 6 | H105: 上 | I105: 社會 | J105: 社會 (康軒版)第7冊 | K105: 3 | L105: 六年級教學團隊 | M105: 六年級教學團隊 | P105: 17 | Q105: 第十七週 2018/12/16~2018/12/22 | S105: 五、臺灣的人口 2.人口現象與政策 | Z105: 0
D106: 102 | F106: E | G106: 6 | H106: 上 | I106: 社會 | J106: 社會 (康軒版)第7冊 | K106: 3 | L106: 六年級教學團隊 | M106: 六年級教學團隊 | P106: 18 | Q106: 第十八週 2018/12/23~2018/12/29 | S106: 五、臺灣的人口 2.人口現象與政策 | Z106: 0
D107: 103 | F107: E | G107: 6 | H107: 上 | I107: 社會 | J107: 社會 (康軒版)第7冊 | K107: 2 | L107: 六年級教學團隊 | M107: 六年級教學團隊 | P107: 19 | Q107: 第十九週 2018/12/30~2019/1/5 | S107: 六、臺灣的城鄉與區域 1.鄉村與都市 | Z107: 0
D108: 104 | F108: E | G108: 6 | H108: 上 | I108: 社會 | J108: 社會 (康軒版)第7冊 | K108: 3 | L108: 六年級教學團隊 | M108: 六年級教學團隊 | P108: 20 | Q108: 第二十週 2019/1/6~2019/1/12 | S108: 六、臺灣的城鄉與區域 2.區域特色與發展 | Z108: 0
D109: 105 | F109: E | G109: 6 | H109: 上 | I109: 社會 | J109: 社會 (康軒版)第7冊 | K109: 3 | L109: 六年級教學團隊 | M109: 六年級教學團隊 | P109: 21 | Q109: 第二十一週 2019/1/13~2019/1/19 | S109: 六、臺灣的城鄉與區域 2.區域特色與發展 | Z109: 0
D110: 106 | F110: F | G110: 6 | H110: 上 | I110: 藝術與人文 | J110: 藝術與人文 ( 康軒版)第7冊 | K110: 3 | L110: 六年級教學團隊 | M110: 六年級教學團隊 | P110: 1 | Q110: 第一週 2018/8/26~2018/9/1 | S110: 六、臺灣的城鄉與區域 2.區域特色與發展 | Z110: 0
D111: 107 | F111: F | G111: 6 | H111: 上 | I111: 藝術與人文 | J111: 藝術與人文 ( 康軒版)第7冊 | K111: 3 | L111: 六年級教學團隊 | M111: 六年級教學團隊 | P111: 2 | Q111: 第二週 2018/9/2~2018/9/8 | S111: 一、歌劇狂想曲 1.歌劇中的喜怒哀樂 2.音樂劇在臺灣 | Z111: 0
D112: 108 | F112: F | G112: 6 | H112: 上 | I112: 藝術與人文 | J112: 藝術與人文 ( 康軒版)第7冊 | K112: 3 | L112: 六年級教學團隊 | M112: 六年級教學團隊 | P112: 3 | Q112: 第三週 2018/9/9~2018/9/15 | S112: 一、歌劇狂想曲 2.音樂劇在臺灣 3.笛聲飛揚 | Z112: 0
D113: 109 | F113: F | G113: 6 | H113: 上 | I113: 藝術與人文 | J113: 藝術與人文 ( 康軒版)第7冊 | K113: 3 | L113: 六年級教學團隊 | M113: 六年級教學團隊 | P113: 4 | Q113: 第四週 2018/9/16~2018/9/22 | S113: 二、雋永之歌 1.與音樂對話 | Z113: 0
D114: 110 | F114: F | G114: 6 | H114: 上 | I114: 藝術與人文 | J114: 藝術與人文 ( 康軒版)第7冊 | K114: 3 | L114: 六年級教學團隊 | M114: 六年級教學團隊 | P114: 5 | Q114: 第五週 2018/9/23~2018/9/29 | S114: 二、雋永之歌 2.清新的旋律 | Z114: 0
D115: 111 | F115: F | G115: 6 | H115: 上 | I115: 藝術與人文 | J115: 藝術與人文 ( 康軒版)第7冊 | K115: 3 | L115: 六年級教學團隊 | M115: 六年級教學團隊 | P115: 6 | Q115: 第六週 2018/9/30~2018/10/6 | S115: 二、雋永之歌 3.笛聲飛揚 | Z115: 0
D116: 112 | F116: F | G116: 6 | H116: 上 | I116: 藝術與人文 | J116: 藝術與人文 ( 康軒版)第7冊 | K116: 2 | L116: 六年級教學團隊 | M116: 六年級教學團隊 | P116: 7 | Q116: 第七週 2018/10/7~2018/10/13 | S116: 三、傳藝之美 1.傳統藝術之美 2.刻劃之美 | Z116: 0
D117: 113 | F117: F | G117: 6 | H117: 上 | I117: 藝術與人文 | J117: 藝術與人文 ( 康軒版)第7冊 | K117: 3 | L117: 六年級教學團隊 | M117: 六年級教學團隊 | P117: 8 | Q117: 第八週 2018/10/14~2018/10/20 | S117: 三、傳藝之美 3.版畫好好玩 | Z117: 0
D118: 114 | F118: F | G118: 6 | H118: 上 | I118: 藝術與人文 | J118: 藝術與人文 ( 康軒版)第7冊 | K118: 3 | L118: 六年級教學團隊 | M118: 六年級教學團隊 | P118: 9 | Q118: 第九週 2018/10/21~2018/10/27 | S118: 三、傳藝之美 3.版畫好好玩 | Z118: 0
D119: 115 | F119: F | G119: 6 | H119: 上 | I119: 藝術與人文 | J119: 藝術與人文 ( 康軒版)第7冊 | K119: 3 | L119: 六年級教學團隊 | M119: 六年級教學團隊 | P119: 10 | Q119: 第十週 2018/10/28~2018/11/3 | S119: 四、美哉人生 1.人生百態 | Z119: 0
D120: 116 | F120: F | G120: 6 | H120: 上 | I120: 藝術與人文 | J120: 藝術與人文 ( 康軒版)第7冊 | K120: 3 | L120: 六年級教學團隊 | M120: 六年級教學團隊 | P120: 11 | Q120: 第十一週 2018/11/4~2018/11/10 | S120: 四、美哉人生 2.塑造精采人生 | Z120: 0
D121: 117 | F121: F | G121: 6 | H121: 上 | I121: 藝術與人文 | J121: 藝術與人文 ( 康軒版)第7冊 | K121: 3 | L121: 六年級教學團隊 | M121: 六年級教學團隊 | P121: 12 | Q121: 第十二週 2018/11/11~2018/11/17 | S121: 四、美哉人生 2.塑造精采人生 | Z121: 0
D122: 118 | F122: F | G122: 6 | H122: 上 | I122: 藝術與人文 | J122: 藝術與人文 ( 康軒版)第7冊 | K122: 3 | L122: 六年級教學團隊 | M122: 六年級教學團隊 | P122: 13 | Q122: 第十三週 2018/11/18~2018/11/24 | S122: 五、打開戲劇百寶箱 1.聚光燈下的戲劇 2.認識演出的場地—劇場 | Z122: 0
D123: 119 | F123: F | G123: 6 | H123: 上 | I123: 藝術與人文 | J123: 藝術與人文 ( 康軒版)第7冊 | K123: 3 | L123: 六年級教學團隊 | M123: 六年級教學團隊 | P123: 14 | Q123: 第十四週 2018/11/25~2018/12/1 | S123: 五、打開戲劇百寶箱 3.表演欣賞停看聽 4.跨國界的表演藝術 | Z123: 0
D124: 120 | F124: F | G124: 6 | H124: 上 | I124: 藝術與人文 | J124: 藝術與人文 ( 康軒版)第7冊 | K124: 3 | L124: 六年級教學團隊 | M124: 六年級教學團隊 | P124: 15 | Q124: 第十五週 2018/12/2~2018/12/8 | S124: 五、打開戲劇百寶箱 4.跨國界的表演藝術 5.說學逗唱樣樣精 | Z124: 0
D125: 121 | F125: F | G125: 6 | H125: 上 | I125: 藝術與人文 | J125: 藝術與人文 ( 康軒版)第7冊 | K125: 3 | L125: 六年級教學團隊 | M125: 六年級教學團隊 | P125: 16 | Q125: 第十六週 2018/12/9~2018/12/15 | S125: 五、打開戲劇百寶箱 5.說學逗唱樣樣精 6.藝術新視野 | Z125: 0
D126: 122 | F126: F | G126: 6 | H126: 上 | I126: 藝術與人文 | J126: 藝術與人文 ( 康軒版)第7冊 | K126: 3 | L126: 六年級教學團隊 | M126: 六年級教學團隊 | P126: 17 | Q126: 第十七週 2018/12/16~2018/12/22 | S126: 六、海洋家園 1.大海的歌唱 | U126: BG:海洋教育(1) | V126: 1 | Z126: 0
D127: 123 | F127: F | G127: 6 | H127: 上 | I127: 藝術與人文 | J127: 藝術與人文 ( 康軒版)第7冊 | K127: 3 | L127: 六年級教學團隊 | M127: 六年級教學團隊 | P127: 18 | Q127: 第十八週 2018/12/23~2018/12/29 | S127: 六、海洋家園 1.大海的歌唱 | Z127: 0
D128: 124 | F128: F | G128: 6 | H128: 上 | I128: 藝術與人文 | J128: 藝術與人文 ( 康軒版)第7冊 | K128: 2 | L128: 六年級教學團隊 | M128: 六年級教學團隊 | P128: 19 | Q128: 第十九週 2018/12/30~2019/1/5 | S128: 六、海洋家園 2.海洋之舞 | Z128: 0
D129: 125 | F129: F | G129: 6 | H129: 上 | I129: 藝術與人文 | J129: 藝術與人文 ( 康軒版)第7冊 | K129: 3 | L129: 六年級教學團隊 | M129: 六年級教學團隊 | P129: 20 | Q129: 第二十週 2019/1/6~2019/1/12 | S129: 六、海洋家園 2.海洋之舞 3.海洋風情畫 | Z129: 0
D130: 126 | F130: F | G130: 6 | H130: 上 | I130: 藝術與人文 | J130: 藝術與人文 ( 康軒版)第7冊 | K130: 3 | L130: 六年級教學團隊 | M130: 六年級教學團隊 | P130: 21 | Q130: 第二十一週 2019/1/13~2019/1/19 | S130: 六、海洋家園 3.海洋風情畫 | Z130: 0
D131: 127 | F131: G | G131: 6 | H131: 上 | I131: 自然與科技 | J131: 自然與科技 ( 康軒版)第7冊 | K131: 3 | L131: 六年級教學團隊 | M131: 六年級教學團隊 | P131: 1 | Q131: 第一週 2018/8/26~2018/9/1 | S131: 六、海洋家園 3.海洋風情畫 | Z131: 0
D132: 128 | F132: G | G132: 6 | H132: 上 | I132: 自然與科技 | J132: 自然與科技 ( 康軒版)第7冊 | K132: 4 | L132: 六年級教學團隊 | M132: 六年級教學團隊 | P132: 2 | Q132: 第二週 2018/9/2~2018/9/8 | S132: 一、天氣的變化 活動一 大氣中的水 | Z132: 0
D133: 129 | F133: G | G133: 6 | H133: 上 | I133: 自然與科技 | J133: 自然與科技 ( 康軒版)第7冊 | K133: 4 | L133: 六年級教學團隊 | M133: 六年級教學團隊 | P133: 3 | Q133: 第三週 2018/9/9~2018/9/15 | S133: 一、天氣的變化 活動二 認識天氣的變化 | Z133: 0
D134: 130 | F134: G | G134: 6 | H134: 上 | I134: 自然與科技 | J134: 自然與科技 ( 康軒版)第7冊 | K134: 4 | L134: 六年級教學團隊 | M134: 六年級教學團隊 | P134: 4 | Q134: 第四週 2018/9/16~2018/9/22 | S134: 一、天氣的變化 活動二 認識天氣的變化 活動三 颱風 | Z134: 0
D135: 131 | F135: G | G135: 6 | H135: 上 | I135: 自然與科技 | J135: 自然與科技 ( 康軒版)第7冊 | K135: 2 | L135: 六年級教學團隊 | M135: 六年級教學團隊 | P135: 5 | Q135: 第五週 2018/9/23~2018/9/29 | S135: 一、天氣的變化 活動三 颱風 | Z135: 0
D136: 132 | F136: G | G136: 6 | H136: 上 | I136: 自然與科技 | J136: 自然與科技 ( 康軒版)第7冊 | K136: 4 | L136: 六年級教學團隊 | M136: 六年級教學團隊 | P136: 6 | Q136: 第六週 2018/9/30~2018/10/6 | S136: 二、熱對物質的影響 活動一 物質受熱後的變化 | Z136: 0
D137: 133 | F137: G | G137: 6 | H137: 上 | I137: 自然與科技 | J137: 自然與科技 ( 康軒版)第7冊 | K137: 4 | L137: 六年級教學團隊 | M137: 六年級教學團隊 | P137: 7 | Q137: 第七週 2018/10/7~2018/10/13 | S137: 二、熱對物質的影響 活動一 物質受熱後的變化 活動二 熱的傳播 | Z137: 0
D138: 134 | F138: G | G138: 6 | H138: 上 | I138: 自然與科技 | J138: 自然與科技 ( 康軒版)第7冊 | K138: 4 | L138: 六年級教學團隊 | M138: 六年級教學團隊 | P138: 8 | Q138: 第八週 2018/10/14~2018/10/20 | S138: 二、熱對物質的影響 活動二 熱的傳播 | Z138: 0
D139: 135 | F139: G | G139: 6 | H139: 上 | I139: 自然與科技 | J139: 自然與科技 ( 康軒版)第7冊 | K139: 4 | L139: 六年級教學團隊 | M139: 六年級教學團隊 | P139: 9 | Q139: 第九週 2018/10/21~2018/10/27 | S139: 二、熱對物質的影響 活動二 熱的傳播 活動三 保溫與散熱 | Z139: 0
D140: 136 | F140: G | G140: 6 | H140: 上 | I140: 自然與科技 | J140: 自然與科技 ( 康軒版)第7冊 | K140: 4 | L140: 六年級教學團隊 | M140: 六年級教學團隊 | P140: 10 | Q140: 第十週 2018/10/28~2018/11/3 | S140: 二、熱對物質的影響 活動三 保溫與散熱 三、大地的奧祕 活動一 多變的大地景觀 | Z140: 0
D141: 137 | F141: G | G141: 6 | H141: 上 | I141: 自然與科技 | J141: 自然與科技 ( 康軒版)第7冊 | K141: 4 | L141: 六年級教學團隊 | M141: 六年級教學團隊 | P141: 11 | Q141: 第十一週 2018/11/4~2018/11/10 | S141: 三、大地的奧祕 活動一 多變的大地景觀 | Z141: 0
D142: 138 | F142: G | G142: 6 | H142: 上 | I142: 自然與科技 | J142: 自然與科技 ( 康軒版)第7冊 | K142: 4 | L142: 六年級教學團隊 | M142: 六年級教學團隊 | P142: 12 | Q142: 第十二週 2018/11/11~2018/11/17 | S142: 三、大地的奧祕 活動一 多變的大地景觀 | U142: AI:環境教育(2) | V142: 2 | Z142: 0
D143: 139 | F143: G | G143: 6 | H143: 上 | I143: 自然與科技 | J143: 自然與科技 ( 康軒版)第7冊 | K143: 4 | L143: 六年級教學團隊 | M143: 六年級教學團隊 | P143: 13 | Q143: 第十三週 2018/11/18~2018/11/24 | S143: 三、大地的奧祕 活動一 多變的大地景觀 活動二 岩石與礦物 | Z143: 0
D144: 140 | F144: G | G144: 6 | H144: 上 | I144: 自然與科技 | J144: 自然與科技 ( 康軒版)第7冊 | K144: 4 | L144: 六年級教學團隊 | M144: 六年級教學團隊 | P144: 14 | Q144: 第十四週 2018/11/25~2018/12/1 | S144: 三、大地的奧祕 活動二 岩石與礦物 | Z144: 0
D145: 141 | F145: G | G145: 6 | H145: 上 | I145: 自然與科技 | J145: 自然與科技 ( 康軒版)第7冊 | K145: 4 | L145: 六年級教學團隊 | M145: 六年級教學團隊 | P145: 15 | Q145: 第十五週 2018/12/2~2018/12/8 | S145: 三、大地的奧祕 活動二 岩石與礦物 活動三 風化與土壤 | Z145: 0
D146: 142 | F146: G | G146: 6 | H146: 上 | I146: 自然與科技 | J146: 自然與科技 ( 康軒版)第7冊 | K146: 4 | L146: 六年級教學團隊 | M146: 六年級教學團隊 | P146: 16 | Q146: 第十六週 2018/12/9~2018/12/15 | S146: 四、電磁作用 活動一 指北針和地磁 活動二 電磁鐵 | Z146: 0
D147: 143 | F147: G | G147: 6 | H147: 上 | I147: 自然與科技 | J147: 自然與科技 ( 康軒版)第7冊 | K147: 4 | L147: 六年級教學團隊 | M147: 六年級教學團隊 | P147: 17 | Q147: 第十七週 2018/12/16~2018/12/22 | S147: 四、電磁作用 活動二 電磁鐵 | U147: AQ:戶外教育(2) | V147: 2 | Z147: 0
D148: 144 | F148: G | G148: 6 | H148: 上 | I148: 自然與科技 | J148: 自然與科技 ( 康軒版)第7冊 | K148: 4 | L148: 六年級教學團隊 | M148: 六年級教學團隊 | P148: 18 | Q148: 第十八週 2018/12/23~2018/12/29 | S148: 四、電磁作用 活動二 電磁鐵 | Z148: 0
D149: 145 | F149: G | G149: 6 | H149: 上 | I149: 自然與科技 | J149: 自然與科技 ( 康軒版)第7冊 | K149: 2 | L149: 六年級教學團隊 | M149: 六年級教學團隊 | P149: 19 | Q149: 第十九週 2018/12/30~2019/1/5 | S149: 四、電磁作用 活動二 電磁鐵 活動三 電磁鐵的應用 | Z149: 0
D150: 146 | F150: G | G150: 6 | H150: 上 | I150: 自然與科技 | J150: 自然與科技 ( 康軒版)第7冊 | K150: 4 | L150: 六年級教學團隊 | M150: 六年級教學團隊 | P150: 20 | Q150: 第二十週 2019/1/6~2019/1/12 | S150: 四、電磁作用 活動三 電磁鐵的應用 | Z150: 0
D151: 147 | F151: G | G151: 6 | H151: 上 | I151: 自然與科技 | J151: 自然與科技 ( 康軒版)第7冊 | K151: 4 | L151: 六年級教學團隊 | M151: 六年級教學團隊 | P151: 21 | Q151: 第二十一週 2019/1/13~2019/1/19 | S151: 四、電磁作用 科學閱讀 | Z151: 0
D152: 148 | F152: H | G152: 6 | H152: 上 | I152: 健康與體育 | J152: 健康與體育翰林 (南一版)第11冊 | K152: 3 | L152: 六年級教學團隊 | M152: 六年級教學團隊 | P152: 1 | Q152: 第一週 2018/8/26~2018/9/1 | S152: 壹、成長與蛻變一.青春好樣 | U152: AG:性侵害防治教育(1),BA:飲食教育(1),AH:性別平等教育(1) | V152: 3 | Z152: 0
D153: 149 | F153: H | G153: 6 | H153: 上 | I153: 健康與體育 | J153: 健康與體育翰林 (南一版)第11冊 | K153: 3 | L153: 六年級教學團隊 | M153: 六年級教學團隊 | P153: 2 | Q153: 第二週 2018/9/2~2018/9/8 | S153: 壹、成長與蛻變一.青春好樣 | U153: AG:性侵害防治教育(1),BA:飲食教育(1),AH:性別平等教育(1) | V153: 3 | Z153: 0
D154: 150 | F154: H | G154: 6 | H154: 上 | I154: 健康與體育 | J154: 健康與體育翰林 (南一版)第11冊 | K154: 3 | L154: 六年級教學團隊 | M154: 六年級教學團隊 | P154: 3 | Q154: 第三週 2018/9/9~2018/9/15 | S154: 壹、成長與蛻變二.飲食萬花筒 | U154: BA:飲食教育(1) | V154: 1 | Z154: 0
D155: 151 | F155: H | G155: 6 | H155: 上 | I155: 健康與體育 | J155: 健康與體育翰林 (南一版)第11冊 | K155: 3 | L155: 六年級教學團隊 | M155: 六年級教學團隊 | P155: 4 | Q155: 第四週 2018/9/16~2018/9/22 | S155: 壹、成長與蛻變三.人我之間 | U155: AH:性別平等教育(1) | V155: 1 | Z155: 0
D156: 152 | F156: H | G156: 6 | H156: 上 | I156: 健康與體育 | J156: 健康與體育翰林 (南一版)第11冊 | K156: 2 | L156: 六年級教學團隊 | M156: 六年級教學團隊 | P156: 5 | Q156: 第五週 2018/9/23~2018/9/29 | S156: 壹、成長與蛻變三.人我之間 | U156: AH:性別平等教育(1) | V156: 1 | Z156: 0
D157: 153 | F157: H | G157: 6 | H157: 上 | I157: 健康與體育 | J157: 健康與體育翰林 (南一版)第11冊 | K157: 3 | L157: 六年級教學團隊 | M157: 六年級教學團隊 | P157: 6 | Q157: 第六週 2018/9/30~2018/10/6 | S157: 壹、成長與蛻變四.青春進行曲 | U157: AH:性別平等教育(1) | V157: 1 | Z157: 0
D158: 154 | F158: H | G158: 6 | H158: 上 | I158: 健康與體育 | J158: 健康與體育翰林 (南一版)第11冊 | K158: 3 | L158: 六年級教學團隊 | M158: 六年級教學團隊 | P158: 7 | Q158: 第七週 2018/10/7~2018/10/13 | S158: 壹、成長與蛻變五.健康生活深呼吸 | U158: AL:登革熱防治(1),BI:交通安全教育(1),BA:飲食教育(1) | V158: 3 | Z158: 0
D159: 155 | F159: H | G159: 6 | H159: 上 | I159: 健康與體育 | J159: 健康與體育翰林 (南一版)第11冊 | K159: 3 | L159: 六年級教學團隊 | M159: 六年級教學團隊 | P159: 8 | Q159: 第八週 2018/10/14~2018/10/20 | S159: 壹、成長與蛻變五.健康生活深呼吸 | U159: BA:飲食教育(1),BI:交通安全教育(1) | V159: 2 | Z159: 0
D160: 156 | F160: H | G160: 6 | H160: 上 | I160: 健康與體育 | J160: 健康與體育翰林 (南一版)第11冊 | K160: 3 | L160: 六年級教學團隊 | M160: 六年級教學團隊 | P160: 9 | Q160: 第九週 2018/10/21~2018/10/27 | S160: 貳、身體力與美六.青春奔跑 | U160: AH:性別平等教育(1) | V160: 1 | Z160: 0
D161: 157 | F161: H | G161: 6 | H161: 上 | I161: 健康與體育 | J161: 健康與體育翰林 (南一版)第11冊 | K161: 3 | L161: 六年級教學團隊 | M161: 六年級教學團隊 | P161: 10 | Q161: 第十週 2018/10/28~2018/11/3 | S161: 貳、身體力與美七.健康有氧 | U161: BH:低碳教育(1) | V161: 1 | Z161: 0
D162: 158 | F162: H | G162: 6 | H162: 上 | I162: 健康與體育 | J162: 健康與體育翰林 (南一版)第11冊 | K162: 3 | L162: 六年級教學團隊 | M162: 六年級教學團隊 | P162: 11 | Q162: 第十一週 2018/11/4~2018/11/10 | S162: 貳、身體力與美七.健康有氧 | Z162: 0
D163: 159 | F163: H | G163: 6 | H163: 上 | I163: 健康與體育 | J163: 健康與體育翰林 (南一版)第11冊 | K163: 3 | L163: 六年級教學團隊 | M163: 六年級教學團隊 | P163: 12 | Q163: 第十二週 2018/11/11~2018/11/17 | S163: 貳、身體力與美八.足球小子(一) | U163: CF:校慶運動會(中高年級)(3) | V163: 3 | Z163: 0
D164: 160 | F164: H | G164: 6 | H164: 上 | I164: 健康與體育 | J164: 健康與體育翰林 (南一版)第11冊 | K164: 3 | L164: 六年級教學團隊 | M164: 六年級教學團隊 | P164: 13 | Q164: 第十三週 2018/11/18~2018/11/24 | S164: 貳、身體力與美八.足球小子(一) | Z164: 0
D165: 161 | F165: H | G165: 6 | H165: 上 | I165: 健康與體育 | J165: 健康與體育翰林 (南一版)第11冊 | K165: 3 | L165: 六年級教學團隊 | M165: 六年級教學團隊 | P165: 14 | Q165: 第十四週 2018/11/25~2018/12/1 | S165: 貳、身體力與美九.體操精靈 | Z165: 0
D166: 162 | F166: H | G166: 6 | H166: 上 | I166: 健康與體育 | J166: 健康與體育翰林 (南一版)第11冊 | K166: 3 | L166: 六年級教學團隊 | M166: 六年級教學團隊 | P166: 15 | Q166: 第十五週 2018/12/2~2018/12/8 | S166: 貳、身體力與美九.體操精靈 | Z166: 0
D167: 163 | F167: H | G167: 6 | H167: 上 | I167: 健康與體育 | J167: 健康與體育翰林 (南一版)第11冊 | K167: 3 | L167: 六年級教學團隊 | M167: 六年級教學團隊 | P167: 16 | Q167: 第十六週 2018/12/9~2018/12/15 | S167: 貳、身體力與美九.體操精靈 | Z167: 0
D168: 164 | F168: H | G168: 6 | H168: 上 | I168: 健康與體育 | J168: 健康與體育翰林 (南一版)第11冊 | K168: 3 | L168: 六年級教學團隊 | M168: 六年級教學團隊 | P168: 17 | Q168: 第十七週 2018/12/16~2018/12/22 | S168: 參、運動競技場十.現代輕功 | Z168: 0
D169: 165 | F169: H | G169: 6 | H169: 上 | I169: 健康與體育 | J169: 健康與體育翰林 (南一版)第11冊 | K169: 3 | L169: 六年級教學團隊 | M169: 六年級教學團隊 | P169: 18 | Q169: 第十八週 2018/12/23~2018/12/29 | S169: 參、運動競技場十一.力拔山河 | Z169: 0
D170: 166 | F170: H | G170: 6 | H170: 上 | I170: 健康與體育 | J170: 健康與體育翰林 (南一版)第11冊 | K170: 3 | L170: 六年級教學團隊 | M170: 六年級教學團隊 | P170: 19 | Q170: 第十九週 2018/12/30~2019/1/5 | S170: 參、運動競技場十一.力拔山河 | Z170: 0
D171: 167 | F171: H | G171: 6 | H171: 上 | I171: 健康與體育 | J171: 健康與體育翰林 (南一版)第11冊 | K171: 3 | L171: 六年級教學團隊 | M171: 六年級教學團隊 | P171: 20 | Q171: 第二十週 2019/1/6~2019/1/12 | S171: 參、運動競技場十二.樂趣手球 | Z171: 0
D172: 168 | F172: H | G172: 6 | H172: 上 | I172: 健康與體育 | J172: 健康與體育翰林 (南一版)第11冊 | K172: 3 | L172: 六年級教學團隊 | M172: 六年級教學團隊 | P172: 21 | Q172: 第二十一週 2019/1/13~2019/1/19 | S172: 總復習 | Z172: 0
D173: 169 | F173: I | G173: 6 | H173: 上 | I173: 綜合活動 | J173: 綜合活動 (康軒版)第11冊+自編 | K173: 1 | L173: 六年級教學團隊 | M173: 六年級教學團隊 | P173: 1 | Q173: 第一週 2018/8/26~2018/9/1 | S173: 第一單元發現不同的自己 活動一探索課程 | U173: BF:職業試探(1) | V173: 1 | Z173: 0
D174: 170 | F174: I | G174: 6 | H174: 上 | I174: 綜合活動 | J174: 綜合活動 (康軒版)第11冊+自編 | K174: 3 | L174: 六年級教學團隊 | M174: 六年級教學團隊 | P174: 2 | Q174: 第二週 2018/9/2~2018/9/8 | S174: 第一單元發現不同的自己 活動二努力學習 | Z174: 0
D175: 171 | F175: I | G175: 6 | H175: 上 | I175: 綜合活動 | J175: 綜合活動 (康軒版)第11冊+自編 | K175: 3 | L175: 六年級教學團隊 | M175: 六年級教學團隊 | P175: 3 | Q175: 第三週 2018/9/9~2018/9/15 | S175: 第二單元我的畢業旅行(自編) | Z175: 0
D176: 172 | F176: I | G176: 6 | H176: 上 | I176: 綜合活動 | J176: 綜合活動 (康軒版)第11冊+自編 | K176: 3 | L176: 六年級教學團隊 | M176: 六年級教學團隊 | P176: 4 | Q176: 第四週 2018/9/16~2018/9/22 | S176: 第二單元我的畢業旅行(自編) | Z176: 0
D177: 173 | F177: I | G177: 6 | H177: 上 | I177: 綜合活動 | J177: 綜合活動 (康軒版)第11冊+自編 | K177: 3 | L177: 六年級教學團隊 | M177: 六年級教學團隊 | P177: 5 | Q177: 第五週 2018/9/23~2018/9/29 | S177: 第三單元我是生活大師 | Z177: 0
D178: 174 | F178: I | G178: 6 | H178: 上 | I178: 綜合活動 | J178: 綜合活動 (康軒版)第11冊+自編 | K178: 3 | L178: 六年級教學團隊 | M178: 六年級教學團隊 | P178: 6 | Q178: 第六週 2018/9/30~2018/10/6 | S178: 第三單元我是生活大師 | Z178: 0
D179: 175 | F179: I | G179: 6 | H179: 上 | I179: 綜合活動 | J179: 綜合活動 (康軒版)第11冊+自編 | K179: 3 | L179: 六年級教學團隊 | M179: 六年級教學團隊 | P179: 7 | Q179: 第七週 2018/10/7~2018/10/13 | S179: 第一單元發現不同的自己 活動三持續發展 | Z179: 0
D180: 176 | F180: I | G180: 6 | H180: 上 | I180: 綜合活動 | J180: 綜合活動 (康軒版)第11冊+自編 | K180: 3 | L180: 六年級教學團隊 | M180: 六年級教學團隊 | P180: 8 | Q180: 第八週 2018/10/14~2018/10/20 | S180: 第四單元服務收穫多 活動一服務的真諦 | Z180: 0
D181: 177 | F181: I | G181: 6 | H181: 上 | I181: 綜合活動 | J181: 綜合活動 (康軒版)第11冊+自編 | K181: 3 | L181: 六年級教學團隊 | M181: 六年級教學團隊 | P181: 9 | Q181: 第九週 2018/10/21~2018/10/27 | S181: 第四單元服務收穫多 活動一服務的真諦 | U181: AC:家政教育(3) | V181: 3 | Z181: 0
D182: 178 | F182: I | G182: 6 | H182: 上 | I182: 綜合活動 | J182: 綜合活動 (康軒版)第11冊+自編 | K182: 3 | L182: 六年級教學團隊 | M182: 六年級教學團隊 | P182: 10 | Q182: 第十週 2018/10/28~2018/11/3 | S182: 第四單元服務收穫多 活動二服務中學習 | U182: AC:家政教育(3) | V182: 3 | Z182: 0
D183: 179 | F183: I | G183: 6 | H183: 上 | I183: 綜合活動 | J183: 綜合活動 (康軒版)第11冊+自編 | K183: 3 | L183: 六年級教學團隊 | M183: 六年級教學團隊 | P183: 11 | Q183: 第十一週 2018/11/4~2018/11/10 | S183: 第四單元服務收穫多 活動三服務中成長 | U183: AC:家政教育(3) | V183: 3 | Z183: 0
D184: 180 | F184: I | G184: 6 | H184: 上 | I184: 綜合活動 | J184: 綜合活動 (康軒版)第11冊+自編 | K184: 3 | L184: 六年級教學團隊 | M184: 六年級教學團隊 | P184: 12 | Q184: 第十二週 2018/11/11~2018/11/17 | S184: 第四單元服務收穫多 活動三服務中成長 | U184: CF:校慶運動會(中高年級)(2) | V184: 2 | Z184: 0
D185: 181 | F185: I | G185: 6 | H185: 上 | I185: 綜合活動 | J185: 綜合活動 (康軒版)第11冊+自編 | K185: 3 | L185: 六年級教學團隊 | M185: 六年級教學團隊 | P185: 13 | Q185: 第十三週 2018/11/18~2018/11/24 | S185: 第五單元寶貝我的家 活動一我們這一家 | U185: AC:家政教育(3) | V185: 3 | Z185: 0
D186: 182 | F186: I | G186: 6 | H186: 上 | I186: 綜合活動 | J186: 綜合活動 (康軒版)第11冊+自編 | K186: 3 | L186: 六年級教學團隊 | M186: 六年級教學團隊 | P186: 14 | Q186: 第十四週 2018/11/25~2018/12/1 | S186: 第五單元寶貝我的家 活動二親情交流站 | Z186: 0
D187: 183 | F187: I | G187: 6 | H187: 上 | I187: 綜合活動 | J187: 綜合活動 (康軒版)第11冊+自編 | K187: 3 | L187: 六年級教學團隊 | M187: 六年級教學團隊 | P187: 15 | Q187: 第十五週 2018/12/2~2018/12/8 | S187: 第五單元寶貝我的家 活動二親情交流站 | Z187: 0
D188: 184 | F188: I | G188: 6 | H188: 上 | I188: 綜合活動 | J188: 綜合活動 (康軒版)第11冊+自編 | K188: 3 | L188: 六年級教學團隊 | M188: 六年級教學團隊 | P188: 16 | Q188: 第十六週 2018/12/9~2018/12/15 | S188: 第五單元寶貝我的家 活動三互動一家親 | Z188: 0
D189: 185 | F189: I | G189: 6 | H189: 上 | I189: 綜合活動 | J189: 綜合活動 (康軒版)第11冊+自編 | K189: 3 | L189: 六年級教學團隊 | M189: 六年級教學團隊 | P189: 17 | Q189: 第十七週 2018/12/16~2018/12/22 | S189: 第六單元反制危機大作戰 活動一危機要提防 | U189: AQ:戶外教育(3) | V189: 3 | Z189: 0
D190: 186 | F190: I | G190: 6 | H190: 上 | I190: 綜合活動 | J190: 綜合活動 (康軒版)第11冊+自編 | K190: 3 | L190: 六年級教學團隊 | M190: 六年級教學團隊 | P190: 18 | Q190: 第十八週 2018/12/23~2018/12/29 | S190: 第六單元反制危機大作戰 活動二危機急轉彎 | Z190: 0
D191: 187 | F191: I | G191: 6 | H191: 上 | I191: 綜合活動 | J191: 綜合活動 (康軒版)第11冊+自編 | K191: 2 | L191: 六年級教學團隊 | M191: 六年級教學團隊 | P191: 19 | Q191: 第十九週 2018/12/30~2019/1/5 | S191: 第六單元反制危機大作戰 活動三化險為夷 | Z191: 0
D192: 188 | F192: I | G192: 6 | H192: 上 | I192: 綜合活動 | J192: 綜合活動 (康軒版)第11冊+自編 | K192: 3 | L192: 六年級教學團隊 | M192: 六年級教學團隊 | P192: 20 | Q192: 第二十週 2019/1/6~2019/1/12 | S192: 第六單元反制危機大作戰 活動三化險為夷 | U192: AJ:防災教育(1) | V192: 1 | Z192: 0
D193: 189 | F193: I | G193: 6 | H193: 上 | I193: 綜合活動 | J193: 綜合活動 (康軒版)第11冊+自編 | K193: 3 | L193: 六年級教學團隊 | M193: 六年級教學團隊 | P193: 21 | Q193: 第二十一週 2019/1/13~2019/1/19 | S193: 第一單元發現不同的自己 活動三持續發展 | Z193: 0
D194: 190 | F194: J | G194: 6 | H194: 上 | I194: 校本課程 | J194: 自編A | K194: 1 | L194: 六年級教學團隊 | M194: 六年級教學團隊 | P194: 1 | Q194: 第一週 2018/8/26~2018/9/1 | S194: SA:一、半屏山初探 | Z194: 0
D195: 191 | F195: J | G195: 6 | H195: 上 | I195: 校本課程 | J195: 自編A | K195: 1 | L195: 六年級教學團隊 | M195: 六年級教學團隊 | P195: 2 | Q195: 第二週 2018/9/2~2018/9/8 | S195: SA:一、半屏山初探 | Z195: 0
D196: 192 | F196: J | G196: 6 | H196: 上 | I196: 校本課程 | J196: 自編A | K196: 1 | L196: 六年級教學團隊 | M196: 六年級教學團隊 | P196: 3 | Q196: 第三週 2018/9/9~2018/9/15 | S196: SA:一、半屏山初探 | Z196: 0
D197: 193 | F197: J | G197: 6 | H197: 上 | I197: 校本課程 | J197: 自編A | K197: 1 | L197: 六年級教學團隊 | M197: 六年級教學團隊 | P197: 4 | Q197: 第四週 2018/9/16~2018/9/22 | S197: SA:二、非常接觸- 擁抱半屏山 1.半屏山尋寶記 | Z197: 0
D198: 194 | F198: J | G198: 6 | H198: 上 | I198: 校本課程 | J198: 自編A | K198: 1 | L198: 六年級教學團隊 | M198: 六年級教學團隊 | P198: 5 | Q198: 第五週 2018/9/23~2018/9/29 | S198: SA:二、非常接觸- 擁抱半屏山 1.半屏山尋寶記 | Z198: 0
D199: 195 | F199: J | G199: 6 | H199: 上 | I199: 校本課程 | J199: 自編A | K199: 1 | L199: 六年級教學團隊 | M199: 六年級教學團隊 | P199: 6 | Q199: 第六週 2018/9/30~2018/10/6 | S199: SA:二、非常接觸- 擁抱半屏山 1.半屏山尋寶記 | Z199: 0
D200: 196 | F200: J | G200: 6 | H200: 上 | I200: 校本課程 | J200: 自編A | K200: 1 | L200: 六年級教學團隊 | M200: 六年級教學團隊 | P200: 7 | Q200: 第七週 2018/10/7~2018/10/13 | S200: SA:二、非常接觸- 擁抱半屏山 1.半屏山尋寶記 | Z200: 0
D201: 197 | F201: J | G201: 6 | H201: 上 | I201: 校本課程 | J201: 自編A | K201: 1 | L201: 六年級教學團隊 | M201: 六年級教學團隊 | P201: 8 | Q201: 第八週 2018/10/14~2018/10/20 | S201: SA:二、非常接觸- 擁抱半屏山 2.站在高崗上 | Z201: 0
D202: 198 | F202: J | G202: 6 | H202: 上 | I202: 校本課程 | J202: 自編A | K202: 1 | L202: 六年級教學團隊 | M202: 六年級教學團隊 | P202: 9 | Q202: 第九週 2018/10/21~2018/10/27 | S202: SA:二、非常接觸- 擁抱半屏山 2.站在高崗上 | Z202: 0
... 348 more rows

Sheet 上下學期格式 (hidden)
C1: 彈性課程
C2: 年級 | D2: 1 | E2: 2 | F2: 3 | G2: 4 | H2: 5 | I2: 6 | J2: 7 | K2: 8 | L2: 9 | M2: 10 | N2: 11 | O2: 12 | P2: 13 | Q2: 14 | R2: 15 | S2: 16 | T2: 17 | U2: 18 | V2: 19 | W2: 20 | X2: 21 | Y2: 22
B3: 彈性課程 | C3: 1
B4: 彈性課程 | C4: 2
B5: 彈性課程 | C5: 3
B6: 彈性課程 | C6: 4
B7: 彈性課程 | C7: 5
B8: 彈性課程 | C8: 6
B9: 各週小計:
B11: N | C11: 非領域
C12: 年級 | D12: 1 | E12: 2 | F12: 3 | G12: 4 | H12: 5 | I12: 6 | J12: 7 | K12: 8 | L12: 9 | M12: 10 | N12: 11 | O12: 12 | P12: 13 | Q12: 14 | R12: 15 | S12: 16 | T12: 17 | U12: 18 | V12: 19 | W12: 20 | X12: 21 | Y12: 22
B13: 非領域 | C13: 1
B14: 非領域 | C14: 2
B15: 非領域 | C15: 3
B16: 非領域 | C16: 4
B17: 非領域 | C17: 5
B18: 非領域 | C18: 6
B19: 各週小計:
B21: A | C21: 國語文 | D21: 週次
C22: 年級 | D22: 1 | E22: 2 | F22: 3 | G22: 4 | H22: 5 | I22: 6 | J22: 7 | K22: 8 | L22: 9 | M22: 10 | N22: 11 | O22: 12 | P22: 13 | Q22: 14 | R22: 15 | S22: 16 | T22: 17 | U22: 18 | V22: 19 | W22: 20 | X22: 21 | Y22: 22
B23: 國語文 | C23: 1
B24: 國語文 | C24: 2
B25: 國語文 | C25: 3
B26: 國語文 | C26: 4
B27: 國語文 | C27: 5
B28: 國語文 | C28: 6
B29: 各週小計:
B31: B | C31: 本土語文
C32: 年級 | D32: 1 | E32: 2 | F32: 3 | G32: 4 | H32: 5 | I32: 6 | J32: 7 | K32: 8 | L32: 9 | M32: 10 | N32: 11 | O32: 12 | P32: 13 | Q32: 14 | R32: 15 | S32: 16 | T32: 17 | U32: 18 | V32: 19 | W32: 20 | X32: 21 | Y32: 22
B33: 本土語文 | C33: 1
B34: 本土語文 | C34: 2
B35: 本土語文 | C35: 3
B36: 本土語文 | C36: 4
B37: 本土語文 | C37: 5
B38: 本土語文 | C38: 6
B39: 各週小計:
B41: C | C41: 英語文
